Workbook

Sheet POOL
A1: POOL Kalkulator PRO | F1: © WUNDERWORKS | J1: >> SETS | M1: =IF(J2>0,IF(VLOOKUP(POOL!J2,SETS!A:I,9,FALSE)=0,"",VLOOKUP(POOL!J2,SETS!A:I,9,FALSE)),"") -> 11204051 | N1: =IF(AND(N3<>"",O3<>"",P3<>""),SUBSTITUTE(CONCATENATE("POOL-SET-",J2,"-",M3,"-",N3,"x",O3,"x",P3,"-",Q3,"-",SUBSTITUTE(R3," ",""),SUBSTITUTE(R4," ",""),"-",T3,".xlsm"),"-.xlsm",".xlsm"),"") -> POOL-SET-51-OVAL-700x350x150-FOLIENSACK-Fertigtreppe250cm.xlsm | U1: =IF(J2>0, ROUND((VLOOKUP(POOL!J2,SETS!A:K,11,FALSE) - K3),0), "" ) -> 0
C2: POOLDOKTOR Handels GmbH | J2: 51 | K2: =IF(J2=0,"(0 = zur FREIE KALKULATION :-)","SET in der Berechnung:") -> SET in der Berechnung: | M2: =IF(M3<>"","Form:","") -> Form: | N2: =IF(N3<>"","Länge:","") -> Länge: | O2: =IF(O3<>"","Breite:","") -> Breite: | P2: =IF(P3<>"","Tiefe:","") -> Tiefe: | Q2: =IF(Q3<>"","Folie:","") -> Folie: | R2: =IF(OR(R3<>"",R4<>""),"Einstieg:","") -> Einstieg: | T2: =IF(T3<>"","Poolüberdachung:","") -> 
C3: Kotzinastrasse 15 - 4030 Linz - AT | K3: =F736-SUM(F714:F717) - IF(T3<>"",F607,0) -> 4828.5533 | M3: =IF(J2>0,IF(VLOOKUP(POOL!J2,SETS!A:H,8,FALSE)=0,"",VLOOKUP(POOL!J2,SETS!A:H,8,FALSE)),"") -> OVAL | N3: =IF(J2>0,IF(VLOOKUP(POOL!J2,SETS!A:H,2,FALSE)=0,"",VLOOKUP(POOL!J2,SETS!A:H,2,FALSE)),"") -> 700 | O3: =IF(J2>0,IF(VLOOKUP(POOL!J2,SETS!A:H,3,FALSE)=0,"",VLOOKUP(POOL!J2,SETS!A:H,3,FALSE)),"") -> 350 | P3: =IF(J2>0,IF(VLOOKUP(POOL!J2,SETS!A:H,4,FALSE)=0,"",VLOOKUP(POOL!J2,SETS!A:H,4,FALSE)),"") -> 150 | Q3: =IF(J2>0,IF(VLOOKUP(POOL!J2,SETS!A:H,5,FALSE)=0,"",VLOOKUP(POOL!J2,SETS!A:H,5,FALSE)),"") -> FOLIENSACK | R3: =IF(J2>0,IF(VLOOKUP(POOL!J2,SETS!A:H,6,FALSE)=0,"",VLOOKUP(POOL!J2,SETS!A:H,6,FALSE)),"") -> Fertigtreppe 250cm | T3: =IF(J2>0,IF(VLOOKUP(POOL!J2,SETS!A:J,10,FALSE)=0,"",VLOOKUP(POOL!J2,SETS!A:J,10,FALSE)),"") -> 
C4: Telefon: + 43 732 38 22 22 | R4: =IF(J2>0,IF(VLOOKUP(POOL!J2,SETS!A:H,7,FALSE)=0,"",VLOOKUP(POOL!J2,SETS!A:H,7,FALSE)),"") -> 
C5: Email: office@pooldoktor.at | K5: ↑ Preis netto ohne Versand
K6: Inhaltsverzeichnis - bitte wählen und unten klicken:
A7: Datum: | B7: =TODAY() -> 2024-03-21 | C7: Angebot gültig bis: | F7: =B7+21 -> 2024-04-11 | K7: ↓ WUNDER-STONE | M7: ↓ ISO MASSIV GERADE | O7: ↓ ISO MASSIV BOGENSTEIN | Q7: ↓ BODENISOLIERUNG | S7: ↓ FREIFORM
F8: (Angebot freibleibend - Datum und Preise nur gültig mit aktuelle Inhalten bei PDF oder Ausdruck) | K8: ↓ EINBAUTEILE aus ABS | M8: ↓ EINBAUTEILE aus V4A | O8: ↓ HIGH LEVEL POOL
A9: Ihre Anschrift - Kundendaten | K9: ↓ FILTERANLAGE | M9: ↓ LEITER / TREPPEN | O9: ↓ FOLIENSACK 0,8mm | Q9: ↓ GEWEBEFOLIE 1.5mm
B10: bitte vollständig ausfüllen: | K10: ↓ RANDSTEINE | M10: ↓ INSTALLATIONSMATERIAL | O10: ↓ GEGENSTROMANLAGE | Q10: ↓ WASSERPFLEGE / SALZ | S10: ↓ POOLROBOTER
A11: Rechnungsadresse | C11: Lieferadresse? | E11: falls abweichend | K11: ↓ SOLARMATTE | M11: ↓ ROLLABDECKPLANE | O11: ↓ ROLLADEN | Q11: ↓ POOLÜBERDACHUNG | S11: ↓ HAUBE | T11: ↓ LOOP LOC
A12: Titel | K12: ↓ WÄRMETAUSCHER | M12: ↓ WÄRMEPUMPE | O12: ↓ SOLARABSORBER | Q12: ↓ SONSTIGES
A13: Name
A14: Straße
A15: PLZ
A16: Ort
A17: Land | B17: Österreich
A18: Telefon
A19: Email
C20: =IF($C$22="","",$C$22/100) -> 7 | D20: =IF($D$22="","",$D$22/100) -> 3.5
A21: Fragen bzw. Angaben zu Ihrem Pool | C21: Länge? | D21: Breite? | E21: Form?
A22: Bitte geben Sie das INNENMASS ihres Schwimmbeckens an (in cm): | C22: =IF(N3<>"",N3,600) -> 700 | D22: =IF(O3<>"",O3,300) -> 350 | E22: =IF(M3<>"",M3,"ECKIG") -> OVAL
A23: Wie TIEF soll ihr Pool werden? (in cm): | C23: =IF(P3<>"",P3,150) -> 150 | D23: cm
A24: Möchten Sie einen TECHNIKSCHACHT bauen? Innenmass in cm (L x B x T): | D24: =IF(C24<>"",D22,"") ->  | E24: =IF(C24<>"",C23,"") -> 
A25: =IF(C158="JA","Bei einem High Level Pool wird ein Teschnikschacht von mindestens 175 cm Länge x Pool Breite x 150cm Tiefe benötigt!","") -> 
A26: Styroporsteine: | K26: Sparen Sie viel Geld durch Eigenleistung! | Q26: Pooldoktor steht mit Rat & Tat zur Seite!
A27: Möchten Sie den Pool mit Styroporsteinen bauen? Ja/nein welche?: | C27: WUNDER-STONE
A28: Möchten Sie den Boden isolieren mit Isolierplatten? | C28: NEIN
J29: Seit über 19 Jahren sind wir spezialisiert auf Beratung & Verkauf von Styroporpools!
A30: Folie: | J30: Über 11.500 Styroporpools wurden von unseren Kunden erfolgreich erstellt!
A31: Soll bei ihnen 1.5mm Gewebefolie durch eine Fachfirma verlegt werden? Oder einen 0,8mm Foliensack selber einhängen? | J31: >> ERFAHRUNGSBERICHTE & FOTOS unserer Styroporpool Kunden
A32: Achtung! Stufen sind nur bei einem Pool mit Gewebefolie möglich! Fertigtreppe hingegen nur bei einem Pool mit Foliensack! | J32: >> REFERENZEN - wer hat einen Styroporpool gebaut?
A33: Bitte Folie wählen - Gewebefolie verlegt oder Foliensack selber einhängen? | C33: =IF(Q3<>"",Q3,"GEWEBEFOLIE") -> FOLIENSACK
B34: =IF(C33="FOLIENSACK","Möchten Sie eine Fertigtreppe oder eine Leiter?","") -> Möchten Sie eine Fertigtreppe oder eine Leiter? | C34: =IF(R3<>"",R3,"") -> Fertigtreppe 250cm | J34: Warum bei Pooldoktor kaufen? Wir beraten Sie gerne objektiv:
A35: =IF(C33="GEWEBEFOLIE","Hat ihr Pool eine RÖMISCHE Treppe ? Bitte wählen sie den Radius:","") ->  | C35: =IF(R4<>"",R4,"") ->  | J35: >> Wie plane ich einen Pool?
A36: =IF(C33="GEWEBEFOLIE","Hat ihr Pool eine AUSSENLIEGENDE GERADE Treppe? Innenmass in cm ein:","") ->  | E36: =IF(C33="GEWEBEFOLIE","(Länge x Breite in cm)","") ->  | J36: >> SET Unterschiede in der Ausstattung im Vergleich zum Mitbewerb
B38: Berechnung Steine: | J38: Sie bekommen von uns alle benötigten Informationen um ihr Poolprojekt zu realisieren!
B39: Gerade Steine (125 x 30 cm) für Wandfläche: | C39: =IF(E22="ECKIG",(((((C22+50)*2)+D22*2)/10000*C23)/0.375)+2, IF(E22="OVAL", ((C22-D22)*2*C23)/10000/0.375, 0 )) -> 28 | J39: >> PDF Baupläne / Skizze - auch 3D Simulationen tlw. HIER verfügbar!
B40: Gerade Steine (125 x 30 cm) für Technikschacht: | C40: =IF(AND(C24<>"",D24<>"",E24<>""),ROUNDUP((((C24+25)*2+D24)*E24)/10000/0.375,0),0) -> 0 | J40: >> Details zur Installation der Pooltechnik
B41: Gerade Steine (125 x 30 cm) für Gerade Treppe: | C41: =IF(AND(C36<>"",D36<>""), (C36+25)*2*C23/10000/0.375,0) -> 0
B42: Gerade Steine (125 x 30 cm) Abzug röm. Treppe | C42: =IF(OR(C35="R100 - 200cm breit",C34="Fertigtreppe 200cm"), ROUNDUP(200*C23/0.375/10000,0), IF(OR(C35="R125 - 250cm breit",C34="Fertigtreppe 250cm"),ROUNDUP(250*C23/0.375/10000,0), IF(OR(C35="R150 - 300cm breit",C34="Fertigtreppe 300cm"),ROUNDUP(300*C23/0.375/10000,0),0)) ) -> 10
B43: Anzahl Offene Steine die Endschuber benötigen: | C43: =IF(E22="ECKIG",C23/30*4+ IFERROR(E24/30*2,0) + IF(AND(C36<>"",D36<>""),C23/30*2,0) + IF(C35<>"",C23/30*2,0) + IF(OR(C34="Fertigtreppe 200cm",C34="Fertigtreppe 250cm",C34="Fertigtreppe 300cm"), 10, 0),0) -> 0
B44: Bogensteine (100 x 30 cm) für Wandfläche: | C44: =IF(E22="OVAL", ROUNDUP(D22*3.14*C23/10000/0.3+8,0), IF(E22="RUND", ROUNDUP((C22+D22)/2*3.14*C23/10000/0.3+8,0), 0)) -> 63
B45: Bogensteine (100 x 30 cm) für Römische Treppe: | C45: =IF(C35="R100 - 200cm breit",ROUNDUP(100*3.14*C23/10000/0.3+2,0), IF(C35="R125 - 250cm breit",ROUNDUP(125*3.14*C23/10000/0.3+2,0), IF(C35="R150 - 300cm breit",ROUNDUP(150*3.14*C23/10000/0.3+2,0),0)) ) -> 0
B46: Anzahl Styroporplatten (100 x 50 cm) zur Bodenisolierung: | C46: =IF(AND(C22<>"",D22<>""), ROUNDUP(C22*D22/10000/0.5,0), "") -> 49
A49: ANGEBOT - POOL
A51: Artikelnr. | B51: Artikelname | C51: Menge | E51: Preis | F51: Summe
A53: STYROPOR-TEILE | F53: =IF(SUM(F55:F58,F62:F65,F69:F80,F84,F90:F102)>0,"-","") -> - | J53: Unser gesamtes Verkaufs-Team & und vor allem ihr persönlicher Ansprechpartner stehen Ihnen mit Rat & Tat zur Seite!
A54: WUNDER - STONE - GERADE | C54: =IF(C27="WUNDER-STONE","JA","NEIN") -> JA | L54: >> DETAILS WUNDER-STONE
A55: 11008000 | B55: =VLOOKUP(A55,PREISE!$A:$B,2,FALSE) -> WUNDER-STONE- ISOLIERSTEIN PS 50 +-10% Toleranz - SET | C55: =IF(C54="JA", IF(E22="ECKIG",(((((C22+50)*2)+D22*2)/10000*C23)/0.375)+2, IF(E22="OVAL", ((C22-D22)*2*C23)/10000/0.375, 0 )) + IF(AND(C24<>"",D24<>"",E24<>""),ROUNDUP((((C24+25)*2+D24)*E24)/10000/0.375,0),0) + IF(AND(C36<>"",D36<>""), (C36+25)*2*C23/10000/0.375,0) - IF(OR(C35="R100 - 200cm breit",C34="Fertigtreppe 200cm"), ROUNDUP(200*C23/0.375/10000,0), IF(OR(C35="R125 - 250cm breit",C34="Fertigtreppe 250cm"),ROUNDUP(250*C23/0.375/10000,0), IF(OR(C35="R150 - 300cm breit",C34="Fertigtreppe 300cm"),ROUNDUP(300*C23/0.375/10000,0),0)) ), "") -> 18 | D55: Stk. | E55: =VLOOKUP(A55,PREISE!$A:$C,3,FALSE) -> 15.75 | F55: =IF(C55="","",C55*E55) -> 283.5 | G55: =IF(AND(A55="",E55=""),"",IFERROR(VLOOKUP(A55,PREISE!$A:$D,4,FALSE),"")) -> 2801 | H55: =IF(OR(F55="",F55=0),"",CONCATENATE(C55,"*",A55)) -> 18*11008000
A56: 11008090 | B56: =VLOOKUP(A56,PREISE!$A:$B,2,FALSE) -> WUNDER-STONE ENDSCHUBER | C56: =IF(C54="JA", IF(E22="ECKIG",C23/30*4+IFERROR(E24/30*2,0) + IF(AND(C36<>"",D36<>""),C23/30*2,0) + IF(C35<>"",C23/30*2,0) + IF(OR(C34="Fertigtreppe 200cm",C34="Fertigtreppe 250cm",C34="Fertigtreppe 300cm"), 10, 0),0), "") -> 0 | D56: Stk. | E56: =VLOOKUP(A56,PREISE!$A:$C,3,FALSE) -> 1.58 | F56: =IF(C56="","",C56*E56) -> 0 | G56: =IF(AND(A56="",E56=""),"",IFERROR(VLOOKUP(A56,PREISE!$A:$D,4,FALSE),"")) -> 191 | H56: =IF(OR(F56="",F56=0),"",CONCATENATE(C56,"*",A56)) ->  | L56: >> AUFBAUANLEITUNG WUNDER-STONE | P56: Infos zu ihrem Styroporpool: | S56: >> ANLEITUNG
A57: Extra Steine? Für STUFEN (8 Stk.) oder SITZBANK (15 Stk.) bitten wählen: | C57: =IF(C55="JA", IF(E23="ECKIG",C24/30*4+E25/30*2 + IF(AND(#REF!<>"",#REF!<>""),C24/30*2,0) + IF(C36<>"",C24/30*2,0),0), "") ->  | F57: =IF(C57="","",C57*E57) ->  | P57: Aushub: | R57: =CONCATENATE(C22+100+IF(C24<>"",C24,0)," cm x ",D22+100," cm x ",C23+45," cm") -> 800 cm x 450 cm x 195 cm | S57: Info
A58: 11008000 | B58: =VLOOKUP(A58,PREISE!$A:$B,2,FALSE) -> WUNDER-STONE- ISOLIERSTEIN PS 50 +-10% Toleranz - SET | C58: =IF(AND(C54="JA",C33="GEWEBEFOLIE"),8,"") ->  | D58: Stk. | E58: =VLOOKUP(A58,PREISE!$A:$C,3,FALSE) -> 15.75 | F58: =IF(C58="","",C58*E58) ->  | G58: =IF(AND(A58="",E58=""),"",IFERROR(VLOOKUP(A58,PREISE!$A:$D,4,FALSE),"")) -> 2801 | H58: =IF(F58="","",CONCATENATE(C58,"*",A58)) ->  | L58: >> STAHLARMIERUNG | N58: >> Erklärung STATIK | P58: Bodenplatte: | R58: =CONCATENATE(C22+70+IF(C24<>"",C24,0)," cm x ",D22+70," cm x 20 cm") -> 770 cm x 420 cm x 20 cm | S58: Info
D59: =IF(AND(C54="JA",SUM(F55:F58)>0),"Gesamt:","") -> Gesamt: | E59: =IF(AND(C54="JA",SUM(F55:F58)>0),SUM(F55:F58),"") -> 283.5 | P59: Beton Bodenplatte: | R59: =CONCATENATE(ROUNDUP((C22+70+IF(C24<>"",C24,0))*(D22+70)/10000*0.2,2)," m3") -> 6,47 m3
L60: >> FREISTEHENDE Poolwände? | P60: Baustahlgitter AQ55: | R60: =CONCATENATE(ROUNDUP((C22+70+IF(C24<>"",C24,0))*(D22+70)/10000 * 2 * 1.1,2)," m2") -> 71,15 m2 | S60: 2x Lagen + 10%
A61: ISO MASSIV BIGSTONE - GERADE | C61: =IF(C27="ISO MASSIV","JA","NEIN") -> NEIN | P61: Beton Styroporstein: | R61: =CONCATENATE(ROUNDUP((0 + IF(C55<>"",SUM(C55)*0.0675,0) + IF(C62<>"",SUM(C62)*0.06,0) + IF(C69<>"",C69*0.048,0) + IF(C90<>"",SUM(C90)*0.0675,0) + IF(C92<>"",SUM(C92)*0.06,0) + IF(C95<>"",C95*0.048,0) ) * 1.05, 2)," m3") -> 4,46 m3 | S61: C20/25 F45
A62: 11007650 | B62: =LEFT(VLOOKUP(A62,PREISE!$A:$B,2,FALSE),50) -> ISO-MASSIV BIGSTONE PS 40 +-10% Toleranz - GERADE | C62: =IF(C61="JA", IF(E22="ECKIG",(((((C22+50)*2)+D22*2)/10000*C23)/0.375)+2, IF(E22="OVAL", ((C22-D22)*2*C23)/10000/0.375, 0 )) + IF(AND(C24<>"",D24<>"",E24<>""),ROUNDUP((((C24+25)*2+D24)*E24)/10000/0.375,0),0) + IF(AND(C36<>"",D36<>""), (C36+25)*2*C23/10000/0.375,0) - IF(OR(C35="R100 - 200cm breit",C34="Fertigtreppe 200cm"), ROUNDUP(200*C23/0.375/10000,0), IF(OR(C35="R125 - 250cm breit",C34="Fertigtreppe 250cm"),ROUNDUP(250*C23/0.375/10000,0), IF(OR(C35="R150 - 300cm breit",C34="Fertigtreppe 300cm"),ROUNDUP(300*C23/0.375/10000,0),0)) ), "") ->  | D62: Stk. | E62: =VLOOKUP(A62,PREISE!$A:$C,3,FALSE) -> 16.58 | F62: =IF(C62="","",C62*E62) ->  | G62: =IF(AND(A62="",E62=""),"",IFERROR(VLOOKUP(A62,PREISE!$A:$D,4,FALSE),"")) -> 528 | H62: =IF(OR(F62="",F62=0),"",CONCATENATE(C62,"*",A62)) ->  | L62: >> DETAILS ISO MASSIV Styroporstein | P62: Eisen lt. Bewehrung | R62: Erklärung | S62: Beispiel
A63: 11002814 | B63: =VLOOKUP(A63,PREISE!$A:$B,2,FALSE) -> ISO-MASSIV - Endschuber | C63: =IF(C61="JA", IF(E22="ECKIG",C23/30*4+ IFERROR(E24/30*2,0) + IF(AND(C36<>"",D36<>""),C23/30*2,0) + IF(C35<>"",C23/30*2,0),0) * 2 + IF(OR(C34="Fertigtreppe 200cm",C34="Fertigtreppe 250cm",C34="Fertigtreppe 300cm"), 10, 0) * 2, "") ->  | D63: Stk. | E63: =VLOOKUP(A63,PREISE!$A:$C,3,FALSE) -> 0.75 | F63: =IF(C63="","",C63*E63) ->  | G63: =IF(AND(A63="",E63=""),"",IFERROR(VLOOKUP(A63,PREISE!$A:$D,4,FALSE),"")) -> 9904 | H63: =IF(OR(F63="",F63=0),"",CONCATENATE(C63,"*",A63)) ->  | P63: *) Bitte ihre benötigten Baustoff-Mengen lt. Anleitung überprüfen!
A64: Extra Steine? Für STUFEN (8 Stk.) oder SITZBANK (15 Stk.) bitten wählen: | H64: =IF(OR(F64="",F64=0),"",CONCATENATE(C64,"*",A64)) ->  | L64: >> AUFBAUANLEITUNG als PDF
A65: 11007650 | B65: =LEFT(VLOOKUP(A65,PREISE!$A:$B,2,FALSE),50) -> ISO-MASSIV BIGSTONE PS 40 +-10% Toleranz - GERADE | C65: =IF(AND(C61="JA",C33="GEWEBEFOLIE"),8,"") ->  | D65: Stk. | E65: =VLOOKUP(A65,PREISE!$A:$C,3,FALSE) -> 16.58 | F65: =IF(C65="","",C65*E65) ->  | G65: =IF(AND(A65="",E65=""),"",IFERROR(VLOOKUP(A65,PREISE!$A:$D,4,FALSE),"")) -> 528 | P65: Vorteile Styroporstein vs. Beton-Füllstein
D66: =IF(AND(C61="JA",SUM(F62:F65)>0),"Gesamt:","") ->  | E66: =IF(AND(C61="JA",SUM(F62:F65)>0),SUM(F62:F65),"") ->  | L66: >> VIDEO Poolbau | P66: > kein Schleppen von 25kg Steinen / Easy Handling
P67: > kein zusätzliches Isolieren notwendig / 5cm Platten andübeln
A68: ISO MASSIV - Bogensteine für Radien? | P68: > sauberes Arbeiten durch 25cm Raster sorgt für korrekte Masse!
A69: 11007651 | B69: =VLOOKUP(A69,PREISE!$A:$B,2,FALSE) -> ISO-MASSIV - BOGENSTEIN PS30 (+-10% Toleranz) | C69: =IF(AND(E22="ECKIG",C35=""),"", IF(E22="OVAL", ROUNDUP(D22*3.14*C23/10000/0.3+8,0), IF(E22="RUND", ROUNDUP((C22+D22)/2*3.14*C23/10000/0.3+8,0), 0)) + IF(C35="R100 - 200cm breit",ROUNDUP(100*3.14*C23/10000/0.3+2,0), IF(C35="R125 - 250cm breit",ROUNDUP(125*3.14*C23/10000/0.3+2,0), IF(C35="R150 - 300cm breit",ROUNDUP(150*3.14*C23/10000/0.3+2,0),0)) ) ) -> 63 | D69: Stk. | E69: =VLOOKUP(A69,PREISE!$A:$C,3,FALSE) -> 14.08 | F69: =IF(C69="","",C69*E69) -> 887.04 | G69: =IF(AND(A69="",E69=""),"",IFERROR(VLOOKUP(A69,PREISE!$A:$D,4,FALSE),"")) -> 155 | H69: 63*11007651 | P69: > schnellerer Einbau und weniger Arbeit (zB. Einbauteile)
A70: für römische Treppe: | G70: =IF(AND(A70="",E70=""),"",IFERROR(VLOOKUP(A70,PREISE!$A:$D,4,FALSE),"")) ->  | P70: Styroporsteine Sparen Ärger & Geld wenn man die
A71: 11007654 | B71: =VLOOKUP(A71,PREISE!$A:$B,2,FALSE) -> ISO-MASSIV - Bogenschuber DM 200 | C71: =IF(C35="R100 - 200cm breit", 4 * ROUNDUP(100*3.14*C23/10000/0.3+2,0), "") ->  | D71: Stk. | E71: =VLOOKUP(A71,PREISE!$A:$C,3,FALSE) -> 1.25 | G71: =IF(AND(A71="",E71=""),"",IFERROR(VLOOKUP(A71,PREISE!$A:$D,4,FALSE),"")) -> 2237 | L71: Bogensteine? Viele Radien möglich! | P71: Arbeitszeit und zus. Kosten korrekt berücksichtigt!
A72: 11007655 | B72: =VLOOKUP(A72,PREISE!$A:$B,2,FALSE) -> ISO-MASSIV - Bogenschuber DM 250 | C72: =IF(C35="R125 - 250cm breit", 4 * ROUNDUP(125*3.14*C23/10000/0.3+2,0), "") ->  | D72: Stk. | E72: =VLOOKUP(A72,PREISE!$A:$C,3,FALSE) -> 1.25 | G72: =IF(AND(A72="",E72=""),"",IFERROR(VLOOKUP(A72,PREISE!$A:$D,4,FALSE),"")) -> 8205 | L72: Sie benötigen 4 Stk. Bogenschuber pro Stein!
A73: 11007656 | B73: =VLOOKUP(A73,PREISE!$A:$B,2,FALSE) -> ISO-MASSIV - Bogenschuber DM 300 | C73: =IF(C35="R150 - 300cm breit", 4 * ROUNDUP(150*3.14*C23/10000/0.3+2,0), "") ->  | D73: Stk. | E73: =VLOOKUP(A73,PREISE!$A:$C,3,FALSE) -> 1.25 | G73: =IF(AND(A73="",E73=""),"",IFERROR(VLOOKUP(A73,PREISE!$A:$D,4,FALSE),"")) -> 10363 | L73: Bitte wählen Sie die Bogenschuber passend zu ihrem Radius!
A74: für Rund bzw. Ovalpool: | C74: =IF(AND(SUM(C75:C80)=0,OR(E22="OVAL",E22="RUND")),"Zwischenradius - Bitte wählen Sie:","") ->  | L74: Bei Zwischenradien mischt man unterschiedliche Radien!
A75: 11007654 | B75: =VLOOKUP(A75,PREISE!$A:$B,2,FALSE) -> ISO-MASSIV - Bogenschuber DM 200 | C75: =IF(E22="ECKIG","",IF(AND(D22=200,C69<>""), IF(E22="OVAL", ROUNDUP(D22*3.14*C23/10000/0.3+8,0), IF(E22="RUND", ROUNDUP((C22+D22)/2*3.14*C23/10000/0.3+8,0), 0))*4,"")) ->  | D75: Stk. | E75: =VLOOKUP(A75,PREISE!$A:$C,3,FALSE) -> 1.25 | F75: =IF(C75="","",C75*E75) ->  | G75: =IF(AND(A75="",E75=""),"",IFERROR(VLOOKUP(A75,PREISE!$A:$D,4,FALSE),"")) -> 2237
A76: 11007655 | B76: =VLOOKUP(A76,PREISE!$A:$B,2,FALSE) -> ISO-MASSIV - Bogenschuber DM 250 | C76: =IF(E22="ECKIG","",IF(AND(D22=250,C69<>""), IF(E22="OVAL", ROUNDUP(D22*3.14*C23/10000/0.3+8,0), IF(E22="RUND", ROUNDUP((C22+D22)/2*3.14*C23/10000/0.3+8,0), 0))*4,"")) ->  | D76: Stk. | E76: =VLOOKUP(A76,PREISE!$A:$C,3,FALSE) -> 1.25 | G76: =IF(AND(A76="",E76=""),"",IFERROR(VLOOKUP(A76,PREISE!$A:$D,4,FALSE),"")) -> 8205
A77: 11007656 | B77: =VLOOKUP(A77,PREISE!$A:$B,2,FALSE) -> ISO-MASSIV - Bogenschuber DM 300 | C77: =IF(E22="ECKIG","",IF(AND(D22=300,C69<>""),IF(E22="OVAL",ROUNDUP(D22*3.14*C23/10000/0.3+8,0),IF(E22="RUND",ROUNDUP((C22+D22)/2*3.14*C23/10000/0.3+8,0),0))*4,IF(AND(D22=350,C69<>""),IF(E22="OVAL",ROUNDUP(D22*3.14*C23/10000/0.3+8,0),IF(E22="RUND",ROUNDUP((C22+D22)/2*3.14*C23/10000/0.3+8,0),0))*2,""))) -> 126 | D77: Stk. | E77: =VLOOKUP(A77,PREISE!$A:$C,3,FALSE) -> 1.25 | F77: 157.5 | G77: =IF(AND(A77="",E77=""),"",IFERROR(VLOOKUP(A77,PREISE!$A:$D,4,FALSE),"")) -> 10363 | H77: 126*11007656 | L77: PS50 ISOLIERPLATTEN= EXTRA HART!
A78: 11007657 | B78: =VLOOKUP(A78,PREISE!$A:$B,2,FALSE) -> ISO-MASSIV - Bogenschuber DM 400 | C78: =IF(E22="ECKIG","",IF(AND(D22=400,C69<>""),IF(E22="OVAL",ROUNDUP(D22*3.14*C23/10000/0.3+8,0),IF(E22="RUND",ROUNDUP((C22+D22)/2*3.14*C23/10000/0.3+8,0),0))*4,IF(AND(D22=450,C69<>""),IF(E22="OVAL",ROUNDUP(D22*3.14*C23/10000/0.3+8,0),IF(E22="RUND",ROUNDUP((C22+D22)/2*3.14*C23/10000/0.3+8,0),0))*2,IF(AND(D22=350,C69<>""),IF(E22="OVAL",ROUNDUP(D22*3.14*C23/10000/0.3+8,0),IF(E22="RUND",ROUNDUP((C22+D22)/2*3.14*C23/10000/0.3+8,0),0))*2,"")))) -> 126 | D78: Stk. | E78: =VLOOKUP(A78,PREISE!$A:$C,3,FALSE) -> 1.25 | F78: 157.5 | G78: =IF(AND(A78="",E78=""),"",IFERROR(VLOOKUP(A78,PREISE!$A:$D,4,FALSE),"")) -> 1259 | H78: 126*11007657 | L78: Unsere Isolierplatten haben HAKENFALZ = halten fest zusammen!
A79: 11007658 | B79: =VLOOKUP(A79,PREISE!$A:$B,2,FALSE) -> ISO-MASSIV - Bogenschuber DM 500 | C79: =IF(E22="ECKIG","",IF(AND(D22=500,C69<>""),IF(E22="OVAL",ROUNDUP(D22*3.14*C23/10000/0.3+8,0),IF(E22="RUND",ROUNDUP((C22+D22)/2*3.14*C23/10000/0.3+8,0),0))*4,IF(AND(D22=550,C69<>""),IF(E22="OVAL",ROUNDUP(D22*3.14*C23/10000/0.3+8,0),IF(E22="RUND",ROUNDUP((C22+D22)/2*3.14*C23/10000/0.3+8,0),0))*2,IF(AND(D22=450,C69<>""),IF(E22="OVAL",ROUNDUP(D22*3.14*C23/10000/0.3+8,0),IF(E22="RUND",ROUNDUP((C22+D22)/2*3.14*C23/10000/0.3+8,0),0))*2,"")))) ->  | D79: Stk. | E79: =VLOOKUP(A79,PREISE!$A:$C,3,FALSE) -> 1.25 | G79: =IF(AND(A79="",E79=""),"",IFERROR(VLOOKUP(A79,PREISE!$A:$D,4,FALSE),"")) -> 2092 | L79: Einfacher beim Verlegen statt nur mit Nut-/Feder vom Baumarkt!
A80: 11007659 | B80: =VLOOKUP(A80,PREISE!$A:$B,2,FALSE) -> ISO-MASSIV - Bogenschuber DM 600 | C80: =IF(E22="ECKIG","",IF(AND(D22=600,C69<>""),IF(E22="OVAL",ROUNDUP(D22*3.14*C23/10000/0.3+8,0),IF(E22="RUND",ROUNDUP((C22+D22)/2*3.14*C23/10000/0.3+8,0),0))*4,IF(AND(D22=550,C69<>""),IF(E22="OVAL",ROUNDUP(D22*3.14*C23/10000/0.3+8,0),IF(E22="RUND",ROUNDUP((C22+D22)/2*3.14*C23/10000/0.3+8,0),0))*2,""))) ->  | D80: Stk. | E80: =VLOOKUP(A80,PREISE!$A:$C,3,FALSE) -> 1.25 | G80: =IF(AND(A80="",E80=""),"",IFERROR(VLOOKUP(A80,PREISE!$A:$D,4,FALSE),"")) -> 210
D81: =IF(SUM(F69:F80)>0,"Gesamt:","") -> Gesamt: | E81: =IF(SUM(F69:F80)>0,SUM(F69:F80),"") -> 1202.04 | L81: Die Isolierplatten wird oberhalb am Poolboden verklebt bzw. verdübelt!
L82: Danach werden diese wie bei der Fassade vernetzt und gespachtelt!
A83: Bodenisolierung? | C83: =IF(C28="JA","JA","NEIN") -> NEIN | L83: Dadurch erhalten sie einen festen, geraden und schönen glatten Poolboden!
A84: 11000908 | B84: =LEFT(VLOOKUP(A84,PREISE!$A:$B,2,FALSE),60) -> ISO-MASSIV - ISOLIERPLATTE PS 50 +-10% Toleranz (100x50x5cm) | C84: =IF(C83="JA", ROUNDUP(C22*D22/10000/0.5,0),"") ->  | D84: Stk. | E84: =VLOOKUP(A84,PREISE!$A:$C,3,FALSE) -> 10.75 | G84: =IF(AND(A84="",E84=""),"",IFERROR(VLOOKUP(A84,PREISE!$A:$D,4,FALSE),"")) -> 607 | L84: Darüber hinaus ist ihr Pool perfekt isoliert! Wärmeres Poolwasser!
B85: =IF(OR(C34="Eck - Folientreppe",C34="Gerade - Folientreppe",),"Bei Folientreppen macht man keine Bodenisolierung aufgrund der Stufenhöhe!","") -> 
A87: Freiform? Zusätzliche Steine? Bitte wählen: | J87: ↑nach oben
A88: Bitte berechnen Sie und wählen sie die passende Anzahl für ihre Sonderform (Halboval usw.): | H88: =IF(F88="","",CONCATENATE(C88,"*",A88)) -> 
B89: Ein Gerader Steine ist 125 cm x 25 cm x 30 cm hoch - dh pro m2 Wandfläche 0,375 Steine! | J89: Beim Bau mit Styroporsteinen können sie auch ihre Poolform FREI wählen!
A90: 11008000 | B90: =VLOOKUP(A90,PREISE!$A:$B,2,FALSE) -> WUNDER-STONE- ISOLIERSTEIN PS 50 +-10% Toleranz - SET | D90: Stk. | E90: =VLOOKUP(A90,PREISE!$A:$C,3,FALSE) -> 15.75 | F90: =IF(C90="","",C90*E90) ->  | G90: =IF(AND(A90="",E90=""),"",IFERROR(VLOOKUP(A90,PREISE!$A:$D,4,FALSE),"")) -> 2801 | H90: =IF(F90="","",CONCATENATE(C90,"*",A90)) -> 
A91: 11008090 | B91: =VLOOKUP(A91,PREISE!$A:$B,2,FALSE) -> WUNDER-STONE ENDSCHUBER | D91: Stk. | E91: =VLOOKUP(A91,PREISE!$A:$C,3,FALSE) -> 1.58 | F91: =IF(C91="","",C91*E91) ->  | G91: =IF(AND(A91="",E91=""),"",IFERROR(VLOOKUP(A91,PREISE!$A:$D,4,FALSE),"")) -> 191 | H91: =IF(F91="","",CONCATENATE(C91,"*",A91)) ->  | M91: Wie berechnet man die Anzahl?
A92: 11007650 | B92: =LEFT(VLOOKUP(A92,PREISE!$A:$B,2,FALSE),50) -> ISO-MASSIV BIGSTONE PS 40 +-10% Toleranz - GERADE | D92: Stk. | E92: =VLOOKUP(A92,PREISE!$A:$C,3,FALSE) -> 16.58 | F92: =IF(C92="","",C92*E92) ->  | G92: =IF(AND(A92="",E92=""),"",IFERROR(VLOOKUP(A92,PREISE!$A:$D,4,FALSE),"")) -> 528 | H92: =IF(F92="","",CONCATENATE(C92,"*",A92)) -> 
A93: 11002814 | B93: =VLOOKUP(A93,PREISE!$A:$B,2,FALSE) -> ISO-MASSIV - Endschuber | D93: Stk. | E93: =VLOOKUP(A93,PREISE!$A:$C,3,FALSE) -> 0.75 | F93: =IF(C93="","",C93*E93) ->  | G93: =IF(AND(A93="",E93=""),"",IFERROR(VLOOKUP(A93,PREISE!$A:$D,4,FALSE),"")) -> 9904 | M93: Sie TEILEN die m2 der GERADEN Wandfläche durch 0,375 !
B94: Ein Gerundeter Stein ist 100 cm x 25 cm x 30 cm hoch - dh pro m2 Wandfläche 0,30 Steine!
A95: 11007651 | B95: =VLOOKUP(A95,PREISE!$A:$B,2,FALSE) -> ISO-MASSIV - BOGENSTEIN PS30 (+-10% Toleranz) | D95: Stk. | E95: =VLOOKUP(A95,PREISE!$A:$C,3,FALSE) -> 14.08 | F95: =IF(C95="","",C95*E95) ->  | G95: =IF(AND(A95="",E95=""),"",IFERROR(VLOOKUP(A95,PREISE!$A:$D,4,FALSE),"")) -> 155 | H95: =IF(F95="","",CONCATENATE(C95,"*",A95)) ->  | M95: Sie TEILEN die m2 der GEBOGENEN Wandfläche durch 0,3 !
B96: Pro Bogenstein benötiget man 4 Stk. Bogenschuber mit passendem Radius!
A97: 11007654 | B97: =VLOOKUP(A97,PREISE!$A:$B,2,FALSE) -> ISO-MASSIV - Bogenschuber DM 200 | D97: Stk. | E97: =VLOOKUP(A97,PREISE!$A:$C,3,FALSE) -> 1.25 | F97: =IF(C97="","",C97*E97) ->  | G97: =IF(AND(A97="",E97=""),"",IFERROR(VLOOKUP(A97,PREISE!$A:$D,4,FALSE),"")) -> 2237 | H97: =IF(F97="","",CONCATENATE(C97,"*",A97)) ->  | M97: Styroporsteine kann man mit scharfem Messer oder Säge bearbeiten!
A98: 11007655 | B98: =VLOOKUP(A98,PREISE!$A:$B,2,FALSE) -> ISO-MASSIV - Bogenschuber DM 250 | D98: Stk. | E98: =VLOOKUP(A98,PREISE!$A:$C,3,FALSE) -> 1.25 | G98: =IF(AND(A98="",E98=""),"",IFERROR(VLOOKUP(A98,PREISE!$A:$D,4,FALSE),"")) -> 8205
A99: 11007656 | B99: =VLOOKUP(A99,PREISE!$A:$B,2,FALSE) -> ISO-MASSIV - Bogenschuber DM 300 | D99: Stk. | E99: =VLOOKUP(A99,PREISE!$A:$C,3,FALSE) -> 1.25 | G99: =IF(AND(A99="",E99=""),"",IFERROR(VLOOKUP(A99,PREISE!$A:$D,4,FALSE),"")) -> 10363
A100: 11007657 | B100: =VLOOKUP(A100,PREISE!$A:$B,2,FALSE) -> ISO-MASSIV - Bogenschuber DM 400 | D100: Stk. | E100: =VLOOKUP(A100,PREISE!$A:$C,3,FALSE) -> 1.25 | G100: =IF(AND(A100="",E100=""),"",IFERROR(VLOOKUP(A100,PREISE!$A:$D,4,FALSE),"")) -> 1259
A101: 11007658 | B101: =VLOOKUP(A101,PREISE!$A:$B,2,FALSE) -> ISO-MASSIV - Bogenschuber DM 500 | D101: Stk. | E101: =VLOOKUP(A101,PREISE!$A:$C,3,FALSE) -> 1.25 | G101: =IF(AND(A101="",E101=""),"",IFERROR(VLOOKUP(A101,PREISE!$A:$D,4,FALSE),"")) -> 2092
A102: 11007659 | B102: =VLOOKUP(A102,PREISE!$A:$B,2,FALSE) -> ISO-MASSIV - Bogenschuber DM 600 | D102: Stk. | E102: =VLOOKUP(A102,PREISE!$A:$C,3,FALSE) -> 1.25 | G102: =IF(AND(A102="",E102=""),"",IFERROR(VLOOKUP(A102,PREISE!$A:$D,4,FALSE),"")) -> 210
D103: =IF(SUM(F90:F102)>0,"Gesamt:","") ->  | E103: =IF(SUM(F90:F102)>0,SUM(F90:F102),"") -> 
A105: Einbauteile aus ABS | F105: =IF(SUM(F108:F132)>0,"-","") -> - | J105: ↑nach oben
A106: Qualtitäsprodukte aus hochwertigem ABS Kunststoff - hervorragende Qualität | H106: =IF(F106="","",CONCATENATE(C106,"*",A106)) ->  | P106: Wo werden die Einbauteile am Besten platziert?
B107: Skimmer:
A108: 23100800 | B108: =VLOOKUP(A108,PREISE!$A:$B,2,FALSE) -> OCEAN Einbauskimmer | C108: =IF(OR(C142="JA",C136="JA",C158="JA",C109<>""),"",IF(AND(D22>0,D22<301,E22="ECKIG"),1,IF(AND(D22>300,D22<451,E22="ECKIG"),2,IF(AND(D22>450,D22<601,E22="ECKIG"),3, IF(OR(E22="RUND",E22="OVAL"),1,"") ))) ) -> 1 | D108: Stk. | E108: =VLOOKUP(A108,PREISE!$A:$C,3,FALSE) -> 149.17 | F108: =IF(C108="","",C108*E108) -> 149.17 | G108: =IF(AND(A108="",E108=""),"",IFERROR(VLOOKUP(A108,PREISE!$A:$D,4,FALSE),"")) -> 146 | H108: 1*23100800 | P108: >> bei Pools bis 6m Länge u 3m Breite empfehlen wir die Walze
A109: 23100750 | B109: =VLOOKUP(A109,PREISE!$A:$B,2,FALSE) -> ASTRAL - Oberflächenabsauger SLIM 500 KS | D109: Stk. | E109: =VLOOKUP(A109,PREISE!$A:$C,3,FALSE) -> 157.5 | F109: =IF(C109="","",C109*E109) ->  | G109: =IF(AND(A109="",E109=""),"",IFERROR(VLOOKUP(A109,PREISE!$A:$D,4,FALSE),"")) -> 41
A110: 24100720 | B110: =VLOOKUP(A110,PREISE!$A:$B,2,FALSE) -> ANTHRAZIT !!!! ASTRAL Einbauskimmer (in der Mauer) | D110: Stk. | E110: =VLOOKUP(A110,PREISE!$A:$C,3,FALSE) -> 249.17 | G110: =IF(AND(A110="",E110=""),"",IFERROR(VLOOKUP(A110,PREISE!$A:$D,4,FALSE),"")) -> 8 | P110: >> bei grösseren Pools empfehlen wir die Kombiwalze bzw. Gegenüber
A111: 21400850 | B111: =VLOOKUP(A111,PREISE!$A:$B,2,FALSE) -> Niveau-Wasserstandsregler OSF SNR-1609 | D111: Stk. | E111: =VLOOKUP(A111,PREISE!$A:$C,3,FALSE) -> 440.83 | G111: =IF(AND(A111="",E111=""),"",IFERROR(VLOOKUP(A111,PREISE!$A:$D,4,FALSE),"")) -> 15 | H111: =IF(F111="","",CONCATENATE(C111,"*",A111)) -> 
A112: 24001794 | B112: =VLOOKUP(A112,PREISE!$A:$B,2,FALSE) -> PVC - Ü-Nippel D50/DA63 - 2 Zoll Außengewinde | D112: Stk. | E112: =VLOOKUP(A112,PREISE!$A:$C,3,FALSE) -> 2.42 | F112: =IF(C112="","",C112*E112) ->  | G112: =IF(AND(A112="",E112=""),"",IFERROR(VLOOKUP(A112,PREISE!$A:$D,4,FALSE),"")) -> 136 | H112: =IF(F112="","",CONCATENATE(C112,"*",A112)) -> 
B113: Einlaufdüsen: | G113: =IF(AND(A113="",E113=""),"",IFERROR(VLOOKUP(A113,PREISE!$A:$D,4,FALSE),"")) -> 
A114: 23100844 | B114: =VLOOKUP(A114,PREISE!$A:$B,2,FALSE) -> PREMIUM Mauerdurchführung Lang 250 mm - ABS | C114: =IF(OR(C142="JA",C136="JA"),"", IF(AND(D22>0,D22<301,E22="ECKIG"),2,IF(AND(D22>300,D22<451,E22="ECKIG"),4,IF(AND(D22>450,D22<601,E22="ECKIG"),6, IF(E22="RUND",2, IF(E22="OVAL",4, "") ) ))) ) -> 4 | D114: Stk. | E114: =VLOOKUP(A114,PREISE!$A:$C,3,FALSE) -> 14.08 | F114: =IF(C114="","",C114*E114) -> 56.32 | G114: =IF(AND(A114="",E114=""),"",IFERROR(VLOOKUP(A114,PREISE!$A:$D,4,FALSE),"")) -> 1124 | H114: 4*23100844
A115: =IF(A114=23100844,23100845,23100653) -> 23100845 | B115: =VLOOKUP(A115,PREISE!$A:$B,2,FALSE) -> PREMIUM Flanschsatz Kunststoff - ABS | C115: =IF(C114<>"",C114,"") -> 4 | D115: Stk. | E115: =VLOOKUP(A115,PREISE!$A:$C,3,FALSE) -> 5.75 | F115: 23 | G115: =IF(AND(A115="",E115=""),"",IFERROR(VLOOKUP(A115,PREISE!$A:$D,4,FALSE),"")) -> 1123 | H115: 4*23100845
A116: 23100848 | B116: =VLOOKUP(A116,PREISE!$A:$B,2,FALSE) -> PREMIUM Einlaufdüse 18 mm - ABS | C116: =IF(AND(C114<>"",A114=23100844),C114,"") -> 4 | D116: Stk. | E116: =VLOOKUP(A116,PREISE!$A:$C,3,FALSE) -> 5.75 | F116: 23 | G116: =IF(AND(A116="",E116=""),"",IFERROR(VLOOKUP(A116,PREISE!$A:$D,4,FALSE),"")) -> 3615 | H116: 4*23100848
A117: 23101848 | B117: =VLOOKUP(A117,PREISE!$A:$B,2,FALSE) -> ANTHRAZIT!! - PREMIUM Einlaufdüse 18 mm | D117: Stk. | E117: =VLOOKUP(A117,PREISE!$A:$C,3,FALSE) -> 8.25 | G117: =IF(AND(A117="",E117=""),"",IFERROR(VLOOKUP(A117,PREISE!$A:$D,4,FALSE),"")) -> 1029
A118: 23100944 | B118: =VLOOKUP(A118,PREISE!$A:$B,2,FALSE) -> PREMIUM Mauerdurchführung Kurz 65 mm - ABS | D118: Stk. | E118: =VLOOKUP(A118,PREISE!$A:$C,3,FALSE) -> 14.92 | G118: =IF(AND(A118="",E118=""),"",IFERROR(VLOOKUP(A118,PREISE!$A:$D,4,FALSE),"")) -> 114
A119: 23100949 | B119: =VLOOKUP(A119,PREISE!$A:$B,2,FALSE) -> Bodensaugeranschluss ABS 1 1/2 für Schlauch 38 mm | D119: Stk. | E119: =VLOOKUP(A119,PREISE!$A:$C,3,FALSE) -> 15.75 | F119: =IF(C119="","",C119*E119) ->  | G119: =IF(AND(A119="",E119=""),"",IFERROR(VLOOKUP(A119,PREISE!$A:$D,4,FALSE),"")) -> 8
A120: 23100948 | B120: =VLOOKUP(A120,PREISE!$A:$B,2,FALSE) -> Überwinterungsstopfen 1 1/2 mit O-Ring | C120: 2 | D120: Stk. | E120: =VLOOKUP(A120,PREISE!$A:$C,3,FALSE) -> 8.25 | F120: 16.5 | G120: =IF(AND(A120="",E120=""),"",IFERROR(VLOOKUP(A120,PREISE!$A:$D,4,FALSE),"")) -> 215 | H120: 2*23100948
L121: >> DETAILS Einbauteile aus ABS Kunststoff
B122: Bodenablauf:
A123: 23100849 | B123: =LEFT(VLOOKUP(A123,PREISE!$A:$B,2,FALSE),60) -> PREMIUM Bodenablauf / ABS f. Folie (inkl. Reduktion.63/50) | C123: =IF(OR(C142="JA",C136="JA"),"",1) -> 1 | D123: Stk. | E123: =VLOOKUP(A123,PREISE!$A:$C,3,FALSE) -> 28.25 | F123: 28.25 | G123: =IF(AND(A123="",E123=""),"",IFERROR(VLOOKUP(A123,PREISE!$A:$D,4,FALSE),"")) -> 21 | H123: 1*23100849 | L123: >> Wie montiert man Einbauteile?
A124: 23101849 | B124: =VLOOKUP(A124,PREISE!$A:$B,2,FALSE) -> ANTHRAZIT !! - PREMIUM Bodenablauf Nur Blende/Gitter | D124: Stk. | E124: =VLOOKUP(A124,PREISE!$A:$C,3,FALSE) -> 12.42 | G124: =IF(AND(A124="",E124=""),"",IFERROR(VLOOKUP(A124,PREISE!$A:$D,4,FALSE),"")) -> 0
B126: LED Scheinwerfer: | C126: NEIN
A127: 23106070 | B127: =VLOOKUP(A127,PREISE!$A:$B,2,FALSE) -> LED Scheinwerfer FLACH - WEISS inkl. Einbauset | C127: =IF(AND(C126="JA",C142="NEIN"),IF(C128="",IF(AND(C22>0,C22<=600),1,IF(AND(C22>601,C22<851),2,IF(AND(C22>850,C22<1201),3,""))),""),"") ->  | D127: Stk. | E127: =VLOOKUP(A127,PREISE!$A:$C,3,FALSE) -> 132.5 | F127: =IF(C127="","",C127*E127) ->  | G127: =IF(AND(A127="",E127=""),"",IFERROR(VLOOKUP(A127,PREISE!$A:$D,4,FALSE),"")) -> 111
A128: 23106080 | B128: =VLOOKUP(A128,PREISE!$A:$B,2,FALSE) -> LED Scheinwerfer FLACH - RGB mit Fernbedienung inkl. Einbauset | D128: Stk. | E128: =VLOOKUP(A128,PREISE!$A:$C,3,FALSE) -> 190.83 | G128: =IF(AND(A128="",E128=""),"",IFERROR(VLOOKUP(A128,PREISE!$A:$D,4,FALSE),"")) -> 28
A129: 23105516 | B129: =VLOOKUP(A129,PREISE!$A:$B,2,FALSE) -> LED Scheinwerfer Blende FLACH - ANTHRAZIT | D129: Stk. | E129: =VLOOKUP(A129,PREISE!$A:$C,3,FALSE) -> 20.75 | F129: =IF(C129="","",C129*E129) ->  | G129: =IF(AND(A129="",E129=""),"",IFERROR(VLOOKUP(A129,PREISE!$A:$D,4,FALSE),"")) -> 28
A130: 23100858 | B130: =VLOOKUP(A130,PREISE!$A:$B,2,FALSE) -> Trafo 12 Volt - 50 Watt, IP65 | C130: =IF(AND(C126="JA",C204=""),IF(AND(C22>0,C22<=600),1,IF(AND(C22>600,C22<851),"",IF(AND(C22>850,C22<1201),3,""))),"") ->  | D130: Stk. | E130: =VLOOKUP(A130,PREISE!$A:$C,3,FALSE) -> 74.17 | G130: =IF(AND(A130="",E130=""),"",IFERROR(VLOOKUP(A130,PREISE!$A:$D,4,FALSE),"")) -> 24
A131: 23100906 | B131: =VLOOKUP(A131,PREISE!$A:$B,2,FALSE) -> Trafo 12 Volt - 100 Watt, IP65 | C131: =IF(AND(C126="JA",C204=""),IF(AND(C22>0,C22<=600),"",IF(AND(C22>600,C22<851),1,IF(AND(C22>850,C22<1201),"",""))),"") ->  | D131: Stk. | E131: =VLOOKUP(A131,PREISE!$A:$C,3,FALSE) -> 99.17 | F131: =IF(C131="","",C131*E131) ->  | G131: =IF(AND(A131="",E131=""),"",IFERROR(VLOOKUP(A131,PREISE!$A:$D,4,FALSE),"")) -> 58
A132: 23100957 | B132: =VLOOKUP(A132,PREISE!$A:$B,2,FALSE) -> Verteilerdose - Kabeldose für Scheinwerfer | C132: =IF(C126="JA",IF(OR(C127<>"",C128<>""),SUM(C127:C128),""),"") ->  | D132: Stk. | E132: =VLOOKUP(A132,PREISE!$A:$C,3,FALSE) -> 14.08 | G132: =IF(AND(A132="",E132=""),"",IFERROR(VLOOKUP(A132,PREISE!$A:$D,4,FALSE),"")) -> 478
D133: =IF(SUM(F108:F132)>0,"Gesamt:","") -> Gesamt: | E133: =IF(SUM(F108:F132)>0,SUM(F108:F132),"") -> 296.24
A135: Einbauteile bzw. Blenden aus EDELSTAHL | F135: =IF(SUM(F137:F154)>0,"-","") ->  | J135: ↑nach oben
A136: Skimmer, Düsen und Bodenablauf mit Blenden aus Edelstahl | C136: NEIN
A137: 23201052 | B137: =VLOOKUP(A137,PREISE!$A:$B,2,FALSE) -> NEPTUN Edelstahl-Einbauskimmerset für Mauerbecken - Folie | C137: =IF(AND(C158="NEIN",C136="JA"), IF(AND(D22>0,D22<301,E22="ECKIG"),1,IF(AND(D22>300,D22<451,E22="ECKIG"),2,IF(AND(D22>450,D22<601,E22="ECKIG"),3, IF(OR(E22="RUND",E22="OVAL"),1,"") ))),"") ->  | D137: Stk. | E137: =VLOOKUP(A137,PREISE!$A:$C,3,FALSE) -> 207.5 | F137: =IF(C137="","",C137*E137) ->  | G137: =IF(AND(A137="",E137=""),"",IFERROR(VLOOKUP(A137,PREISE!$A:$D,4,FALSE),"")) -> 9
A138: 23201050 | B138: =VLOOKUP(A138,PREISE!$A:$B,2,FALSE) -> Edelstahl-Einlaufdüsenset für Mauerbecken - Folie | C138: =IF(C136="JA", IF(AND(D22>0,D22<301,E22="ECKIG"),2,IF(AND(D22>300,D22<451,E22="ECKIG"),4,IF(AND(D22>450,D22<601,E22="ECKIG"),6, IF(E22="RUND",2, IF(E22="OVAL",4, "") ) ))),"") ->  | D138: Stk. | E138: =VLOOKUP(A138,PREISE!$A:$C,3,FALSE) -> 57.5 | F138: =IF(C138="","",C138*E138) ->  | G138: =IF(AND(A138="",E138=""),"",IFERROR(VLOOKUP(A138,PREISE!$A:$D,4,FALSE),"")) -> 66
A139: 23201051 | B139: =VLOOKUP(A139,PREISE!$A:$B,2,FALSE) -> PREMIUM Edelstahl Bodenablauf für Mauerbecken - Folie | C139: =IF(C136="JA",1,"") ->  | D139: Stk. | E139: =VLOOKUP(A139,PREISE!$A:$C,3,FALSE) -> 65.83 | G139: =IF(AND(A139="",E139=""),"",IFERROR(VLOOKUP(A139,PREISE!$A:$D,4,FALSE),"")) -> 19
A140: 23105505 | B140: =VLOOKUP(A140,PREISE!$A:$B,2,FALSE) -> LED Scheinwerfer Blende FLACH - Edelstahloptik | C140: =IF(AND(C136="JA",SUM(C127:C128)>0),SUM(C127:C128),"") ->  | D140: Stk. | E140: =VLOOKUP(A140,PREISE!$A:$C,3,FALSE) -> 40.83 | G140: =IF(AND(A140="",E140=""),"",IFERROR(VLOOKUP(A140,PREISE!$A:$D,4,FALSE),"")) -> 16
A142: Einbauteile komplett in Edelstahl | C142: NEIN
A143: 23200861 | B143: =VLOOKUP(A143,PREISE!$A:$B,2,FALSE) -> Edelstahl - Skimmer V4A(A100) | C143: =IF(AND(C158="NEIN",C142="JA"),IF(AND(D22>0,D22<301,E22="ECKIG"),1,IF(AND(D22>300,D22<451,E22="ECKIG"),2,IF(AND(D22>450,D22<601,E22="ECKIG"),3, IF(OR(E22="RUND",E22="OVAL"),1,"") ))),"") ->  | D143: Stk. | E143: =VLOOKUP(A143,PREISE!$A:$C,3,FALSE) -> 499.17 | G143: =IF(AND(A143="",E143=""),"",IFERROR(VLOOKUP(A143,PREISE!$A:$D,4,FALSE),"")) -> 8
A144: 23200862 | B144: =VLOOKUP(A144,PREISE!$A:$B,2,FALSE) -> Edelstahl - Flanschsatz zu Skimmer V4A | C144: =IF(A143=23200861,IF(AND(C158="NEIN",C142="JA"),IF(AND(D22>0,D22<301,E22="ECKIG"),1,IF(AND(D22>300,D22<451,E22="ECKIG"),2,IF(AND(D22>450,D22<601,E22="ECKIG"),3, IF(OR(E22="RUND",E22="OVAL"),1,"") ))),""),"") ->  | D144: Stk. | E144: =VLOOKUP(A144,PREISE!$A:$C,3,FALSE) -> 118.58 | G144: =IF(AND(A144="",E144=""),"",IFERROR(VLOOKUP(A144,PREISE!$A:$D,4,FALSE),"")) -> 10
A145: 23200877 | B145: =VLOOKUP(A145,PREISE!$A:$B,2,FALSE) -> Blende zu Skimmer V4A | C145: =IF(A143=23200861,IF(AND(C158="NEIN",C142="JA"),IF(AND(D22>0,D22<301,E22="ECKIG"),1,IF(AND(D22>300,D22<451,E22="ECKIG"),2,IF(AND(D22>450,D22<601,E22="ECKIG"),3,IF(OR(E22="RUND",E22="OVAL"),1,"")))),"")) ->  | D145: Stk. | E145: =VLOOKUP(A145,PREISE!$A:$C,3,FALSE) -> 101.5 | G145: =IF(AND(A145="",E145=""),"",IFERROR(VLOOKUP(A145,PREISE!$A:$D,4,FALSE),"")) -> 13
A146: 23200859 | B146: =VLOOKUP(A146,PREISE!$A:$B,2,FALSE) -> Edelstahl - Mauerdurchführung 240 mm | C146: =IF(C142="JA",IF(AND(D22>0,D22<301,E22="ECKIG"),2,IF(AND(D22>300,D22<451,E22="ECKIG"),4,IF(AND(D22>450,D22<601,E22="ECKIG"),6, IF(E22="RUND",2, IF(E22="OVAL",4, "") ) ))),"") ->  | D146: Stk. | E146: =VLOOKUP(A146,PREISE!$A:$C,3,FALSE) -> 82.5 | G146: =IF(AND(A146="",E146=""),"",IFERROR(VLOOKUP(A146,PREISE!$A:$D,4,FALSE),"")) -> 11
A147: 23200860 | B147: =VLOOKUP(A147,PREISE!$A:$B,2,FALSE) -> Edelstahl - Flanschdüse V4A zu Mauerdurchführung | C147: =IF(C142="JA",IF(AND(D22>0,D22<301,E22="ECKIG"),2,IF(AND(D22>300,D22<451,E22="ECKIG"),4,IF(AND(D22>450,D22<601,E22="ECKIG"),6, IF(E22="RUND",2, IF(E22="OVAL",4, "") ) ))),"") ->  | D147: Stk. | E147: =VLOOKUP(A147,PREISE!$A:$C,3,FALSE) -> 41.58 | F147: =IF(C147="","",C147*E147) ->  | G147: =IF(AND(A147="",E147=""),"",IFERROR(VLOOKUP(A147,PREISE!$A:$D,4,FALSE),"")) -> 17
A148: 23200879 | B148: =VLOOKUP(A148,PREISE!$A:$B,2,FALSE) -> Bodenablauf , 195 mm V4A, mit rundem Deckel mit Bohrungen | C148: =IF(C142="JA",1,"") ->  | D148: Stk. | E148: =VLOOKUP(A148,PREISE!$A:$C,3,FALSE) -> 165.83 | G148: =IF(AND(A148="",E148=""),"",IFERROR(VLOOKUP(A148,PREISE!$A:$D,4,FALSE),"")) -> 4
A149: 23200880 | B149: =VLOOKUP(A149,PREISE!$A:$B,2,FALSE) -> Edelstahl - Flanschsatz zu Bodenablauftopf V4A runder Deckel | C149: =IF(C142="JA",1,"") ->  | D149: Stk. | E149: =VLOOKUP(A149,PREISE!$A:$C,3,FALSE) -> 49.17 | G149: =IF(AND(A149="",E149=""),"",IFERROR(VLOOKUP(A149,PREISE!$A:$D,4,FALSE),"")) -> 0
A150: 23200867 | B150: =VLOOKUP(A150,PREISE!$A:$B,2,FALSE) -> Edelstahl - Unterwasserscheinwerfer V4A komplett | C150: =IF(AND(C126="JA",C142="JA"),IF(OR(C127="",C128=""),IF(AND(C22>0,C22<601),1,IF(AND(C22>600,C22<851),2,IF(AND(C22>850,C22<1201),3,""))),""),"") ->  | D150: Stk. | E150: =VLOOKUP(A150,PREISE!$A:$C,3,FALSE) -> 349.17 | G150: =IF(AND(A150="",E150=""),"",IFERROR(VLOOKUP(A150,PREISE!$A:$D,4,FALSE),"")) -> 6
A151: 23200868 | B151: =VLOOKUP(A151,PREISE!$A:$B,2,FALSE) -> Edelstahl - Flanschsatz zu Unterwasserscheinwerfer V4A | C151: =IF(AND(C126="JA",C142="JA"),IF(OR(C127="",C128=""),IF(AND(C22>0,C22<601),1,IF(AND(C22>600,C22<851),2,IF(AND(C22>850,C22<1201),3,""))),""),"") ->  | D151: Stk. | E151: =VLOOKUP(A151,PREISE!$A:$C,3,FALSE) -> 65.83 | G151: =IF(AND(A151="",E151=""),"",IFERROR(VLOOKUP(A151,PREISE!$A:$D,4,FALSE),"")) -> 5
A152: 23106099 | B152: =VLOOKUP(A152,PREISE!$A:$B,2,FALSE) -> LED Lampe (PAR56) WEISS | C152: =IF(AND(C126="JA",C142="JA"),IF(OR(C127="",C128=""),IF(AND(C22>0,C22<601),1,IF(AND(C22>600,C22<851),2,IF(AND(C22>850,C22<1201),3,""))),""),"") ->  | D152: Stk. | E152: =VLOOKUP(A152,PREISE!$A:$C,3,FALSE) -> 90.83 | G152: =IF(AND(A152="",E152=""),"",IFERROR(VLOOKUP(A152,PREISE!$A:$D,4,FALSE),"")) -> 40 | N152: >> DETAILS Einbauteile aus Edelstahl
A153: 23106055 | B153: =VLOOKUP(A153,PREISE!$A:$B,2,FALSE) -> LED-RGB Ersatzlampe (PAR56) für Einbauscheinwerfer inkl. FB | D153: Stk. | E153: =VLOOKUP(A153,PREISE!$A:$C,3,FALSE) -> 140.83 | F153: =IF(C153="","",C153*E153) ->  | G153: =IF(AND(A153="",E153=""),"",IFERROR(VLOOKUP(A153,PREISE!$A:$D,4,FALSE),"")) -> 38
A154: 23200869 | B154: =VLOOKUP(A154,PREISE!$A:$B,2,FALSE) -> Edelstahl - Kabelanschlussdose V4A | C154: =IF(C150="","",C150) ->  | D154: Stk. | E154: =VLOOKUP(A154,PREISE!$A:$C,3,FALSE) -> 132.5 | G154: =IF(AND(A154="",E154=""),"",IFERROR(VLOOKUP(A154,PREISE!$A:$D,4,FALSE),"")) -> 14
D155: =IF(SUM(F137:F154)>0,"Gesamt:","") ->  | E155: =IF(SUM(F137:F154)>0,SUM(F137:F154),"") -> 
A157: High Level Pool | C157: =IF(C33="FOLIENSACK","Nur mit Gewebefolie möglich!","") -> Nur mit Gewebefolie möglich! | F157: =IF(SUM(F159:F169)>0,"-","") ->  | H157: =IF(F157="","",CONCATENATE(C157,"*",A157)) ->  | J157: ↑nach oben
A158: Sie möchten einen Pool OHNE Skimmer mit EINSEITIGER Überlaufrinne? | C158: NEIN | J158: HOHER WASSERSTAND durch EINSEITIGE RINNE mit Überlauf unter dem Randstein! OHNE SKIMMER!
A159: 23315000 | B159: =VLOOKUP(A159,PREISE!$A:$B,2,FALSE) -> Überlaufrinne - Modul Stein 1000/240/182-162 mm | C159: =IF(C158="JA",ROUNDUP(D22/100,0),"") ->  | D159: Stk. | E159: =VLOOKUP(A159,PREISE!$A:$C,3,FALSE) -> 215.83 | F159: =IF(C159="","",C159*E159) ->  | G159: =IF(AND(A159="",E159=""),"",IFERROR(VLOOKUP(A159,PREISE!$A:$D,4,FALSE),"")) -> 128
A160: 25102027 | B160: =LEFT(VLOOKUP(A160,PREISE!$A:$B,2,FALSE),60) -> U- Blech 40x40x 40 mm - Folienbeschichtet - bei Überlaufrinn | C160: =IF(C158="JA",ROUNDUP(D22/200,0),"") ->  | D160: Stk. | E160: =VLOOKUP(A160,PREISE!$A:$C,3,FALSE) -> 40.83 | G160: =IF(AND(A160="",E160=""),"",IFERROR(VLOOKUP(A160,PREISE!$A:$D,4,FALSE),"")) -> 111
A161: 21403995 | B161: =VLOOKUP(A161,PREISE!$A:$B,2,FALSE) -> NIVA - Überlaufbehälter - Steuerung - inkl. 5 Sonden | C161: =IF(C158="JA",1,"") ->  | D161: Stk. | E161: =VLOOKUP(A161,PREISE!$A:$C,3,FALSE) -> 457.5 | G161: =IF(AND(A161="",E161=""),"",IFERROR(VLOOKUP(A161,PREISE!$A:$D,4,FALSE),"")) -> 22
B162: Extra Teile für den Ausgleichsbehälter: | G162: =IF(AND(A162="",E162=""),"",IFERROR(VLOOKUP(A162,PREISE!$A:$D,4,FALSE),"")) -> 
A163: 23100849 | B163: =LEFT(VLOOKUP(A163,PREISE!$A:$B,2,FALSE),60) -> PREMIUM Bodenablauf / ABS f. Folie (inkl. Reduktion.63/50) | C163: =IF(C158="JA",1,"") ->  | D163: Stk. | E163: =VLOOKUP(A163,PREISE!$A:$C,3,FALSE) -> 28.25 | G163: =IF(AND(A163="",E163=""),"",IFERROR(VLOOKUP(A163,PREISE!$A:$D,4,FALSE),"")) -> 21
A164: 23100844 | B164: =VLOOKUP(A164,PREISE!$A:$B,2,FALSE) -> PREMIUM Mauerdurchführung Lang 250 mm - ABS | C164: =IF(C158="JA",1,"") ->  | D164: Stk. | E164: =VLOOKUP(A164,PREISE!$A:$C,3,FALSE) -> 14.08 | F164: =IF(C164="","",C164*E164) ->  | G164: =IF(AND(A164="",E164=""),"",IFERROR(VLOOKUP(A164,PREISE!$A:$D,4,FALSE),"")) -> 1124
A165: 23100845 | B165: =VLOOKUP(A165,PREISE!$A:$B,2,FALSE) -> PREMIUM Flanschsatz Kunststoff - ABS | C165: =IF(C158="JA",1,"") ->  | D165: Stk. | E165: =VLOOKUP(A165,PREISE!$A:$C,3,FALSE) -> 5.75 | F165: =IF(C165="","",C165*E165) ->  | G165: =IF(AND(A165="",E165=""),"",IFERROR(VLOOKUP(A165,PREISE!$A:$D,4,FALSE),"")) -> 1123
A166: 24001819 | B166: =VLOOKUP(A166,PREISE!$A:$B,2,FALSE) -> PVC - Rückschlagventil D50 | C166: =IF(C158="JA",1,"") ->  | D166: Stk. | E166: =VLOOKUP(A166,PREISE!$A:$C,3,FALSE) -> 22.42 | G166: =IF(AND(A166="",E166=""),"",IFERROR(VLOOKUP(A166,PREISE!$A:$D,4,FALSE),"")) -> 292
A167: 27005592 | B167: =VLOOKUP(A167,PREISE!$A:$B,2,FALSE) -> Catfish Ultra - (Schmutzsauger mit Akku) | C167: =IF(C158="JA",1,"") ->  | D167: Stk. | E167: =VLOOKUP(A167,PREISE!$A:$C,3,FALSE) -> 115.83 | G167: =IF(AND(A167="",E167=""),"",IFERROR(VLOOKUP(A167,PREISE!$A:$D,4,FALSE),"")) -> 108
A168: für einen Ausgleichsbehälter 200 x 100 x 95 cm empfehlen wir 6 Stk. extra Steine - der Aufpreis Gewebefolie ist dabei 11m2 | J168: >> DETAILS High LEVEL Pool | M168: >> Was ist der Unterschied zum Skimmerpool? | Q168: >> PDF Skizze / Beispiel
A169: =IF(C54="JA",11008000,IF(C61="JA",11007650,"")) -> 11008000 | B169: =IF(A169="","",VLOOKUP(A169,PREISE!$A:$B,2,FALSE)) -> WUNDER-STONE- ISOLIERSTEIN PS 50 +-10% Toleranz - SET | C169: =IF(AND(C158="JA",A169<>""),15,"") ->  | D169: Stk. | E169: =IF(A169="","",VLOOKUP(A169,PREISE!$A:$C,3,FALSE)) -> 15.75 | G169: =IF(AND(A169="",E169=""),"",IFERROR(VLOOKUP(A169,PREISE!$A:$D,4,FALSE),"")) -> 2801
D170: =IF(SUM(F159:F169)>0,"Gesamt:","") ->  | E170: =IF(SUM(F159:F169)>0,SUM(F159:F169),"") -> 
A172: Filteranlage | C172: =IF(C47="FOLIENSACK","Nur mit Gewebefolie möglich!","") ->  | F172: =IF(SUM(F176:F205)>0,"-","") -> - | H172: =IF(F172="","",CONCATENATE(C172,"*",A172)) -> *Filteranlage | J172: ↑nach oben
A173: Sie möchten eine hochwertige Filteranlage kaufen? | C173: JA
A174: =IF(AND(C22<>"",D22<>"",C23<>""),C22*D22*C23/1000000,"") -> 36.75 | B174: m3 Wasservolumen (L x B x H) | C174: =IF(AND(A174>0,A174<=20),400,IF(AND(A174>20,A174<=30),450,IF(AND(A174>30,A174<=40),500,IF(AND(A174>40,A174<=55),600,IF(AND(A174>55,A174<=90),750,""))))) -> 500 | D174: cm Durchmesser Kessel | L174: Wir empfehlen Sandfilteranlagen!
B175: MONO - Sandfilter, Kunststoffkessel aus PE-HD, Topmount 6-Wegeventil:
A176: 21304400 | B176: =LEFT(VLOOKUP(A176,PREISE!$A:$B,2,FALSE),54) -> Sandfilteranlage MONO 400 DM - Pumpe TORPEDO 50 - bis | C176: =IF(AND($C$33="FOLIENSACK",$C$22<601), 1, IF(AND(C173="JA",C174=400),1,"") ) ->  | D176: Stk. | E176: =VLOOKUP(A176,PREISE!$A:$C,3,FALSE) -> 374.17 | F176: =IF(C176="","",C176*E176) ->  | G176: =IF(AND(A176="",E176=""),"",IFERROR(VLOOKUP(A176,PREISE!$A:$D,4,FALSE),"")) -> 44 | L176: >> AUFBAUANLEITUNG MONO
A177: 21305000 | B177: =LEFT(VLOOKUP(A177,PREISE!$A:$B,2,FALSE),54) -> Sandfilteranlage MONO 500 DM - Pumpe TORPEDO 75 - bis | C177: =IF(AND($C$33="FOLIENSACK",$C$22>601), 1, "" ) -> 1 | D177: Stk. | E177: =VLOOKUP(A177,PREISE!$A:$C,3,FALSE) -> 465.83 | F177: 465.83 | G177: =IF(AND(A177="",E177=""),"",IFERROR(VLOOKUP(A177,PREISE!$A:$D,4,FALSE),"")) -> 13 | H177: 1*21305000
L178: >> Sandfilter oder Kartuschenfilter?
B179: SFP - Sandfilter mit Filterkessel aus PP in der Mitte geteilt:
A180: 21102674 | B180: =LEFT(VLOOKUP(A180,PREISE!$A:$B,2,FALSE),62) -> Sandfilteranlage SFP 400, TORPEDO 50, bis 8 m3/h, PP-Kessel, 2 | D180: Stk. | E180: =VLOOKUP(A180,PREISE!$A:$C,3,FALSE) -> 665.83 | F180: =IF(C180="","",C180*E180) ->  | G180: =IF(AND(A180="",E180=""),"",IFERROR(VLOOKUP(A180,PREISE!$A:$D,4,FALSE),"")) -> 10 | H180: =IF(F180="","",CONCATENATE(C180,"*",A180)) ->  | L180: >> Wie bedient man eine Sandfilteranlage?
A181: 21102675 | B181: =LEFT(VLOOKUP(A181,PREISE!$A:$B,2,FALSE),61) -> Sandfilteranlage SFP 500, TORPEDO 75, bis 12 m3/h, PP-Kessel, | D181: Stk. | E181: =VLOOKUP(A181,PREISE!$A:$C,3,FALSE) -> 790.83 | G181: =IF(AND(A181="",E181=""),"",IFERROR(VLOOKUP(A181,PREISE!$A:$D,4,FALSE),"")) -> 5
A182: 21102676 | B182: =LEFT(VLOOKUP(A182,PREISE!$A:$B,2,FALSE),61) -> Sandfilteranlage SFP 600, TORPEDO 100, 230 Volt, bis 13 m3/h, | D182: Stk. | E182: =VLOOKUP(A182,PREISE!$A:$C,3,FALSE) -> 874.17 | F182: =IF(C182="","",C182*E182) ->  | G182: =IF(AND(A182="",E182=""),"",IFERROR(VLOOKUP(A182,PREISE!$A:$D,4,FALSE),"")) -> 2 | L182: >> Bedienung 6-Wegeventil
B184: LISBOA - Polyester Sandfilterkessel - TOP Qualität:
A185: 21308450 | B185: =LEFT(VLOOKUP(A185,PREISE!$A:$B,2,FALSE),61) -> Sandfilteranlage LISBOA 450 DM-GFK-Kessel-6-Wegeventil, bis 8 | C185: =IF(SUM(F176:F177)>0,"", IF(AND(C173="JA",C174=450),1,"") ) ->  | D185: Stk. | E185: =VLOOKUP(A185,PREISE!$A:$C,3,FALSE) -> 665.83 | G185: =IF(AND(A185="",E185=""),"",IFERROR(VLOOKUP(A185,PREISE!$A:$D,4,FALSE),"")) -> 9 | L185: LISBOA = TOP QUALITÄT! Hohe Druckbeständigkeit!
A186: 21308500 | B186: =LEFT(VLOOKUP(A186,PREISE!$A:$B,2,FALSE),61) -> Sandfilteranlage LISBOA 500 DM-GFK-Kessel-6-Wegeventil, bis 1 | C186: =IF(SUM(F176:F177)>0,"", IF(AND(C173="JA",C174=500),1,"") ) ->  | D186: Stk. | E186: =VLOOKUP(A186,PREISE!$A:$C,3,FALSE) -> 707.5 | G186: =IF(AND(A186="",E186=""),"",IFERROR(VLOOKUP(A186,PREISE!$A:$D,4,FALSE),"")) -> 13
A187: 21308600 | B187: =LEFT(VLOOKUP(A187,PREISE!$A:$B,2,FALSE),61) -> Sandfilteranlage LISBOA 600 DM-GFK-Kessel-6-Wegeventil, bis 1 | C187: =IF(SUM(F176:F177)>0,"", IF(AND(C173="JA",C174=600),1,"") ) ->  | D187: Stk. | E187: =VLOOKUP(A187,PREISE!$A:$C,3,FALSE) -> 790.83 | F187: =IF(C187="","",C187*E187) ->  | G187: =IF(AND(A187="",E187=""),"",IFERROR(VLOOKUP(A187,PREISE!$A:$D,4,FALSE),"")) -> 2 | L187: >> AUFBAUANLEITUNG LISBOA
A188: 21308750 | B188: =LEFT(VLOOKUP(A188,PREISE!$A:$B,2,FALSE),61) -> Sandfilteranlage LISBOA 750 DM-GFK-Kessel-6-Wegeventil, 21,5 | C188: =IF(SUM(F176:F177)>0,"", IF(AND(C173="JA",C174=750),1,"") ) ->  | D188: Stk. | E188: =VLOOKUP(A188,PREISE!$A:$C,3,FALSE) -> 1082.5 | G188: =IF(AND(A188="",E188=""),"",IFERROR(VLOOKUP(A188,PREISE!$A:$D,4,FALSE),"")) -> 3
B189: Stromsparend + Leise Speck Pumpe mit variabler Drehzahl: | L189: STROMSPAREND und LEISE - JETZT auch mit DREHZAHLREGELUNG!!
A190: 21319933 | B190: =LEFT(VLOOKUP(A190,PREISE!$A:$B,2,FALSE),61) -> Sandfilteranlage LISBOA 600 - mit geregelter DREHZAHL | D190: Stk. | E190: =VLOOKUP(A190,PREISE!$A:$C,3,FALSE) -> 1524.17 | G190: =IF(AND(A190="",E190=""),"",IFERROR(VLOOKUP(A190,PREISE!$A:$D,4,FALSE),"")) -> 2 | L190: >> Info Speck ECO TOUCH PRO v2
L191: Die Filteranlage ist das Herz des Schwimmbeckens!
B192: Verrohrungsmaterial für Speck Pumpe je 1 Stk bei Saugseite: | L192: Da sollte man nicht sparen und auf Top-Qualität setzen!
A193: 24001789 | B193: =VLOOKUP(A193,PREISE!$A:$B,2,FALSE) -> PVC - Verschraubung D63 / 2 Zoll Außengewinde | D193: Stk. | E193: =VLOOKUP(A193,PREISE!$A:$C,3,FALSE) -> 9.08 | F193: =IF(C193="","",C193*E193) ->  | G193: =IF(AND(A193="",E193=""),"",IFERROR(VLOOKUP(A193,PREISE!$A:$D,4,FALSE),"")) -> 133 | H193: =IF(F193="","",CONCATENATE(C193,"*",A193)) -> 
A194: 24001802 | B194: =VLOOKUP(A194,PREISE!$A:$B,2,FALSE) -> Reduktion DA63 / D50 | D194: Stk. | E194: =VLOOKUP(A194,PREISE!$A:$C,3,FALSE) -> 2.08 | F194: =IF(C194="","",C194*E194) ->  | G194: =IF(AND(A194="",E194=""),"",IFERROR(VLOOKUP(A194,PREISE!$A:$D,4,FALSE),"")) -> 2284 | H194: =IF(F194="","",CONCATENATE(C194,"*",A194)) ->  | J194: Warum FIBALON? | L194: oder Filterglas statt Sand?
B196: Filtermedium:
A197: 21300827 | B197: =VLOOKUP(A197,PREISE!$A:$B,2,FALSE) -> Filtersand 25 kg, Körnung 0,7-1,2 mm | C197: =IF(OR(C200<>"",C199<>""),"", IF(C173="JA", IF(OR(C176<>"",C180<>""),2, IF(OR(C181<>"",C185<>""),3, IF(OR(C177<>"",C186<>""),4, IF(OR(C182<>"",C187<>""),5, IF(C190<>"",5, "" ) ) ) ) ), "")) -> 4 | D197: Stk. | E197: =VLOOKUP(A197,PREISE!$A:$C,3,FALSE) -> 13.25 | F197: =IF(C197="","",C197*E197) -> 53 | G197: =IF(AND(A197="",E197=""),"",IFERROR(VLOOKUP(A197,PREISE!$A:$D,4,FALSE),"")) -> 412 | H197: 4*21300827
A198: 21300745 | B198: =VLOOKUP(A198,PREISE!$A:$B,2,FALSE) -> Filtersand 25 kg 2,0-3,4 mm Körnung | C198: =IF(AND(C173="JA",C188<>""),3,"") ->  | D198: Stk. | E198: =VLOOKUP(A198,PREISE!$A:$C,3,FALSE) -> 13.25 | G198: =IF(AND(A198="",E198=""),"",IFERROR(VLOOKUP(A198,PREISE!$A:$D,4,FALSE),"")) -> 55
A199: 21301855 | B199: =VLOOKUP(A199,PREISE!$A:$B,2,FALSE) -> MFG - Filterglas 21kg | D199: Stk. | E199: =VLOOKUP(A199,PREISE!$A:$C,3,FALSE) -> 32.49 | G199: =IF(AND(A199="",E199=""),"",IFERROR(VLOOKUP(A199,PREISE!$A:$D,4,FALSE),"")) -> 251
A200: 21309989 | B200: =VLOOKUP(A200,PREISE!$A:$B,2,FALSE) -> Fibalon rope - Filtermaterial | D200: Stk. | E200: =VLOOKUP(A200,PREISE!$A:$C,3,FALSE) -> 31.58 | F200: =IF(C200="","",C200*E200) ->  | G200: =IF(AND(A200="",E200=""),"",IFERROR(VLOOKUP(A200,PREISE!$A:$D,4,FALSE),"")) -> 110
B202: Steuerungen:
A203: 21405010 | B203: =VLOOKUP(A203,PREISE!$A:$B,2,FALSE) -> Filtersteuerung MINI, 230 Volt (mit Zeituhr, 30 mA FI) | D203: Stk. | E203: =VLOOKUP(A203,PREISE!$A:$C,3,FALSE) -> 115.83 | F203: =IF(C203="","",C203*E203) ->  | G203: =IF(AND(A203="",E203=""),"",IFERROR(VLOOKUP(A203,PREISE!$A:$D,4,FALSE),"")) -> 31
A204: 21405020 | B204: =VLOOKUP(A204,PREISE!$A:$B,2,FALSE) -> Filtersteuerung MAXI 230 Volt - mit Trafo 600 VA, FI 30mA, Zeitu | C204: =IF(C158="JA",1,"") ->  | D204: Stk. | E204: =VLOOKUP(A204,PREISE!$A:$C,3,FALSE) -> 274.17 | F204: =IF(C204="","",C204*E204) ->  | G204: =IF(AND(A204="",E204=""),"",IFERROR(VLOOKUP(A204,PREISE!$A:$D,4,FALSE),"")) -> 40
A205: 21401995 | B205: =VLOOKUP(A205,PREISE!$A:$B,2,FALSE) -> ASTRAL Rückspülventil 1 1/2 BASIC | D205: Stk. | E205: =VLOOKUP(A205,PREISE!$A:$C,3,FALSE) -> 665.83 | F205: =IF(C205="","",C205*E205) ->  | G205: =IF(AND(A205="",E205=""),"",IFERROR(VLOOKUP(A205,PREISE!$A:$D,4,FALSE),"")) -> 4
D206: =IF(SUM(F176:F205)>0,"Gesamt:","") -> Gesamt: | E206: =IF(SUM(F176:F205)>0,SUM(F176:F205),"") -> 518.83
A208: Leiter / Treppen | F208: =IF(SUM(F211:F230)>0,"-","") -> - | J208: ↑nach oben
A209: Für den Einstieg in ihren Pool mit FOLIENSACK! | H209: =IF(F209="","",CONCATENATE(C209,"*",A209)) ->  | J209: ENG: | K209: WEIT:
B210: Leiter aus Edelstahl: | C210: 120cm = 3 Stufen, 150cm = 4 Stufen
A211: =IF(OR($C$23=120,$C$23=150),IF($C$23=120, 29001059, IF($C$23=150, 29001060, "" ) ), "") -> 29001060 | B211: =IF(OR($C$23=120,$C$23=150),VLOOKUP(A211,PREISE!$A:$B,2,FALSE),"Kein passendes Produkt gefunden!") -> Einhänge - Edelstahlleiter ENG 4-stufig | D211: Stk. | E211: =IF(OR($C$23=120,$C$23=150),VLOOKUP(A211,PREISE!$A:$C,3,FALSE),"") -> 157.5 | F211: =IF(C211="","",C211*E211) ->  | G211: =IF(AND(A211="",E211=""),"",IFERROR(VLOOKUP(A211,PREISE!$A:$D,4,FALSE),"")) -> 12 | H211: =IF(F211="","",CONCATENATE(C211,"*",A211)) ->  | L211: >> DETAILS Leiter | Q211: =IF(OR(C34="Gerade - Folientreppe",C34="Gerade - Folientreppe"),"ja","nein") -> nein
A212: =IF(OR($C$23=120,$C$23=150),IF($C$23=120, 29001061, IF($C$23=150, 29001062, "" ) ), "") -> 29001062 | B212: =IF(OR($C$23=120,$C$23=150),VLOOKUP(A212,PREISE!$A:$B,2,FALSE),"Kein passendes Produkt gefunden!") -> Einhänge - Edelstahlleiter WEIT, 4-stufig | C212: =IF(C211<>"","",IF(OR($C$23=120,$C$23=150),IF(C34="Leiter",1,""),"")) ->  | D212: Stk. | E212: =IF(OR($C$23=120,$C$23=150),VLOOKUP(A212,PREISE!$A:$C,3,FALSE),"") -> 165.83 | F212: =IF(C212="","",C212*E212) ->  | G212: =IF(AND(A212="",E212=""),"",IFERROR(VLOOKUP(A212,PREISE!$A:$D,4,FALSE),"")) -> 121
A213: 29001067 | B213: =VLOOKUP(A213,PREISE!$A:$B,2,FALSE) -> Leiter Flanschrohr - 42 mm - für Einbaubeckenleitern (2 Stück) | D213: Stk. | E213: =VLOOKUP(A213,PREISE!$A:$C,3,FALSE) -> 49.17 | G213: =IF(AND(A213="",E213=""),"",IFERROR(VLOOKUP(A213,PREISE!$A:$D,4,FALSE),"")) -> 19 | L213: Wir empfehlen Edelstahlstufen = nicht brüchig!
A214: 29001076 | B214: =LEFT(VLOOKUP(A214,PREISE!$A:$B,2,FALSE),60) -> Schwenkgelenk für Leiter - Flanschmontage - Holm 43 mm - per | D214: Stk. | E214: =VLOOKUP(A214,PREISE!$A:$C,3,FALSE) -> 99.17 | G214: =IF(AND(A214="",E214=""),"",IFERROR(VLOOKUP(A214,PREISE!$A:$D,4,FALSE),"")) -> 22
B216: =IF(E22="ECKIG","ECK - Einstelltreppe FLEXIBLE:","Einstelltreppe") -> Einstelltreppe | C216: =IF($C$23<150,"Nur bei 150cm Pooltiefe!","") ->  | L216: Farbe: WEISS, GRAU und SAND/BEIGE lagernd!
A217: =IF(E22="ECKIG",29135000,29136000) -> 29136000 | B217: =VLOOKUP(A217,PREISE!$A:$B,2,FALSE) -> GERADE - Einstelltreppe ATHENA, Farbe WEISS | C217: =IF(OR(C218<>"",C219<>""),"",IF($C$23=150,IF(C34="ECK - Einstelltreppe",1,""),"")) ->  | D217: Stk. | E217: =VLOOKUP(A217,PREISE!$A:$C,3,FALSE) -> 1999.17 | F217: =IF(C217="","",C217*E217) ->  | G217: =IF(AND(A217="",E217=""),"",IFERROR(VLOOKUP(A217,PREISE!$A:$D,4,FALSE),"")) -> -1 | H217: =IF(F217="","",CONCATENATE(C217,"*",A217)) -> 
... 493 more rows

Sheet GEWEBEFOLIE
A1: POOL Kalkulator PRO | F1: © WUNDERWORKS
C2: POOLDOKTOR Handels GmbH
C3: Kotzinastrasse 15 - 4030 Linz - AT
C4: Telefon: + 43 732 38 22 22
C5: Email: office@pooldoktor.at
A7: Datum: | B7: =TODAY() -> 2024-03-21 | C7: Angebot gültig bis: | F7: =B7+30 -> 2024-04-20
F8: (Datum gültig bei PDF oder Ausdruck)
A9: Ihre Anschrift - Kundendaten
B10: bitte vollständig ausfüllen:
A11: Rechnungsadresse | C11: Lieferadresse? | E11: falls abweichend
A12: Titel | B12: =IFERROR(IF(POOL!B12<>"",POOL!B12,""),"") ->  | C12: =IFERROR(IF(POOL!C12<>"",POOL!C12,""),"") -> 
A13: Name | B13: =IFERROR(IF(POOL!B13<>"",POOL!B13,""),"") ->  | C13: =IFERROR(IF(POOL!C13<>"",POOL!C13,""),"") -> 
A14: Straße | B14: =IFERROR(IF(POOL!B14<>"",POOL!B14,""),"") ->  | C14: =IFERROR(IF(POOL!C14<>"",POOL!C14,""),"") -> 
A15: PLZ | B15: =IFERROR(IF(POOL!B15<>"",POOL!B15,""),"") ->  | C15: =IFERROR(IF(POOL!C15<>"",POOL!C15,""),"") -> 
A16: Ort | B16: =IFERROR(IF(POOL!B16<>"",POOL!B16,""),"") ->  | C16: =IFERROR(IF(POOL!C16<>"",POOL!C16,""),"") -> 
A17: Land | B17: =IFERROR(IF(POOL!B17<>"",POOL!B17,"Österreich"),"Österreich") -> Österreich | C17: =IFERROR(IF(POOL!C17<>"",POOL!C17,""),"") -> 
A18: Telefon | B18: =IFERROR(IF(POOL!B18<>"",POOL!B18,""),"") ->  | C18: =IFERROR(IF(POOL!C18<>"",POOL!C18,""),"") -> 
A19: Email | B19: =IFERROR(IF(POOL!B19<>"",POOL!B19,""),"") ->  | C19: =IFERROR(IF(POOL!C19<>"",POOL!C19,""),"") -> 
C20: =IF($C$22="","",$C$22/100) -> 7 | D20: =IF($D$22="","",$D$22/100) -> 3.5
A21: Fragen bzw. Angaben zu Ihrem Pool | C21: Länge? | D21: Breite? | E21: Form?
A22: Bitte geben Sie das INNENMASS ihres Schwimmbeckens an (in cm): | C22: =IFERROR(IF(POOL!C22<>"",POOL!C22,600),600) -> 700 | D22: =IFERROR(IF(POOL!D22<>"",POOL!D22,300),300) -> 350 | E22: =IFERROR(IF(POOL!E22<>"",POOL!E22,"ECKIG"),"ECKIG") -> OVAL
A23: Hat ihr Pool eine Treppe? Abmessungen / Anzahl Stufen? | C23: 150 | D23: 150 | E23: 4 | F23: =IF(E23<>""," Stufen","") -> Stufen
A24: Wie tief ist ihr Pool? Bitte die Nächsthöhere Tiefe wählen: | C24: =IFERROR(IF(POOL!C23<>"",POOL!C23,150),150) -> 150 | D24: cm
A25: Welche FARBE soll die Folie haben? | C25: SAND
B26: Umfang: | C26: =IF(E22="ECKIG",(2*C22+2*D22)/100,IF(E22="OVAL",(D22*3.14+(C22-D22)*2)/100, IF(E22="RUND",D22*3.14/100, "") )) -> 17.99 | D26: m | I26: Wir verkaufen die Alkorplan 2000 Gewebefolie ausschliesslich in ROLLENWARE (Keine Meterware - nur bei Trittschutz!)
B27: Wandfläche (Umfang x Tiefe): | C27: =C26*C24/100 -> 26.985 | D27: m2 | I27: Info zur Berechnung:
B28: Bodenfläche (Länge x Breite): | C28: =C22*D22/10000 -> 24.5 | D28: m2 | I28: Bei den Wänden nimmt man dem Umfang und der Tiefe entsprechend eine 1,65cm oder 2,05m Bahn.
I29: Den Boden muss man leider immer stückeln - entweder längs oder quer je nach Poolbreite bzw. -länge.
B30: Rollenhöhe: | C30: 165 cm | D30: 205 cm | I30: Bitte ausreichend Reserven einplanen und immer nachrechnen!
B31: Benötigte Rollen Wand: | C31: =IF(C24=150,C26/25,"") -> 0.7196 | D31: =IF(C24=180,C26/25,"") -> 
B32: Benötigte Rollen Boden: | C32: =IF(D22<301,(D22/150*C22/100)/25,"") ->  | D32: =IF(D22>300,(D22/150*C22/100)/25,"") -> 0.6533333333 | O32: >> Farben KONFIGURATOR
B33: Empfehlung (ohne Gewähr): | C33: =IF(SUM(C31:C32)=0,"",ROUNDUP(SUM(C31:C32),0)) -> 1 | D33: =IF(SUM(D31:D32)=0,"",ROUNDUP(SUM(D31:D32),0)) -> 1 | O33: (welche Farbe hat der Pool mit Wasser befüllt?)
A34: Info: Bitte kalkulieren sie auch die benötigte Folienmenge selber nach! Dies ist ein automatisierter Vorschlag!
I35: >> DETAILS ROLLENWARE Alkorplan Gewebefolien
A36: ANGEBOT - GEWEBEFOLIEN zum SELBER VERLEGEN / nur MATERIAL
I37: Sie möchten die 1.5mm Gewebefolie von Alkorplan selber verlegen/verschweissen oder kennen jemanden (Dachdecker usw.)?
A38: Artikelnr. | B38: Artikelname | C38: Menge | E38: Preis | F38: Summe
I39: Bitte vorab lesen:
A40: ALKORPLAN | I40: >> Verarbeitungshinweise ALKORPLAN
A41: Acrylbeschichtete Gewebefolie für Boden und Wand: | I41: >> Welche Farben sind möglich?
A42: 25110010 | B42: =VLOOKUP(A42,PREISE!$A:$B,2,FALSE) -> Alkorplan 2000 - adriablau - 1,65 - 25 lfm - 41,25m2 | C42: =IF(AND($C$25="ADRIABLAU",$C$33<>""),$C$33,"") ->  | D42: Stk. | E42: =VLOOKUP(A42,PREISE!$A:$C,3,FALSE) -> 915.83 | F42: =IF(C42="","",C42*E42) ->  | G42: =IF(F42="","",CONCATENATE(C42,"*",A42)) -> 
A43: 25110011 | B43: =VLOOKUP(A43,PREISE!$A:$B,2,FALSE) -> Alkorplan 2000 - adriablau - 2,05 - 25 lfm - 51,25m2 | C43: =IF(AND($C$25="ADRIABLAU",$D$33<>""),$D$33,"") ->  | D43: Stk. | E43: =VLOOKUP(A43,PREISE!$A:$C,3,FALSE) -> 1124.17 | G43: =IF(F43="","",CONCATENATE(C43,"*",A43)) -> 
A44: 25110012 | B44: =VLOOKUP(A44,PREISE!$A:$B,2,FALSE) -> Alkorplan 2000 - hellblau - 1,65 - 25 lfm - 41,25m2 | C44: =IF(AND($C$25="HELLBLAU",$C$33<>""),$C$33,"") ->  | D44: Stk. | E44: =VLOOKUP(A44,PREISE!$A:$C,3,FALSE) -> 915.83
A45: 25110013 | B45: =VLOOKUP(A45,PREISE!$A:$B,2,FALSE) -> Alkorplan 2000 - hellblau - 2,05 - 25 lfm - 51,25m2 | C45: =IF(AND($C$25="HELLBLAU",$D$33<>""),$D$33,"") ->  | D45: Stk. | E45: =VLOOKUP(A45,PREISE!$A:$C,3,FALSE) -> 1124.17
A46: 25110016 | B46: =VLOOKUP(A46,PREISE!$A:$B,2,FALSE) -> Alkorplan 2000 - weiß - 1,65 - 25 lfm - 41,25m2 | C46: =IF(AND($C$25="WEISS",$C$33<>""),$C$33,"") ->  | D46: Stk. | E46: =VLOOKUP(A46,PREISE!$A:$C,3,FALSE) -> 915.83
A47: 25110017 | B47: =VLOOKUP(A47,PREISE!$A:$B,2,FALSE) -> Alkorplan 2000 - weiß - 2,05 - 25 lfm - 51,25m2 | C47: =IF(AND($C$25="WEISS",$D$33<>""),$D$33,"") ->  | D47: Stk. | E47: =VLOOKUP(A47,PREISE!$A:$C,3,FALSE) -> 1124.17
A48: 25110018 | B48: =VLOOKUP(A48,PREISE!$A:$B,2,FALSE) -> Alkorplan 2000 - sand - 1,65 - 25 lfm - 41,25m2 | C48: =IF(AND($C$25="SAND",$C$33<>""),$C$33,"") -> 1 | D48: Stk. | E48: =VLOOKUP(A48,PREISE!$A:$C,3,FALSE) -> 915.83 | F48: 915.83 | G48: 1*25110018
A49: 25110019 | B49: =VLOOKUP(A49,PREISE!$A:$B,2,FALSE) -> Alkorplan 2000 - sand - 2,05 - 25 lfm - 51,25m2 | C49: =IF(AND($C$25="SAND",$D$33<>""),$D$33,"") -> 1 | D49: Stk. | E49: =VLOOKUP(A49,PREISE!$A:$C,3,FALSE) -> 1124.17 | F49: 1124.17 | G49: 1*25110019
A50: 25110020 | B50: =VLOOKUP(A50,PREISE!$A:$B,2,FALSE) -> Alkorplan 2000 - grau - 1,65 - 25 lfm - 41,25m2 | C50: =IF(AND($C$25="GRAU",$C$33<>""),$C$33,"") ->  | D50: Stk. | E50: =VLOOKUP(A50,PREISE!$A:$C,3,FALSE) -> 915.83 | F50: =IF(C50="","",C50*E50) -> 
A51: 25110021 | B51: =VLOOKUP(A51,PREISE!$A:$B,2,FALSE) -> Alkorplan 2000 - grau - 2,05 - 25 lfm - 51,25m2 | C51: =IF(AND($C$25="GRAU",$D$33<>""),$D$33,"") ->  | D51: Stk. | E51: =VLOOKUP(A51,PREISE!$A:$C,3,FALSE) -> 1124.17
A52: 25110022 | B52: =VLOOKUP(A52,PREISE!$A:$B,2,FALSE) -> Alkorplan 2000 - dunkelgrau - 1,65 - 25 lfm - 41,25m2 | C52: =IF(AND($C$25="DUNKELGRAU",$C$33<>""),$C$33,"") ->  | D52: Stk. | E52: =VLOOKUP(A52,PREISE!$A:$C,3,FALSE) -> 915.83
A53: 25110023 | B53: =VLOOKUP(A53,PREISE!$A:$B,2,FALSE) -> Alkorplan 2000 - dunkelgrau - 2,05 - 25 lfm - 51,25m2 | C53: =IF(AND($C$25="DUNKELGRAU",$D$33<>""),$D$33,"") ->  | D53: Stk. | E53: =VLOOKUP(A53,PREISE!$A:$C,3,FALSE) -> 1124.17
A55: Antislipfolie für Stufen:
A56: 25110040 | B56: =VLOOKUP(A56,PREISE!$A:$B,2,FALSE) -> Alkorplan - Antislipfolie - adriablau - 1,65 - per lfm | C56: =IF(AND(C25="ADRIABLAU",E23<>"",C23<>"",D23<>""),ROUNDUP(D23*1.5/100*E23/4,0),"") ->  | D56: lfm | E56: =VLOOKUP(A56,PREISE!$A:$C,3,FALSE) -> 99.17
A57: 25110041 | B57: =VLOOKUP(A57,PREISE!$A:$B,2,FALSE) -> Alkorplan - Antislipfolie - hellblau - 1,65 - per lfm | C57: =IF(AND(C25="HELLBLAU",E23<>"",C23<>"",D23<>""),ROUNDUP(D23*1.5/100*E23/4,0),"") ->  | D57: lfm | E57: =VLOOKUP(A57,PREISE!$A:$C,3,FALSE) -> 99.17
A58: 25110043 | B58: =VLOOKUP(A58,PREISE!$A:$B,2,FALSE) -> Alkorplan - Antislipfolie - weiß - 1,65 - per lfm | C58: =IF(AND(C25="WEISS",E23<>"",C23<>"",D23<>""),ROUNDUP(D23*1.5/100*E23/4,0),"") ->  | D58: lfm | E58: =VLOOKUP(A58,PREISE!$A:$C,3,FALSE) -> 99.17
A59: 25110044 | B59: =VLOOKUP(A59,PREISE!$A:$B,2,FALSE) -> Alkorplan - Antislipfolie - sand - 1,65 - per lfm | C59: =IF(AND(C25="SAND",E23<>"",C23<>"",D23<>""),ROUNDUP(D23*1.5/100*E23/4,0),"") -> 3 | D59: lfm | E59: =VLOOKUP(A59,PREISE!$A:$C,3,FALSE) -> 99.17 | F59: 297.51 | G59: 3*25110044
A60: 25110045 | B60: =VLOOKUP(A60,PREISE!$A:$B,2,FALSE) -> Alkorplan - Antislipfolie - grau - 1,65 - per lfm | C60: =IF(AND(C25="GRAU",E23<>"",C23<>"",D23<>""),ROUNDUP(D23*1.5/100*E23/4,0),"") ->  | D60: lfm | E60: =VLOOKUP(A60,PREISE!$A:$C,3,FALSE) -> 99.17
A61: 25110046 | B61: =VLOOKUP(A61,PREISE!$A:$B,2,FALSE) -> Alkorplan - Antislipfolie - dunkelgrau - 1,65 - per lfm | C61: =IF(AND(C25="DUNKELGRAU",E23<>"",C23<>"",D23<>""),ROUNDUP(D23*1.5/100*E23/4,0),"") ->  | D61: lfm | E61: =VLOOKUP(A61,PREISE!$A:$C,3,FALSE) -> 99.17
A63: Flüssigfolie / Nahtversiegelung
A64: 25110051 | B64: =VLOOKUP(A64,PREISE!$A:$B,2,FALSE) -> Alkorplan - Nahtversiegelung - Flüssigfolie - adriablau - 1L | C64: =IF(C25="ADRIABLAU",2,"") ->  | D64: Stk. | E64: =VLOOKUP(A64,PREISE!$A:$C,3,FALSE) -> 45.83 | F64: =IF(C64="","",C64*E64) ->  | L64: Die Nahtversiegelung füllt man in die Dosierflasche und spritzt diese in die Fugen!
A65: 25110050 | B65: =VLOOKUP(A65,PREISE!$A:$B,2,FALSE) -> Alkorplan - Nahtversiegelung - Flüssigfolie - hellblau - 1L | C65: =IF(C25="HELLBLAU",2,"") ->  | D65: Stk. | E65: =VLOOKUP(A65,PREISE!$A:$C,3,FALSE) -> 45.83 | L65: Mit Quellschweissmittel kann man die Flüssigfolie verdünnen!
A66: 25110052 | B66: =VLOOKUP(A66,PREISE!$A:$B,2,FALSE) -> Alkorplan - Nahtversiegelung - Flüssigfolie - weiß - 1L | C66: =IF(C25="WEISS",2,"") ->  | D66: Stk. | E66: =VLOOKUP(A66,PREISE!$A:$C,3,FALSE) -> 45.83
A67: 25110053 | B67: =VLOOKUP(A67,PREISE!$A:$B,2,FALSE) -> Alkorplan - Nahtversiegelung - Flüssigfolie - sand - 1L | C67: =IF(C25="SAND",2,"") -> 2 | D67: Stk. | E67: =VLOOKUP(A67,PREISE!$A:$C,3,FALSE) -> 45.83 | F67: 91.66 | G67: 2*25110053 | M67: Auf dem Blechwinkel ist eine blaue PVC Beschichtung!
A68: 25110058 | B68: =VLOOKUP(A68,PREISE!$A:$B,2,FALSE) -> Alkorplan - Nahtversiegelung - Flüssigfolie - grau - 1L | C68: =IF(C25="GRAU",2,"") ->  | D68: Stk. | E68: =VLOOKUP(A68,PREISE!$A:$C,3,FALSE) -> 45.83 | M68: Auf diese kann mit Heissluft die PVC Gewebefolie verschweisst werden!
A69: 25110158 | B69: =VLOOKUP(A69,PREISE!$A:$B,2,FALSE) -> Alkorplan - Nahtversiegelung - Flüssigfolie - dunkelgrau - 1L | C69: =IF(C25="DUNKELGRAU",2,"") ->  | D69: Stk. | E69: =VLOOKUP(A69,PREISE!$A:$C,3,FALSE) -> 45.83 | F69: =IF(C69="","",C69*E69) ->  | M69: Die Winkel selber werden mit Blitzdübel am Betonkranz vestgedübelt!
A70: 25110054 | B70: =VLOOKUP(A70,PREISE!$A:$B,2,FALSE) -> Dosierflasche für Nahtversiegelung | C70: 1 | D70: Stk. | E70: =VLOOKUP(A70,PREISE!$A:$C,3,FALSE) -> 20.72 | F70: 20.72 | G70: 1*25110054 | M70: (Bei Renovierungen kann auf der Poolwand auch ein Blech angedübelt werden)
A72: Bleckwinkel zu Befestigung
A73: 25105025 | B73: =VLOOKUP(A73,PREISE!$A:$B,2,FALSE) -> Folienbeschichteter Blechwinkel 20 x 80 x 2000 mm - außen | C73: =IF(C26<>"",C26/2,"") -> 8.995 | D73: Stk. | E73: =VLOOKUP(A73,PREISE!$A:$C,3,FALSE) -> 16.58 | F73: =IF(C73="","",C73*E73) -> 149.1371 | G73: 8,995*25105025 | M73: Das Vlies wird mit Sprühkleber am Untergrund befestigt!
A74: 25105026 | B74: =VLOOKUP(A74,PREISE!$A:$B,2,FALSE) -> Folienbeschichteter Blechwinkel 50 x 50 x 2000 mm - außen | C74: =IF(AND(C23<>"",D23<>"",E23<>""),D23/200*E23*E23/4,"") -> 3 | D74: Stk. | E74: =VLOOKUP(A74,PREISE!$A:$C,3,FALSE) -> 16.58 | F74: 49.74 | G74: 3*25105026 | M74: (man braucht zumeist 3 Dosen)
A75: 25105027 | B75: =VLOOKUP(A75,PREISE!$A:$B,2,FALSE) -> Folienbeschichteter Blechwinkel 50 x 50 x 2000 mm - innen | C75: =IF(AND(C23<>"",D23<>"",E23<>""),D23/200*E23*E23/4,"") -> 3 | D75: Stk. | E75: =VLOOKUP(A75,PREISE!$A:$C,3,FALSE) -> 16.58 | F75: 49.74 | G75: 3*25105027 | M75: Der Untergrund wurde zuvor mit Desinfektionsmittel gereinigt!
A76: 25110055 | B76: =VLOOKUP(A76,PREISE!$A:$B,2,FALSE) -> Blitzdübel 6 x 30 mm zur Folienblechbefestigung (500 Stück) | C76: 1 | D76: Stk. | E76: =VLOOKUP(A76,PREISE!$A:$C,3,FALSE) -> 60.08 | F76: 60.08 | G76: 1*25110055 | M76: (1 L Desinfektion für 75m2 Fläche)
A78: Vlies und Desinfektion
A79: 25003001 | B79: =VLOOKUP(A79,PREISE!$A:$B,2,FALSE) -> Vlies weiss 300 gr./m2 (50 lfm/ H165 =82,5m2) | C79: =IF(C24=150,ROUNDUP(SUM(C27:C28)/82.5,0),"") -> 1 | D79: Stk. | E79: =VLOOKUP(A79,PREISE!$A:$C,3,FALSE) -> 207.5 | F79: =IF(C79="","",C79*E79) -> 207.5 | G79: 1*25003001 | I79: Sie haben Fragen? - Wir beraten Sie sehr gerne!
A80: 25003002 | B80: =VLOOKUP(A80,PREISE!$A:$B,2,FALSE) -> Vlies weiss 300 gr./m2 (50 lfm/ H200 =100 m2) | C80: =IF(C24=180,ROUNDUP(SUM(C27:C28)/100,0),"") ->  | D80: Stk. | E80: =VLOOKUP(A80,PREISE!$A:$C,3,FALSE) -> 290.83
A81: 25105080 | B81: =VLOOKUP(A81,PREISE!$A:$B,2,FALSE) -> Sprühkleber für Vlies - hohe Sofortklebekraft | C81: 3 | D81: Stk. | E81: =VLOOKUP(A81,PREISE!$A:$C,3,FALSE) -> 19.92 | F81: =IF(C81="","",C81*E81) -> 59.76 | I81: Bitte schreiben Sie uns ihre Fragen & Wünsche schriftlich:
A82: 25006813 | B82: =VLOOKUP(A82,PREISE!$A:$B,2,FALSE) -> Desinfektionsmittel für den Untergrund 1000 ml - (Vlies) | C82: 1 | D82: Stk. | E82: =VLOOKUP(A82,PREISE!$A:$C,3,FALSE) -> 46.58 | F82: 46.58 | G82: 1*25006813 | I82: >> KONTAKTFORMULAR | L82: office@pooldoktor.at
I83: (ein auf ihr Anliegen geschulter Mitarbeiter wird sich bei ihnen melden!)
A84: =IF(B17="","Bitte wählen Sie oben Ihr Land aus!","") -> 
A85: Versandkosten | I85: Sie möchten angerufen werden? Beratung per Telefon?
A86: 81008100 | B86: =VLOOKUP(A86,PREISE!$A:$B,2,FALSE) -> Verpackung + Versandkosten + Verwaltung | C86: =IF(AND(B17<>"",C26>0),1,"") -> 1 | D86: x | E86: =IF($B$17="Schweiz",295,145) -> 145 | F86: =IF(C86="","",C86*E86) -> 145 | G86: 1*81008100 | I86: >> RÜCKRUFSERVICE | L86: +43 732 38 22 22
A88: Summe: | I88: Sie möchten einen KOSTENLOSEN Beratungstermin in Linz?
B89: =IF(OR($C$22="",$D$22=""),"Bitte geben Sie oben die Länge x Breite ihres Pools ein!","") ->  | C89: Nettosumme exkl. | F89: =SUM(F42:F86) -> 3217.4271 | I89: >> BERATUNGSTERMIN VEREINBAREN | M89: >> ANFAHRT
A90: Land: | B90: =IF($B$17="","Bitte wählen Sie oben ihr Land aus!",$B$17) -> Österreich | C90: =IF($B$17="Österreich",0.2,IF($B$17="Deutschland",0.19,IF($B$17="Schweiz",0.081,0))) -> 0.2 | D90: Mehrwertsteuer | F90: =ROUNDUP(F89*C90,2) -> 643.49
I91: Unseren Schauraum in Linz besuchen? | L91: >> VIRTUELLER RUNDGANG in 3D | O91: Unser Team freut sich Sie kennenzulernen!
B92: Angebostsumme inklusive Mehrwertsteuer: | E92: =IF(F89<250,"Daten fehlen!",SUM(F89:F90)) -> 3860.9171
A94: Die Lieferzeit für die Gewebefolie samt Zubehör beträgt voraussichtlich: | C94: Zahlungsart: auf Rechnung
A95: 25109955 | B95: =VLOOKUP(A95,PREISE!$A:$B,2,FALSE) -> 2 - 4 Wochen | F95: Banküberweisung nach Warenerhalt
A97: Bitte lesen sie unsere Allgemeinen Geschäftsbedingungen: | C97: Angebot gültig bis: | F97: =B7+30 -> 2024-04-20
A98: http://www.pooldoktor.net/shop/geschaeftsbedingungen | C98: Preisänderungen wegen Irrtümer vorbehalten!
A100: >>>>>>>> | B100: Wir Beraten Sie gerne - Fragen Sie uns! office@pooldoktor.at | F100: Jetzt Termin vereinbaren!
A101: POOLDOKTOR Handels GmbH, Kotzinastrasse 15 - 4030 Linz, Österreich - FN 256113 m - AT74 1860 0000 1120 8626 | I101: Die Fa. Pooldoktor existiert seit über 17 Jahren! | M101: Mittlerweile wurden über 10.000 Styroporpools von unseren Kunden erstellt!

Sheet RANDSTEINE
A1: POOL Kalkulator PRO | F1: © WUNDERWORKS
C2: POOLDOKTOR Handels GmbH | I2: Wir liefern ihnen hochwertige Randsteine ab Lager Linz - 3 unterschiedliche Typen & Farben verfügbar!
C3: Kotzinastrasse 15 - 4030 Linz - AT
C4: Telefon: + 43 732 38 22 22 | I4: Granit in Aktion | L4: High Level Granit - HELL oder DUNKEL | Q4: Welle Weiss aus Italien
C5: Email: office@pooldoktor.at
A7: Datum: | B7: =TODAY() -> 2024-03-21 | C7: Angebot gültig bis: | F7: =B7+30 -> 2024-04-20
F8: (Datum gültig bei PDF oder Ausdruck)
A9: Ihre Anschrift - Kundendaten
B10: bitte vollständig ausfüllen:
A11: Rechnungsadresse | C11: Lieferadresse? | E11: falls abweichend
A12: Titel | B12: =IFERROR(IF(POOL!B12<>"",POOL!B12,""),"") ->  | C12: =IFERROR(IF(POOL!C12<>"",POOL!C12,""),"") -> 
A13: Name | B13: =IFERROR(IF(POOL!B13<>"",POOL!B13,""),"") ->  | C13: =IFERROR(IF(POOL!C13<>"",POOL!C13,""),"") -> 
A14: Straße | B14: =IFERROR(IF(POOL!B14<>"",POOL!B14,""),"") ->  | C14: =IFERROR(IF(POOL!C14<>"",POOL!C14,""),"") -> 
A15: PLZ | B15: =IFERROR(IF(POOL!B15<>"",POOL!B15,""),"") ->  | C15: =IFERROR(IF(POOL!C15<>"",POOL!C15,""),"") -> 
A16: Ort | B16: =IFERROR(IF(POOL!B16<>"",POOL!B16,""),"") ->  | C16: =IFERROR(IF(POOL!C16<>"",POOL!C16,""),"") -> 
A17: Land | B17: =IFERROR(IF(POOL!B17<>"",POOL!B17,"Österreich"),"Österreich") -> Österreich | C17: =IFERROR(IF(POOL!C17<>"",POOL!C17,""),"") -> 
A18: Telefon | B18: =IFERROR(IF(POOL!B18<>"",POOL!B18,""),"") ->  | C18: =IFERROR(IF(POOL!C18<>"",POOL!C18,""),"") -> 
A19: Email | B19: =IFERROR(IF(POOL!B19<>"",POOL!B19,""),"") ->  | C19: =IFERROR(IF(POOL!C19<>"",POOL!C19,""),"") -> 
C20: =IF($C$22="","",$C$22/100) -> 7 | D20: =IF($D$22="","",$D$22/100) -> 3.5
A21: Fragen bzw. Angaben zu Ihrem Pool | C21: Länge? | D21: Breite? | E21: Form?
A22: Bitte geben Sie das INNENMASS ihres Schwimmbeckens an (in cm): | C22: =IFERROR(IF(POOL!C22<>"",POOL!C22,600),600) -> 700 | D22: =IFERROR(IF(POOL!D22<>"",POOL!D22,300),300) -> 350 | E22: =IFERROR(IF(POOL!E22<>"",POOL!E22,"ECKIG"),"ECKIG") -> OVAL
A23: Hat ihr Pool eine RÖMISCHE Treppe ? Bitte wählen sie den Radius: | C23: =IFERROR(IF(OR(POOL!C34="Fertigtreppe 200cm",POOL!C34="Fertigtreppe 250cm",POOL!C34="Fertigtreppe 300cm"), POOL!C34, IF(POOL!C35="R100 - 200cm breit","R100 - 200cm - Radius AUSSEN", IF(POOL!C35="R125 - 250cm breit","R125 - 250cm - Radius AUSSEN", IF(POOL!C35="R150 - 300cm breit","R150 - 300cm - Radius AUSSEN", "" ) ) ) ),"") -> Fertigtreppe 250cm
A24: Hat ihr Pool eine GERADE Treppe? Bitte geben sie das Innenmass in cm ein: | C24: =IFERROR(IF(POOL!C36<>"",POOL!C36,""),"") ->  | D24: =IFERROR(IF(POOL!D36<>"",POOL!D36,""),"") -> 
A27: ANGEBOT - RANSTEINE - GRANIT oder WELLE WEISS
I28: >> DETAILS Randsteine aus GRANIT | M28: Die Oberfläche ist geflammt und daher rutschsicher bzw. für Pool geeignet!
A29: Artikelnr. | B29: Artikelname | C29: Menge | E29: Preis | F29: Summe
I30: Der GRANIT ist eine Naturstein und ein hervorragender Werkstoff zur Gartengestaltung!
A31: Granit in Aktion | I31: Verfügbare Farben: Granit in Aktion (NUR HELL G603) - High Level Granit in HELL G603 und DUNKEL G654 verfügbar!
A32: Granit - Farbe: G603 - 32cm breit - Innen gerunded, poliert - Aussen 2x gefast, Oberfläche geflammt | F32: =IF(OR(F65="JA",F69="JA",F76="JA"),"NEIN",IFERROR(IF(POOL!C340="Granit in Aktion","JA","NEIN"),"JA") ) -> JA | I32: Die Innenkanten sind Halbrund poliert damit es poolseitig ein schöner Abschluss ist und sich niemand verletzt - Aussenkante hingegen doppelt gefast!
A33: 61405600 | B33: =VLOOKUP(A33,PREISE!$A:$B,2,FALSE) -> Granit - GERADE PLATTE - 65/32/3 cm - AK:GF-P | C33: =IF(AND(F32="JA",E22="ECKIG",C22<>"",D22<>""), IF(OR(36-(ROUNDUP(((2*C22+2*D22)/65)+1,0))=2,36-(ROUNDUP(((2*C22+2*D22)/65)+1,0))=1), 36, ROUNDUP(((2*C22+2*D22)/65)+1,0)), IF(AND(F32="JA",E22="OVAL",C22<>"",D22<>""),ROUNDUP(((C22-D22)*2/65)+1,0), "" ) ) -> 12 | D33: Stk. | E33: =VLOOKUP(A33,PREISE!$A:$C,3,FALSE) -> 24.92 | F33: =IF(C33="","",C33*E33) -> 299.04 | G33: =IF(F33="","",CONCATENATE(C33,"*",A33)) -> 12*61405600 | I33: Die Sets werden von uns passend berechnet - Reservesteine sind immer in der Kalkulation, denn einige Steine müssen immer vorort angepasst werden!
A34: 61405645 | B34: =VLOOKUP(A34,PREISE!$A:$B,2,FALSE) -> Granit - INNENECKE - 45/45/3 cm - AK:GF-P | C34: =IF(AND(F32="JA",E22="ECKIG",C22<>"",D22<>""),4,"") ->  | D34: Stk. | E34: =VLOOKUP(A34,PREISE!$A:$C,3,FALSE) -> 32.5 | F34: =IF(C34="","",C34*E34) ->  | G34: =IF(F34="","",CONCATENATE(C34,"*",A34)) ->  | I34: Nur bei Granit in Aktion sind Radien (Rund, Oval und römische Treppen) möglich! Bei High Level gibt es nur Gerade Platten!
A35: 61405610 | B35: =VLOOKUP(A35,PREISE!$A:$B,2,FALSE) -> Granit - SKIMMERSTEIN - 40/32/3 cm - AK:GF-P | C35: =IFERROR(IF(AND(F32="JA",POOL!C108<>"",POOL!E22="ECKIG"),POOL!C108,""),"") ->  | D35: Stk. | E35: =VLOOKUP(A35,PREISE!$A:$C,3,FALSE) -> 70.75 | F35: =IF(C35="","",C35*E35) -> 
A36: 61302229 | B36: =VLOOKUP(A36,PREISE!$A:$B,2,FALSE) -> Multibond - glasklar. Verfugung- u. Klebemasse, 310 ml | D36: Stk. | E36: =VLOOKUP(A36,PREISE!$A:$C,3,FALSE) -> 12.5
I37: Unterschied Granit in Aktion bzw. High Level? Granit in Aktion hat 32cm breite und 65cm lange Steine = einfacheres Handling.
A38: Granit - Bogensteine? | I38: High Level Granit ist optimiert für unseren High Level Pool - wegen der Rinne und hat schwere 120cm x 40 cm lange Steine! 2 Farben!
A39: 61405075 | B39: =VLOOKUP(A39,PREISE!$A:$B,2,FALSE) -> Granit - BOGENSTEIN R-75 cm, B 32x3 cm (45,7cm) | C39: =IF(AND(F32="JA",OR(E22="OVAL",E22="RUND"),C22<>"",D22=150),ROUNDUP(150*3.14/45+1,0),"") ->  | D39: Stk. | E39: =VLOOKUP(A39,PREISE!$A:$C,3,FALSE) -> 39.08
A40: 61405100 | B40: =VLOOKUP(A40,PREISE!$A:$B,2,FALSE) -> Granit - BOGENSTEIN R-100 cm, B 32x3 cm (51,1cm) | C40: =IF(AND(F32="JA",OR(E22="OVAL",E22="RUND"),C22<>"",D22=200),ROUNDUP(200*3.14/51+1,0),"") ->  | D40: Stk. | E40: =VLOOKUP(A40,PREISE!$A:$C,3,FALSE) -> 39.08 | I40: Details der Steine Granit in Aktion: | M40: Innenecke | Q40: Skimmer-Stein passend für 3 Skimmer
A41: 61405125 | B41: =VLOOKUP(A41,PREISE!$A:$B,2,FALSE) -> Granit - BOGENSTEIN R-125 cm, B 32x3 cm (48,0 cm) | C41: =IF(AND(F32="JA",OR(E22="OVAL",E22="RUND"),C22<>"",D22=250),ROUNDUP(250*3.14/48+1,0),"") ->  | D41: Stk. | E41: =VLOOKUP(A41,PREISE!$A:$C,3,FALSE) -> 39.08
A42: 61405150 | B42: =VLOOKUP(A42,PREISE!$A:$B,2,FALSE) -> Granit - BOGENSTEIN R-150 cm, B 32x3 cm (51,3 cm) | C42: =IF(AND(F32="JA",OR(E22="OVAL",E22="RUND"),C22<>"",D22=300),ROUNDUP(300*3.14/51+1,0),"") ->  | D42: Stk. | E42: =VLOOKUP(A42,PREISE!$A:$C,3,FALSE) -> 39.08
A43: 61405175 | B43: =VLOOKUP(A43,PREISE!$A:$B,2,FALSE) -> Granit - BOGENSTEIN R-175 cm, B 32x3 cm (49,1 cm) | C43: =IF(AND(F32="JA",OR(E22="OVAL",E22="RUND"),C22<>"",D22=350),ROUNDUP(350*3.14/50+1,0),"") -> 23 | D43: Stk. | E43: =VLOOKUP(A43,PREISE!$A:$C,3,FALSE) -> 39.08 | F43: 898.84 | G43: 23*61405175
A44: 61405200 | B44: =VLOOKUP(A44,PREISE!$A:$B,2,FALSE) -> Granit - BOGENSTEIN R-200 cm, B 32x3 cm (51,5cm) | C44: =IF(AND(F32="JA",OR(E22="OVAL",E22="RUND"),C22<>"",D22=400),ROUNDUP(400*3.14/51+1,0),"") ->  | D44: Stk. | E44: =VLOOKUP(A44,PREISE!$A:$C,3,FALSE) -> 39.08 | F44: =IF(C44="","",C44*E44) -> 
A45: 61405250 | B45: =VLOOKUP(A45,PREISE!$A:$B,2,FALSE) -> Granit - BOGENSTEIN R-250 cm, B 32x3 cm (48,3cm) | C45: =IF(AND(F32="JA",OR(E22="OVAL",E22="RUND"),C22<>"",D22=500),ROUNDUP(500*3.14/50+1,0),"") ->  | D45: Stk. | E45: =VLOOKUP(A45,PREISE!$A:$C,3,FALSE) -> 39.08
A46: 61405300 | B46: =VLOOKUP(A46,PREISE!$A:$B,2,FALSE) -> Granit - BOGENSTEIN R-300 cm, B 32x3 cm (51,6 cm) | C46: =IF(AND(F32="JA",OR(E22="OVAL",E22="RUND"),C22<>"",D22=600),ROUNDUP(600*3.14/50+1,0),"") ->  | D46: Stk. | E46: =VLOOKUP(A46,PREISE!$A:$C,3,FALSE) -> 39.08
A48: Granit - Römische Treppe?
A49: 61408101 | B49: =LEFT(VLOOKUP(A49,PREISE!$A:$B,2,FALSE),62) -> Aufpreis Römische Treppe - R100 - 200cm breit - Radius AUSSEN | C49: =IF(AND($F$32="JA",$C$23="R100 - 200cm - Radius AUSSEN"),1,"") ->  | D49: Stk. | E49: =VLOOKUP(A49,PREISE!$A:$C,3,FALSE) -> 338.81
A50: 61408102 | B50: =LEFT(VLOOKUP(A50,PREISE!$A:$B,2,FALSE),62) -> Aufpreis Römische Treppe - R125 - 250cm breit - Radius AUSSEN | C50: =IF(AND($F$32="JA",$C$23="R125 - 250cm - Radius AUSSEN"),1,"") ->  | D50: Stk. | E50: =VLOOKUP(A50,PREISE!$A:$C,3,FALSE) -> 364.5
A51: 61408103 | B51: =LEFT(VLOOKUP(A51,PREISE!$A:$B,2,FALSE),62) -> Aufpreis Römische Treppe - R150 - 300cm breit - Radius AUSSEN | C51: =IF(AND($F$32="JA",$C$23="R150 - 300cm - Radius AUSSEN"),1,"") ->  | D51: Stk. | E51: =VLOOKUP(A51,PREISE!$A:$C,3,FALSE) -> 391.5
A52: 61408201 | B52: =LEFT(VLOOKUP(A52,PREISE!$A:$B,2,FALSE),61) -> Aufpreis Römische Treppe - R100 - 200cm breit - Radius INNEN | C52: =IF(AND($F$32="JA",$C$23="R100 - 200cm - Radius INNEN"),1,"") ->  | D52: Stk. | E52: =VLOOKUP(A52,PREISE!$A:$C,3,FALSE) -> 406.69
A53: 61408202 | B53: =LEFT(VLOOKUP(A53,PREISE!$A:$B,2,FALSE),61) -> Aufpreis Römische Treppe - R125 - 250cm breit - Radius INNEN | C53: =IF(AND($F$32="JA",$C$23="R125 - 250cm - Radius INNEN"),1,"") ->  | D53: Stk. | E53: =VLOOKUP(A53,PREISE!$A:$C,3,FALSE) -> 432.38
A54: 61408203 | B54: =LEFT(VLOOKUP(A54,PREISE!$A:$B,2,FALSE),61) -> Aufpreis Römische Treppe - R150 - 300cm breit - Radius INNEN | C54: =IF(AND($F$32="JA",$C$23="R150 - 300cm - Radius INNEN"),1,"") ->  | D54: Stk. | E54: =VLOOKUP(A54,PREISE!$A:$C,3,FALSE) -> 459.38
A55: 61408301 | B55: =LEFT(VLOOKUP(A55,PREISE!$A:$B,2,FALSE),61) -> Aufpreis Römische Treppe - Fertigtreppe 200cm breit - ROC200 | C55: =IF(AND($F$32="JA",$C$23="Fertigtreppe 200cm"),1,"") ->  | D55: Stk. | E55: =VLOOKUP(A55,PREISE!$A:$C,3,FALSE) -> 358.88
A56: 61408302 | B56: =LEFT(VLOOKUP(A56,PREISE!$A:$B,2,FALSE),61) -> Aufpreis Römische Treppe - Fertigtreppe 250cm breit - ROT250 | C56: =IF(AND($F$32="JA",$C$23="Fertigtreppe 250cm"),1,"") -> 1 | D56: Stk. | E56: =VLOOKUP(A56,PREISE!$A:$C,3,FALSE) -> 382.31 | F56: 382.31 | G56: 1*61408302
A57: 61408303 | B57: =LEFT(VLOOKUP(A57,PREISE!$A:$B,2,FALSE),61) -> Aufpreis Römische Treppe - Fertigtreppe 300cm breit - ROC300 | C57: =IF(AND($F$32="JA",$C$23="Fertigtreppe 300cm"),1,"") ->  | D57: Stk. | E57: =VLOOKUP(A57,PREISE!$A:$C,3,FALSE) -> 478.13 | I57: >> Wie ist mein Radius? INNEN oder AUSSEN angesetzt? | O57: >> SKIZZE 800 x 400 ECKIG | R57: >> SKIZZE mit römischer Treppe
I58: Randsteine müssen vor Ort noch angepasst- geschnitten werden !!
A59: Granit - Gerade Treppe? | I59: Geringe Farbabweichungen, Maßschwankungen und Unregelmäßigkeiten in der Oberfläche, insbesondere kleinere Löcher (Lufteinschlüsse),
A60: 61405790 | B60: =VLOOKUP(A60,PREISE!$A:$B,2,FALSE) -> Granit - AUSSENECKE - 45/45/3 cm - AK:GF-P | C60: =IF(AND(F32="JA",C24<>"",D24<>""),2,"") ->  | D60: Stk. | E60: =VLOOKUP(A60,PREISE!$A:$C,3,FALSE) -> 38.25 | I60: sind bei diesem Produkt unvermeidlich. Diese Abweichungen stellen jedoch keinen Mangel bzw. Anspruch auf Ersatzlieferung dar.
A61: 61405600 | B61: =VLOOKUP(A61,PREISE!$A:$B,2,FALSE) -> Granit - GERADE PLATTE - 65/32/3 cm - AK:GF-P | C61: =IF(AND(F32="JA",C24<>"",D24<>""),ROUNDUP((C24*2/65)+1,0),"") ->  | D61: Stk. | E61: =VLOOKUP(A61,PREISE!$A:$C,3,FALSE) -> 24.92 | F61: =IF(C61="","",C61*E61) ->  | I61: Durch entsprechendes Verlegen können Ungleichheiten ausgeglichen werden…
A64: High Level Granit | C64: =IF(OR(E22="OVAL",E22="RUND"),"Nur für ECKIGE Pools möglich!","") -> Nur für ECKIGE Pools möglich!
A65: High Level Granit - Farbe: G603 - HELL - 120 cm lang x 40cm breit x 3cm hoch | F65: =IFERROR(IF(POOL!C340="High Level Granit HELL","JA","NEIN"),"") -> NEIN
A66: 61407201 | B66: =VLOOKUP(A66,PREISE!$A:$B,2,FALSE) -> High Level Granit - GERADE PLATTE - 120/40/3 cm - HELL - G603 | C66: =IF(AND(F65="JA",E22="ECKIG",C22<>"",D22<>""), IF(OR(20-(ROUNDUP(((2*C22+2*D22)/120)+1,0))=1,20-(ROUNDUP(((2*C22+2*D22)/120)+1,0))=2), 20, ROUNDUP(((2*C22+2*D22)/120)+1,0)), "" ) ->  | D66: Stk. | E66: =VLOOKUP(A66,PREISE!$A:$C,3,FALSE) -> 54.08 | F66: =IF(C66="","",C66*E66) -> 
A67: 61407202 | B67: =VLOOKUP(A67,PREISE!$A:$B,2,FALSE) -> High Level Granit - INNENECKE - 53/53/3 cm - HELL - G603 | C67: =IF(AND(F65="JA",E22="ECKIG",C22<>"",D22<>""),4,"") ->  | D67: Stk. | E67: =VLOOKUP(A67,PREISE!$A:$C,3,FALSE) -> 49.92 | F67: =IF(C67="","",C67*E67) -> 
A68: 61407203 | B68: =VLOOKUP(A68,PREISE!$A:$B,2,FALSE) -> High Level Granit - SKIMMERSTEIN - 40/40/3 cm - HELL - G603 | D68: Stk. | E68: =VLOOKUP(A68,PREISE!$A:$C,3,FALSE) -> 82.5
A69: High Level Granit - Farbe: G654 - DUNKEL - 120 cm lang x 40cm breit x 3cm hoch | F69: =IFERROR(IF(POOL!C340="High Level Granit DUNKEL","JA","NEIN"),"") -> NEIN
A70: 61407308 | B70: =VLOOKUP(A70,PREISE!$A:$B,2,FALSE) -> High Level Granit - GERADE PLATTE - 120/40/3 cm - DUNKEL - G654 | C70: =IF(AND(F69="JA",E22="ECKIG",C22<>"",D22<>""), IF(OR(20-(ROUNDUP(((2*C22+2*D22)/120)+1,0))=1,20-(ROUNDUP(((2*C22+2*D22)/120)+1,0))=2), 20, ROUNDUP(((2*C22+2*D22)/120)+1,0)), "" ) ->  | D70: Stk. | E70: =VLOOKUP(A70,PREISE!$A:$C,3,FALSE) -> 66.58 | F70: =IF(C70="","",C70*E70) -> 
A71: 61407309 | B71: =VLOOKUP(A71,PREISE!$A:$B,2,FALSE) -> High Level Granit - INNENECKE - 53/53/3 cm - DUNKEL - G654 | C71: =IF(AND(F69="JA",E22="ECKIG",C22<>"",D22<>""),4,"") ->  | D71: Stk. | E71: =VLOOKUP(A71,PREISE!$A:$C,3,FALSE) -> 58.25 | F71: =IF(C71="","",C71*E71) -> 
A72: 61407310 | B72: =VLOOKUP(A72,PREISE!$A:$B,2,FALSE) -> High Level Granit - SKIMMERSTEIN - 40/40/3 cm - DUNKEL - G654 | D72: Stk. | E72: =VLOOKUP(A72,PREISE!$A:$C,3,FALSE) -> 82.5 | J72: 40cm Breiter Randstein ! | M72: Nur für ECKIGE Pools, da nur GERADE Platten! | R72: 2 Farben verfügbar! | T72: >> Beispiele G654 DUNKEL
A75: Welle Weiss - Randstein aus Italien (Sandstein)
A76: Weisser Sandstein - 60 cm lang x 33 cm breit x 65-30mm hoch (Welle) | F76: =IFERROR(IF(POOL!C340="Welle Weiss aus Italien","JA","NEIN"),"") -> NEIN | I76: >> DETAILS Welles Weiss aus Italien
A77: 61502040 | B77: =LEFT(VLOOKUP(A77,PREISE!$A:$B,2,FALSE),60) -> Welle Weiss - GERADE 60x33 cm, (65-30 mm), weiss-sandgestrah | C77: =IF(AND(F76="JA",E22="ECKIG",C22<>"",D22<>""),ROUNDUP(((2*C22+2*D22)/60)+2,0), IF(AND(F76="JA",E22="OVAL",C22<>"",D22<>""),ROUNDUP(((C22-D22)*2/60)+2,0), "" ) ) ->  | D77: Stk. | E77: =VLOOKUP(A77,PREISE!$A:$C,3,FALSE) -> 24.92 | F77: =IF(C77="","",C77*E77) ->  | I77: Schöner Weisser Randstein aus Marmorsand. Farbe WEISS, Form WELLE
A78: 61502050 | B78: =LEFT(VLOOKUP(A78,PREISE!$A:$B,2,FALSE),60) -> Welle Weiss - Innenecke 90°, 39x39 cm, Welle (65-30 mm), wei | C78: =IF(AND(F76="JA",E22="ECKIG",C22<>"",D22<>""),4,"") ->  | D78: Stk. | E78: =VLOOKUP(A78,PREISE!$A:$C,3,FALSE) -> 24.92 | F78: =IF(C78="","",C78*E78) ->  | I78: Oberfläche - sangestrahlt, rutschischer
A79: 61502130 | B79: =LEFT(VLOOKUP(A79,PREISE!$A:$B,2,FALSE),60) -> Fugenmittel 25 kg - winterfest, exakt abgestimmt auf die Far | C79: =IF(C77<>"",1,"") ->  | D79: Stk. | E79: =VLOOKUP(A79,PREISE!$A:$C,3,FALSE) -> 57.5 | I79: Der Fliesenleger schneidet die Steine vorort passend zu! (Treppe, Radius)
A81: Welle Weiss - Bogensteine? | I81: Details der Steine Welle Weiss: | M81: Die Steine sind 60cm lang und 33cm breit! | Q81: Keine Poolüberdachung am Rand möglich wegen der Welle!
A82: 61502060 | B82: =LEFT(VLOOKUP(A82,PREISE!$A:$B,2,FALSE),57) -> Welle Weiss - gerundet, R-100 cm, Länge 53 cm, (65-30 mm) | C82: =IF(AND(F76="JA",OR(E22="OVAL",E22="RUND"),C22<>"",D22=200),ROUNDUP(200*3.14/53+2,0),"") ->  | D82: Stk. | E82: =VLOOKUP(A82,PREISE!$A:$C,3,FALSE) -> 29.08 | F82: =IF(C82="","",C82*E82) -> 
A83: 61502065 | B83: =LEFT(VLOOKUP(A83,PREISE!$A:$B,2,FALSE),57) -> Welle Weiss - gerundet, R-125 cm, Länge 51 cm, (65-30 mm) | C83: =IF(AND(F76="JA",OR(E22="OVAL",E22="RUND"),C22<>"",D22=250),ROUNDUP(250*3.14/51+2,0),"") ->  | D83: Stk. | E83: =VLOOKUP(A83,PREISE!$A:$C,3,FALSE) -> 29.08 | T83: Fugenmittel weiss
A84: 61502070 | B84: =LEFT(VLOOKUP(A84,PREISE!$A:$B,2,FALSE),57) -> Welle Weiss - gerundet, R-150 cm, Länge 51 cm, (65-30 mm) | C84: =IF(AND(F76="JA",OR(E22="OVAL",E22="RUND"),C22<>"",D22=300),ROUNDUP(300*3.14/51+2,0),"") ->  | D84: Stk. | E84: =VLOOKUP(A84,PREISE!$A:$C,3,FALSE) -> 29.08 | T84: passend verfügbar!
A85: 61502075 | B85: =LEFT(VLOOKUP(A85,PREISE!$A:$B,2,FALSE),57) -> Welle Weiss - gerundet, R-175 cm, Länge 56 cm, (65-30 mm) | C85: =IF(AND(F76="JA",OR(E22="OVAL",E22="RUND"),C22<>"",D22=350),ROUNDUP(350*3.14/56+2,0),"") ->  | D85: Stk. | E85: =VLOOKUP(A85,PREISE!$A:$C,3,FALSE) -> 29.08
A86: 61502080 | B86: =LEFT(VLOOKUP(A86,PREISE!$A:$B,2,FALSE),57) -> Welle Weiss - gerundet, R-200 cm, Länge 56 cm, (65-30 mm) | C86: =IF(AND(F76="JA",OR(E22="OVAL",E22="RUND"),C22<>"",D22=400),ROUNDUP(400*3.14/56+2,0),"") ->  | D86: Stk. | E86: =VLOOKUP(A86,PREISE!$A:$C,3,FALSE) -> 29.08
A87: 61502085 | B87: =LEFT(VLOOKUP(A87,PREISE!$A:$B,2,FALSE),57) -> Welle Weiss - gerundet, R-250 cm, Länge 56 cm, (65-30 mm) | C87: =IF(AND(F76="JA",OR(E22="OVAL",E22="RUND"),C22<>"",D22=500),ROUNDUP(500*3.14/56+2,0),"") ->  | D87: Stk. | E87: =VLOOKUP(A87,PREISE!$A:$C,3,FALSE) -> 29.08 | T87: Kein Skimmerstein
B88: =IF(OR(D22=150,D22=600),"Radius R75 und Radius R300 bei Welle Weiss leider nicht möglich","") ->  | T88: verfügbar - man schneidet
A89: Welle Weiss - Römische Treppe?
A90: 61508101 | B90: =LEFT(VLOOKUP(A90,PREISE!$A:$B,2,FALSE),62) -> Aufpreis Römische Treppe - R100 - 200cm breit - Radius AUSSEN | C90: =IF(AND($F$76="JA",$C$23="R100 - 200cm - Radius AUSSEN"),1,"") ->  | D90: Stk. | E90: =VLOOKUP(A90,PREISE!$A:$C,3,FALSE) -> 165.83 | F90: =IF(C90="","",C90*E90) -> 
A91: 61508102 | B91: =LEFT(VLOOKUP(A91,PREISE!$A:$B,2,FALSE),62) -> Aufpreis Römische Treppe - R125 - 250cm breit - Radius AUSSEN | C91: =IF(AND($F$76="JA",$C$23="R125 - 250cm - Radius AUSSEN"),1,"") ->  | D91: Stk. | E91: =VLOOKUP(A91,PREISE!$A:$C,3,FALSE) -> 165.83
A92: 61508103 | B92: =LEFT(VLOOKUP(A92,PREISE!$A:$B,2,FALSE),62) -> Aufpreis Römische Treppe - R150 - 300cm breit - Radius AUSSEN | C92: =IF(AND($F$76="JA",$C$23="R150 - 300cm - Radius AUSSEN"),1,"") ->  | D92: Stk. | E92: =VLOOKUP(A92,PREISE!$A:$C,3,FALSE) -> 190.83
A93: 61508201 | B93: =LEFT(VLOOKUP(A93,PREISE!$A:$B,2,FALSE),61) -> Aufpreis Römische Treppe - R100 - 200cm breit - Radius INNEN | C93: =IF(AND($F$76="JA",$C$23="R100 - 200cm - Radius INNEN"),1,"") ->  | D93: Stk. | E93: =VLOOKUP(A93,PREISE!$A:$C,3,FALSE) -> 207.5
A94: 61508202 | B94: =LEFT(VLOOKUP(A94,PREISE!$A:$B,2,FALSE),61) -> Aufpreis Römische Treppe - R125 - 250cm breit - Radius INNEN | C94: =IF(AND($F$76="JA",$C$23="R125 - 250cm - Radius INNEN"),1,"") ->  | D94: Stk. | E94: =VLOOKUP(A94,PREISE!$A:$C,3,FALSE) -> 207.5
A95: 61508203 | B95: =LEFT(VLOOKUP(A95,PREISE!$A:$B,2,FALSE),61) -> Aufpreis Römische Treppe - R150 - 300cm breit - Radius INNEN | C95: =IF(AND($F$76="JA",$C$23="R150 - 300cm - Radius INNEN"),1,"") ->  | D95: Stk. | E95: =VLOOKUP(A95,PREISE!$A:$C,3,FALSE) -> 232.5
A96: 61508301 | B96: =LEFT(VLOOKUP(A96,PREISE!$A:$B,2,FALSE),61) -> Aufpreis Römische Treppe - Fertigtreppe 200cm breit - ROC200 | C96: =IF(AND($F$76="JA",$C$23="Fertigtreppe 200cm"),1,"") ->  | D96: Stk. | E96: =VLOOKUP(A96,PREISE!$A:$C,3,FALSE) -> 190.83
A97: 61508302 | B97: =LEFT(VLOOKUP(A97,PREISE!$A:$B,2,FALSE),61) -> Aufpreis Römische Treppe - Fertigtreppe 250cm breit - ROT250 | C97: =IF(AND($F$76="JA",$C$23="Fertigtreppe 250cm"),1,"") ->  | D97: Stk. | E97: =VLOOKUP(A97,PREISE!$A:$C,3,FALSE) -> 207.5
A98: 61508303 | B98: =LEFT(VLOOKUP(A98,PREISE!$A:$B,2,FALSE),61) -> Aufpreis Römische Treppe - Fertigtreppe 300cm breit - ROC300 | C98: =IF(AND($F$76="JA",$C$23="Fertigtreppe 300cm"),1,"") ->  | D98: Stk. | E98: =VLOOKUP(A98,PREISE!$A:$C,3,FALSE) -> 249.17
I99: Sie haben Fragen? - Wir beraten Sie sehr gerne!
A100: Welle Weiss - Gerade Treppe?
A101: 61502090 | B101: =VLOOKUP(A101,PREISE!$A:$B,2,FALSE) -> Welle Weiss - Außennecke 90°, 37x37 cm, (65-30 mm), weiss-sand | C101: =IF(AND(F76="JA",C24<>"",D24<>""),2,"") ->  | D101: Stk. | E101: =VLOOKUP(A101,PREISE!$A:$C,3,FALSE) -> 24.92 | F101: =IF(C101="","",C101*E101) ->  | I101: Bitte schreiben Sie uns ihre Fragen & Wünsche schriftlich:
A102: 61502040 | B102: =VLOOKUP(A102,PREISE!$A:$B,2,FALSE) -> Welle Weiss - GERADE 60x33 cm, (65-30 mm), weiss-sandgestrahlt | C102: =IF(AND(F76="JA",C24<>"",D24<>""),ROUNDUP((C24*2/60)+2,0),"") ->  | D102: Stk. | E102: =VLOOKUP(A102,PREISE!$A:$C,3,FALSE) -> 24.92 | F102: =IF(C102="","",C102*E102) ->  | I102: >> KONTAKTFORMULAR | L102: office@pooldoktor.at
I103: (ein auf ihr Anliegen geschulter Mitarbeiter wird sich bei ihnen melden!)
A105: Versandkosten | I105: Sie möchten angerufen werden? Beratung per Telefon?
A106: =IF(B17="Österreich",81002000,IF(B17="Deutschland",81003002,IF(B17="Schweiz",81002011,""))) -> 81002000 | B106: =IF(B17="","Bitte wählen Sie oben ihr Land aus!",VLOOKUP(A106,PREISE!$A:$B,2,FALSE)) -> AT - Frachtkosten Randsteinset - 1 Palette | C106: =IF(AND(B17<>"",C22<>"",D22<>""),1,"") -> 1 | D106: x | E106: =IF(B17<>"",VLOOKUP(A106,PREISE!$A:$C,3,FALSE),"") -> 149 | F106: =IF(C106="","",C106*E106) -> 149 | G106: 1*81002000 | I106: >> RÜCKRUFSERVICE | L106: +43 732 38 22 22
A108: Summe: | I108: Sie möchten einen KOSTENLOSEN Beratungstermin in Linz?
B109: =IF(OR($C$22="",$D$22=""),"Bitte geben Sie oben die Länge x Breite ihres Pools ein!","") ->  | C109: Nettosumme exkl. | F109: =SUM(F33:F106) -> 1729.19 | I109: >> BERATUNGSTERMIN VEREINBAREN | M109: >> ANFAHRT
A110: Land: | B110: =IF($B$17="","Bitte wählen Sie oben ihr Land aus!",$B$17) -> Österreich | C110: =IF($B$17="Österreich",0.2,IF($B$17="Deutschland",0.19,IF($B$17="Schweiz",0.081,0))) -> 0.2 | D110: Mehrwertsteuer | F110: =ROUNDUP(F109*C110,2) -> 345.84
I111: Unseren Schauraum in Linz besuchen? | L111: >> VIRTUELLER RUNDGANG in 3D | O111: Unser Team freut sich Sie kennenzulernen!
B112: Angebostsumme inklusive Mehrwertsteuer: | E112: =IF(F109<250,"Daten fehlen!",SUM(F109:F110)) -> 2075.03
A114: Die Lieferzeit für ihre Randsteine beträgt voraussichtlich: | C114: Zahlungsart: auf Rechnung
A115: 61509898 | B115: =VLOOKUP(A115,PREISE!$A:$B,2,FALSE) -> 1 - 2 Wochen | F115: Banküberweisung nach Warenerhalt
A117: Bitte lesen sie unsere Allgemeinen Geschäftsbedingungen: | C117: Angebot gültig bis: | F117: =B7+30 -> 2024-04-20
A118: http://www.pooldoktor.net/shop/geschaeftsbedingungen | C118: Preisänderungen wegen Irrtümer vorbehalten!
A120: >>>>>>>> | B120: Wir Beraten Sie gerne - Fragen Sie uns! office@pooldoktor.at | F120: Jetzt Termin vereinbaren!
A121: POOLDOKTOR Handels GmbH, Kotzinastrasse 15 - 4030 Linz, Österreich - FN 256113 m - AT74 1860 0000 1120 8626 | I121: Die Fa. Pooldoktor existiert seit über 17 Jahren! | M121: Mittlerweile wurden über 10.000 Styroporpools von unseren Kunden erstellt!

Sheet ROLLABDECKPLANE
A1: POOL Kalkulator PRO | F1: © WUNDERWORKS
C2: POOLDOKTOR Handels GmbH | I2: >> DETAILS Rollabdeckplane | L2: >> Details EASY TOP | O2: >> Details PROFLEX
C3: Kotzinastrasse 15 - 4030 Linz - AT
C4: Telefon: + 43 732 38 22 22
C5: Email: office@pooldoktor.at
A7: Datum: | B7: =TODAY() -> 2024-03-21 | C7: Angebot gültig bis: | F7: =B7+30 -> 2024-04-20
F8: (Datum gültig bei PDF oder Ausdruck)
A9: Ihre Anschrift - Kundendaten | S9: >> VIDEO Rollabdeckplane
B10: bitte vollständig ausfüllen: | I10: Die Rollabdeckung schützt perfekt vor Schmutz und dämmt den Wärmeverlust vehement!
A11: Rechnungsadresse | C11: Lieferadresse? | E11: falls abweichend | I11: Sehr guter Schutz für KINDER und TIERE!
A12: Titel | B12: =IFERROR(IF(POOL!B12<>"",POOL!B12,""),"") ->  | C12: =IFERROR(IF(POOL!C12<>"",POOL!C12,""),"") ->  | I12: Die Rollabdeckplane wird mit einer KURBEL geöffnet, die seitlich angesteckt wird - im Lieferumfang!
A13: Name | B13: =IFERROR(IF(POOL!B13<>"",POOL!B13,""),"") ->  | C13: =IFERROR(IF(POOL!C13<>"",POOL!C13,""),"") -> 
A14: Straße | B14: =IFERROR(IF(POOL!B14<>"",POOL!B14,""),"") ->  | C14: =IFERROR(IF(POOL!C14<>"",POOL!C14,""),"") ->  | I14: Viele Farben sind möglich! | L14: Sonderanfertigungen auch für OVAL & RUND (trapezförmig) und römische Treppen!
A15: PLZ | B15: =IFERROR(IF(POOL!B15<>"",POOL!B15,""),"") ->  | C15: =IFERROR(IF(POOL!C15<>"",POOL!C15,""),"") -> 
A16: Ort | B16: =IFERROR(IF(POOL!B16<>"",POOL!B16,""),"") ->  | C16: =IFERROR(IF(POOL!C16<>"",POOL!C16,""),"") -> 
A17: Land | B17: =IFERROR(IF(POOL!B17<>"",POOL!B17,"Österreich"),"Österreich") -> Österreich | C17: =IFERROR(IF(POOL!C17<>"",POOL!C17,""),"") -> 
A18: Telefon | B18: =IFERROR(IF(POOL!B18<>"",POOL!B18,""),"") ->  | C18: =IFERROR(IF(POOL!C18<>"",POOL!C18,""),"") -> 
A19: Email | B19: =IFERROR(IF(POOL!B19<>"",POOL!B19,""),"") ->  | C19: =IFERROR(IF(POOL!C19<>"",POOL!C19,""),"") -> 
C20: =IF($C$22="","",$C$22/100) -> 7 | D20: =IF($D$22="","",$D$22/100) -> 3.5
A21: Fragen bzw. Angaben zu Ihrem Pool | C21: Länge? | D21: Breite? | E21: Form? | F21: m2
A22: Bitte geben Sie das INNENMASS ihres Schwimmbeckens an (in cm): | C22: =IFERROR(IF(POOL!C22<>"",POOL!C22,600),600) -> 700 | D22: =IFERROR(IF(POOL!D22<>"",POOL!D22,300),300) -> 350 | E22: =IFERROR(IF(POOL!E22<>"",POOL!E22,"ECKIG"),"ECKIG") -> OVAL
A23: Wie breit soll die Auflage am Beckenrand sein? (Empfehlung min. 20cm) | C23: 20 | D23: cm Auflage | F23: =IF(OR(C22="",D22="",),"",ROUNDUP((C22+2*C23)*(D22+2*C23)/10000,2)) -> 28.86 | I23: kieselgrau | M23: mittelgrau | P23: hellblau - im geöffneten Zustand
A24: Hat ihr Pool eine aussenliegende Treppe? Innenmass? | C24: =IF(OR(POOL!C34="Fertigtreppe 200cm",POOL!C35="R100 - 200cm breit"), 100, IF(OR(POOL!C34="Fertigtreppe 250cm",POOL!C35="R125 - 250cm breit"), 125, IF(OR(POOL!C34="Fertigtreppe 300cm",POOL!C35="R150 - 300cm breit"), 150, IF(POOL!C36<>"",POOL!C36, "") ) ) ) -> 125 | D24: =IF(OR(POOL!C34="Fertigtreppe 200cm",POOL!C35="R100 - 200cm breit"), 200, IF(OR(POOL!C34="Fertigtreppe 250cm",POOL!C35="R125 - 250cm breit"), 250, IF(OR(POOL!C34="Fertigtreppe 300cm",POOL!C35="R150 - 300cm breit"), 300, IF(POOL!C36<>"",POOL!D36, "") ) ) ) -> 250 | E24: =IF(OR(POOL!C34="Fertigtreppe 200cm",POOL!C35="R100 - 200cm breit"), "RÖMISCH", IF(OR(POOL!C34="Fertigtreppe 250cm",POOL!C35="R125 - 250cm breit"), "RÖMISCH", IF(OR(POOL!C34="Fertigtreppe 300cm",POOL!C35="R150 - 300cm breit"), "RÖMISCH", IF(POOL!C36<>"","GERADE", "") ) ) ) -> RÖMISCH | F24: =IF(OR(C24="",D24=""),"",ROUNDUP(C24*(D24+2*C23)/10000,2)) -> 3.63 | I24: >> DETAILS ROLLABDECKPLANE - Made in AT! | S24: 6% Aufpreis auf Sonderfarbe!
A25: =IF(OR(C24="",D24=""),"","Ist ihre Treppe auf der Stirnseite oder auf der Längseite ihres Pools?") -> Ist ihre Treppe auf der Stirnseite oder auf der Längseite ihres Pools?
B26: =IF(OR(C22="",D22=""),"","Fertigungsmass insgesamt inkl. Auflage") -> Fertigungsmass insgesamt inkl. Auflage | C26: =IF(OR(C22="",D22=""),"",(C22+2*C23)+ IF(C24<>"",C24,0)) -> 865 | D26: =IF(OR(C22="",D22=""),"",(D22+2*C23)) -> 390 | F26: =IF(OR(C22="",D22=""),"",(SUM(F23:F24))) -> 32.49
F27: =IF(E22="RUND","Bitte geben sie den Durchmesser jeweils bei Länge und Breite ein!","") -> 
A28: ANGEBOT - ROLLABDECKPLANE
A30: Artikelnr. | B30: Artikelname | C30: Menge | E30: Preis | F30: Summe
A32: Rollabdeckplane auf Maß pro m2 - Made in Austria | C32: =IF(OR(C57="JA",C69="JA"),"NEIN",IFERROR(IF(POOL!C535="ROLLABDECKPLANE","JA","NEIN"),"JA")) -> JA
A33: 33000017 | B33: =VLOOKUP(A33,PREISE!$A:$B,2,FALSE) -> Rollabdeckplane auf Maß pro m2 - ca. 140 cm Stangenabstand | C33: =IF(C34<>"","",IF(C32="JA",F26,"")) -> 32.49 | D33: m2 | E33: =VLOOKUP(A33,PREISE!$A:$C,3,FALSE) -> 57.42 | F33: =IF(C33="","",C33*E33) -> 1865.5758 | G33: =IF(F33="","",CONCATENATE(C33,"*",A33)) -> 32,49*33000017
A34: 33000019 | B34: =VLOOKUP(A34,PREISE!$A:$B,2,FALSE) -> Rollabdeckplane auf Maß per m2 - ca. 80 cm Stangenabstand | D34: m2 | E34: =VLOOKUP(A34,PREISE!$A:$C,3,FALSE) -> 64.92 | F34: =IF(C34="","",C34*E34) -> 
A35: Farbe: | B35: 090|HELLBLAU
A37: Extras Rollabdeckplane:
A38: 33000029 | B38: =LEFT(VLOOKUP(A38,PREISE!$A:$B,2,FALSE),62) -> Rollabdeckplane - 6% Aufpreis von Hellblau 090 auf Sonderfarbe | C38: =IF(C32="JA",IF(B35="090|HELLBLAU","",1),"") ->  | D38: x | E38: 0.06 | F38: =IF(OR(C33>0,C34>0),IF(B35="090|HELLBLAU","",SUM(F33:F34)*0.06),"") -> 
A39: 33000045 | B39: =LEFT(VLOOKUP(A39,PREISE!$A:$B,2,FALSE),62) -> Rollabdeckplane - 6 % Aufpreis für Oval / Rundbecken u. röm. T | C39: =IF(C32="JA",IF(OR(C33>0,C34>0),IF(OR(E22="OVAL",E22="RUND",E22="ACHTFORM",F24<>""),1,""),""),"") -> 1 | D39: x | E39: 0.06 | F39: =IF(C32="JA",IF(OR(C33>0,C34>0),IF(OR(E22="OVAL",E22="RUND",E22="ACHTFORM",F24<>""),SUM(F33:F34)*0.06,""),""),"") -> 111.934548 | G39: 1*33000045
A40: 33000035 | B40: =LEFT(VLOOKUP(A40,PREISE!$A:$B,2,FALSE),62) -> Rollabdeckplane - Aufpreis für längseitige Treppen | C40: =IF(C32="JA",IF(OR(C33>0,C34>0),IF(AND(C25="LÄNGSSEITE",F24<>""),1,""),""),"") ->  | D40: x | E40: =VLOOKUP(A40,PREISE!$A:$C,3,FALSE) -> 326 | F40: =IF(C40="","",C40*E40) -> 
A41: 33000030 | B41: =LEFT(VLOOKUP(A41,PREISE!$A:$B,2,FALSE),62) -> Rollabdeckplane - Aufpreis unter 21 m2 Fläche, per m2 | C41: =IF(C32="JA",IF(OR(C33>0,C34>0),IF(F26<21,21-F26,""),""),"") ->  | D41: x | E41: =VLOOKUP(A41,PREISE!$A:$C,3,FALSE) -> 40.75 | F41: =IF(C41="","",C41*E41) -> 
A42: 33000229 | B42: =LEFT(VLOOKUP(A42,PREISE!$A:$B,2,FALSE),62) -> Ausschnitt für Leiter/Gegenstromanlage - Rollabdeckplane | D42: x | E42: =VLOOKUP(A42,PREISE!$A:$C,3,FALSE) -> 165.83
A43: 33000236 | B43: =LEFT(VLOOKUP(A43,PREISE!$A:$B,2,FALSE),62) -> Gurtbandverlängerung bei Spannschloss bis 150 cm | D43: x | E43: =VLOOKUP(A43,PREISE!$A:$C,3,FALSE) -> 20.75
A44: 33000235 | B44: =LEFT(VLOOKUP(A44,PREISE!$A:$B,2,FALSE),62) -> 3 x Gurtbandverlängerung mit Klemmschnalle bis 200 cm (auf Lag | D44: x | E44: =VLOOKUP(A44,PREISE!$A:$C,3,FALSE) -> 24.92
I45: >> AUFBAUANLEITUNG u DETAILS | M45: >> BEDIENUNG trapezförmig | Q45: >> SKIZZE ECKIG + röm. Treppe stirnseitig
A46: Versandkosten Rollabdeckplane (Versand AB WERK AT):
A47: =IF(B17="Österreich",81009999,IF(B17="Deutschland",81009998,IF(B17="Schweiz",81009997,""))) -> 81009999 | B47: =IF(B17="","Bitte wählen Sie oben ihr Land aus!",VLOOKUP(A47,PREISE!$A:$B,2,FALSE)) -> AT- Fracht- Rollabdeckplane m. Transportversicherung | C47: =IF(C32="JA",IF(B17="","",IF(OR(C33>0,C34>0),1,"")),"") -> 1 | D47: x | E47: =IF(B17="","",VLOOKUP(A47,PREISE!$A:$C,3,FALSE)) -> 182.5 | F47: =IF(C47="","",C47*E47) -> 182.5 | G47: 1*81009999 | I47: >> ROLLABDECKPLANE im Winter - was tun? | M47: >> SKIZZE ECKIG | O47: >> SKIZZE OVAL | Q47: >> SKIZZE ECKIG + röm. Treppe längseitig
A50: Zubehör
A51: 29001090 | B51: =LEFT(VLOOKUP(A51,PREISE!$A:$B,2,FALSE),62) -> Leiter Schwenkgelenke ECO für Ankersockel - 42mm - 2 Stk. | D51: x | E51: =VLOOKUP(A51,PREISE!$A:$C,3,FALSE) -> 82.5 | F51: =IF(C51="","",C51*E51) -> 
A52: 33007080 | B52: =VLOOKUP(A52,PREISE!$A:$B,2,FALSE) -> ROLLTROTT 2 - Eigenantrieb-Motorsystem | D52: Stk. | E52: =VLOOKUP(A52,PREISE!$A:$C,3,FALSE) -> 832.5
A53: 33007081 | B53: =VLOOKUP(A53,PREISE!$A:$B,2,FALSE) -> Adapter 13mm für ROLLTROTT | D53: Stk. | E53: =VLOOKUP(A53,PREISE!$A:$C,3,FALSE) -> 103.5
A56: ALTERNATIVE #2 - EASY TOP
A57: EASY TOP Stangenabdeckung - Made in France | C57: =IFERROR(IF(POOL!C535="EASY TOP","JA","NEIN"),"NEIN") -> NEIN | I57: >> DETAILS EASY TOP Stangenabdeckung - Made in FR
A58: 33007050 | B58: =VLOOKUP(A58,PREISE!$A:$B,2,FALSE) -> EASY TOP - Stangenabdeckung auf Maß - per m2 | C58: =IF(C57="JA",F26,"") ->  | D58: m2 | E58: =VLOOKUP(A58,PREISE!$A:$C,3,FALSE) -> 66.58 | F58: =IF(C58="","",C58*E58) -> 
A59: Farbe: | B59: GRAU | D59: Farbe Kein Aufpreis
A61: Extras EASY TOP | F61: =IF(C61="","",C61*E61) -> 
A62: 33008045 | B62: =LEFT(VLOOKUP(A62,PREISE!$A:$B,2,FALSE),62) -> EASYTOP - 20 % Aufpreis für Oval / Rundbecken u. röm. Treppe | C62: =IF(C57="JA",IF(C58>0,IF(OR(E22="OVAL",E22="RUND",E22="ACHTFORM",F24<>""),1,""),""),"") ->  | D62: x | E62: 0.2 | F62: =IFERROR(IF(C58>0,IF(OR(E22="OVAL",E22="RUND",E22="ACHTFORM",F24<>""),F58*0.2,""),""),"") -> 
A63: 33000030 | B63: =LEFT(VLOOKUP(A63,PREISE!$A:$B,2,FALSE),62) -> Rollabdeckplane - Aufpreis unter 21 m2 Fläche, per m2 | C63: =IF(C57="JA",IF(C58>0,IF(F26<21,21-F26,""),""),"") ->  | D63: x | E63: =VLOOKUP(A63,PREISE!$A:$C,3,FALSE) -> 40.75 | F63: =IF(C63="","",C63*E63) -> 
A64: =IF(F24<>"","EASY TOP - Keine Treppe und Kein Ausschnitt möglich! Nur Eckig und Oval!","") -> EASY TOP - Keine Treppe und Kein Ausschnitt möglich! Nur Eckig und Oval!
A65: Versandkosten EASY TOP (Versand AB WERK FR):
A66: 81006666 | B66: =IF(B35="","Bitte wählen Sie oben das Land aus!",VLOOKUP(A66,PREISE!$A:$B,2,FALSE)) -> EASY-TOP Frachtkosten ab Werk Frankreich | C66: =IF(C57="JA",IF(B17="","",IF(C58>0,1,"")),"") ->  | D66: x | E66: =IF(B35="","",VLOOKUP(A66,PREISE!$A:$C,3,FALSE)) -> 265 | F66: =IF(C66="","",C66*E66) ->  | I66: >> VIDEO | K66: Farben OHNE Aufpreis! | M66: TOP Qualität & verlängerte Lebensdauer dank SUPERBLACK Gewebe!
A68: ALTERNATIVE #3 - PROFLEX DIY Bausatz
A69: PROFLEX DIY Rollabdeckplane - Made in Slovenia | C69: =IFERROR(IF(POOL!C535="PROFLEX DIY","JA","NEIN"),"NEIN") -> NEIN | I69: >> DETAILS PROFLEX | K69: Günstigere Alternative - DIY Bausatz - man baut die Abdeckung selber zusammen - dadurch auch günstiger Versandkosten!
A70: 32910001 | B70: =VLOOKUP(A70,PREISE!$A:$B,2,FALSE) -> PROFLEX Rollabdeckplane - auf Maß per m2 | C70: =IF(C69="JA",F26,"") ->  | D70: m2 | E70: =VLOOKUP(A70,PREISE!$A:$C,3,FALSE) -> 49.92 | F70: =IF(C70="","",C70*E70) -> 
A71: Farbe: | B71: BEIGE/SAND | D71: =IF(B71<>"SOLAR/WEISS","Farbe Kein Aufpreis","10% Aufpreis") -> Farbe Kein Aufpreis | P71: >> AUFBAUANLEITUNG DIY Bausatz
A73: Extras PROFLEX | F73: =IF(C73="","",C73*E73) ->  | P73: >> FARBEN Übersicht
A74: 33525000 | B74: =LEFT(VLOOKUP(A74,PREISE!$A:$B,2,FALSE),62) -> PROFLEX Rollabdeckplane - FARBE SOLAR/WEISS - 10% Aufpreis | C74: =IF(C69="JA",IF(B71="SOLAR/WEISS",1,""),"") ->  | D74: x | E74: 0.1 | F74: =IF(C69="JA",IF(B71="SOLAR/WEISS",IF(C70>0,F70*0.1,""),""),"") -> 
A75: =IF(OR(E22="RUND",E22="RUND",E22="OVAL",E22="ACHTFORM",E22="FREIFORM",F24<>""),"PROFLEX - Keine Treppe und Keine Ovale Fertigung möglich! Nur Eckig!","") -> PROFLEX - Keine Treppe und Keine Ovale Fertigung möglich! Nur Eckig!
A76: 33000030 | B76: =LEFT(VLOOKUP(A76,PREISE!$A:$B,2,FALSE),62) -> Rollabdeckplane - Aufpreis unter 21 m2 Fläche, per m2 | C76: =IF(C69="JA",IF(C70>0,IF(F26<21,21-F26,""),""),"") ->  | D76: x | E76: =VLOOKUP(A76,PREISE!$A:$C,3,FALSE) -> 40.75 | F76: =IF(C76="","",C76*E76) ->  | I76: Sie haben Fragen? - Wir beraten Sie sehr gerne!
A78: Versandkosten PROFLEX (Versand AB WERK SI): | I78: Bitte schreiben Sie uns ihre Fragen & Wünsche schriftlich:
A79: 33528099 | B79: =IF(B47="","Bitte wählen Sie oben das Land aus!",VLOOKUP(A79,PREISE!$A:$B,2,FALSE)) -> PROFLEX Transport - DIREKT AB WERK | C79: =IF(C69="JA",IF(B17="","",IF(C70>0,1,"")),"") ->  | D79: x | E79: =IF(B47="","",VLOOKUP(A79,PREISE!$A:$C,3,FALSE)) -> 57.5 | F79: =IF(C79="","",C79*E79) ->  | I79: >> KONTAKTFORMULAR | L79: office@pooldoktor.at
I80: (ein auf ihr Anliegen geschulter Mitarbeiter wird sich bei ihnen melden!)
A82: Summe: | I82: Sie möchten angerufen werden? Beratung per Telefon?
B83: =IF(OR($C$22="",$D$22=""),"Bitte geben Sie oben die Länge x Breite ihres Pools ein!","") ->  | C83: Nettosumme exkl. | F83: =SUM(F33:F79) -> 2160.010348 | I83: >> RÜCKRUFSERVICE | L83: +43 732 38 22 22
A84: Land: | B84: =IF($B$17="","Bitte wählen Sie oben ihr Land aus!",$B$17) -> Österreich | C84: =IF($B$17="Österreich",0.2,IF($B$17="Deutschland",0.19,IF($B$17="Schweiz",0.081,0))) -> 0.2 | D84: Mehrwertsteuer | F84: =ROUNDUP(F83*C84,2) -> 432.01
I85: Sie möchten einen KOSTENLOSEN Beratungstermin in Linz?
B86: Angebostsumme inklusive Mehrwertsteuer: | E86: =IF(AND(C33="",C34="",C58="",C70=""),"Daten fehlen!",SUM(F83:F84)) -> 2592.020348 | I86: >> BERATUNGSTERMIN VEREINBAREN | M86: >> ANFAHRT
A88: Die Lieferzeit für ihre Rollabdeckplane beträgt voraussichtlich: | C88: Zahlungsart: auf Rechnung | I88: Unseren Schauraum in Linz besuchen? | L88: >> VIRTUELLER RUNDGANG in 3D | O88: Unser Team freut sich Sie kennenzulernen!
A89: 33009999 | B89: =VLOOKUP(A89,PREISE!$A:$B,2,FALSE) -> 3 - 6 Wochen | F89: Banküberweisung nach Warenerhalt
A91: Bitte lesen sie unsere Allgemeinen Geschäftsbedingungen: | C91: Angebot gültig bis: | F91: =B7+30 -> 2024-04-20
A92: http://www.pooldoktor.net/shop/geschaeftsbedingungen | C92: Preisänderungen wegen Irrtümer vorbehalten!
A94: >>>>>>>> | B94: Wir Beraten Sie gerne - Fragen Sie uns! office@pooldoktor.at | F94: Jetzt Termin vereinbaren!
A95: POOLDOKTOR Handels GmbH, Kotzinastrasse 15 - 4030 Linz, Österreich - FN 256113 m - AT74 1860 0000 1120 8626
I98: Die Fa. Pooldoktor existiert seit über 17 Jahren! | M98: Mittlerweile wurden über 10.000 Styroporpools von unseren Kunden erstellt!

Sheet ROLLADEN
A1: POOL Kalkulator PRO | F1: © WUNDERWORKS
C2: POOLDOKTOR Handels GmbH | I2: OPEN AERO mit SMARTPHONE Bedienung | N2: OPEN NEO - elektrischer Rolladen
C3: Kotzinastrasse 15 - 4030 Linz - AT
C4: Telefon: + 43 732 38 22 22
C5: Email: office@pooldoktor.at
A7: Datum: | B7: =TODAY() -> 2024-03-21 | C7: Angebot gültig bis: | F7: =B7+30 -> 2024-04-20
F8: (Datum gültig bei PDF oder Ausdruck)
A9: Ihre Anschrift - Kundendaten
B10: bitte vollständig ausfüllen:
A11: Rechnungsadresse | C11: Lieferadresse? | E11: falls abweichend
A12: Titel | B12: =IFERROR(IF(POOL!B12<>"",POOL!B12,""),"") ->  | C12: =IFERROR(IF(POOL!C12<>"",POOL!C12,""),"") -> 
A13: Name | B13: =IFERROR(IF(POOL!B13<>"",POOL!B13,""),"") ->  | C13: =IFERROR(IF(POOL!C13<>"",POOL!C13,""),"") -> 
A14: Straße | B14: =IFERROR(IF(POOL!B14<>"",POOL!B14,""),"") ->  | C14: =IFERROR(IF(POOL!C14<>"",POOL!C14,""),"") -> 
A15: PLZ | B15: =IFERROR(IF(POOL!B15<>"",POOL!B15,""),"") ->  | C15: =IFERROR(IF(POOL!C15<>"",POOL!C15,""),"") -> 
A16: Ort | B16: =IFERROR(IF(POOL!B16<>"",POOL!B16,""),"") ->  | C16: =IFERROR(IF(POOL!C16<>"",POOL!C16,""),"") ->  | I16: OPEN MANU - mit manueller Bedienung | N16: OPEN SOLAR - mit Sonnenenergie
A17: Land | B17: =IFERROR(IF(POOL!B17<>"",POOL!B17,"Österreich"),"Österreich") -> Österreich | C17: =IFERROR(IF(POOL!C17<>"",POOL!C17,""),"") -> 
A18: Telefon | B18: =IFERROR(IF(POOL!B18<>"",POOL!B18,""),"") ->  | C18: =IFERROR(IF(POOL!C18<>"",POOL!C18,""),"") -> 
A19: Email | B19: =IFERROR(IF(POOL!B19<>"",POOL!B19,""),"") ->  | C19: =IFERROR(IF(POOL!C19<>"",POOL!C19,""),"") -> 
C20: =IF($C$22="","",$C$22/100) -> 7 | D20: =IF($D$22="","",$D$22/100) -> 3.5
A21: Fragen bzw. Angaben zu Ihrem Pool | C21: Länge? | D21: Breite? | E21: Form? | F21: m2
A22: Bitte geben Sie das INNENMASS ihres Schwimmbeckens an (in cm): | C22: =IFERROR(IF(POOL!C22<>"",POOL!C22,600),600) -> 700 | D22: =IFERROR(IF(POOL!D22<>"",POOL!D22,300),300) -> 350 | E22: =IFERROR(IF(POOL!E22<>"",POOL!E22,"ECKIG"),"ECKIG") -> OVAL | F22: =ROUNDUP(C22*D22/10000,2) -> 24.5
A23: Hat ihr Pool eine aussenliegende Treppe? Innenmass? | C23: =IF(OR(POOL!C34="Fertigtreppe 200cm",POOL!C35="R100 - 200cm breit"), 100, IF(OR(POOL!C34="Fertigtreppe 250cm",POOL!C35="R125 - 250cm breit"), 125, IF(OR(POOL!C34="Fertigtreppe 300cm",POOL!C35="R150 - 300cm breit"), 150, IF(POOL!C36<>"",POOL!C36, "") ) ) ) -> 125 | D23: =IF(OR(POOL!C34="Fertigtreppe 200cm",POOL!C35="R100 - 200cm breit"), 200, IF(OR(POOL!C34="Fertigtreppe 250cm",POOL!C35="R125 - 250cm breit"), 250, IF(OR(POOL!C34="Fertigtreppe 300cm",POOL!C35="R150 - 300cm breit"), 300, IF(POOL!C36<>"",POOL!D36, "") ) ) ) -> 250 | E23: =IF(OR(POOL!C34="Fertigtreppe 200cm",POOL!C35="R100 - 200cm breit"), "RÖMISCH", IF(OR(POOL!C34="Fertigtreppe 250cm",POOL!C35="R125 - 250cm breit"), "RÖMISCH", IF(OR(POOL!C34="Fertigtreppe 300cm",POOL!C35="R150 - 300cm breit"), "RÖMISCH", IF(POOL!C36<>"","GERADE", "") ) ) ) -> RÖMISCH
B24: =IF(OR($E$22="OVAL",$E$22="RUND",$E$22="ACHTFORM",$E$22="FREIFORM",),"Eine Fertigung bei OVAL, RUND, ACHTFORM oder FREIFORM ist leider nicht möglich!","") -> Eine Fertigung bei OVAL, RUND, ACHTFORM oder FREIFORM ist leider nicht möglich!
A25: ANGEBOT - ROLLADEN / LAMELLENABDECKUNG
A27: Artikelnr. | B27: Artikelname | C27: Menge | E27: Preis | F27: Summe
A30: FARBE und MATERIAL der Lamellen: | C30: bitte wählen: | G30: =IF(F30="","",CONCATENATE(C30,"*",A30)) -> 
A31: Bitte wählen Sie die gewünschte Farbe und Typ aus >> | C31: =IFERROR(IF(POOL!C545<>"",POOL!C545,"PVC - HELLGRAU"),"PVC - HELLGRAU") -> PVC - HELLGRAU
A32: 39200021 | B32: =VLOOKUP(A32,PREISE!$A:$B,2,FALSE) -> OPEN PVC-Lamellen ABRIBLUE 83 mm - WEISS | C32: =IF(AND(C22<>"",D22<>"",C31="PVC - WEISS"),F22,"") ->  | D32: m2 | E32: =VLOOKUP(A32,PREISE!$A:$C,3,FALSE) -> 64.92 | F32: =IF(C32="","",C32*E32) ->  | G32: =IF(F32="","",CONCATENATE(C32,"*",A32)) -> 
A33: 39200022 | B33: =VLOOKUP(A33,PREISE!$A:$B,2,FALSE) -> OPEN PVC-Lamellen ABRIBLUE 83 mm - BLAU | C33: =IF(AND(C22<>"",D22<>"",C31="PVC - BLAU"),F22,"") ->  | D33: m2 | E33: =VLOOKUP(A33,PREISE!$A:$C,3,FALSE) -> 70.75 | F33: =IF(C33="","",C33*E33) -> 
A34: 39200023 | B34: =VLOOKUP(A34,PREISE!$A:$B,2,FALSE) -> OPEN PVC-Lamellen ABRIBLUE 83 mm - HELLGRAU | C34: =IF(AND(C22<>"",D22<>"",C31="PVC - HELLGRAU"),F22,"") -> 24.5 | D34: m2 | E34: =VLOOKUP(A34,PREISE!$A:$C,3,FALSE) -> 70.75 | F34: 1733.375 | G34: 24,5*39200023
A35: 39200024 | B35: =VLOOKUP(A35,PREISE!$A:$B,2,FALSE) -> OPEN PVC-Lamellen ABRIBLUE 83 mm - SAND | C35: =IF(AND(C22<>"",D22<>"",C31="PVC - SAND"),F22,"") ->  | D35: m2 | E35: =VLOOKUP(A35,PREISE!$A:$C,3,FALSE) -> 70.75
A36: 39200025 | B36: =VLOOKUP(A36,PREISE!$A:$B,2,FALSE) -> OPEN Polycarbonat-Lamellen 83 mm SOLAR - TRANSPARENT | C36: =IF(AND(C22<>"",D22<>"",C31="PC - TRANSPARENT"),F22,"") ->  | D36: m2 | E36: =VLOOKUP(A36,PREISE!$A:$C,3,FALSE) -> 149.17
A37: 39200026 | B37: =VLOOKUP(A37,PREISE!$A:$B,2,FALSE) -> OPEN Polycarbonat-Lamellen 83 mm SOLAR - BLÄULICH | C37: =IF(AND(C22<>"",D22<>"",C31="PC - BLÄULICH"),F22,"") ->  | D37: m2 | E37: =VLOOKUP(A37,PREISE!$A:$C,3,FALSE) -> 149.17
A38: 39200027 | B38: =VLOOKUP(A38,PREISE!$A:$B,2,FALSE) -> OPEN Polycarbonat-Lamellen 83 mm SOLAR - SCHWARZ FUMEE | C38: =IF(AND(C22<>"",D22<>"",C31="PC - SCHWARZ/FUMEE"),F22,"") ->  | D38: m2 | E38: =VLOOKUP(A38,PREISE!$A:$C,3,FALSE) -> 149.17
A39: Bürsten seitlich benötigt? | C39: =SUM(C32:C38) -> 24.5
A40: 39205855 | B40: =VLOOKUP(A40,PREISE!$A:$B,2,FALSE) -> OPEN Aufpreis mit Bürstenflügel PRO LFM | D40: lfm. | E40: =VLOOKUP(A40,PREISE!$A:$C,3,FALSE) -> 49.17
A42: Treppe?
A43: 39200601 | B43: =VLOOKUP(A43,PREISE!$A:$B,2,FALSE) -> OPEN PVC Lamellen - Aufpreis GERADE TREPPE < 2m | C43: =IF(AND($C$23>0,$D$23<201,$E$23="GERADE"),1,"") ->  | D43: x | E43: =VLOOKUP(A43,PREISE!$A:$C,3,FALSE) -> 349.17 | S43: Die Kappen werden seitlich wasserdicht verschweisst!
A44: 39200602 | B44: =VLOOKUP(A44,PREISE!$A:$B,2,FALSE) -> OPEN PVC Lamellen - Aufpreis GERADE TREPPE < 2,5m | C44: =IF(AND($C$23>0,$D$23>201,$D$23<251,$E$23="GERADE"),1,"") ->  | D44: x | E44: =VLOOKUP(A44,PREISE!$A:$C,3,FALSE) -> 465.83
A45: 39200603 | B45: =VLOOKUP(A45,PREISE!$A:$B,2,FALSE) -> OPEN PVC Lamellen - Aufpreis RÖMISCHE TREPPE < 3 m | C45: =IF(AND($C$23>0,$D$23<301,$E$23="RÖMISCH"),1,"") -> 1 | D45: x | E45: =VLOOKUP(A45,PREISE!$A:$C,3,FALSE) -> 474.17 | F45: 474.17 | G45: 1*39200603 | S45: >> DETAILS Lamellen
A46: 39200604 | B46: =VLOOKUP(A46,PREISE!$A:$B,2,FALSE) -> OPEN PVC Lamellen - Aufpreis RÖMISCHE TREPPE > 3 m | C46: =IF(AND($C$23>0,$D$23>301,$E$23="RÖMISCH"),1,"") ->  | D46: x | E46: =VLOOKUP(A46,PREISE!$A:$C,3,FALSE) -> 632.5 | S46: >> MONTAGE der Lamellen
A48: Sicherheitsbefestigungen gewünscht? (als WAND-auf der Folie oder als BECKENRAND-Montage erhältlich!)
A49: 39200801 | B49: =VLOOKUP(A49,PREISE!$A:$B,2,FALSE) -> Sicherheitsbefestigung COVERLOCK - WEISS | D49: Stk. | E49: =VLOOKUP(A49,PREISE!$A:$C,3,FALSE) -> 82.5 | T49: Winter was tun?
A50: 39200802 | B50: =VLOOKUP(A50,PREISE!$A:$B,2,FALSE) -> Sicherheitsbefestigung COVERLOCK - SAND | D50: Stk. | E50: =VLOOKUP(A50,PREISE!$A:$C,3,FALSE) -> 82.5
A51: 39200803 | B51: =VLOOKUP(A51,PREISE!$A:$B,2,FALSE) -> Sicherheitsbefestigung COVERLOCK - HELLGRAU | D51: Stk. | E51: =VLOOKUP(A51,PREISE!$A:$C,3,FALSE) -> 82.5 | T51: >> Details PROCOVER
T52: >> Farben PROCOVER
A53: ProCover Winterabdeckung | C53: NUR BEI PVC Lamellen möglich!
A54: 39203599 | B54: =VLOOKUP(A54,PREISE!$A:$B,2,FALSE) -> ProCover - Winterschutz für Lamellen | D54: m2 | E54: =VLOOKUP(A54,PREISE!$A:$C,3,FALSE) -> 18.25
A55: =IF(C54>0,"Farbe:","") -> 
A57: Aufrollvorrichtungen | C57: bitte wählen: | I57: >> Welche Sicherheitsbefestigungen gibt es? (ab Okt 2021 nur mehr COVERLOCK verfügbar!)
A58: Bitte wählen Sie das gewünschte Modell der Aufrollvorrichtung aus >> | C58: =IFERROR(IF(POOL!C546<>"",POOL!C546,"OPEN NEO"),"OPEN NEO") -> OPEN NEO | I58: Wichtig Info zur Breite der Aufrollvorrichtung: | M58: Sollte zB. bei Fertigpools ein Rand mit überdeckt sein (zB. 20cm Rand PRO Seite),
M59: dann bitte die nächst grössere Breite auswählen & uns die Randbreite mitteilen!
A60: OPEN MANU | I60: >> DETAILS auf unserer Website
A61: 39201010 | B61: =VLOOKUP(A61,PREISE!$A:$B,2,FALSE) -> OPEN MANU Aufrollvorrichtung mit Kurbel - bis 3 m | C61: =IF(AND($C$58="OPEN MANU",$D$22>0,$D$22<301),1,"") ->  | D61: Stk. | E61: =VLOOKUP(A61,PREISE!$A:$C,3,FALSE) -> 1132.5
A62: 39201011 | B62: =VLOOKUP(A62,PREISE!$A:$B,2,FALSE) -> OPEN MANU Aufrollvorrichtung mit Kurbel - bis 3,5 m | C62: =IF(AND($C$58="OPEN MANU",$D$22>300,$D$22<351),1,"") ->  | D62: Stk. | E62: =VLOOKUP(A62,PREISE!$A:$C,3,FALSE) -> 1199.17
A63: 39201012 | B63: =VLOOKUP(A63,PREISE!$A:$B,2,FALSE) -> OPEN MANU Aufrollvorrichtung mit Kurbel - bis 4,0 m | C63: =IF(AND($C$58="OPEN MANU",$D$22>351,$D$22<401),1,"") ->  | D63: Stk. | E63: =VLOOKUP(A63,PREISE!$A:$C,3,FALSE) -> 1240.83
A64: 39201013 | B64: =VLOOKUP(A64,PREISE!$A:$B,2,FALSE) -> OPEN MANU Aufrollvorrichtung mit Kurbel - bis 4,5 m | C64: =IF(AND($C$58="OPEN MANU",$D$22>401,$D$22<451),1,"") ->  | D64: Stk. | E64: =VLOOKUP(A64,PREISE!$A:$C,3,FALSE) -> 1357.5 | G64: =IF(F64="","",CONCATENATE(C64,"*",A64)) -> 
A65: 39201014 | B65: =VLOOKUP(A65,PREISE!$A:$B,2,FALSE) -> OPEN MANU Aufrollvorrichtung mit Kurbel - bis 5,0 m | C65: =IF(AND($C$58="OPEN MANU",$D$22>451,$D$22<501),1,"") ->  | D65: Stk. | E65: =VLOOKUP(A65,PREISE!$A:$C,3,FALSE) -> 1382.5 | F65: =IF(C65="","",C65*E65) -> 
A66: 39200705 | B66: Aufpreis OPEN Aufrollvorrichtung in GRAU oder SAND: | D66: x | E66: =VLOOKUP(A66,PREISE!$A:$C,3,FALSE) -> 159.7
A68: OPEN NEO | I68: >> OPEN NEO - Broschürfe & Infos | M68: >> OPEN NEO - Montageanleitung | P68: >> DETAILS auf unserer Website
A69: 39202010 | B69: =VLOOKUP(A69,PREISE!$A:$B,2,FALSE) -> OPEN NEO Aufrollvorrichtung - Netz 230 Volt - bis 3 m | C69: =IF(AND($C$58="OPEN NEO",$D$22>0,$D$22<301),1,"") ->  | D69: Stk. | E69: =VLOOKUP(A69,PREISE!$A:$C,3,FALSE) -> 1790.83 | F69: =IF(C69="","",C69*E69) -> 
A70: 39202011 | B70: =VLOOKUP(A70,PREISE!$A:$B,2,FALSE) -> OPEN NEO Aufrollvorrichtung - Netz 230 Volt - bis 3.5 m | C70: =IF(AND($C$58="OPEN NEO",$D$22>300,$D$22<351),1,"") -> 1 | D70: Stk. | E70: =VLOOKUP(A70,PREISE!$A:$C,3,FALSE) -> 1849.17 | F70: 1849.17 | G70: 1*39202011
A71: 39202012 | B71: =VLOOKUP(A71,PREISE!$A:$B,2,FALSE) -> OPEN NEO Aufrollvorrichtung - Netz 230 Volt - bis 4 m | C71: =IF(AND($C$58="OPEN NEO",$D$22>351,$D$22<401),1,"") ->  | D71: Stk. | E71: =VLOOKUP(A71,PREISE!$A:$C,3,FALSE) -> 1999.17
A72: 39202013 | B72: =VLOOKUP(A72,PREISE!$A:$B,2,FALSE) -> OPEN NEO Aufrollvorrichtung - Netz 230 Volt - bis 4.5 m | C72: =IF(AND($C$58="OPEN NEO",$D$22>401,$D$22<451),1,"") ->  | D72: Stk. | E72: =VLOOKUP(A72,PREISE!$A:$C,3,FALSE) -> 2065.83
A73: 39202014 | B73: =VLOOKUP(A73,PREISE!$A:$B,2,FALSE) -> OPEN NEO Aufrollvorrichtung - Netz 230 Volt - bis 5 m | C73: =IF(AND($C$58="OPEN NEO",$D$22>451,$D$22<501),1,"") ->  | D73: Stk. | E73: =VLOOKUP(A73,PREISE!$A:$C,3,FALSE) -> 2149.17 | F73: =IF(C73="","",C73*E73) -> 
A74: 39200705 | B74: Aufpreis OPEN Aufrollvorrichtung in GRAU oder SAND: | D74: x | E74: =VLOOKUP(A74,PREISE!$A:$C,3,FALSE) -> 159.7
A76: OPEN AERO | I76: >> OPEN AERO - Broschüre & Infos | M76: >> OPEN AERO - Montageanleitung | P76: >> DETAILS auf unserer Website | S76: >> VIDEO OPEN AERO | U76: 2 Farben verfügbar:
A77: 39200010 | B77: =VLOOKUP(A77,PREISE!$A:$B,2,FALSE) -> OPEN AERO Aufrollvorrichtung bis 3 m - inkl. Appsteuerung | C77: =IF(AND($C$58="OPEN AERO",$D$22>0,$D$22<301),1,"") ->  | D77: Stk. | E77: =VLOOKUP(A77,PREISE!$A:$C,3,FALSE) -> 2332.5 | F77: =IF(C77="","",C77*E77) -> 
A78: 39200012 | B78: =VLOOKUP(A78,PREISE!$A:$B,2,FALSE) -> OPEN AERO Aufrollvorrichtung bis 3.5 m - inkl. Appsteuerung | C78: =IF(AND($C$58="OPEN AERO",$D$22>300,$D$22<351),1,"") ->  | D78: Stk. | E78: =VLOOKUP(A78,PREISE!$A:$C,3,FALSE) -> 2415.83
A79: 39200013 | B79: =VLOOKUP(A79,PREISE!$A:$B,2,FALSE) -> OPEN AERO Aufrollvorrichtung bis 4,0 m - inkl. Appsteuerung | C79: =IF(AND($C$58="OPEN AERO",$D$22>351,$D$22<401),1,"") ->  | D79: Stk. | E79: =VLOOKUP(A79,PREISE!$A:$C,3,FALSE) -> 2499.17
A80: 39200014 | B80: =VLOOKUP(A80,PREISE!$A:$B,2,FALSE) -> OPEN AERO Aufrollvorrichtung bis 4,5 m - inkl. Appsteuerung | C80: =IF(AND($C$58="OPEN AERO",$D$22>401,$D$22<451),1,"") ->  | D80: Stk. | E80: =VLOOKUP(A80,PREISE!$A:$C,3,FALSE) -> 2624.17
A81: 39200015 | B81: =VLOOKUP(A81,PREISE!$A:$B,2,FALSE) -> OPEN AERO Aufrollvorrichtung bis 5,0 m - inkl. Appsteuerung | C81: =IF(AND($C$58="OPEN AERO",$D$22>451,$D$22<501),1,"") ->  | D81: Stk. | E81: =VLOOKUP(A81,PREISE!$A:$C,3,FALSE) -> 2749.17 | F81: =IF(C81="","",C81*E81) -> 
U82: Anthrazit | V82: oder Weiss
A83: OPEN SOLAR | I83: >> OPEN SOLAR - Broschüre & Infos | M83: >> OPEN SOLAR - Montageanleitung
A84: 39203010 | B84: =VLOOKUP(A84,PREISE!$A:$B,2,FALSE) -> OPEN SOLAR Aufrollvorrichtung bis 3 m | C84: =IF(AND($C$58="OPEN SOLAR",$D$22>0,$D$22<301),1,"") ->  | D84: Stk. | E84: =VLOOKUP(A84,PREISE!$A:$C,3,FALSE) -> 2499.17 | F84: =IF(C84="","",C84*E84) -> 
A85: 39203011 | B85: =VLOOKUP(A85,PREISE!$A:$B,2,FALSE) -> OPEN SOLAR Aufrollvorrichtung bis 3.5 m | C85: =IF(AND($C$58="OPEN SOLAR",$D$22>300,$D$22<351),1,"") ->  | D85: Stk. | E85: =VLOOKUP(A85,PREISE!$A:$C,3,FALSE) -> 2574.17
A86: 39203012 | B86: =VLOOKUP(A86,PREISE!$A:$B,2,FALSE) -> OPEN SOLAR Aufrollvorrichtung bis 4 m | C86: =IF(AND($C$58="OPEN SOLAR",$D$22>351,$D$22<401),1,"") ->  | D86: Stk. | E86: =VLOOKUP(A86,PREISE!$A:$C,3,FALSE) -> 2707.5
A87: 39203013 | B87: =VLOOKUP(A87,PREISE!$A:$B,2,FALSE) -> OPEN SOLAR Aufrollvorrichtung bis 4.5 m | C87: =IF(AND($C$58="OPEN SOLAR",$D$22>401,$D$22<451),1,"") ->  | D87: Stk. | E87: =VLOOKUP(A87,PREISE!$A:$C,3,FALSE) -> 2799.17
A88: 39203014 | B88: =VLOOKUP(A88,PREISE!$A:$B,2,FALSE) -> OPEN SOLAR Aufrollvorrichtung bis 5 m | C88: =IF(AND($C$58="OPEN SOLAR",$D$22>451,$D$22<501),1,"") ->  | D88: Stk. | E88: =VLOOKUP(A88,PREISE!$A:$C,3,FALSE) -> 2915.83 | F88: =IF(C88="","",C88*E88) -> 
A89: 39200705 | B89: Aufpreis OPEN Aufrollvorrichtung in GRAU oder SAND: | D89: x | E89: =VLOOKUP(A89,PREISE!$A:$C,3,FALSE) -> 159.7
A91: OPEN CLASSIC
A92: 39203351 | B92: =VLOOKUP(A92,PREISE!$A:$B,2,FALSE) -> OPEN CLASSIC Aufrollvorrichtung - Netz 230 Volt - bis 3 m | C92: =IF(AND($C$58="OPEN CLASSIC",$D$22>0,$D$22<301),1,"") ->  | D92: Stk. | E92: =VLOOKUP(A92,PREISE!$A:$C,3,FALSE) -> 2017 | F92: =IF(C92="","",C92*E92) ->  | I92: >> OPEN CLASSIC - Broschürfe & Infos | Q92: Unterschied zu OPEN NEO?
A93: 39203352 | B93: =VLOOKUP(A93,PREISE!$A:$B,2,FALSE) -> OPEN CLASSIC Aufrollvorrichtung - Netz 230 Volt - bis 3.5 m | C93: =IF(AND($C$58="OPEN CLASSIC",$D$22>300,$D$22<351),1,"") ->  | D93: Stk. | E93: =VLOOKUP(A93,PREISE!$A:$C,3,FALSE) -> 2075 | F93: =IF(C93="","",C93*E93) -> 
A94: 39203353 | B94: =VLOOKUP(A94,PREISE!$A:$B,2,FALSE) -> OPEN CLASSIC Aufrollvorrichtung - Netz 230 Volt - bis 4 m | C94: =IF(AND($C$58="OPEN CLASSIC",$D$22>351,$D$22<401),1,"") ->  | D94: Stk. | E94: =VLOOKUP(A94,PREISE!$A:$C,3,FALSE) -> 2266 | Q94: >> Bluetooth Steuerung per Smartphone möglich
A95: 39203354 | B95: =VLOOKUP(A95,PREISE!$A:$B,2,FALSE) -> OPEN CLASSIC Aufrollvorrichtung - Netz 230 Volt - bis 4.5 m | C95: =IF(AND($C$58="OPEN CLASSIC",$D$22>401,$D$22<451),1,"") ->  | D95: Stk. | E95: =VLOOKUP(A95,PREISE!$A:$C,3,FALSE) -> 2300
A96: 39203355 | B96: =VLOOKUP(A96,PREISE!$A:$B,2,FALSE) -> OPEN CLASSIC Aufrollvorrichtung - Netz 230 Volt - bis 5 m | C96: =IF(AND($C$58="OPEN CLASSIC",$D$22>451,$D$22<501),1,"") ->  | D96: Stk. | E96: =VLOOKUP(A96,PREISE!$A:$C,3,FALSE) -> 2413 | Q96: >> Extra Fernbedienung + extra Antenne möglich
A97: 39203356 | B97: =VLOOKUP(A97,PREISE!$A:$B,2,FALSE) -> OPEN CLASSIC Aufrollvorrichtung - Netz 230 Volt - bis 5.5 m | C97: =IF(AND($C$58="OPEN CLASSIC",$D$22>501,$D$22<551),1,"") ->  | D97: Stk. | E97: =VLOOKUP(A97,PREISE!$A:$C,3,FALSE) -> 2778
A98: 39203357 | B98: =VLOOKUP(A98,PREISE!$A:$B,2,FALSE) -> OPEN CLASSIC Aufrollvorrichtung - Netz 230 Volt - bis 6 m | C98: =IF(AND($C$58="OPEN CLASSIC",$D$22>551,$D$22<601),1,"") ->  | D98: Stk. | E98: =VLOOKUP(A98,PREISE!$A:$C,3,FALSE) -> 3467 | Q98: >> Achse aus Verbundmaterial möglich
A99: 39203358 | B99: =VLOOKUP(A99,PREISE!$A:$B,2,FALSE) -> OPEN CLASSIC Aufrollvorrichtung - Netz 230 Volt - bis 6.5 m | C99: =IF(AND($C$58="OPEN CLASSIC",$D$22>601,$D$22<651),1,"") ->  | D99: Stk. | E99: =VLOOKUP(A99,PREISE!$A:$C,3,FALSE) -> 3861
A100: 39203359 | B100: =VLOOKUP(A100,PREISE!$A:$B,2,FALSE) -> OPEN CLASSIC Aufrollvorrichtung - Netz 230 Volt - bis 7 m | C100: =IF(AND($C$58="OPEN CLASSIC",$D$22>651,$D$22<701),1,"") ->  | D100: Stk. | E100: =VLOOKUP(A100,PREISE!$A:$C,3,FALSE) -> 4323 | Q100: >> WING SYSTEM für seitliche Treppen möglich
A101: 39200705 | B101: Aufpreis OPEN Aufrollvorrichtung in GRAU oder SAND: | D101: x | E101: =VLOOKUP(A101,PREISE!$A:$C,3,FALSE) -> 159.7
B102: Extras/Aufpreise - OPEN CLASSIC:
A103: 39203410 | B103: =VLOOKUP(A103,PREISE!$A:$B,2,FALSE) -> CLASSIC Bluetooth Steuerung per Smartphone | D103: Stk. | E103: =VLOOKUP(A103,PREISE!$A:$C,3,FALSE) -> 185
A104: 39203420 | B104: =VLOOKUP(A104,PREISE!$A:$B,2,FALSE) -> CLASSIC Kabellose Steuereinheit Abriblue mit Halterung | D104: Stk. | E104: =VLOOKUP(A104,PREISE!$A:$C,3,FALSE) -> 241
A105: 39203430 | B105: =VLOOKUP(A105,PREISE!$A:$B,2,FALSE) -> CLASSIC Antenne für kabellose Steuereinheit | D105: Stk. | E105: =VLOOKUP(A105,PREISE!$A:$C,3,FALSE) -> 61
A106: 39203440 | B106: =VLOOKUP(A106,PREISE!$A:$B,2,FALSE) -> CLASSIC Versetzter Schlüsselschalter mit Netzkabel | D106: Stk. | E106: =VLOOKUP(A106,PREISE!$A:$C,3,FALSE) -> 89
A107: 39203450 | B107: =VLOOKUP(A107,PREISE!$A:$B,2,FALSE) -> Achse aus Verbundmaterial (maximale Breite 5m!) | D107: Stk. | E107: =VLOOKUP(A107,PREISE!$A:$C,3,FALSE) -> 242
B108: WING System für längsseitige Treppen - nur bei OPEN CLASSIC:
A109: 39203460 | B109: =VLOOKUP(A109,PREISE!$A:$B,2,FALSE) -> CLASSIC WING SYSTEM Gerade bis 2 m2 / max. Tiefe 1m | D109: Stk. | E109: =VLOOKUP(A109,PREISE!$A:$C,3,FALSE) -> 750
A110: 39203470 | B110: =VLOOKUP(A110,PREISE!$A:$B,2,FALSE) -> CLASSIC WING SYSTEM Römisch bis 2 m2 / max. Tiefe 1m | D110: Stk. | E110: =VLOOKUP(A110,PREISE!$A:$C,3,FALSE) -> 950
B111: *) das Wing System ist nur bei OPEN CLASSIC & DESIGN, AERO und SOLAR möglich !
A113: OPEN DESIGN | I113: NEU - OPEN DESIGN mit Struktur aus Aluminium ! | O113: >> OPEN DESIGN - Montageanleitung
A114: 39205581 | B114: =VLOOKUP(A114,PREISE!$A:$B,2,FALSE) -> OPEN DESIGN Aufrollvorrichtung bis 3 m - inkl. Appsteuerung | C114: =IF(AND($C$58="OPEN DESIGN",$D$22>0,$D$22<301),1,"") ->  | D114: Stk. | E114: =VLOOKUP(A114,PREISE!$A:$C,3,FALSE) -> 3467.5 | F114: =IF(C114="","",C114*E114) ->  | Q114: für Pools bis zu 12 x 6m möglich ! Inklusive schöner Beleuchtung !
A115: 39205582 | B115: =VLOOKUP(A115,PREISE!$A:$B,2,FALSE) -> OPEN DESIGN Aufrollvorrichtung bis 3.5 m - inkl. Appsteuerung | C115: =IF(AND($C$58="OPEN DESIGN",$D$22>300,$D$22<351),1,"") ->  | D115: Stk. | E115: =VLOOKUP(A115,PREISE!$A:$C,3,FALSE) -> 3538.75 | F115: =IF(C115="","",C115*E115) -> 
A116: 39205583 | B116: =VLOOKUP(A116,PREISE!$A:$B,2,FALSE) -> OPEN DESIGN Aufrollvorrichtung bis 4 m - inkl. Appsteuerung | C116: =IF(AND($C$58="OPEN DESIGN",$D$22>351,$D$22<401),1,"") ->  | D116: Stk. | E116: =VLOOKUP(A116,PREISE!$A:$C,3,FALSE) -> 3610
A117: 39205584 | B117: =VLOOKUP(A117,PREISE!$A:$B,2,FALSE) -> OPEN DESIGN Aufrollvorrichtung bis 4.5 m - inkl. Appsteuerung | C117: =IF(AND($C$58="OPEN DESIGN",$D$22>401,$D$22<451),1,"") ->  | D117: Stk. | E117: =VLOOKUP(A117,PREISE!$A:$C,3,FALSE) -> 3681.25
A118: 39205585 | B118: =VLOOKUP(A118,PREISE!$A:$B,2,FALSE) -> OPEN DESIGN Aufrollvorrichtung bis 5 m - inkl. Appsteuerung | C118: =IF(AND($C$58="OPEN DESIGN",$D$22>451,$D$22<501),1,"") ->  | D118: Stk. | E118: =VLOOKUP(A118,PREISE!$A:$C,3,FALSE) -> 3752.5
A119: 39205586 | B119: =VLOOKUP(A119,PREISE!$A:$B,2,FALSE) -> OPEN DESIGN Aufrollvorrichtung bis 5.5 m - inkl. Appsteuerung | C119: =IF(AND($C$58="OPEN DESIGN",$D$22>501,$D$22<551),1,"") ->  | D119: Stk. | E119: =VLOOKUP(A119,PREISE!$A:$C,3,FALSE) -> 3823.75
A120: 39205587 | B120: =VLOOKUP(A120,PREISE!$A:$B,2,FALSE) -> OPEN DESIGN Aufrollvorrichtung bis 6 m - inkl. Appsteuerung | C120: =IF(AND($C$58="OPEN DESIGN",$D$22>551,$D$22<601),1,"") ->  | D120: Stk. | E120: =VLOOKUP(A120,PREISE!$A:$C,3,FALSE) -> 3895
B121: Extras/Aufpreise - NUR bei OPEN DESIGN möglich !!
A122: 39205591 | B122: =VLOOKUP(A122,PREISE!$A:$B,2,FALSE) -> OPEN DESIGN - Aufpreis Struktur: Aluminium | D122: Stk. | E122: =VLOOKUP(A122,PREISE!$A:$C,3,FALSE) -> 80 | F122: =IF(C122="","",C122*E122) -> 
A123: 39205592 | B123: =VLOOKUP(A123,PREISE!$A:$B,2,FALSE) -> OPEN DESIGN - Aufpreis Struktur: Holzoptik | D123: Stk. | E123: =VLOOKUP(A123,PREISE!$A:$C,3,FALSE) -> 80
A124: 39205593 | B124: =VLOOKUP(A124,PREISE!$A:$B,2,FALSE) -> OPEN DESIGN - Aufpreis Struktur: HOLZ | D124: Stk. | E124: =VLOOKUP(A124,PREISE!$A:$C,3,FALSE) -> 110
A125: 39205594 | B125: =VLOOKUP(A125,PREISE!$A:$B,2,FALSE) -> OPEN DESIGN - Aufpreis Struktur: Marmor | D125: Stk. | E125: =VLOOKUP(A125,PREISE!$A:$C,3,FALSE) -> 80
A126: 39203450 | B126: =VLOOKUP(A126,PREISE!$A:$B,2,FALSE) -> Achse aus Verbundmaterial (maximale Breite 5m!) | D126: Stk. | E126: =VLOOKUP(A126,PREISE!$A:$C,3,FALSE) -> 242
B127: WING System für längsseitige Treppen - nur bei OPEN DESIGN
A128: 39203460 | B128: =VLOOKUP(A128,PREISE!$A:$B,2,FALSE) -> CLASSIC WING SYSTEM Gerade bis 2 m2 / max. Tiefe 1m | D128: Stk. | E128: =VLOOKUP(A128,PREISE!$A:$C,3,FALSE) -> 750 | F128: =IF(C128="","",C128*E128) -> 
A129: 39203470 | B129: =VLOOKUP(A129,PREISE!$A:$B,2,FALSE) -> CLASSIC WING SYSTEM Römisch bis 2 m2 / max. Tiefe 1m | D129: Stk. | E129: =VLOOKUP(A129,PREISE!$A:$C,3,FALSE) -> 950
B130: *) das Wing System ist nur bei OPEN CLASSIC & DESIGN, AERO und SOLAR möglich !
M131: (bis 6m Breite) | O131: >> Weitere DETAILS - BANC CLASSIC | U131: SURF System (inkl. 2x3 lfm Schienen):
A132: BANC CLASSIC + Solar Energy | I132: BANC CLASSIC in PVC Weiss oder mit Holzimitatbeschichtung auf PVC
A133: 39204950 | B133: =VLOOKUP(A133,PREISE!$A:$B,2,FALSE) -> BANC CLASSIC Rolladen bis 3 m | C133: =IF(AND($C$58="BANC CLASSIC",$D$22>0,$D$22<301),1,"") ->  | D133: Stk. | E133: =VLOOKUP(A133,PREISE!$A:$C,3,FALSE) -> 4250 | F133: =IF(C133="","",C133*E133) -> 
A134: 39204951 | B134: =VLOOKUP(A134,PREISE!$A:$B,2,FALSE) -> BANC CLASSIC Rolladen bis 3.5 m | C134: =IF(AND($C$58="BANC CLASSIC",$D$22>300,$D$22<351),1,"") ->  | D134: Stk. | E134: =VLOOKUP(A134,PREISE!$A:$C,3,FALSE) -> 4495 | F134: =IF(C134="","",C134*E134) -> 
A135: 39204952 | B135: =VLOOKUP(A135,PREISE!$A:$B,2,FALSE) -> BANC CLASSIC Rolladen bis 4 m | C135: =IF(AND($C$58="BANC CLASSIC",$D$22>351,$D$22<401),1,"") ->  | D135: Stk. | E135: =VLOOKUP(A135,PREISE!$A:$C,3,FALSE) -> 4790
A136: 39204953 | B136: =VLOOKUP(A136,PREISE!$A:$B,2,FALSE) -> BANC CLASSIC Rolladen bis 4.5 m | C136: =IF(AND($C$58="BANC CLASSIC",$D$22>401,$D$22<451),1,"") ->  | D136: Stk. | E136: =VLOOKUP(A136,PREISE!$A:$C,3,FALSE) -> 5095
A137: 39204954 | B137: =VLOOKUP(A137,PREISE!$A:$B,2,FALSE) -> BANC CLASSIC Rolladen bis 5 m | C137: =IF(AND($C$58="BANC CLASSIC",$D$22>451,$D$22<501),1,"") ->  | D137: Stk. | E137: =VLOOKUP(A137,PREISE!$A:$C,3,FALSE) -> 5445
A138: 39204955 | B138: =VLOOKUP(A138,PREISE!$A:$B,2,FALSE) -> BANC CLASSIC Rolladen bis 5.5 m | C138: =IF(AND($C$58="BANC CLASSIC",$D$22>501,$D$22<551),1,"") ->  | D138: Stk. | E138: =VLOOKUP(A138,PREISE!$A:$C,3,FALSE) -> 6065
A139: 39204956 | B139: =VLOOKUP(A139,PREISE!$A:$B,2,FALSE) -> BANC CLASSIC Rolladen bis 6 m | C139: =IF(AND($C$58="BANC CLASSIC",$D$22>551,$D$22<601),1,"") ->  | D139: Stk. | E139: =VLOOKUP(A139,PREISE!$A:$C,3,FALSE) -> 6645
A140: 39204957 | B140: =VLOOKUP(A140,PREISE!$A:$B,2,FALSE) -> BANC CLASSIC - 22% Aufpreis auf Solar Energy | D140: x | E140: =IF(SUM(F133:F139)>100,SUM(F133:F139)*0.22,"") -> 
A141: 39204958 | B141: =VLOOKUP(A141,PREISE!$A:$B,2,FALSE) -> BANC CLASSIC - 12% Aufpreis auf Holzoptik | D141: x | E141: =IF(SUM(F133:F139)>100,SUM(F133:F139)*0.12,"") -> 
A142: 39204959 | B142: =VLOOKUP(A142,PREISE!$A:$B,2,FALSE) -> BANC CLASSIC - 48% Aufpreis auf SURF System | D142: x | E142: =IF(SUM(F133:F139)>100,SUM(F133:F139)*0.48,"") -> 
A143: =IF(F142>100,39204960,"") -> 39204960 | B143: =VLOOKUP(A143,PREISE!$A:$B,2,FALSE) -> BANC CLASSIC - SURF System Schienenverlängerung 3 lfm | D143: Stk. | E143: =VLOOKUP(A143,PREISE!$A:$C,3,FALSE) -> 405
B144: Extras/Aufpreise - BANC CLASSIC:
A145: 39203410 | B145: =VLOOKUP(A145,PREISE!$A:$B,2,FALSE) -> CLASSIC Bluetooth Steuerung per Smartphone | D145: Stk. | E145: =VLOOKUP(A145,PREISE!$A:$C,3,FALSE) -> 185 | F145: =IF(C145="","",C145*E145) -> 
A146: 39203420 | B146: =VLOOKUP(A146,PREISE!$A:$B,2,FALSE) -> CLASSIC Kabellose Steuereinheit Abriblue mit Halterung | D146: Stk. | E146: =VLOOKUP(A146,PREISE!$A:$C,3,FALSE) -> 241
A147: 39203430 | B147: =VLOOKUP(A147,PREISE!$A:$B,2,FALSE) -> CLASSIC Antenne für kabellose Steuereinheit | D147: Stk. | E147: =VLOOKUP(A147,PREISE!$A:$C,3,FALSE) -> 61
A148: 39203440 | B148: =VLOOKUP(A148,PREISE!$A:$B,2,FALSE) -> CLASSIC Versetzter Schlüsselschalter mit Netzkabel | D148: Stk. | E148: =VLOOKUP(A148,PREISE!$A:$C,3,FALSE) -> 89
A149: 39203450 | B149: =VLOOKUP(A149,PREISE!$A:$B,2,FALSE) -> Achse aus Verbundmaterial (maximale Breite 5m!) | D149: Stk. | E149: =VLOOKUP(A149,PREISE!$A:$C,3,FALSE) -> 242
O150: Für Pools bis max. 12m Länge und 6m Breite !
A151: BANC DESIGN (inkl. Steuerung per Smartphone)
A152: 39204910 | B152: =VLOOKUP(A152,PREISE!$A:$B,2,FALSE) -> BANC DESIGN Rolladen bis 3 m | C152: =IF(AND($C$58="BANC DESIGN",$D$22>0,$D$22<301),1,"") ->  | D152: Stk. | E152: =VLOOKUP(A152,PREISE!$A:$C,3,FALSE) -> 6158.33 | F152: =IF(C152="","",C152*E152) ->  | I152: >> BANC DESIGN - Informationen | P152: TOP DESIGN !! | U152: Informationen zu den verfügbaren Polycarbonat Lamellen
A153: 39204911 | B153: =VLOOKUP(A153,PREISE!$A:$B,2,FALSE) -> BANC DESIGN Rolladen bis 3.5 m | C153: =IF(AND($C$58="BANC DESIGN",$D$22>300,$D$22<351),1,"") ->  | D153: Stk. | E153: =VLOOKUP(A153,PREISE!$A:$C,3,FALSE) -> 6300 | F153: =IF(C153="","",C153*E153) ->  | U153: (Achtung! Zweischicht Lamellen nur bei BANC, DIVER und IMMAX möglich!)
A154: 39204912 | B154: =VLOOKUP(A154,PREISE!$A:$B,2,FALSE) -> BANC DESIGN Rolladen bis 4 m | C154: =IF(AND($C$58="BANC DESIGN",$D$22>351,$D$22<401),1,"") ->  | D154: Stk. | E154: =VLOOKUP(A154,PREISE!$A:$C,3,FALSE) -> 6462
A155: 39204913 | B155: =VLOOKUP(A155,PREISE!$A:$B,2,FALSE) -> BANC DESIGN Rolladen bis 4.5 m | C155: =IF(AND($C$58="BANC DESIGN",$D$22>401,$D$22<451),1,"") ->  | D155: Stk. | E155: =VLOOKUP(A155,PREISE!$A:$C,3,FALSE) -> 6801
A156: 39204914 | B156: =VLOOKUP(A156,PREISE!$A:$B,2,FALSE) -> BANC DESIGN Rolladen bis 5 m | C156: =IF(AND($C$58="BANC DESIGN",$D$22>451,$D$22<501),1,"") ->  | D156: Stk. | E156: =VLOOKUP(A156,PREISE!$A:$C,3,FALSE) -> 7140
B157: Extras/Aufpreise:
A158: 39204920 | B158: =VLOOKUP(A158,PREISE!$A:$B,2,FALSE) -> BANC DESIGN - Option Liegestuhl | D158: Stk. | E158: =VLOOKUP(A158,PREISE!$A:$C,3,FALSE) -> 443 | F158: =IF(C158="","",C158*E158) -> 
A159: 39204921 | B159: =VLOOKUP(A159,PREISE!$A:$B,2,FALSE) -> BANC DESIGN - Option LED auf Längsträger | D159: Stk. | E159: =VLOOKUP(A159,PREISE!$A:$C,3,FALSE) -> 594
A160: 39204922 | B160: =VLOOKUP(A160,PREISE!$A:$B,2,FALSE) -> BANC DESIGN - Option Ablage | D160: Stk. | E160: =VLOOKUP(A160,PREISE!$A:$C,3,FALSE) -> 101
A161: 39204923 | B161: =VLOOKUP(A161,PREISE!$A:$B,2,FALSE) -> BANC DESIGN - Option kleiner Blumenkasten | D161: Stk. | E161: =VLOOKUP(A161,PREISE!$A:$C,3,FALSE) -> 328
A162: 39204924 | B162: =VLOOKUP(A162,PREISE!$A:$B,2,FALSE) -> BANC DESIGN - Option großer Blumenkasten | D162: Stk. | E162: =VLOOKUP(A162,PREISE!$A:$C,3,FALSE) -> 384
A163: 39204925 | B163: =VLOOKUP(A163,PREISE!$A:$B,2,FALSE) -> BANC DESIGN - Option seitlicher Staukasten | D163: Stk. | E163: =VLOOKUP(A163,PREISE!$A:$C,3,FALSE) -> 622
A164: 39204926 | B164: =VLOOKUP(A164,PREISE!$A:$B,2,FALSE) -> BANC DESIGN - Option getrennter Staukasten | D164: Stk. | E164: =VLOOKUP(A164,PREISE!$A:$C,3,FALSE) -> 994
A166: DIVER Unterflur - Rolladen | C166: =IF(SUM(F167:F171)>0,"Struktur NUR in Weiss o. Holz möglich!","") ->  | I166: >> DIVER - Broschüre & Infos | M166: >> DIVER - Montageanleitung
A167: 39211001 | B167: =VLOOKUP(A167,PREISE!$A:$B,2,FALSE) -> OPEN DIVER - Unterflur Aufrollvorrichtung - bis 3m | C167: =IF(AND($C$58="DIVER",$D$22>0,$D$22<301),1,"") ->  | D167: Stk. | E167: =VLOOKUP(A167,PREISE!$A:$C,3,FALSE) -> 6665.83 | F167: =IF(C167="","",C167*E167) -> 
A168: 39211002 | B168: =VLOOKUP(A168,PREISE!$A:$B,2,FALSE) -> OPEN DIVER - Unterflur Aufrollvorrichtung - bis 3.5m | C168: =IF(AND($C$58="DIVER",$D$22>300,$D$22<351),1,"") ->  | D168: Stk. | E168: =VLOOKUP(A168,PREISE!$A:$C,3,FALSE) -> 6999.17
A169: 39211003 | B169: =VLOOKUP(A169,PREISE!$A:$B,2,FALSE) -> OPEN DIVER - Unterflur Aufrollvorrichtung - bis 4m | C169: =IF(AND($C$58="DIVER",$D$22>351,$D$22<401),1,"") ->  | D169: Stk. | E169: =VLOOKUP(A169,PREISE!$A:$C,3,FALSE) -> 7332.5
A170: 39211004 | B170: =VLOOKUP(A170,PREISE!$A:$B,2,FALSE) -> OPEN DIVER - Unterflur Aufrollvorrichtung - bis 4.5m | C170: =IF(AND($C$58="DIVER",$D$22>401,$D$22<451),1,"") ->  | D170: Stk. | E170: =VLOOKUP(A170,PREISE!$A:$C,3,FALSE) -> 7407.5
A171: 39211005 | B171: =VLOOKUP(A171,PREISE!$A:$B,2,FALSE) -> OPEN DIVER - Unterflur Aufrollvorrichtung - bis 5m | C171: =IF(AND($C$58="DIVER",$D$22>451,$D$22<501),1,"") ->  | D171: Stk. | E171: =VLOOKUP(A171,PREISE!$A:$C,3,FALSE) -> 7832.5
A172: 39211006 | B172: =VLOOKUP(A172,PREISE!$A:$B,2,FALSE) -> OPEN DIVER - Aufpreis auf Holzverkleidung 25% | D172: x | E172: =IF(SUM(F167:F171)>0,SUM(F167:F171)*0.25,"") -> 
A174: IMMAX Rolladen | C174: =IF(SUM(F175:F179)>0,"Struktur NUR in Weiss o. Holz möglich!","") ->  | I174: >> IMMAX - Broschüre & Infos | M174: >> IMMAX - Montageanleitung | P174: >> IMMAX - Lattenroste | R174: >> IMMAX - Träger | T174: >> Trennwand
A175: 39204010 | B175: =VLOOKUP(A175,PREISE!$A:$B,2,FALSE) -> IMMAX Unterflur Rolladen bis 3 m | C175: =IF(AND($C$58="IMMAX",$D$22>0,$D$22<301),1,"") ->  | D175: Stk. | E175: =VLOOKUP(A175,PREISE!$A:$C,3,FALSE) -> 6265.83 | F175: =IF(C175="","",C175*E175) -> 
A176: 39204011 | B176: =VLOOKUP(A176,PREISE!$A:$B,2,FALSE) -> IMMAX Unterflur Rolladen bis 3.5 m | C176: =IF(AND($C$58="IMMAX",$D$22>300,$D$22<351),1,"") ->  | D176: Stk. | E176: =VLOOKUP(A176,PREISE!$A:$C,3,FALSE) -> 6499.17
A177: 39204012 | B177: =VLOOKUP(A177,PREISE!$A:$B,2,FALSE) -> IMMAX Unterflur Rolladen bis 4 m | C177: =IF(AND($C$58="IMMAX",$D$22>351,$D$22<401),1,"") ->  | D177: Stk. | E177: =VLOOKUP(A177,PREISE!$A:$C,3,FALSE) -> 6665.83
A178: 39204013 | B178: =VLOOKUP(A178,PREISE!$A:$B,2,FALSE) -> IMMAX Unterflur Rolladen bis 4.5 m | C178: =IF(AND($C$58="IMMAX",$D$22>401,$D$22<451),1,"") ->  | D178: Stk. | E178: =VLOOKUP(A178,PREISE!$A:$C,3,FALSE) -> 7199.17
A179: 39204014 | B179: =VLOOKUP(A179,PREISE!$A:$B,2,FALSE) -> IMMAX Unterflur Rolladen bis 5 m | C179: =IF(AND($C$58="IMMAX",$D$22>451,$D$22<501),1,"") ->  | D179: Stk. | E179: =VLOOKUP(A179,PREISE!$A:$C,3,FALSE) -> 7382.5 | F179: =IF(C179="","",C179*E179) -> 
A180: 39204015 | B180: =VLOOKUP(A180,PREISE!$A:$B,2,FALSE) -> IMMAX Unterflur - Aufpreis auf Holz 15% | D180: x | E180: =IF(SUM(F175:F179)>0,SUM(F175:F179)*0.15,"") -> 
A182: Zusätzliche Optionen lt. Katalog
B183: Artikeltext / Aufpreis / Zubehör | D183: x | F183: =IF(AND(C183="",E183=""),"",C183*E183) -> 
A184: 39208745 | B184: =VLOOKUP(A184,PREISE!$A:$B,2,FALSE) -> AUFPREIS - Ausschnitt für Leiter/Gegenstromanlage Stirnseite | D184: x | E184: =VLOOKUP(A184,PREISE!$A:$C,3,FALSE) -> 249 | F184: =IF(C184="","",C184*E184) -> 
D185: x | F185: =IF(AND(C185="",E185=""),"",C185*E185) -> 
D186: x
D187: x
D188: x
A190: Verpackungs- und Versandkosten AB Werk Frankreich | F190: =IF(C190="","",C190*E190) ->  | I190: Sie haben Fragen? - Wir beraten Sie sehr gerne!
A191: 81003200 | B191: =VLOOKUP(A191,PREISE!$A:$B,2,FALSE) -> Rollladen Schutzbehälter für Transport - Kiste | C191: 1 | D191: x | E191: =VLOOKUP(A191,PREISE!$A:$C,3,FALSE) -> 179 | F191: 179 | G191: 1*81003200
A192: 81003300 | B192: =VLOOKUP(A192,PREISE!$A:$B,2,FALSE) -> Rolladen Transport ab Werk France < 310 cm Länge | C192: =IF(AND($D$22>0,$D$22<311),1,"") ->  | D192: x | E192: =VLOOKUP(A192,PREISE!$A:$C,3,FALSE) -> 699 | I192: Bitte schreiben Sie uns ihre Fragen & Wünsche schriftlich:
A193: 81003350 | B193: =VLOOKUP(A193,PREISE!$A:$B,2,FALSE) -> Rolladen Transport ab Werk France < 410 cm Länge | C193: =IF(AND($D$22>311,$D$22<411),1,"") -> 1 | D193: x | E193: =VLOOKUP(A193,PREISE!$A:$C,3,FALSE) -> 749 | F193: 749 | G193: 1*81003350 | I193: >> KONTAKTFORMULAR | L193: office@pooldoktor.at
A194: 81003400 | B194: =VLOOKUP(A194,PREISE!$A:$B,2,FALSE) -> Rolladen Transport ab Werk France < 510 cm Länge | C194: =IF(AND($D$22>411,$D$22<511),1,"") ->  | D194: x | E194: =VLOOKUP(A194,PREISE!$A:$C,3,FALSE) -> 849 | I194: (ein auf ihr Anliegen geschulter Mitarbeiter wird sich bei ihnen melden!)
A196: Hinweis: | B196: Die Entladung der schweren Holzkiste erfolgt durch die Kunden selber AUF DEM LKW. | I196: Sie möchten angerufen werden? Beratung per Telefon?
B197: Endkunden haben zumeist keinen Stapler und müssen daher die Kiste öffnen und manuell abladen! | I197: >> RÜCKRUFSERVICE | L197: +43 732 38 22 22
A199: Summe: | I199: Sie möchten einen KOSTENLOSEN Beratungstermin in Linz?
B200: =IF(OR($C$22="",$D$22=""),"Bitte geben Sie oben die Länge x Breite ihres Pools ein!","") ->  | C200: Nettosumme exkl. | F200: =SUM(F32:F194) -> 4984.715 | I200: >> BERATUNGSTERMIN VEREINBAREN | M200: >> ANFAHRT
A201: Land: | B201: =IF($B$17="","Bitte wählen Sie oben ihr Land aus!",$B$17) -> Österreich | C201: =IF($B$17="Österreich",0.2,IF($B$17="Deutschland",0.19,IF($B$17="Schweiz",0.081,0))) -> 0.2 | D201: Mehrwertsteuer | F201: =ROUNDUP(F200*C201,2) -> 996.95
I202: Unseren Schauraum in Linz besuchen? | L202: >> VIRTUELLER RUNDGANG in 3D | O202: Unser Team freut sich Sie kennenzulernen!
B203: Angebostsumme inklusive Mehrwertsteuer: | E203: =IF(AND($C$58="",$C$39=0),"Daten fehlen!",SUM(F200:F201)) -> 5981.665
A205: Die Lieferzeit für ihre Lamellenabdeckungen beträgt voraussichtlich: | C205: Zahlungsart: auf Rechnung
A206: 39209999 | B206: =VLOOKUP(A206,PREISE!$A:$B,2,FALSE) -> 4 - 6 Wochen | F206: Banküberweisung nach Warenerhalt
A208: Bitte lesen sie unsere Allgemeinen Geschäftsbedingungen: | C208: Angebot gültig bis: | F208: =B7+30 -> 2024-04-20
A209: http://www.pooldoktor.net/shop/geschaeftsbedingungen | C209: Preisänderungen wegen Irrtümer vorbehalten!
A211: >>>>>>>> | B211: Wir Beraten Sie gerne - Fragen Sie uns! office@pooldoktor.at | F211: Jetzt Termin vereinbaren!
A212: POOLDOKTOR Handels GmbH, Kotzinastrasse 15 - 4030 Linz, Österreich - FN 256113 m - AT74 1860 0000 1120 8626 | I212: Die Fa. Pooldoktor existiert seit über 17 Jahren! | M212: Mittlerweile wurden über 10.000 Styroporpools von unseren Kunden erstellt!

Sheet HAUBE
A1: POOL Kalkulator PRO | F1: © WUNDERWORKS
C2: POOLDOKTOR Handels GmbH
C3: Kotzinastrasse 15 - 4030 Linz - AT
C4: Telefon: + 43 732 38 22 22
C5: Email: office@pooldoktor.at
A7: Datum: | B7: =TODAY() -> 2024-03-21 | C7: Angebot gültig bis: | F7: =B7+30 -> 2024-04-20
F8: (Datum gültig bei PDF oder Ausdruck)
A9: Ihre Anschrift - Kundendaten
B10: bitte vollständig ausfüllen:
A11: Rechnungsadresse | C11: Lieferadresse? | E11: falls abweichend
A12: Titel | B12: =IFERROR(IF(POOL!B12<>"",POOL!B12,""),"") ->  | C12: =IFERROR(IF(POOL!C12<>"",POOL!C12,""),"") -> 
A13: Name | B13: =IFERROR(IF(POOL!B13<>"",POOL!B13,""),"") ->  | C13: =IFERROR(IF(POOL!C13<>"",POOL!C13,""),"") -> 
A14: Straße | B14: =IFERROR(IF(POOL!B14<>"",POOL!B14,""),"") ->  | C14: =IFERROR(IF(POOL!C14<>"",POOL!C14,""),"") -> 
A15: PLZ | B15: =IFERROR(IF(POOL!B15<>"",POOL!B15,""),"") ->  | C15: =IFERROR(IF(POOL!C15<>"",POOL!C15,""),"") -> 
A16: Ort | B16: =IFERROR(IF(POOL!B16<>"",POOL!B16,""),"") ->  | C16: =IFERROR(IF(POOL!C16<>"",POOL!C16,""),"") -> 
A17: Land | B17: =IFERROR(IF(POOL!B17<>"",POOL!B17,"Österreich"),"Österreich") -> Österreich | C17: =IFERROR(IF(POOL!C17<>"",POOL!C17,""),"") -> 
A18: Telefon | B18: =IFERROR(IF(POOL!B18<>"",POOL!B18,""),"") ->  | C18: =IFERROR(IF(POOL!C18<>"",POOL!C18,""),"") -> 
A19: Email | B19: =IFERROR(IF(POOL!B19<>"",POOL!B19,""),"") ->  | C19: =IFERROR(IF(POOL!C19<>"",POOL!C19,""),"") -> 
C20: =IF($C$22="","",$C$22/100) -> 7 | D20: =IF($D$22="","",$D$22/100) -> 3.5
A21: Fragen bzw. Angaben zu Ihrem Pool | C21: Länge? | D21: Breite? | E21: Form? | F21: m2
A22: Bitte geben Sie das INNENMASS ihres Schwimmbeckens an (in cm): | C22: =IFERROR(IF(POOL!C22<>"",POOL!C22,600),600) -> 700 | D22: =IFERROR(IF(POOL!D22<>"",POOL!D22,300),300) -> 350 | E22: =IFERROR(IF(POOL!E22<>"",POOL!E22,"ECKIG"),"ECKIG") -> OVAL
A23: Hat ihr Pool eine aussenliegende Treppe? Bitte geben sie das Innenmass ein: | C23: =IF(OR(POOL!C34="Fertigtreppe 200cm",POOL!C35="R100 - 200cm breit"), 100, IF(OR(POOL!C34="Fertigtreppe 250cm",POOL!C35="R125 - 250cm breit"), 125, IF(OR(POOL!C34="Fertigtreppe 300cm",POOL!C35="R150 - 300cm breit"), 150, IF(POOL!C36<>"",POOL!C36, "") ) ) ) -> 125 | D23: =IF(OR(POOL!C34="Fertigtreppe 200cm",POOL!C35="R100 - 200cm breit"), 200, IF(OR(POOL!C34="Fertigtreppe 250cm",POOL!C35="R125 - 250cm breit"), 250, IF(OR(POOL!C34="Fertigtreppe 300cm",POOL!C35="R150 - 300cm breit"), 300, IF(POOL!C36<>"",POOL!D36, "") ) ) ) -> 250 | E23: =IF(OR(POOL!C34="Fertigtreppe 200cm",POOL!C35="R100 - 200cm breit"), "RÖMISCH", IF(OR(POOL!C34="Fertigtreppe 250cm",POOL!C35="R125 - 250cm breit"), "RÖMISCH", IF(OR(POOL!C34="Fertigtreppe 300cm",POOL!C35="R150 - 300cm breit"), "RÖMISCH", IF(POOL!C36<>"","GERADE", "") ) ) ) -> RÖMISCH
A24: Wie breit soll der Kragen (Überlappung am Rand) sein? Standard 15cm: | C24: 15 | D24: cm
A25: =IF(AND(C22<>"",D22<>""),"Berechnung Fertigungsmass (L x 1,03 + 40cm) x (B x 1,03 + 40cm):","") -> Berechnung Fertigungsmass (L x 1,03 + 40cm) x (B x 1,03 + 40cm): | C25: =IF(AND(C22<>"",D22<>""),C22*1.03+10+2*C24,"") -> 761 | D25: =IF(AND(C22<>"",D22<>""),D22*1.03+10+2*C24,"") -> 400.5 | E25: =IF(AND(C22<>"",D22<>""),"cm","") -> cm | F25: =IF(AND(C22<>"",D22<>""),ROUNDUP(C25*D25/10000,2),"") -> 30.48
A26: =IF(C24>15,"Wenn der Kragen grösser als 15cm ist dann kommt die zusätzliche Fläche in der m2 Berechnung hinzu!","") -> 
A27: =IF(AND(C23<>"",D23<>""),"Berechnung Fertigungsmass Treppe ( L + 2x Kragen) x (B + 2x Kragen):","") -> Berechnung Fertigungsmass Treppe ( L + 2x Kragen) x (B + 2x Kragen): | C27: =IF(AND(C23<>"",D23<>""),C23+2*C24,"") -> 155 | D27: =IF(AND(C23<>"",D23<>""),D23+2*C24,"") -> 280 | F27: =IF(AND(C23<>"",D23<>""),ROUNDUP(C27*D27/10000,2),"") -> 4.34
A30: ANGEBOT - AUFBLASBARE HAUBE
A32: Artikelnr. | B32: Artikelname | C32: Menge | E32: Preis | F32: Summe
A34: Standardgrössen in BLAU mit einem Kragen von 15 cm!
A35: RUND:
A36: 38503201 | B36: =VLOOKUP(A36,PREISE!$A:$B,2,FALSE) -> Aufblasbare Haube - Rund 3 m | C36: =IF(AND($C$22=300,$D$22=300,$E$22="RUND",$C$24=15,C23=""),1,"") ->  | D36: Stk. | E36: =VLOOKUP(A36,PREISE!$A:$C,3,FALSE) -> 332.5 | F36: =IF(C36="","",C36*E36) ->  | G36: =IF(F36="","",CONCATENATE(C36,"*",A36)) -> 
A37: 38503202 | B37: =VLOOKUP(A37,PREISE!$A:$B,2,FALSE) -> Aufblasbare Haube - Rund 3,2 m | C37: =IF(AND($C$22=320,$D$22=320,$E$22="RUND",$C$24=15,C23=""),1,"") ->  | D37: Stk. | E37: =VLOOKUP(A37,PREISE!$A:$C,3,FALSE) -> 357.5 | G37: =IF(F37="","",CONCATENATE(C37,"*",A37)) -> 
A38: 38503203 | B38: =VLOOKUP(A38,PREISE!$A:$B,2,FALSE) -> Aufblasbare Haube - Rund 3,5/3,6 m | C38: =IF(OR(AND($C$22=360,$D$22=360,$E$22="RUND",$C$24=15,C23=""),AND($C$22=350,$D$22=350,$E$22="RUND",$C$24=15,C23="")),1,"") ->  | D38: Stk. | E38: =VLOOKUP(A38,PREISE!$A:$C,3,FALSE) -> 390.83
A39: 38503204 | B39: =VLOOKUP(A39,PREISE!$A:$B,2,FALSE) -> Aufblasbare Haube - Rund 4 m | C39: =IF(AND($C$22=400,$D$22=400,$E$22="RUND",$C$24=15,C23=""),1,"") ->  | D39: Stk. | E39: =VLOOKUP(A39,PREISE!$A:$C,3,FALSE) -> 440.83
A40: 38503205 | B40: =VLOOKUP(A40,PREISE!$A:$B,2,FALSE) -> Aufblasbare Haube - Rund 4,2 m | C40: =IF(AND($C$22=420,$D$22=420,$E$22="RUND",$C$24=15,C23=""),1,"") ->  | D40: Stk. | E40: =VLOOKUP(A40,PREISE!$A:$C,3,FALSE) -> 474.17
A41: 38503206 | B41: =VLOOKUP(A41,PREISE!$A:$B,2,FALSE) -> Aufblasbare Haube - Rund 4,5 / 4,6 m | C41: =IF(OR(AND($C$22=450,$D$22=450,$E$22="RUND",$C$24=15,C23=""),AND($C$22=460,$D$22=460,$E$22="RUND",$C$24=15,C23="")),1,"") ->  | D41: Stk. | E41: =VLOOKUP(A41,PREISE!$A:$C,3,FALSE) -> 540.83
A42: 38503207 | B42: =VLOOKUP(A42,PREISE!$A:$B,2,FALSE) -> Aufblasbare Haube - Rund 5 m | C42: =IF(AND($C$22=500,$D$22=500,$E$22="RUND",$C$24=15,C23=""),1,"") ->  | D42: Stk. | E42: =VLOOKUP(A42,PREISE!$A:$C,3,FALSE) -> 632.5
A43: 38503208 | B43: =VLOOKUP(A43,PREISE!$A:$B,2,FALSE) -> Aufblasbare Haube - Rund 5,5 m | C43: =IF(AND($C$22=550,$D$22=550,$E$22="RUND",$C$24=15,C23=""),1,"") ->  | D43: Stk. | E43: =VLOOKUP(A43,PREISE!$A:$C,3,FALSE) -> 715.83
A44: 38503209 | B44: =VLOOKUP(A44,PREISE!$A:$B,2,FALSE) -> Aufblasbare Haube - Rund 6 m | C44: =IF(AND($C$22=600,$D$22=600,$E$22="RUND",$C$24=15,C23=""),1,"") ->  | D44: Stk. | E44: =VLOOKUP(A44,PREISE!$A:$C,3,FALSE) -> 807.5 | F44: =IF(C44="","",C44*E44) -> 
A45: 38503211 | B45: =VLOOKUP(A45,PREISE!$A:$B,2,FALSE) -> Aufblasbare Haube - Rund 7 m | C45: =IF(AND($C$22=700,$D$22=700,$E$22="RUND",$C$24=15,C23=""),1,"") ->  | D45: Stk. | E45: =VLOOKUP(A45,PREISE!$A:$C,3,FALSE) -> 1224.17 | F45: =IF(C45="","",C45*E45) -> 
A46: ECKIG:
A47: 38503215 | B47: =VLOOKUP(A47,PREISE!$A:$B,2,FALSE) -> Aufblasbare Haube - Eckig 5 x 3 m | C47: =IF(AND($C$22=500,$D$22=300,$E$22="ECKIG",$C$24=15,C23=""),1,"") ->  | D47: Stk. | E47: =VLOOKUP(A47,PREISE!$A:$C,3,FALSE) -> 499.17 | F47: =IF(C47="","",C47*E47) -> 
A48: 38503216 | B48: =VLOOKUP(A48,PREISE!$A:$B,2,FALSE) -> Aufblasbare Haube - Eckig 6 x 3 m | C48: =IF(AND($C$22=600,$D$22=300,$E$22="ECKIG",$C$24=15,C23=""),1,"") ->  | D48: Stk. | E48: =VLOOKUP(A48,PREISE!$A:$C,3,FALSE) -> 565.83
A49: 38503217 | B49: =VLOOKUP(A49,PREISE!$A:$B,2,FALSE) -> Aufblasbare Haube - Eckig 7 x 3,5 m | C49: =IF(AND($C$22=700,$D$22=350,$E$22="ECKIG",$C$24=15,C23=""),1,"") ->  | D49: Stk. | E49: =VLOOKUP(A49,PREISE!$A:$C,3,FALSE) -> 749.17 | F49: =IF(C49="","",C49*E49) -> 
A50: 38503218 | B50: =VLOOKUP(A50,PREISE!$A:$B,2,FALSE) -> Aufblasbare Haube - Eckig 7 x 4 m | C50: =IF(AND($C$22=700,$D$22=400,$E$22="ECKIG",$C$24=15,C23=""),1,"") ->  | D50: Stk. | E50: =VLOOKUP(A50,PREISE!$A:$C,3,FALSE) -> 782.5
A51: 38503219 | B51: =VLOOKUP(A51,PREISE!$A:$B,2,FALSE) -> Aufblasbare Haube - Eckig 8 x 4 m | C51: =IF(AND($C$22=800,$D$22=400,$E$22="ECKIG",$C$24=15,C23=""),1,"") ->  | D51: Stk. | E51: =VLOOKUP(A51,PREISE!$A:$C,3,FALSE) -> 865.83
A52: 38503220 | B52: =VLOOKUP(A52,PREISE!$A:$B,2,FALSE) -> Aufblasbare Haube - Eckig 9 x 4 m | C52: =IF(AND($C$22=900,$D$22=400,$E$22="ECKIG",$C$24=15,C23=""),1,"") ->  | D52: Stk. | E52: =VLOOKUP(A52,PREISE!$A:$C,3,FALSE) -> 949.17
A53: 38503222 | B53: =VLOOKUP(A53,PREISE!$A:$B,2,FALSE) -> Aufblasbare Haube - Eckig 10 x 5 m | C53: =IF(AND($C$22=1000,$D$22=500,$E$22="ECKIG",$C$24=15,C23=""),1,"") ->  | D53: Stk. | E53: =VLOOKUP(A53,PREISE!$A:$C,3,FALSE) -> 1232.5
A54: OVAL:
A55: 38503225 | B55: =VLOOKUP(A55,PREISE!$A:$B,2,FALSE) -> Aufblasbare Haube - Oval 4,5 x 3 m | C55: =IF(AND($C$22=450,$D$22=300,$E$22="OVAL",$C$24=15,C23=""),1,"") ->  | D55: Stk. | E55: =VLOOKUP(A55,PREISE!$A:$C,3,FALSE) -> 465.83
A56: 38503226 | B56: =VLOOKUP(A56,PREISE!$A:$B,2,FALSE) -> Aufblasbare Haube - Oval 4,9 x 3 m | C56: =IF(AND($C$22=490,$D$22=300,$E$22="OVAL",$C$24=15,C23=""),1,"") ->  | D56: Stk. | E56: =VLOOKUP(A56,PREISE!$A:$C,3,FALSE) -> 507.5
A57: 38503227 | B57: =VLOOKUP(A57,PREISE!$A:$B,2,FALSE) -> Aufblasbare Haube - Oval 5,3 x 3,2 m | C57: =IF(AND($C$22=530,$D$22=320,$E$22="OVAL",$C$24=15,C23=""),1,"") ->  | D57: Stk. | E57: =VLOOKUP(A57,PREISE!$A:$C,3,FALSE) -> 499.17
A58: 38503228 | B58: =VLOOKUP(A58,PREISE!$A:$B,2,FALSE) -> Aufblasbare Haube - Oval 6 x 3 m | C58: =IF(AND($C$22=600,$D$22=300,$E$22="OVAL",$C$24=15,C23=""),1,"") ->  | D58: Stk. | E58: =VLOOKUP(A58,PREISE!$A:$C,3,FALSE) -> 557.5
A59: 38503229 | B59: =VLOOKUP(A59,PREISE!$A:$B,2,FALSE) -> Aufblasbare Haube - Oval 6,23 x 3,6 m | C59: =IF(AND($C$22=623,$D$22=360,$E$22="OVAL",$C$24=15,C23=""),1,"") ->  | D59: Stk. | E59: =VLOOKUP(A59,PREISE!$A:$C,3,FALSE) -> 624.17
A60: 38503230 | B60: =VLOOKUP(A60,PREISE!$A:$B,2,FALSE) -> Aufblasbare Haube - Oval 7 x 3 m | C60: =IF(AND($C$22=700,$D$22=300,$E$22="OVAL",$C$24=15,C23=""),1,"") ->  | D60: Stk. | E60: =VLOOKUP(A60,PREISE!$A:$C,3,FALSE) -> 649.17
A61: 38503231 | B61: =VLOOKUP(A61,PREISE!$A:$B,2,FALSE) -> Aufblasbare Haube - Oval 7 x 3,5 m | C61: =IF(AND($C$22=700,$D$22=350,$E$22="OVAL",$C$24=15,C23=""),1,"") ->  | D61: Stk. | E61: =VLOOKUP(A61,PREISE!$A:$C,3,FALSE) -> 674.17
A62: 38503232 | B62: =VLOOKUP(A62,PREISE!$A:$B,2,FALSE) -> Aufblasbare Haube - Oval 7,37 x 3,6 m | C62: =IF(AND($C$22=737,$D$22=360,$E$22="OVAL",$C$24=15,C23=""),1,"") ->  | D62: Stk. | E62: =VLOOKUP(A62,PREISE!$A:$C,3,FALSE) -> 715.83
A63: 38503233 | B63: =VLOOKUP(A63,PREISE!$A:$B,2,FALSE) -> Aufblasbare Haube - Oval 8 x 4 m | C63: =IF(AND($C$22=800,$D$22=400,$E$22="OVAL",$C$24=15,C23=""),1,"") ->  | D63: Stk. | E63: =VLOOKUP(A63,PREISE!$A:$C,3,FALSE) -> 815.83 | F63: =IF(C63="","",C63*E63) -> 
A64: 38503234 | B64: =VLOOKUP(A64,PREISE!$A:$B,2,FALSE) -> Aufblasbare Haube - Oval 9,16 x 4,6 m | C64: =IF(AND($C$22=916,$D$22=460,$E$22="OVAL",$C$24=15,C23=""),1,"") ->  | D64: Stk. | E64: =VLOOKUP(A64,PREISE!$A:$C,3,FALSE) -> 1049.17
A65: ACHTFORM:
A66: 38503240 | B66: =VLOOKUP(A66,PREISE!$A:$B,2,FALSE) -> Aufblasbare Haube - Achtform 4,7 x 3 m | C66: =IF(AND($C$22=470,$D$22=300,$E$22="ACHTFORM",$C$24=15,C23=""),1,"") ->  | D66: Stk. | E66: =VLOOKUP(A66,PREISE!$A:$C,3,FALSE) -> 457.5
A67: 38503241 | B67: =VLOOKUP(A67,PREISE!$A:$B,2,FALSE) -> Aufblasbare Haube - Achtform 5,25 x 3,2 m | C67: =IF(AND($C$22=525,$D$22=320,$E$22="ACHTFORM",$C$24=15,C23=""),1,"") ->  | D67: Stk. | E67: =VLOOKUP(A67,PREISE!$A:$C,3,FALSE) -> 499.17 | F67: =IF(C67="","",C67*E67) -> 
A68: 38503242 | B68: =VLOOKUP(A68,PREISE!$A:$B,2,FALSE) -> Aufblasbare Haube - Achtform 5,4 x 3,5 m | C68: =IF(AND($C$22=540,$D$22=350,$E$22="ACHTFORM",$C$24=15,C23=""),1,"") ->  | D68: Stk. | E68: =VLOOKUP(A68,PREISE!$A:$C,3,FALSE) -> 540.83
A69: 38503243 | B69: =VLOOKUP(A69,PREISE!$A:$B,2,FALSE) -> Aufblasbare Haube - Achtform 6,25 x 3,6 m | C69: =IF(AND($C$22=625,$D$22=360,$E$22="ACHTFORM",$C$24=15,C23=""),1,"") ->  | D69: Stk. | E69: =VLOOKUP(A69,PREISE!$A:$C,3,FALSE) -> 624.17
A70: 38503244 | B70: =VLOOKUP(A70,PREISE!$A:$B,2,FALSE) -> Aufblasbare Haube - Achtform 6,5 x 4,2 m | C70: =IF(AND($C$22=650,$D$22=420,$E$22="ACHTFORM",$C$24=15,C23=""),1,"") ->  | D70: Stk. | E70: =VLOOKUP(A70,PREISE!$A:$C,3,FALSE) -> 740.83
A71: 38503245 | B71: =VLOOKUP(A71,PREISE!$A:$B,2,FALSE) -> Aufblasbare Haube - Achtform 7,25 x 4,6 m | C71: =IF(AND($C$22=725,$D$22=360,$E$22="ACHTFORM",$C$24=15,C23=""),1,"") ->  | D71: Stk. | E71: =VLOOKUP(A71,PREISE!$A:$C,3,FALSE) -> 849.17
A72: 38503246 | B72: =VLOOKUP(A72,PREISE!$A:$B,2,FALSE) -> Aufblasbare Haube - Achtform 7,7 x 5 m | C72: =IF(AND($C$22=770,$D$22=500,$E$22="ACHTFORM",$C$24=15,C23=""),1,"") ->  | D72: Stk. | E72: =VLOOKUP(A72,PREISE!$A:$C,3,FALSE) -> 999.17
A73: 38503247 | B73: =VLOOKUP(A73,PREISE!$A:$B,2,FALSE) -> Aufblasbare Haube - Achtform 8,55 x 5 m | C73: =IF(AND($C$22=855,$D$22=500,$E$22="ACHTFORM",$C$24=15,C23=""),1,"") ->  | D73: Stk. | E73: =VLOOKUP(A73,PREISE!$A:$C,3,FALSE) -> 1124.17
A76: Sonderanfertigung Aufblasbare Haube per m2
A77: Auf Wunsch erhältlich wenn keine Standardgrösse zu ihren Abmessungen verfügbar ist oder der Kragen > 15cm
A78: 38503020 | B78: =VLOOKUP(A78,PREISE!$A:$B,2,FALSE) -> Sonderanfertigung Aufblasbare Haube - RUND - per m2 | C78: =IF(AND(SUM($C$36:$C$73)=0,$F$25>0,$E$22="RUND"),$F$25,"") ->  | D78: m2 | E78: =VLOOKUP(A78,PREISE!$A:$C,3,FALSE) -> 27.42 | F78: =IF(C78="","",C78*E78) -> 
A79: 38503040 | B79: =VLOOKUP(A79,PREISE!$A:$B,2,FALSE) -> Sonderanfertigung Aufblasbare Haube - ECKIG - per m2 | C79: =IF(AND(SUM($C$36:$C$73)=0,$F$25>0,$E$22="ECKIG"),$F$25,"") ->  | D79: m2 | E79: =VLOOKUP(A79,PREISE!$A:$C,3,FALSE) -> 27.42 | F79: =IF(C79="","",C79*E79) -> 
A80: 38503030 | B80: =VLOOKUP(A80,PREISE!$A:$B,2,FALSE) -> Sonderanfertigung Aufblasbare Haube - OVAL - per m2 | C80: =IF(AND(SUM($C$36:$C$73)=0,$F$25>0,$E$22="OVAL"),$F$25,"") -> 30.48 | D80: m2 | E80: =VLOOKUP(A80,PREISE!$A:$C,3,FALSE) -> 27.42 | F80: 835.7616 | G80: 30,48*38503030
A81: 38503060 | B81: =LEFT(VLOOKUP(A81,PREISE!$A:$B,2,FALSE),54) -> Sonderanfertigung Aufblasbare Haube - ACHTFORM / OVAL | C81: =IF(AND(SUM($C$36:$C$73)=0,$F$25>0,$E$22="ACHTFORM"),$F$25,"") ->  | D81: m2 | E81: =VLOOKUP(A81,PREISE!$A:$C,3,FALSE) -> 27.42
A82: 38500760 | B82: =LEFT(VLOOKUP(A82,PREISE!$A:$B,2,FALSE),39) -> Mindermengenzuschlag unter 20 m2 Fläche | C82: =IF(AND(SUM(C78:C81)>0,SUM(C78:C81)<20),1,"") ->  | D82: x | E82: =VLOOKUP(A82,PREISE!$A:$C,3,FALSE) -> 75
A83: 38503058 | B83: =LEFT(VLOOKUP(A83,PREISE!$A:$B,2,FALSE),60) -> Aufpreis 15 % Sonderanfertigung in Farbe "GRAU", (RAL 7035) | D83: x | E83: =ROUNDUP(SUM(F78:F81)*0.15,2) -> 125.37 | F83: =IF(C83="","",C83*E83) -> 
B84: =IF(SUM(C36:C73)>0,"Farbe GRAU ist nur bei Sonderanfertigungen möglich!","") -> 
A85: Treppe? Der Latz wird als einlagiger Lappen gefertigt - einen Luftpolster gibt man darunte als Unterstützung!
A86: 38503050 | B86: =LEFT(VLOOKUP(A86,PREISE!$A:$B,2,FALSE),55) -> Sonderanfertigung Treppe als Lappen/Latz - per m2 (nur | C86: =IF(F27>0,F27,"") -> 4.34 | D86: m2 | E86: =VLOOKUP(A86,PREISE!$A:$C,3,FALSE) -> 23.25 | F86: =IF(C86="","",C86*E86) -> 100.905 | G86: 4,34*38503050
A87: 38100468 | B87: =VLOOKUP(A87,PREISE!$A:$B,2,FALSE) -> Luftpolster 100 x 115 cm - Auftrieb für Abdeckplanen | D87: Stk. | E87: =VLOOKUP(A87,PREISE!$A:$C,3,FALSE) -> 60.86 | F87: =IF(C87="","",C87*E87) -> 
A88: 38100469 | B88: =VLOOKUP(A88,PREISE!$A:$B,2,FALSE) -> Luftpolster 200 x 115 cm - Auftrieb für Abdeckplanen | D88: Stk. | E88: =VLOOKUP(A88,PREISE!$A:$C,3,FALSE) -> 90.83 | F88: =IF(C88="","",C88*E88) -> 
A89: 38100470 | B89: =VLOOKUP(A89,PREISE!$A:$B,2,FALSE) -> Luftpolster 300 x 179 cm - Auftrieb für Abdeckplanen | D89: Stk. | E89: =VLOOKUP(A89,PREISE!$A:$C,3,FALSE) -> 157.5
A92: Zubehör +++ Gebläsepumpe im Wert von 99 EUR KOSTENLOS in Aktion!
A93: 38500750 | B93: =VLOOKUP(A93,PREISE!$A:$B,2,FALSE) -> Gebläsepumpe für aufblasbare Haube - KOSTENLOS in Aktion | C93: 1 | D93: Stk. | E93: =VLOOKUP(A93,PREISE!$A:$C,3,FALSE) -> 0 | F93: =IF(C93="","",C93*E93) -> 0 | G93: 1*38500750
B94: Die Ösen der Haube sind jeden halben Meter!
A95: =(($C$22/100*2)+($D$22/100*2))*1.5 -> 31.5 | B95: lfm Gummiseil wird zu Befestigung unverbindlich empfohlen:
A96: 38500348 | B96: =VLOOKUP(A96,PREISE!$A:$B,2,FALSE) -> Gummiseil zur Befestigung PE - per LFM | D96: lfm. | E96: =VLOOKUP(A96,PREISE!$A:$C,3,FALSE) -> 1.08
A97: =(($C$22/100*2)+($D$22/100*2))*1.5 -> 31.5 | B97: Sicherungsstifte werden als Bodenanker unverbindlich empfohlen:
A98: 33000040 | B98: =VLOOKUP(A98,PREISE!$A:$B,2,FALSE) -> Schwerspanneinheit Edelstahl (Sicherungsstift) A2 | D98: Stk. | E98: =VLOOKUP(A98,PREISE!$A:$C,3,FALSE) -> 4.92
A99: 38503052 | B99: =VLOOKUP(A99,PREISE!$A:$B,2,FALSE) -> AirCover-Reparaturset - blau | D99: Stk. | E99: =VLOOKUP(A99,PREISE!$A:$C,3,FALSE) -> 20.17
A100: 38503051 | B100: =VLOOKUP(A100,PREISE!$A:$B,2,FALSE) -> Sicherheitsventil für Aufblasbare Haube | D100: Stk. | E100: =VLOOKUP(A100,PREISE!$A:$C,3,FALSE) -> 16.58
G101: =IF(F101="","",CONCATENATE(C101,"*",A101)) -> 
A102: =IF(B17="","Bitte wählen Sie oben Ihr Land aus!","") -> 
A103: Versandkosten (nur AT + DE möglich!)
A104: 38509991 | B104: =VLOOKUP(A104,PREISE!$A:$B,2,FALSE) -> Versandkosten AB WERK BIS 20 m2 - AT und DE | C104: =IF(AND(B17<>"",F25<20),1,"") ->  | D104: x | E104: =IF(B17<>"",VLOOKUP(A104,PREISE!$A:$C,3,FALSE),"") -> 15 | F104: =IF(C104="","",C104*E104) -> 
A105: 38509992 | B105: =VLOOKUP(A105,PREISE!$A:$B,2,FALSE) -> Versandkosten AB WERK ÜBER 20 m2 - AT und DE | C105: =IF(AND(B17<>"",F25>20),1,"") -> 1 | D105: x | E105: =IF(B17<>"",VLOOKUP(A105,PREISE!$A:$C,3,FALSE),"") -> 30 | F105: =IF(C105="","",C105*E105) -> 30 | G105: 1*38509992
A107: Summe:
B108: =IF(OR($C$22="",$D$22=""),"Bitte geben Sie oben die Länge x Breite ihres Pools ein!","") ->  | C108: Nettosumme exkl. | F108: =SUM(F36:F105) -> 966.6666 | I108: Aufbauanleitung "Aufblasbare Haube"
A109: Land: | B109: =IF($B$17="","Bitte wählen Sie oben ihr Land aus!",$B$17) -> Österreich | C109: =IF($B$17="Österreich",0.2,IF($B$17="Deutschland",0.19,IF($B$17="Schweiz",0.081,0))) -> 0.2 | D109: Mehrwertsteuer | F109: =ROUNDUP(F108*C109,2) -> 193.34
I110: Montage mit Sicherheitsstiften und Gummiseil
B111: Angebostsumme inklusive Mehrwertsteuer: | E111: =IF(F108<250,"Daten fehlen!",SUM(F108:F109)) -> 1160.0066
A113: Die Lieferzeit für ihre Aufblasbare Haube beträgt voraussichtlich: | C113: Zahlungsart: auf Rechnung | I113: Wichtige Infos zur Lieferzeit! ... die Haube ist eine Winterlösung und wird erst in der kalten Jahreszeit benötigt:
A114: 38509993 | B114: =VLOOKUP(A114,PREISE!$A:$B,2,FALSE) -> 1 - 2 Wochen | F114: Banküberweisung nach Warenerhalt | I114: Die Produktion der Hauben im Werk in Deutschland erfolgt JEDES JAHR von August bis Dezember!
I115: BITTE BESTELLEN SIE RECHTZEITIG und rechnen sie mit einer Lieferzeit von 4- 8 Wochen je nach Status im Werk (Material, Aufkommen usw.)
A116: Bitte lesen sie unsere Allgemeinen Geschäftsbedingungen: | C116: Angebot gültig bis: | F116: =B7+30 -> 2024-04-20
A117: http://www.pooldoktor.net/shop/geschaeftsbedingungen | C117: Preisänderungen wegen Irrtümer vorbehalten! | I117: Sie erhalten bei uns hochwertiges Material - 2x Lagen 580gr zusammengeschweisst, viel robuster und widerstandsfähiger.
I118: Auf eine günstige Ausführung mit einer 0,6mm PVC Folie als Unterlage (=nicht diffusionsgeschlossen=nicht dicht) wird bewusst verzichet,
A119: >>>>>>>> | B119: Wir Beraten Sie gerne - Fragen Sie uns! office@pooldoktor.at | F119: Jetzt Termin vereinbaren!
A120: POOLDOKTOR Handels GmbH, Kotzinastrasse 15 - 4030 Linz, Österreich - FN 256113 m - AT74 1860 0000 1120 8626 | I120: AUFBLASBARE HAUBE - MADE IN GERMAY
I122: Sie haben Fragen? - Wir beraten Sie sehr gerne!
I124: Bitte schreiben Sie uns ihre Fragen & Wünsche schriftlich:
I125: >> KONTAKTFORMULAR | L125: office@pooldoktor.at
I126: (ein auf ihr Anliegen geschulter Mitarbeiter wird sich bei ihnen melden!)
I128: Sie möchten angerufen werden? Beratung per Telefon?
I129: >> RÜCKRUFSERVICE | L129: +43 732 38 22 22
I131: Sie möchten einen KOSTENLOSEN Beratungstermin in Linz?
I132: >> BERATUNGSTERMIN VEREINBAREN | M132: >> ANFAHRT
I134: Unseren Schauraum in Linz besuchen? | L134: >> VIRTUELLER RUNDGANG in 3D | O134: Unser Team freut sich Sie kennenzulernen!
I144: Die Fa. Pooldoktor existiert seit über 17 Jahren! | M144: Mittlerweile wurden über 10.000 Styroporpools von unseren Kunden erstellt!

Sheet LOOPLOC
A1: POOL Kalkulator PRO | F1: © WUNDERWORKS
C2: POOLDOKTOR Handels GmbH | I2: Das Original mit dem Elefantentest!
C3: Kotzinastrasse 15 - 4030 Linz - AT
C4: Telefon: + 43 732 38 22 22 | I4: Viele Jahre Erfahrung in der Produktion zeigt den Vorsprung!
C5: Email: office@pooldoktor.at
I6: Wie sicher ist ihre Poolabdeckung?
A7: Datum: | B7: =TODAY() -> 2024-03-21 | C7: Angebot gültig bis: | F7: =B7+30 -> 2024-04-20
F8: (Datum gültig bei PDF oder Ausdruck) | I8: Schützen sie ihre Familie mit der einzigartigen Sicherheitsabdeckung von Loop-Loc, dem Original aus Amerika, die ohne Probleme den „Elefantentest“ überstand!
A9: Ihre Anschrift - Kundendaten
B10: bitte vollständig ausfüllen: | I10: Viele gute Gründe für LOOP-LOC
A11: Rechnungsadresse | C11: Lieferadresse? | E11: falls abweichend
A12: Titel | B12: =IFERROR(IF(POOL!B12<>"",POOL!B12,""),"") ->  | C12: =IFERROR(IF(POOL!C12<>"",POOL!C12,""),"") ->  | I12: >> Super dichtes Netzgewebe lässt Regen und schmelzenden Schnee durch
A13: Name | B13: =IFERROR(IF(POOL!B13<>"",POOL!B13,""),"") ->  | C13: =IFERROR(IF(POOL!C13<>"",POOL!C13,""),"") ->  | I13: >> Loop-Loc ist lichtundurchlässig und unterbindet Algenwachstum
A14: Straße | B14: =IFERROR(IF(POOL!B14<>"",POOL!B14,""),"") ->  | C14: =IFERROR(IF(POOL!C14<>"",POOL!C14,""),"") ->  | I14: >> Blätter und Schmutz bleiben an der Oberfläche
A15: PLZ | B15: =IFERROR(IF(POOL!B15<>"",POOL!B15,""),"") ->  | C15: =IFERROR(IF(POOL!C15<>"",POOL!C15,""),"") ->  | I15: >> Diese Art der Schwimmbecken Sicherheitsabdeckung wurde vor über 35 Jahren in Amerika erfunden und seitdem ständig weiterentwickelt
A16: Ort | B16: =IFERROR(IF(POOL!B16<>"",POOL!B16,""),"") ->  | C16: =IFERROR(IF(POOL!C16<>"",POOL!C16,""),"") ->  | I16: >> mit Loop-Loc bekommen sie das Original mit all seinen Vorteilen und Verbesserungen
A17: Land | B17: =IFERROR(IF(POOL!B17<>"",POOL!B17,"Österreich"),"Österreich") -> Österreich | C17: =IFERROR(IF(POOL!C17<>"",POOL!C17,""),"") ->  | I17: >> Loop-Loc ist ein Leichtgewicht – dadurch lässt es sich einfach und rasch Öffnen
A18: Telefon | B18: =IFERROR(IF(POOL!B18<>"",POOL!B18,""),"") ->  | C18: =IFERROR(IF(POOL!C18<>"",POOL!C18,""),"") ->  | I18: >> Tolle Optik - die Loop-Loc Sicherheitsabdeckung integriert sich stilvoll in ihren Garten
A19: Email | B19: =IFERROR(IF(POOL!B19<>"",POOL!B19,""),"") ->  | C19: =IFERROR(IF(POOL!C19<>"",POOL!C19,""),"") ->  | I19: >> Der Loop-Loc Faden besteht aus Polyestergebundenen Material … 10 mal stärker und 10 teurer als so manches Material vom Mitbewerb
C20: =IF($C$22="","",$C$22/100) -> 7 | D20: =IF($D$22="","",$D$22/100) -> 3.5 | I20: >> Doppelt gewebtes Netzgitter und doppelt so dicke Verspanner ermöglichen erst die hohe Festigkeit und Tragkraft
A21: Fragen bzw. Angaben zu Ihrem Pool | C21: Länge? | D21: Breite? | E21: Form? | F21: m2 | I21: >> Es werden sehr robuste EDELSTAHL 302 Spannfedern verwendet – keine Korrosion
A22: Bitte geben Sie das INNENMASS ihres Schwimmbeckens an (in cm): | C22: =IFERROR(IF(POOL!C22<>"",POOL!C22,600),600) -> 700 | D22: =IFERROR(IF(POOL!D22<>"",POOL!D22,300),300) -> 350 | E22: =IFERROR(IF(POOL!E22<>"",POOL!E22,"ECKIG"),"ECKIG") -> OVAL | I22: >> 87% schwarzer Garn sorgt für besonders hohe UV-Stabilität
A23: Hat ihr Pool eine aussenliegende Treppe? Bitte geben sie das Innenmass ein: | C23: =IF(OR(POOL!C34="Fertigtreppe 200cm",POOL!C35="R100 - 200cm breit"), 100, IF(OR(POOL!C34="Fertigtreppe 250cm",POOL!C35="R125 - 250cm breit"), 125, IF(OR(POOL!C34="Fertigtreppe 300cm",POOL!C35="R150 - 300cm breit"), 150, IF(POOL!C36<>"",POOL!C36, "") ) ) ) -> 125 | D23: =IF(OR(POOL!C34="Fertigtreppe 200cm",POOL!C35="R100 - 200cm breit"), 200, IF(OR(POOL!C34="Fertigtreppe 250cm",POOL!C35="R125 - 250cm breit"), 250, IF(OR(POOL!C34="Fertigtreppe 300cm",POOL!C35="R150 - 300cm breit"), 300, IF(POOL!C36<>"",POOL!D36, "") ) ) ) -> 250 | E23: =IF(OR(POOL!C34="Fertigtreppe 200cm",POOL!C35="R100 - 200cm breit"), "RÖMISCH", IF(OR(POOL!C34="Fertigtreppe 250cm",POOL!C35="R125 - 250cm breit"), "RÖMISCH", IF(OR(POOL!C34="Fertigtreppe 300cm",POOL!C35="R150 - 300cm breit"), "RÖMISCH", IF(POOL!C36<>"","GERADE", "") ) ) ) -> RÖMISCH | I23: >> Ca. 15 -20 Jahre Lebensdauer
A24: Wie breit soll der seitliche RAND pro Seite sein? Min. 35cm erforderlich: | C24: 35 | D24: cm
A25: =IF(AND(C22<>"",D22<>""),"Berechnung Fertigungsmass (L x 2x Rand) x (B x 2x Rand):","") -> Berechnung Fertigungsmass (L x 2x Rand) x (B x 2x Rand): | C25: =IF(AND(C22<>"",D22<>""),C22+2*C24,"") -> 770 | D25: =IF(AND(C22<>"",D22<>""),D22+2*C24,"") -> 420 | E25: =IF(AND(C22<>"",D22<>""),"cm","") -> cm | F25: =IF(AND(C22<>"",D22<>""),ROUNDUP(C25*D25/10000,2),"") -> 32.34 | I25: Loop-Loc Lieferumfang
A26: =IF(AND(C23<>"",D23<>""),"Berechnung Fertigungsmass Treppe ( L + 2x Rand) x (B + 2x Rand):","") -> Berechnung Fertigungsmass Treppe ( L + 2x Rand) x (B + 2x Rand): | C26: =IF(AND(C23<>"",D23<>""),C23+2*C24,"") -> 195 | D26: =IF(AND(C23<>"",D23<>""),D23+2*C24,"") -> 320 | F26: =IF(AND(C23<>"",D23<>""),ROUNDUP(C26*D26/10000,2),"") -> 6.24
I27: >> Superdichtes Sicherheitsnetz mit 90 cm Gurtabstand - daher auch bei viel Schnee winterfest.
I28: >> Wird pro Seite ca. 30-40cm Größer gefertigt = Überstand
A29: ANGEBOT - LOOPLOC Sicherheitsnetz | I29: >> Farbe: Spring Green = Grün .. Gegen 15% Aufpreis GRAU, BEIGE, BLAU
I30: >> Alle erforderlichen Gurte, Befestigungsanker (für Beton) sind enthalten
A31: Artikelnr. | B31: Artikelname | C31: Menge | E31: Preis | F31: Summe
A33: Standardgrössen in GRÜN mit einem seitlichen Überstand von ca. 35 cm pro Seite!
A34: RUND:
A35: 38303001 | B35: =VLOOKUP(A35,PREISE!$A:$B,2,FALSE) -> Loop-Loc Sicherheitsnetz - RUND - 300 | C35: =IF(AND($C$22=300,$D$22=300,$E$22="RUND",$C$24=35,C23=""),1,"") ->  | D35: Stk. | E35: =VLOOKUP(A35,PREISE!$A:$C,3,FALSE) -> 1038.02 | F35: =IF(C35="","",C35*E35) ->  | G35: =IF(F35="","",CONCATENATE(C35,"*",A35)) -> 
A36: 38303002 | B36: =VLOOKUP(A36,PREISE!$A:$B,2,FALSE) -> Loop-Loc Sicherheitsnetz - RUND - 320 | C36: =IF(AND($C$22=320,$D$22=320,$E$22="RUND",$C$24=35,C23=""),1,"") ->  | D36: Stk. | E36: =VLOOKUP(A36,PREISE!$A:$C,3,FALSE) -> 1122.18 | G36: =IF(F36="","",CONCATENATE(C36,"*",A36)) -> 
A37: 38303003 | B37: =VLOOKUP(A37,PREISE!$A:$B,2,FALSE) -> Loop-Loc Sicherheitsnetz - RUND - 350 | C37: =IF(OR(AND($C$22=360,$D$22=360,$E$22="RUND",$C$24=35,C23=""),AND($C$22=350,$D$22=350,$E$22="RUND",$C$24=35,C23="")),1,"") ->  | D37: Stk. | E37: =VLOOKUP(A37,PREISE!$A:$C,3,FALSE) -> 1256.72
A38: 38303004 | B38: =VLOOKUP(A38,PREISE!$A:$B,2,FALSE) -> Loop-Loc Sicherheitsnetz - RUND - 400 | C38: =IF(AND($C$22=400,$D$22=400,$E$22="RUND",$C$24=35,C23=""),1,"") ->  | D38: Stk. | E38: =VLOOKUP(A38,PREISE!$A:$C,3,FALSE) -> 1470.92
A39: 38303005 | B39: =VLOOKUP(A39,PREISE!$A:$B,2,FALSE) -> Loop-Loc Sicherheitsnetz - RUND - 420 | C39: =IF(AND($C$22=420,$D$22=420,$E$22="RUND",$C$24=35,C23=""),1,"") ->  | D39: Stk. | E39: =VLOOKUP(A39,PREISE!$A:$C,3,FALSE) -> 1574.44
A40: 38303006 | B40: =VLOOKUP(A40,PREISE!$A:$B,2,FALSE) -> Loop-Loc Sicherheitsnetz - RUND - 450 | C40: =IF(OR(AND($C$22=450,$D$22=450,$E$22="RUND",$C$24=35,C23=""),AND($C$22=460,$D$22=460,$E$22="RUND",$C$24=35,C23="")),1,"") ->  | D40: Stk. | E40: =VLOOKUP(A40,PREISE!$A:$C,3,FALSE) -> 1737.79
A41: 38303007 | B41: =VLOOKUP(A41,PREISE!$A:$B,2,FALSE) -> Loop-Loc Sicherheitsnetz - RUND - 500 | C41: =IF(AND($C$22=500,$D$22=500,$E$22="RUND",$C$24=35,C23=""),1,"") ->  | D41: Stk. | E41: =VLOOKUP(A41,PREISE!$A:$C,3,FALSE) -> 1847.78
A42: 38303008 | B42: =VLOOKUP(A42,PREISE!$A:$B,2,FALSE) -> Loop-Loc Sicherheitsnetz - RUND - 550 | C42: =IF(AND($C$22=550,$D$22=550,$E$22="RUND",$C$24=35,C23=""),1,"") ->  | D42: Stk. | E42: =VLOOKUP(A42,PREISE!$A:$C,3,FALSE) -> 2084.04
A43: 38303009 | B43: =VLOOKUP(A43,PREISE!$A:$B,2,FALSE) -> Loop-Loc Sicherheitsnetz - RUND - 600 | C43: =IF(AND($C$22=600,$D$22=600,$E$22="RUND",$C$24=35,C23=""),1,"") ->  | D43: Stk. | E43: =VLOOKUP(A43,PREISE!$A:$C,3,FALSE) -> 2298.24
A44: 38303011 | B44: =VLOOKUP(A44,PREISE!$A:$B,2,FALSE) -> Loop-Loc Sicherheitsnetz - RUND - 700 | C44: =IF(AND($C$22=700,$D$22=700,$E$22="RUND",$C$24=35,C23=""),1,"") ->  | D44: Stk. | E44: =VLOOKUP(A44,PREISE!$A:$C,3,FALSE) -> 2820.02
A45: ECKIG:
A46: 38301006 | B46: =VLOOKUP(A46,PREISE!$A:$B,2,FALSE) -> Loop-Loc Sicherheitsnetz - ECKIG - 500 x 350 | C46: =IF(AND($C$22=500,$D$22=350,$E$22="ECKIG",$C$24=35,C23=""),1,"") ->  | D46: Stk. | E46: =VLOOKUP(A46,PREISE!$A:$C,3,FALSE) -> 1327.9 | F46: =IF(C46="","",C46*E46) -> 
A47: 38301010 | B47: =VLOOKUP(A47,PREISE!$A:$B,2,FALSE) -> Loop-Loc Sicherheitsnetz - ECKIG - 600 x 300 | C47: =IF(AND($C$22=600,$D$22=300,$E$22="ECKIG",$C$24=35,C23=""),1,"") ->  | D47: Stk. | E47: =VLOOKUP(A47,PREISE!$A:$C,3,FALSE) -> 1165.83
A48: 38301016 | B48: =VLOOKUP(A48,PREISE!$A:$B,2,FALSE) -> Loop-Loc Sicherheitsnetz - ECKIG - 700 x 350 | C48: =IF(AND($C$22=700,$D$22=350,$E$22="ECKIG",$C$24=35,C23=""),1,"") ->  | D48: Stk. | E48: =VLOOKUP(A48,PREISE!$A:$C,3,FALSE) -> 1665.83
A49: 38301017 | B49: =VLOOKUP(A49,PREISE!$A:$B,2,FALSE) -> Loop-Loc Sicherheitsnetz - ECKIG - 700 x 400 | C49: =IF(AND($C$22=700,$D$22=400,$E$22="ECKIG",$C$24=35,C23=""),1,"") ->  | D49: Stk. | E49: =VLOOKUP(A49,PREISE!$A:$C,3,FALSE) -> 1749.75
A50: 38301022 | B50: =VLOOKUP(A50,PREISE!$A:$B,2,FALSE) -> Loop-Loc Sicherheitsnetz - ECKIG - 800 x 400 | C50: =IF(AND($C$22=800,$D$22=400,$E$22="ECKIG",$C$24=35,C23=""),1,"") ->  | D50: Stk. | E50: =VLOOKUP(A50,PREISE!$A:$C,3,FALSE) -> 2082.5
A51: 38301031 | B51: =VLOOKUP(A51,PREISE!$A:$B,2,FALSE) -> Loop-Loc Sicherheitsnetz - ECKIG - 900 x 400 | C51: =IF(AND($C$22=900,$D$22=400,$E$22="ECKIG",$C$24=35,C23=""),1,"") ->  | D51: Stk. | E51: =VLOOKUP(A51,PREISE!$A:$C,3,FALSE) -> 1975.15
A52: 38301044 | B52: =VLOOKUP(A52,PREISE!$A:$B,2,FALSE) -> Loop-Loc Sicherheitsnetz - ECKIG - 1000 x 500 | C52: =IF(AND($C$22=1000,$D$22=500,$E$22="ECKIG",$C$24=35,C23=""),1,"") ->  | D52: Stk. | E52: =VLOOKUP(A52,PREISE!$A:$C,3,FALSE) -> 2249.17
A53: OVAL:
A54: 38302001 | B54: =VLOOKUP(A54,PREISE!$A:$B,2,FALSE) -> Loop-Loc Sicherheitsnetz - OVAL - 490 x 300 | C54: =IF(AND($C$22=490,$D$22=300,$E$22="OVAL",$C$24=35,C23=""),1,"") ->  | D54: Stk. | E54: =VLOOKUP(A54,PREISE!$A:$C,3,FALSE) -> 1397.06
A55: 38302002 | B55: =VLOOKUP(A55,PREISE!$A:$B,2,FALSE) -> Loop-Loc Sicherheitsnetz - OVAL - 530 x 320 | C55: =IF(AND($C$22=530,$D$22=320,$E$22="OVAL",$C$24=35,C23=""),1,"") ->  | D55: Stk. | E55: =VLOOKUP(A55,PREISE!$A:$C,3,FALSE) -> 1541.54
A56: 38302003 | B56: =VLOOKUP(A56,PREISE!$A:$B,2,FALSE) -> Loop-Loc Sicherheitsnetz - OVAL - 626 x 360 | C56: =IF(AND($C$22=623,$D$22=360,$E$22="OVAL",$C$24=35,C23=""),1,"") ->  | D56: Stk. | E56: =VLOOKUP(A56,PREISE!$A:$C,3,FALSE) -> 1810.65
A57: 38302004 | B57: =VLOOKUP(A57,PREISE!$A:$B,2,FALSE) -> Loop-Loc Sicherheitsnetz - OVAL - 700 x 350 | C57: =IF(AND($C$22=700,$D$22=350,$E$22="OVAL",$C$24=35,C23=""),1,"") ->  | D57: Stk. | E57: =VLOOKUP(A57,PREISE!$A:$C,3,FALSE) -> 1934.02
A58: 38302005 | B58: =VLOOKUP(A58,PREISE!$A:$B,2,FALSE) -> Loop-Loc Sicherheitsnetz - OVAL - 737 x 360 | C58: =IF(AND($C$22=737,$D$22=360,$E$22="OVAL",$C$24=35,C23=""),1,"") ->  | D58: Stk. | E58: =VLOOKUP(A58,PREISE!$A:$C,3,FALSE) -> 1954.46
A59: 38302006 | B59: =VLOOKUP(A59,PREISE!$A:$B,2,FALSE) -> Loop-Loc Sicherheitsnetz - OVAL - 800 x 400 | C59: =IF(AND($C$22=800,$D$22=400,$E$22="OVAL",$C$24=35,C23=""),1,"") ->  | D59: Stk. | E59: =VLOOKUP(A59,PREISE!$A:$C,3,FALSE) -> 2199.01
A60: 38302007 | B60: =VLOOKUP(A60,PREISE!$A:$B,2,FALSE) -> Loop-Loc Sicherheitsnetz - OVAL - 916 x 460 | C60: =IF(AND($C$22=916,$D$22=460,$E$22="OVAL",$C$24=35,C23=""),1,"") ->  | D60: Stk. | E60: =VLOOKUP(A60,PREISE!$A:$C,3,FALSE) -> 2532.85
A63: Sonderanfertigung Loop-Loc Sicherheitsnetz per m2
A64: Auf Wunsch erhältlich wenn keine Standardgrösse zu ihren Abmessungen verfügbar ist oder der Rand > 35cm
A65: 38305001 | B65: =VLOOKUP(A65,PREISE!$A:$B,2,FALSE) -> Loop-Loc Sicherheitsnetz - Sonderanfertigung (35 cm Rand) | C65: =IF(AND(SUM(C35:C60)=0,F25<>""),F25,"") -> 32.34 | D65: m2 | E65: =VLOOKUP(A65,PREISE!$A:$C,3,FALSE) -> 44.08 | F65: =IF(C65="","",C65*E65) -> 1425.5472 | G65: 32,34*38305001
A66: 38309898 | B66: =LEFT(VLOOKUP(A66,PREISE!$A:$B,2,FALSE),55) -> Loop-Loc - Mindermengenzuschlag unter 20 m2 Fläche | C66: =IF(AND(C65>0,C65<20),1,"") ->  | D66: x | E66: =VLOOKUP(A66,PREISE!$A:$C,3,FALSE) -> 165.83
A67: 38306588 | B67: =LEFT(VLOOKUP(A67,PREISE!$A:$B,2,FALSE),60) -> Loop-Loc - Sonderfarbe GRAU - Aufpreis 15% | D67: x | E67: =IF(F65<>"",ROUNDUP(F65*0.15,2),"") -> 213.84
A68: 38306599 | B68: =LEFT(VLOOKUP(A68,PREISE!$A:$B,2,FALSE),60) -> Loop-Loc - Sonderfarbe BEIGE - Aufpreis 15% | D68: x | E68: =IF(F65<>"",ROUNDUP(F65*0.15,2),"") -> 213.84
A69: 38306577 | B69: =LEFT(VLOOKUP(A69,PREISE!$A:$B,2,FALSE),60) -> Loop-Loc - Sonderfarbe BLAU - Aufpreis 15% | D69: x | E69: =IF(F65<>"",ROUNDUP(F65*0.15,2),"") -> 213.84 | F69: =IF(C69="","",C69*E69) ->  | G69: =IF(F69="","",CONCATENATE(C69,"*",A69)) -> 
A70: Treppe? Die Treppe wird als Latz gefertigt!
A71: 38306010 | B71: =LEFT(VLOOKUP(A71,PREISE!$A:$B,2,FALSE),55) -> Loop-Loc Sicherheitsnetz - Sonderanfertigung TREPPE | C71: =IF(F26>0,F26,"") -> 6.24 | D71: m2 | E71: =VLOOKUP(A71,PREISE!$A:$C,3,FALSE) -> 44.08 | F71: =IF(C71="","",C71*E71) -> 275.0592 | G71: 6,24*38306010
A73: Zubehör Loop-Loc | I73: Beton: | K73: Holz:
A74: =IF(AND(C22<>"",D22<>""),ROUNDUP(((2*C25+2*D25)/90)+2,0),"") -> 29 | B74: Stk. Befestigungspunkte bei 90cm Gurtabstand!
A75: 38304001 | B75: =VLOOKUP(A75,PREISE!$A:$B,2,FALSE) -> Loop-Loc Zubehör - Betonanker - per Stk. | C75: im Preis ingebriffen
A76: 38304002 | B76: =VLOOKUP(A76,PREISE!$A:$B,2,FALSE) -> Loop-Loc Zubehör - Befestigung f. Holz - per Stk. | D76: Stk. | E76: =VLOOKUP(A76,PREISE!$A:$C,3,FALSE) -> 11.58 | F76: =IF(C76="","",C76*E76) -> 
A77: 38304003 | B77: =VLOOKUP(A77,PREISE!$A:$B,2,FALSE) -> Loop-Loc Zubehör - Erdanker 38 cm - per Stk. | D77: Stk. | E77: =VLOOKUP(A77,PREISE!$A:$C,3,FALSE) -> 24.92 | M77: Erdanker:
B79: Je nach Poolgrösse bei Wasserabsenkung > 50 cm erforderlich:
A80: 38100468 | B80: =VLOOKUP(A80,PREISE!$A:$B,2,FALSE) -> Luftpolster 100 x 115 cm - Auftrieb für Abdeckplanen | D80: Stk. | E80: =VLOOKUP(A80,PREISE!$A:$C,3,FALSE) -> 60.86 | F80: =IF(C80="","",C80*E80) ->  | I80: Luftkissen:
A81: 38100469 | B81: =VLOOKUP(A81,PREISE!$A:$B,2,FALSE) -> Luftpolster 200 x 115 cm - Auftrieb für Abdeckplanen | D81: Stk. | E81: =VLOOKUP(A81,PREISE!$A:$C,3,FALSE) -> 90.83 | F81: =IF(C81="","",C81*E81) -> 
A82: 38100470 | B82: =VLOOKUP(A82,PREISE!$A:$B,2,FALSE) -> Luftpolster 300 x 179 cm - Auftrieb für Abdeckplanen | D82: Stk. | E82: =VLOOKUP(A82,PREISE!$A:$C,3,FALSE) -> 157.5
A84: =IF(B17="","Bitte wählen Sie oben Ihr Land aus!","") ->  | G84: =IF(F84="","",CONCATENATE(C84,"*",A84)) -> 
A85: Versandkosten (nur AT + DE möglich!)
A86: 81008100 | B86: =VLOOKUP(A86,PREISE!$A:$B,2,FALSE) -> Verpackung + Versandkosten + Verwaltung | C86: =IF(AND(B17<>"",F25>0),1,"") -> 1 | D86: x | E86: 85 | F86: =IF(C86="","",C86*E86) -> 85 | G86: 1*81008100
A88: Summe:
B89: =IF(OR($C$22="",$D$22=""),"Bitte geben Sie oben die Länge x Breite ihres Pools ein!","") ->  | C89: Nettosumme exkl. | F89: =SUM(F35:F86) -> 1785.6064
A90: Land: | B90: =IF($B$17="","Bitte wählen Sie oben ihr Land aus!",$B$17) -> Österreich | C90: =IF($B$17="Österreich",0.2,IF($B$17="Deutschland",0.19,IF($B$17="Schweiz",0.081,0))) -> 0.2 | D90: Mehrwertsteuer | F90: =ROUNDUP(F89*C90,2) -> 357.13 | I90: MADE IN USA !! Das Original aus Amerika!
B92: Angebostsumme inklusive Mehrwertsteuer: | E92: =IF(F89<250,"Daten fehlen!",SUM(F89:F90)) -> 2142.7364 | I92: Aufbauanleitung / Installation Loop-Loc
I93: Der Elefantentest
A94: Die Lieferzeit für ihr Loop-Loc Sicherheitsnetz beträgt voraussichtlich: | C94: Zahlungsart: auf Rechnung
A95: 38306677 | B95: =VLOOKUP(A95,PREISE!$A:$B,2,FALSE) -> 5 - 8 Wochen | F95: Banküberweisung nach Warenerhalt | I95: Sie haben Fragen? - Wir beraten Sie sehr gerne!
A97: Bitte lesen sie unsere Allgemeinen Geschäftsbedingungen: | C97: Angebot gültig bis: | F97: =B7+30 -> 2024-04-20 | I97: Bitte schreiben Sie uns ihre Fragen & Wünsche schriftlich:
A98: http://www.pooldoktor.net/shop/geschaeftsbedingungen | C98: Preisänderungen wegen Irrtümer vorbehalten! | I98: >> KONTAKTFORMULAR | L98: office@pooldoktor.at
I99: (ein auf ihr Anliegen geschulter Mitarbeiter wird sich bei ihnen melden!)
A100: >>>>>>>> | B100: Wir Beraten Sie gerne - Fragen Sie uns! office@pooldoktor.at | F100: Jetzt Termin vereinbaren!
A101: POOLDOKTOR Handels GmbH, Kotzinastrasse 15 - 4030 Linz, Österreich - FN 256113 m - AT74 1860 0000 1120 8626 | I101: Sie möchten angerufen werden? Beratung per Telefon?
I102: >> RÜCKRUFSERVICE | L102: +43 732 38 22 22
I104: Sie möchten einen KOSTENLOSEN Beratungstermin in Linz?
I105: >> BERATUNGSTERMIN VEREINBAREN | M105: >> ANFAHRT
I107: Unseren Schauraum in Linz besuchen? | L107: >> VIRTUELLER RUNDGANG in 3D | O107: Unser Team freut sich Sie kennenzulernen!
I117: Die Fa. Pooldoktor existiert seit über 17 Jahren! | M117: Mittlerweile wurden über 10.000 Styroporpools von unseren Kunden erstellt!

Sheet SOLARABSORBER
A1: POOL Kalkulator PRO | F1: © WUNDERWORKS
C2: POOLDOKTOR Handels GmbH
C3: Kotzinastrasse 15 - 4030 Linz - AT
C4: Telefon: + 43 732 38 22 22
C5: Email: office@pooldoktor.at
A7: Datum: | B7: =TODAY() -> 2024-03-21 | C7: Angebot gültig bis: | F7: =B7+30 -> 2024-04-20
F8: (Datum gültig bei PDF oder Ausdruck)
A9: Ihre Anschrift - Kundendaten
B10: bitte vollständig ausfüllen:
A11: Rechnungsadresse | C11: Lieferadresse? | E11: falls abweichend
A12: Titel | B12: =IFERROR(IF(POOL!B12<>"",POOL!B12,""),"") ->  | C12: =IFERROR(IF(POOL!C12<>"",POOL!C12,""),"") -> 
A13: Name | B13: =IFERROR(IF(POOL!B13<>"",POOL!B13,""),"") ->  | C13: =IFERROR(IF(POOL!C13<>"",POOL!C13,""),"") -> 
A14: Straße | B14: =IFERROR(IF(POOL!B14<>"",POOL!B14,""),"") ->  | C14: =IFERROR(IF(POOL!C14<>"",POOL!C14,""),"") -> 
A15: PLZ | B15: =IFERROR(IF(POOL!B15<>"",POOL!B15,""),"") ->  | C15: =IFERROR(IF(POOL!C15<>"",POOL!C15,""),"") -> 
A16: Ort | B16: =IFERROR(IF(POOL!B16<>"",POOL!B16,""),"") ->  | C16: =IFERROR(IF(POOL!C16<>"",POOL!C16,""),"") -> 
A17: Land | B17: =IFERROR(IF(POOL!B17<>"",POOL!B17,"Österreich"),"Österreich") -> Österreich | C17: =IFERROR(IF(POOL!C17<>"",POOL!C17,""),"") -> 
A18: Telefon | B18: =IFERROR(IF(POOL!B18<>"",POOL!B18,""),"") ->  | C18: =IFERROR(IF(POOL!C18<>"",POOL!C18,""),"") -> 
A19: Email | B19: =IFERROR(IF(POOL!B19<>"",POOL!B19,""),"") ->  | C19: =IFERROR(IF(POOL!C19<>"",POOL!C19,""),"") -> 
C20: =IF($C$22="","",$C$22/100) -> 7 | D20: =IF($D$22="","",$D$22/100) -> 3.5
A21: Fragen bzw. Angaben zu Ihrem Pool bzw. Kollektor | C21: Länge? | D21: Breite? | E21: Form? | F21: m2
A22: Bitte geben Sie das INNENMASS ihres Schwimmbeckens an (in cm): | C22: =IFERROR(IF(POOL!C22<>"",POOL!C22,600),600) -> 700 | D22: =IFERROR(IF(POOL!D22<>"",POOL!D22,300),300) -> 350 | E22: =IFERROR(IF(POOL!E22<>"",POOL!E22,"ECKIG"),"ECKIG") -> OVAL | F22: =IF(AND(C22<>"",D22<>""),C22*D22/10000,"") -> 24.5
A23: Wie gross soll der Kollektor sein? (Länge = Solarschlauch, Breite = Rohr): | C23: =IFERROR(IF(POOL!C674<>"",POOL!C674,800),800) -> 800 | D23: =IFERROR(IF(POOL!D674<>"",POOL!D674,200),200) -> 200 | F23: =IF(AND(C23<>"",D23<>""),C23*D23/10000,"") -> 16
B24: Kollektorfläche wie gross? Bei abgedecktem Pool benötigt man 50%, sonst 100% der Poolfläche | E24: Ihr Kollektor: | F24: =IF(AND(F23<>"",F22<>""),F23/F22,"") -> 0.6530612245 | I24: Die SONNE HEIZT GRATIS!
B25: Steht dieser Platz zur Verfügung? -> Platzbedarf Kollektor inkl. Verrohrung / Aussenmass | C25: =IF(C23<>"",C23+15,"") -> 815 | D25: =IF(D23<>"",D23+15,"") -> 215
I26: Verlängerter Badespaß von Frühjahr bis Herbst!
A27: EINSEITIG oder DIAGONAL ? Bitte wählen | C27: =IFERROR(IF(POOL!C676<>"",POOL!C676,"DIAGONAL"),"DIAGONAL") -> EINSEITIG | E27: =IF(OR(D23=100,D23=150,D23=250,D23=350,D23=450),"Nur Diagonal möglich!","") -> 
B28: Bei FLACH Dach bzw. Neigung < 20° nimmt man EINSEITIG - Anschluss auf EINER SEITE | I28: In Zeiten begrenzter Ressourcen und steigenden Energiekosten muss keiner mehr auf temperierten Badespaß in warmem Poolwasser verzichten.
B29: Bei Neigung > 20° nimmt man DIAGNOAL dh. Anschluss UNTEN rein und OBEN schräg gegenüber raus | I29: Durch die umweltfreundliche Energie der Sonne wird ihr Pool-Wasser rasch und besonders zuverlässig erwärmt, denn die Sonne heizt zu 100% gratis!
I31: Der Rippenrohr Solarabsorber - effizientes Heizungssystem für Schwimmbecken!
A32: ANGEBOT - POOLRIPP SOLARABSORBER | I32: Für große Pools oder Planschbecken. Wir haben die passende Lösung!
A34: Artikelnr. | B34: Artikelname | C34: Menge | D34: Einheit | E34: Preis | F34: Summe
A36: POOLRIPP Rippenrohrkollektor EINSEITIG (U - Design)
A37: Für FLACHE Dächer bzw. mit geringer Neigung unter 20 °, Anschluss auf einer Seite - LINKS o RECHTS | F37: =IF(C27="EINSEITIG","JA","NEIN") -> JA
A38: 41202223 | B38: =VLOOKUP(A38,PREISE!$A:$B,2,FALSE) -> POOLRIPP Rippenrohrkollektor Einseitig 2 x 3 m | C38: =IF(AND($C$27="EINSEITIG",$C$23=300,$D$23=200),1,"") ->  | D38: Stk. | E38: =VLOOKUP(A38,PREISE!$A:$C,3,FALSE) -> 565.83 | F38: =IF(C38="","",C38*E38) ->  | G38: =IF(F38="","",CONCATENATE(C38,"*",A38)) -> 
A39: 41202224 | B39: =VLOOKUP(A39,PREISE!$A:$B,2,FALSE) -> POOLRIPP Rippenrohrkollektor Einseitig 2 x 4 m | C39: =IF(AND($C$27="EINSEITIG",$C$23=400,$D$23=200),1,"") ->  | D39: Stk. | E39: =VLOOKUP(A39,PREISE!$A:$C,3,FALSE) -> 615.83 | G39: =IF(F39="","",CONCATENATE(C39,"*",A39)) -> 
A40: 41202225 | B40: =VLOOKUP(A40,PREISE!$A:$B,2,FALSE) -> POOLRIPP Rippenrohrkollektor Einseitig 2 x 5 m | C40: =IF(AND($C$27="EINSEITIG",$C$23=500,$D$23=200),1,"") ->  | D40: Stk. | E40: =VLOOKUP(A40,PREISE!$A:$C,3,FALSE) -> 665.83
A41: 41202226 | B41: =VLOOKUP(A41,PREISE!$A:$B,2,FALSE) -> POOLRIPP Rippenrohrkollektor Einseitig 2 x 6 m | C41: =IF(AND($C$27="EINSEITIG",$C$23=600,$D$23=200),1,"") ->  | D41: Stk. | E41: =VLOOKUP(A41,PREISE!$A:$C,3,FALSE) -> 715.83
A42: 41202227 | B42: =VLOOKUP(A42,PREISE!$A:$B,2,FALSE) -> POOLRIPP Rippenrohrkollektor Einseitig 2 x 7 m | C42: =IF(AND($C$27="EINSEITIG",$C$23=700,$D$23=200),1,"") ->  | D42: Stk. | E42: =VLOOKUP(A42,PREISE!$A:$C,3,FALSE) -> 765.83
A43: 41202228 | B43: =VLOOKUP(A43,PREISE!$A:$B,2,FALSE) -> POOLRIPP Rippenrohrkollektor Einseitig 2 x 8 m | C43: =IF(AND($C$27="EINSEITIG",$C$23=800,$D$23=200),1,"") -> 1 | D43: Stk. | E43: =VLOOKUP(A43,PREISE!$A:$C,3,FALSE) -> 815.83 | F43: 815.83 | G43: 1*41202228
A44: 41202229 | B44: =VLOOKUP(A44,PREISE!$A:$B,2,FALSE) -> POOLRIPP Rippenrohrkollektor Einseitig 2 x 9 m | C44: =IF(AND($C$27="EINSEITIG",$C$23=900,$D$23=200),1,"") ->  | D44: Stk. | E44: =VLOOKUP(A44,PREISE!$A:$C,3,FALSE) -> 865.83
A45: 41202233 | B45: =VLOOKUP(A45,PREISE!$A:$B,2,FALSE) -> POOLRIPP Rippenrohrkollektor Einseitig 3 x 3 m | C45: =IF(AND($C$27="EINSEITIG",$C$23=300,$D$23=300),1,"") ->  | D45: Stk. | E45: =VLOOKUP(A45,PREISE!$A:$C,3,FALSE) -> 774.17
A46: 41202234 | B46: =VLOOKUP(A46,PREISE!$A:$B,2,FALSE) -> POOLRIPP Rippenrohrkollektor Einseitig 3 x 4 m | C46: =IF(AND($C$27="EINSEITIG",$C$23=400,$D$23=300),1,"") ->  | D46: Stk. | E46: =VLOOKUP(A46,PREISE!$A:$C,3,FALSE) -> 874.17 | F46: =IF(C46="","",C46*E46) -> 
A47: 41202235 | B47: =VLOOKUP(A47,PREISE!$A:$B,2,FALSE) -> POOLRIPP Rippenrohrkollektor Einseitig 3 x 5 m | C47: =IF(AND($C$27="EINSEITIG",$C$23=500,$D$23=300),1,"") ->  | D47: Stk. | E47: =VLOOKUP(A47,PREISE!$A:$C,3,FALSE) -> 932.5
A48: 41202236 | B48: =VLOOKUP(A48,PREISE!$A:$B,2,FALSE) -> POOLRIPP Rippenrohrkollektor Einseitig 3 x 6 m | C48: =IF(AND($C$27="EINSEITIG",$C$23=600,$D$23=300),1,"") ->  | D48: Stk. | E48: =VLOOKUP(A48,PREISE!$A:$C,3,FALSE) -> 1024.17
A49: 41202237 | B49: =VLOOKUP(A49,PREISE!$A:$B,2,FALSE) -> POOLRIPP Rippenrohrkollektor Einseitig 3 x 7 m | C49: =IF(AND($C$27="EINSEITIG",$C$23=700,$D$23=300),1,"") ->  | D49: Stk. | E49: =VLOOKUP(A49,PREISE!$A:$C,3,FALSE) -> 1124.17
A50: 41202238 | B50: =VLOOKUP(A50,PREISE!$A:$B,2,FALSE) -> POOLRIPP Rippenrohrkollektor Einseitig 3 x 8 m | C50: =IF(AND($C$27="EINSEITIG",$C$23=800,$D$23=300),1,"") ->  | D50: Stk. | E50: =VLOOKUP(A50,PREISE!$A:$C,3,FALSE) -> 1182.5
A51: 41202239 | B51: =VLOOKUP(A51,PREISE!$A:$B,2,FALSE) -> POOLRIPP Rippenrohrkollektor Einseitig 3 x 9 m | C51: =IF(AND($C$27="EINSEITIG",$C$23=900,$D$23=300),1,"") ->  | D51: Stk. | E51: =VLOOKUP(A51,PREISE!$A:$C,3,FALSE) -> 1274.17
A52: 41202244 | B52: =VLOOKUP(A52,PREISE!$A:$B,2,FALSE) -> POOLRIPP Rippenrohrkollektor Einseitig 4 x 4 m | C52: =IF(AND($C$27="EINSEITIG",$C$23=400,$D$23=400),1,"") ->  | D52: Stk. | E52: =VLOOKUP(A52,PREISE!$A:$C,3,FALSE) -> 1157.5 | F52: =IF(C52="","",C52*E52) -> 
A53: 41202245 | B53: =VLOOKUP(A53,PREISE!$A:$B,2,FALSE) -> POOLRIPP Rippenrohrkollektor Einseitig 4 x 5 m | C53: =IF(AND($C$27="EINSEITIG",$C$23=500,$D$23=400),1,"") ->  | D53: Stk. | E53: =VLOOKUP(A53,PREISE!$A:$C,3,FALSE) -> 1257.5 | I53: Das Wasser fließt in der auf einer Seite geteilten Sammelrohr - zum gegenüberliegenden durchlaufenden Sammelrohr - wieder zurück.
A54: 41202246 | B54: =VLOOKUP(A54,PREISE!$A:$B,2,FALSE) -> POOLRIPP Rippenrohrkollektor Einseitig 4 x 6 m | C54: =IF(AND($C$27="EINSEITIG",$C$23=600,$D$23=400),1,"") ->  | D54: Stk. | E54: =VLOOKUP(A54,PREISE!$A:$C,3,FALSE) -> 1357.5
A55: 41202247 | B55: =VLOOKUP(A55,PREISE!$A:$B,2,FALSE) -> POOLRIPP Rippenrohrkollektor Einseitig 4 x 7 m | C55: =IF(AND($C$27="EINSEITIG",$C$23=700,$D$23=400),1,"") ->  | D55: Stk. | E55: =VLOOKUP(A55,PREISE!$A:$C,3,FALSE) -> 1499.17 | I55: Wir empfehlen diese - EINSEITIG - Montage bei Flachdächer bis 25°. Die Rohrführung auf nur einer Seite vereinfacht meist die Montage.
A56: 41202248 | B56: =VLOOKUP(A56,PREISE!$A:$B,2,FALSE) -> POOLRIPP Rippenrohrkollektor Einseitig 4 x 8 m | C56: =IF(AND($C$27="EINSEITIG",$C$23=800,$D$23=400),1,"") ->  | D56: Stk. | E56: =VLOOKUP(A56,PREISE!$A:$C,3,FALSE) -> 1599.17
A59: POOLRIPP Rippenrohrkollektor DIAGONAL (U - Design)
A60: Für Flächen mit einer Neigung > 20 °, Einlauf UNTEN und Ablauf OBEN schräg gegenüber | F60: =IF(C27="DIAGONAL","JA","NEIN") -> NEIN
A61: 41203301 | B61: =VLOOKUP(A61,PREISE!$A:$B,2,FALSE) -> POOLRIPP Rippenrohrkollektor Diagonal 1 x 3 m | C61: =IF(OR(AND($C$27="DIAGONAL",$C$23=300,$D$23=100),AND($C$23=300,$D$23=250)),1,"") ->  | D61: Stk. | E61: =VLOOKUP(A61,PREISE!$A:$C,3,FALSE) -> 307.5 | F61: =IF(C61="","",C61*E61) ->  | G61: =IF(F61="","",CONCATENATE(C61,"*",A61)) -> 
A62: 41203302 | B62: =VLOOKUP(A62,PREISE!$A:$B,2,FALSE) -> POOLRIPP Rippenrohrkollektor Diagonal 1 x 4 m | C62: =IF(OR(AND($C$27="DIAGONAL",$C$23=400,$D$23=100),AND($C$23=400,$D$23=250)),1,"") ->  | D62: Stk. | E62: =VLOOKUP(A62,PREISE!$A:$C,3,FALSE) -> 349.17 | F62: =IF(C62="","",C62*E62) -> 
A63: 41203303 | B63: =VLOOKUP(A63,PREISE!$A:$B,2,FALSE) -> POOLRIPP Rippenrohrkollektor Diagonal 1 x 5 m | C63: =IF(OR(AND($C$27="DIAGONAL",$C$23=500,$D$23=100),AND($C$23=500,$D$23=250)),1,"") ->  | D63: Stk. | E63: =VLOOKUP(A63,PREISE!$A:$C,3,FALSE) -> 365.83
A64: 41203304 | B64: =VLOOKUP(A64,PREISE!$A:$B,2,FALSE) -> POOLRIPP Rippenrohrkollektor Diagonal 1 x 6 m | C64: =IF(OR(AND($C$27="DIAGONAL",$C$23=600,$D$23=100),AND($C$23=600,$D$23=250)),1,"") ->  | D64: Stk. | E64: =VLOOKUP(A64,PREISE!$A:$C,3,FALSE) -> 399.17
A65: 41203305 | B65: =VLOOKUP(A65,PREISE!$A:$B,2,FALSE) -> POOLRIPP Rippenrohrkollektor Diagonal 1 x 7 m | C65: =IF(OR(AND($C$27="DIAGONAL",$C$23=700,$D$23=100),AND($C$23=700,$D$23=250)),1,"") ->  | D65: Stk. | E65: =VLOOKUP(A65,PREISE!$A:$C,3,FALSE) -> 432.5
A66: 41203306 | B66: =VLOOKUP(A66,PREISE!$A:$B,2,FALSE) -> POOLRIPP Rippenrohrkollektor Diagonal 1 x 8 m | C66: =IF(OR(AND($C$27="DIAGONAL",$C$23=800,$D$23=100),AND($C$23=800,$D$23=250)),1,"") ->  | D66: Stk. | E66: =VLOOKUP(A66,PREISE!$A:$C,3,FALSE) -> 465.83
A67: 41203307 | B67: =VLOOKUP(A67,PREISE!$A:$B,2,FALSE) -> POOLRIPP Rippenrohrkollektor Diagonal 1 x 9 m | C67: =IF(OR(AND($C$27="DIAGONAL",$C$23=900,$D$23=100),AND($C$23=900,$D$23=250)),1,"") ->  | D67: Stk. | E67: =VLOOKUP(A67,PREISE!$A:$C,3,FALSE) -> 499.17
A68: 41203311 | B68: =VLOOKUP(A68,PREISE!$A:$B,2,FALSE) -> POOLRIPP Rippenrohrkollektor Diagonal 1.5 x 3 m | C68: =IF(OR(AND($C$27="DIAGONAL",$C$23=300,$D$23=150),AND($C$23=300,$D$23=250),AND($C$23=300,$D$23=350),AND($C$23=300,$D$23=450)),1,"") ->  | D68: Stk. | E68: =VLOOKUP(A68,PREISE!$A:$C,3,FALSE) -> 440.83
A69: 41203312 | B69: =VLOOKUP(A69,PREISE!$A:$B,2,FALSE) -> POOLRIPP Rippenrohrkollektor Diagonal 1.5 x 4 m | C69: =IF(OR(AND($C$27="DIAGONAL",$C$23=400,$D$23=150),AND($C$23=400,$D$23=250),AND($C$23=400,$D$23=350),AND($C$23=400,$D$23=450)),1,"") ->  | D69: Stk. | E69: =VLOOKUP(A69,PREISE!$A:$C,3,FALSE) -> 490.83 | F69: =IF(C69="","",C69*E69) -> 
A70: 41203313 | B70: =VLOOKUP(A70,PREISE!$A:$B,2,FALSE) -> POOLRIPP Rippenrohrkollektor Diagonal 1.5 x 5 m | C70: =IF(OR(AND($C$27="DIAGONAL",$C$23=500,$D$23=150),AND($C$23=500,$D$23=250),AND($C$23=500,$D$23=350),AND($C$23=500,$D$23=450)),1,"") ->  | D70: Stk. | E70: =VLOOKUP(A70,PREISE!$A:$C,3,FALSE) -> 515.83
A71: 41203314 | B71: =VLOOKUP(A71,PREISE!$A:$B,2,FALSE) -> POOLRIPP Rippenrohrkollektor Diagonal 1.5 x 6 m | C71: =IF(OR(AND($C$27="DIAGONAL",$C$23=600,$D$23=150),AND($C$23=600,$D$23=250),AND($C$23=600,$D$23=350),AND($C$23=600,$D$23=450)),1,"") ->  | D71: Stk. | E71: =VLOOKUP(A71,PREISE!$A:$C,3,FALSE) -> 540.83
A72: 41203315 | B72: =VLOOKUP(A72,PREISE!$A:$B,2,FALSE) -> POOLRIPP Rippenrohrkollektor Diagonal 1.5 x 7 m | C72: =IF(OR(AND($C$27="DIAGONAL",$C$23=700,$D$23=150),AND($C$23=700,$D$23=250),AND($C$23=700,$D$23=350),AND($C$23=700,$D$23=450)),1,"") ->  | D72: Stk. | E72: =VLOOKUP(A72,PREISE!$A:$C,3,FALSE) -> 582.5
A73: 41203316 | B73: =VLOOKUP(A73,PREISE!$A:$B,2,FALSE) -> POOLRIPP Rippenrohrkollektor Diagonal 1.5 x 8 m | C73: =IF(OR(AND($C$27="DIAGONAL",$C$23=800,$D$23=150),AND($C$23=800,$D$23=250),AND($C$23=800,$D$23=350),AND($C$23=800,$D$23=450)),1,"") ->  | D73: Stk. | E73: =VLOOKUP(A73,PREISE!$A:$C,3,FALSE) -> 632.5
A74: 41203317 | B74: =VLOOKUP(A74,PREISE!$A:$B,2,FALSE) -> POOLRIPP Rippenrohrkollektor Diagonal 1.5 x 9 m | C74: =IF(OR(AND($C$27="DIAGONAL",$C$23=900,$D$23=150),AND($C$23=900,$D$23=250),AND($C$23=900,$D$23=350),AND($C$23=900,$D$23=450)),1,"") ->  | D74: Stk. | E74: =VLOOKUP(A74,PREISE!$A:$C,3,FALSE) -> 682.5 | I74: Das Wasser fließt im unteren Sammelrohr - DIAGONAL - zum gegenüberliegenden höchsten Sammelrohr.
A75: 41202323 | B75: =VLOOKUP(A75,PREISE!$A:$B,2,FALSE) -> POOLRIPP Rippenrohrkollektor Diagonal 2 x 3 m | C75: =IF(OR(AND($C$27="DIAGONAL",$C$23=300,$D$23=200),AND($C$23=300,$D$23=350),AND($C$23=300,$D$23=500)),1,"") ->  | D75: Stk. | E75: =VLOOKUP(A75,PREISE!$A:$C,3,FALSE) -> 565.83 | F75: =IF(C75="","",C75*E75) ->  | G75: =IF(F75="","",CONCATENATE(C75,"*",A75)) -> 
A76: 41202324 | B76: =VLOOKUP(A76,PREISE!$A:$B,2,FALSE) -> POOLRIPP Rippenrohrkollektor Diagonal 2 x 4 m | C76: =IF(OR(AND($C$27="DIAGONAL",$C$23=400,$D$23=200),AND($C$23=400,$D$23=350),AND($C$23=400,$D$23=500)),1,"") ->  | D76: Stk. | E76: =VLOOKUP(A76,PREISE!$A:$C,3,FALSE) -> 615.83 | F76: =IF(C76="","",C76*E76) ->  | I76: Wir empfehlen diese Montage bei Schrägdächer ab 25° Neigung - auch Wandmontage.
A77: 41202325 | B77: =VLOOKUP(A77,PREISE!$A:$B,2,FALSE) -> POOLRIPP Rippenrohrkollektor Diagonal 2 x 5 m | C77: =IF(OR(AND($C$27="DIAGONAL",$C$23=500,$D$23=200),AND($C$23=500,$D$23=350),AND($C$23=500,$D$23=500)),1,"") ->  | D77: Stk. | E77: =VLOOKUP(A77,PREISE!$A:$C,3,FALSE) -> 665.83
A78: 41202326 | B78: =VLOOKUP(A78,PREISE!$A:$B,2,FALSE) -> POOLRIPP Rippenrohrkollektor Diagonal 2 x 6 m | C78: =IF(OR(AND($C$27="DIAGONAL",$C$23=600,$D$23=200),AND($C$23=600,$D$23=350),AND($C$23=600,$D$23=500)),1,"") ->  | D78: Stk. | E78: =VLOOKUP(A78,PREISE!$A:$C,3,FALSE) -> 715.83 | I78: Dabei ist die Entlüftung der Solarfläche gewährleistet.
A79: 41202327 | B79: =VLOOKUP(A79,PREISE!$A:$B,2,FALSE) -> POOLRIPP Rippenrohrkollektor Diagonal 2 x 7 m | C79: =IF(OR(AND($C$27="DIAGONAL",$C$23=700,$D$23=200),AND($C$23=700,$D$23=350),AND($C$23=700,$D$23=500)),1,"") ->  | D79: Stk. | E79: =VLOOKUP(A79,PREISE!$A:$C,3,FALSE) -> 765.83
A80: 41202328 | B80: =VLOOKUP(A80,PREISE!$A:$B,2,FALSE) -> POOLRIPP Rippenrohrkollektor Diagonal 2 x 8 m | C80: =IF(OR(AND($C$27="DIAGONAL",$C$23=800,$D$23=200),AND($C$23=800,$D$23=350),AND($C$23=800,$D$23=500)),1,"") ->  | D80: Stk. | E80: =VLOOKUP(A80,PREISE!$A:$C,3,FALSE) -> 815.83 | G80: =IF(F80="","",CONCATENATE(C80,"*",A80)) -> 
A81: 41202329 | B81: =VLOOKUP(A81,PREISE!$A:$B,2,FALSE) -> POOLRIPP Rippenrohrkollektor Diagonal 2 x 9 m | C81: =IF(OR(AND($C$27="DIAGONAL",$C$23=900,$D$23=200),AND($C$23=900,$D$23=350),AND($C$23=900,$D$23=500)),1,"") ->  | D81: Stk. | E81: =VLOOKUP(A81,PREISE!$A:$C,3,FALSE) -> 865.83 | I81: =IF(OR(D23=100,D23=150,D23=250,D23=350,D23=450),"Tipp! Sie können 2 Stk. DIAGONAL Kollektor auch EINSEITIG zusammenbauen!","") -> 
A82: 41202333 | B82: =VLOOKUP(A82,PREISE!$A:$B,2,FALSE) -> POOLRIPP Rippenrohrkollektor Diagonal 3 x 3 m | C82: =IF(OR(AND($C$27="DIAGONAL",$C$23=300,$D$23=300),AND($C$23=300,$D$23=450),AND($C$23=300,$D$23=500)),1,"") ->  | D82: Stk. | E82: =VLOOKUP(A82,PREISE!$A:$C,3,FALSE) -> 774.17
A83: 41202334 | B83: =VLOOKUP(A83,PREISE!$A:$B,2,FALSE) -> POOLRIPP Rippenrohrkollektor Diagonal 3 x 4 m | C83: =IF(OR(AND($C$27="DIAGONAL",$C$23=400,$D$23=300),AND($C$23=400,$D$23=450),AND($C$23=400,$D$23=500)),1,"") ->  | D83: Stk. | E83: =VLOOKUP(A83,PREISE!$A:$C,3,FALSE) -> 874.17
A84: 41202335 | B84: =VLOOKUP(A84,PREISE!$A:$B,2,FALSE) -> POOLRIPP Rippenrohrkollektor Diagonal 3 x 5 m | C84: =IF(OR(AND($C$27="DIAGONAL",$C$23=500,$D$23=300),AND($C$23=500,$D$23=450),AND($C$23=500,$D$23=500)),1,"") ->  | D84: Stk. | E84: =VLOOKUP(A84,PREISE!$A:$C,3,FALSE) -> 932.5
A85: 41202336 | B85: =VLOOKUP(A85,PREISE!$A:$B,2,FALSE) -> POOLRIPP Rippenrohrkollektor Diagonal 3 x 6 m | C85: =IF(OR(AND($C$27="DIAGONAL",$C$23=600,$D$23=300),AND($C$23=600,$D$23=450),AND($C$23=600,$D$23=500)),1,"") ->  | D85: Stk. | E85: =VLOOKUP(A85,PREISE!$A:$C,3,FALSE) -> 1024.17
A86: 41202337 | B86: =VLOOKUP(A86,PREISE!$A:$B,2,FALSE) -> POOLRIPP Rippenrohrkollektor Diagonal 3 x 7 m | C86: =IF(OR(AND($C$27="DIAGONAL",$C$23=700,$D$23=300),AND($C$23=700,$D$23=450),AND($C$23=700,$D$23=500)),1,"") ->  | D86: Stk. | E86: =VLOOKUP(A86,PREISE!$A:$C,3,FALSE) -> 1124.17
A87: 41202338 | B87: =VLOOKUP(A87,PREISE!$A:$B,2,FALSE) -> POOLRIPP Rippenrohrkollektor Diagonal 3 x 8 m | C87: =IF(OR(AND($C$27="DIAGONAL",$C$23=800,$D$23=300),AND($C$23=800,$D$23=450),AND($C$23=800,$D$23=500)),1,"") ->  | D87: Stk. | E87: =VLOOKUP(A87,PREISE!$A:$C,3,FALSE) -> 1182.5
A88: 41202339 | B88: =VLOOKUP(A88,PREISE!$A:$B,2,FALSE) -> POOLRIPP Rippenrohrkollektor Diagonal 3 x 9 m | C88: =IF(OR(AND($C$27="DIAGONAL",$C$23=900,$D$23=300),AND($C$23=900,$D$23=450),AND($C$23=900,$D$23=500)),1,"") ->  | D88: Stk. | E88: =VLOOKUP(A88,PREISE!$A:$C,3,FALSE) -> 1274.17
A89: 41202344 | B89: =VLOOKUP(A89,PREISE!$A:$B,2,FALSE) -> POOLRIPP Rippenrohrkollektor Diagonal 4 x 4 m | C89: =IF(AND($C$27="DIAGONAL",$C$23=400,$D$23=400),1,"") ->  | D89: Stk. | E89: =VLOOKUP(A89,PREISE!$A:$C,3,FALSE) -> 1157.5
A90: 41202345 | B90: =VLOOKUP(A90,PREISE!$A:$B,2,FALSE) -> POOLRIPP Rippenrohrkollektor Diagonal 4 x 5 m | C90: =IF(AND($C$27="DIAGONAL",$C$23=500,$D$23=400),1,"") ->  | D90: Stk. | E90: =VLOOKUP(A90,PREISE!$A:$C,3,FALSE) -> 1257.5
A91: 41202346 | B91: =VLOOKUP(A91,PREISE!$A:$B,2,FALSE) -> POOLRIPP Rippenrohrkollektor Diagonal 4 x 6 m | C91: =IF(AND($C$27="DIAGONAL",$C$23=600,$D$23=400),1,"") ->  | D91: Stk. | E91: =VLOOKUP(A91,PREISE!$A:$C,3,FALSE) -> 1357.5
A92: 41202347 | B92: =VLOOKUP(A92,PREISE!$A:$B,2,FALSE) -> POOLRIPP Rippenrohrkollektor Diagonal 4 x 7 m | C92: =IF(AND($C$27="DIAGONAL",$C$23=700,$D$23=400),1,"") ->  | D92: Stk. | E92: =VLOOKUP(A92,PREISE!$A:$C,3,FALSE) -> 1499.17
A93: 41202348 | B93: =VLOOKUP(A93,PREISE!$A:$B,2,FALSE) -> POOLRIPP Rippenrohrkollektor Diagonal 4 x 8 m | C93: =IF(AND($C$27="DIAGONAL",$C$23=800,$D$23=400),1,"") ->  | D93: Stk. | E93: =VLOOKUP(A93,PREISE!$A:$C,3,FALSE) -> 1599.17
A95: Angaben zu ihrem Kollektor Set / Lieferumfang - sie erhalten im POOLRIPP Set:
B96: Die benötigten Sammelrohre auf beiden Seiten zur Breite von | C96: =D23 -> 200 | D96: cm | I96: Wichtige Links:
B97: Lippendichtungen | C97: =C96*0.54+20 -> 128 | D97: Stk. (circa inkl. Reserve)
B98: Stützhülsen | C98: =C96*0.54+10 -> 118 | D98: Stk. (circa inkl. Reserve) | I98: POOLRIPP® - AUFBAUANLEITUNG
B99: Clipleisten - 42 cm Länge | C99: =ROUNDUP(((C23/100-1)*D23)/42+5,0) -> 39 | D99: Stk.
B100: POOLRIPP Solarrohr | C100: =CEILING((C96*0.54)/2*C23/100,50) -> 450 | D100: m | I100: Installationshinweise Solarabsorber / Skizzen
B101: Gummi Schlauchkupplungen | C101: 3 bis 4 | D101: Stk.
B102: Gummi Endkappen | C102: 3 bis 4 | D102: Stk. | I102: Weitere Details auf unserer Homepage
B103: Reduzierwinkel | C103: 2 | D103: Stk.
A105: Extras POOLRIPP Rippenrohrkollektor
A106: Sie möchten den Standardkollektor verlängern? Wieviel cm mehr Länge? | D106: cm | I106: Erweitern sie ihren Solarabsorber:
B107: Zusätzlich benötigter Schlauch - bitte unten wählen: | C107: =IF(C106="","",ROUNDUP(CEILING((C96*0.54/2*C106/100),50),0)) ->  | D107: m
A108: 41305441 | B108: =VLOOKUP(A108,PREISE!$A:$B,2,FALSE) -> Solar Rippenrohr - Wellschlauch - Bund mit 50 lfm | D108: Stk. | E108: =VLOOKUP(A108,PREISE!$A:$C,3,FALSE) -> 74.17 | F108: =IF(C108="","",C108*E108) -> 
A109: 41305460 | B109: =VLOOKUP(A109,PREISE!$A:$B,2,FALSE) -> Solar Rippenrohr - Wellschlauch - 100 Meter Bund | D109: Stk. | E109: =VLOOKUP(A109,PREISE!$A:$C,3,FALSE) -> 154 | F109: =IF(C109="","",C109*E109) -> 
A111: Sie benötigen zusätzliche Clipleisten? In welchem Abstand? | D111: cm | E111: =IF(C111=100,"Standard","") -> 
B112: Zusätzlich benötigte Clipleisten - bitte unten wählen: | C112: =IF(C111<>"",(C99/(C111/100))-C99,"") ->  | D112: Stk.
A113: 41305438 | B113: =VLOOKUP(A113,PREISE!$A:$B,2,FALSE) -> Clipleiste (12 fach = 42cm) | D113: Stk. | E113: =VLOOKUP(A113,PREISE!$A:$C,3,FALSE) -> 1.75 | F113: =IF(C113="","",C113*E113) -> 
A115: Sie möchten eine zusätzliche Kollektorfläche?
A116: << Bitte geben Sie die 8-stellige Artikelnummer des gewünschten Kollektors ein: | F116: =IF(C116="","",C116*E116) ->  | G116: =IF(F116="","",CONCATENATE(C116,"*",A116)) -> 
B117: =IF(A117="","",VLOOKUP(A117,PREISE!$A:$B,2,FALSE)) ->  | D117: Stk. | E117: =IF(A117="","",VLOOKUP(A117,PREISE!$A:$C,3,FALSE)) -> 
B118: =IF(A118="","",VLOOKUP(A118,PREISE!$A:$B,2,FALSE)) ->  | D118: Stk. | E118: =IF(A118="","",VLOOKUP(A118,PREISE!$A:$C,3,FALSE)) -> 
A121: Sie möchten den Kollektor vollautomatisert betreiben?
A122: Vollautomatischer Betrieb mit MOTORVENTIL | F122: =IF(F133="JA","NEIN",IFERROR(IF(POOL!C677="mit MOTORVENTIL","JA","NEIN"),"NEIN")) -> NEIN | I122: Mit Motorventil:
A123: 41101245 | B123: =VLOOKUP(A123,PREISE!$A:$B,2,FALSE) -> Solarsteuerung Deltasol BS - digitale Anzeigen | C123: =IF(AND($F$122<>"",$F$122="JA"),1,"") ->  | D123: Stk. | E123: =VLOOKUP(A123,PREISE!$A:$C,3,FALSE) -> 232.5 | F123: =IF(C123="","",C123*E123) ->  | G123: =IF(F123="","",CONCATENATE(C123,"*",A123)) -> 
A124: 41308525 | B124: =VLOOKUP(A124,PREISE!$A:$B,2,FALSE) -> 2-Wege-Motorstellantrieb 230 V | D124: Stk. | E124: =VLOOKUP(A124,PREISE!$A:$C,3,FALSE) -> 357.5 | F124: =IF(C124="","",C124*E124) ->  | G124: =IF(F124="","",CONCATENATE(C124,"*",A124)) -> 
A125: 41308524 | B125: =VLOOKUP(A125,PREISE!$A:$B,2,FALSE) -> 3-Wege-Motorstellantrieb 230 V | C125: =IF(AND($F$122<>"",$F$122="JA"),1,"") ->  | D125: Stk. | E125: =VLOOKUP(A125,PREISE!$A:$C,3,FALSE) -> 465.83
B126: Für die mitgelieferten Fühler benötigen sie:
A127: 24001776 | B127: =VLOOKUP(A127,PREISE!$A:$B,2,FALSE) -> PVC - T-Stück 90° D50 | C127: =IF(AND($F$122<>"",$F$122="JA"),2,"") ->  | D127: Stk. | E127: =VLOOKUP(A127,PREISE!$A:$C,3,FALSE) -> 2.42
A128: 24001807 | B128: =VLOOKUP(A128,PREISE!$A:$B,2,FALSE) -> PVC - Einlegeteil DA50 - 1/2 Zoll | C128: =IF(AND($F$122<>"",$F$122="JA"),2,"") ->  | D128: Stk. | E128: =VLOOKUP(A128,PREISE!$A:$C,3,FALSE) -> 4.08
A129: 41101350 | B129: =VLOOKUP(A129,PREISE!$A:$B,2,FALSE) -> Schnellentlüfter SET für Solaranlage | C129: =IF(AND($F$122<>"",$F$122="JA"),1,"") ->  | D129: Stk. | E129: =VLOOKUP(A129,PREISE!$A:$C,3,FALSE) -> 29.08
A130: 24001819 | B130: =VLOOKUP(A130,PREISE!$A:$B,2,FALSE) -> PVC - Rückschlagventil D50 | C130: =IF(AND($F$122<>"",$F$122="JA"),1,"") ->  | D130: Stk. | E130: =VLOOKUP(A130,PREISE!$A:$C,3,FALSE) -> 22.42
A131: 41202174 | B131: =VLOOKUP(A131,PREISE!$A:$B,2,FALSE) -> Fühlerverlängerungskabel per lfm | C131: =IF(AND($F$122<>"",$F$122="JA"),15,"") ->  | D131: lfm. | E131: =VLOOKUP(A131,PREISE!$A:$C,3,FALSE) -> 2.42
A133: Vollautomatisch mit eigener PUMPE | F133: =IFERROR(IF(POOL!C677="mit eigener PUMPE","JA","NEIN"),"JA") -> JA
A134: 41101290 | B134: =VLOOKUP(A134,PREISE!$A:$B,2,FALSE) -> Solarsteuerung Solar Manager - komplett mit Fühler | C134: =IF(AND($F$133<>"",$F$133="JA"),1,"") -> 1 | D134: Stk. | E134: =VLOOKUP(A134,PREISE!$A:$C,3,FALSE) -> 182.5 | F134: =IF(C134="","",C134*E134) -> 182.5 | G134: 1*41101290
A135: 21559020 | B135: =VLOOKUP(A135,PREISE!$A:$B,2,FALSE) -> Poolpumpe TORPEDO 50 - 230 Volt - SA050M | D135: Stk. | E135: =VLOOKUP(A135,PREISE!$A:$C,3,FALSE) -> 240.83
A136: 21559030 | B136: =VLOOKUP(A136,PREISE!$A:$B,2,FALSE) -> Poolpumpe TORPEDO 75 - 230 Volt - SA075M | C136: =IF(AND($F$133<>"",$F$133="JA"),1,"") -> 1 | D136: Stk. | E136: =VLOOKUP(A136,PREISE!$A:$C,3,FALSE) -> 274.17 | F136: 274.17 | G136: 1*21559030
A137: 21559040 | B137: =VLOOKUP(A137,PREISE!$A:$B,2,FALSE) -> Poolpumpe TORPEDO 100 - 230 Volt - SA100M | D137: Stk. | E137: =VLOOKUP(A137,PREISE!$A:$C,3,FALSE) -> 290.83 | F137: =IF(C137="","",C137*E137) -> 
B138: Für die mitgelieferten Fühler benötigen sie:
A139: 24001776 | B139: =VLOOKUP(A139,PREISE!$A:$B,2,FALSE) -> PVC - T-Stück 90° D50 | C139: =IF(AND($F$133<>"",$F$133="JA"),2,"") -> 2 | D139: Stk. | E139: =VLOOKUP(A139,PREISE!$A:$C,3,FALSE) -> 2.42 | F139: =IF(C139="","",C139*E139) -> 4.84 | G139: 2*24001776
A140: 24001807 | B140: =VLOOKUP(A140,PREISE!$A:$B,2,FALSE) -> PVC - Einlegeteil DA50 - 1/2 Zoll | C140: =IF(AND($F$133<>"",$F$133="JA"),2,"") -> 2 | D140: Stk. | E140: =VLOOKUP(A140,PREISE!$A:$C,3,FALSE) -> 4.08 | F140: 8.16 | G140: 2*24001807
A141: 41101350 | B141: =VLOOKUP(A141,PREISE!$A:$B,2,FALSE) -> Schnellentlüfter SET für Solaranlage | C141: 1 | D141: Stk. | E141: =VLOOKUP(A141,PREISE!$A:$C,3,FALSE) -> 29.08 | F141: 29.08 | G141: 1*41101350
A142: 24001819 | B142: =VLOOKUP(A142,PREISE!$A:$B,2,FALSE) -> PVC - Rückschlagventil D50 | C142: =IF(AND($F$133<>"",$F$133="JA"),2,"") -> 2 | D142: Stk. | E142: =VLOOKUP(A142,PREISE!$A:$C,3,FALSE) -> 22.42 | F142: 44.84 | G142: 2*24001819
A143: 41202174 | B143: =VLOOKUP(A143,PREISE!$A:$B,2,FALSE) -> Fühlerverlängerungskabel per lfm | C143: =IF(AND($F$133<>"",$F$133="JA"),15,"") -> 15 | D143: lfm. | E143: =VLOOKUP(A143,PREISE!$A:$C,3,FALSE) -> 2.42 | F143: 36.3 | G143: 15*41202174
A145: Installationsmaterial benötigt? | I145: Mit eigener Pumpe:
A146: 24001756 | B146: =VLOOKUP(A146,PREISE!$A:$B,2,FALSE) -> PVC - Rohr DA50 - per LFM | D146: lfm. | E146: =VLOOKUP(A146,PREISE!$A:$C,3,FALSE) -> 4.92 | F146: =IF(C146="","",C146*E146) -> 
A147: 24001760 | B147: =VLOOKUP(A147,PREISE!$A:$B,2,FALSE) -> Flex- Klebeschlauch DA50 - (Bund 25 lfm) | D147: Bund | E147: =VLOOKUP(A147,PREISE!$A:$C,3,FALSE) -> 115.83 | F147: =IF(C147="","",C147*E147) -> 
A148: 24001761 | B148: =VLOOKUP(A148,PREISE!$A:$B,2,FALSE) -> LAUFMETER - PVC - Klebeschlauch DA50 - per LFM | D148: lfm. | E148: =VLOOKUP(A148,PREISE!$A:$C,3,FALSE) -> 8.25
B149: Zusätzliche Fittinge in DA50:
A150: 24001813 | B150: =VLOOKUP(A150,PREISE!$A:$B,2,FALSE) -> PVC - Kugelhahn D50 | D150: Stk. | E150: =VLOOKUP(A150,PREISE!$A:$C,3,FALSE) -> 13.25
A151: 24001819 | B151: =VLOOKUP(A151,PREISE!$A:$B,2,FALSE) -> PVC - Rückschlagventil D50 | D151: Stk. | E151: =VLOOKUP(A151,PREISE!$A:$C,3,FALSE) -> 22.42
A152: 24001766 | B152: =VLOOKUP(A152,PREISE!$A:$B,2,FALSE) -> PVC - Winkel 90° D50 | D152: Stk. | E152: =VLOOKUP(A152,PREISE!$A:$C,3,FALSE) -> 1.58
A153: 24001772 | B153: =VLOOKUP(A153,PREISE!$A:$B,2,FALSE) -> PVC - Winkel 45° D50 | D153: Stk. | E153: =VLOOKUP(A153,PREISE!$A:$C,3,FALSE) -> 1.58
A154: 24001776 | B154: =VLOOKUP(A154,PREISE!$A:$B,2,FALSE) -> PVC - T-Stück 90° D50 | D154: Stk. | E154: =VLOOKUP(A154,PREISE!$A:$C,3,FALSE) -> 2.42
A155: 24001780 | B155: =VLOOKUP(A155,PREISE!$A:$B,2,FALSE) -> PVC - Muffe D50 | D155: Stk. | E155: =VLOOKUP(A155,PREISE!$A:$C,3,FALSE) -> 1.58
A156: 24001784 | B156: =VLOOKUP(A156,PREISE!$A:$B,2,FALSE) -> PVC - Verschraubung D50 / D50 | D156: Stk. | E156: =VLOOKUP(A156,PREISE!$A:$C,3,FALSE) -> 4.08
A157: 24001788 | B157: =VLOOKUP(A157,PREISE!$A:$B,2,FALSE) -> PVC - Verschraubung D50 / - 1 1/2" AG (Außengewinde) | D157: Stk. | E157: =VLOOKUP(A157,PREISE!$A:$C,3,FALSE) -> 5.75
A158: 24001790 | B158: =VLOOKUP(A158,PREISE!$A:$B,2,FALSE) -> PVC - Ü-Nippel DA50 - 6/4 Zoll Außengewinde | D158: Stk. | E158: =VLOOKUP(A158,PREISE!$A:$C,3,FALSE) -> 3.25
A159: 24001794 | B159: =VLOOKUP(A159,PREISE!$A:$B,2,FALSE) -> PVC - Ü-Nippel D50/DA63 - 2 Zoll Außengewinde | D159: Stk. | E159: =VLOOKUP(A159,PREISE!$A:$C,3,FALSE) -> 2.42
A160: 24001804 | B160: =VLOOKUP(A160,PREISE!$A:$B,2,FALSE) -> PVC - Rohrklemmen DA50 | D160: Stk. | E160: =VLOOKUP(A160,PREISE!$A:$C,3,FALSE) -> 1.58
A161: 24001808 | B161: =VLOOKUP(A161,PREISE!$A:$B,2,FALSE) -> PVC - Einlegeteil DA50 - 3/4 Zoll | D161: Stk. | E161: =VLOOKUP(A161,PREISE!$A:$C,3,FALSE) -> 4.08
A162: 24001824 | B162: =VLOOKUP(A162,PREISE!$A:$B,2,FALSE) -> PVC - Ablassventil 3/4 AG mit Klickanschluss | D162: Stk. | E162: =VLOOKUP(A162,PREISE!$A:$C,3,FALSE) -> 5.75
A163: 24001829 | B163: =VLOOKUP(A163,PREISE!$A:$B,2,FALSE) -> PVC - Kleber, Dose 500 Gramm | D163: Stk. | E163: =VLOOKUP(A163,PREISE!$A:$C,3,FALSE) -> 16.58
A164: 24001830 | B164: =VLOOKUP(A164,PREISE!$A:$B,2,FALSE) -> PVC - Kleber, Dose 1000gr | D164: Stk. | E164: =VLOOKUP(A164,PREISE!$A:$C,3,FALSE) -> 29.08
A165: 24009875 | B165: =VLOOKUP(A165,PREISE!$A:$B,2,FALSE) -> PVC - Reiniger - KLEIN | D165: Stk. | E165: =VLOOKUP(A165,PREISE!$A:$C,3,FALSE) -> 8.25
A166: 24001832 | B166: =VLOOKUP(A166,PREISE!$A:$B,2,FALSE) -> PVC - Reiniger - GROSS - 1000ml | D166: Stk. | E166: =VLOOKUP(A166,PREISE!$A:$C,3,FALSE) -> 24.92
A167: 24001811 | B167: =VLOOKUP(A167,PREISE!$A:$B,2,FALSE) -> TEFLONBAND | D167: Stk. | E167: =VLOOKUP(A167,PREISE!$A:$C,3,FALSE) -> 1.58
A169: << EXTRAS - Bitte die 8-stellige Artikelnummer eingeben und Stückzahl ergänzen!
A170: 23100653 | B170: =VLOOKUP(A170,PREISE!$A:$B,2,FALSE) -> ASTRAL Einlaufdüse 2 AG/DA 50 mit Folienflansch | D170: Stk. | E170: =VLOOKUP(A170,PREISE!$A:$C,3,FALSE) -> 31.83
A171: 23100836 | B171: =VLOOKUP(A171,PREISE!$A:$B,2,FALSE) -> ASTRAL Absaugdüse - z.B. für Solaranlagen | D171: Stk. | E171: =VLOOKUP(A171,PREISE!$A:$C,3,FALSE) -> 24.08
B172: =IF(A172="","",VLOOKUP(A172,PREISE!$A:$B,2,FALSE)) ->  | D172: Stk. | E172: =IF(A172="","",VLOOKUP(A172,PREISE!$A:$C,3,FALSE)) -> 
B173: =IF(A173="","",VLOOKUP(A173,PREISE!$A:$B,2,FALSE)) ->  | D173: Stk. | E173: =IF(A173="","",VLOOKUP(A173,PREISE!$A:$C,3,FALSE)) -> 
B174: =IF(A174="","",VLOOKUP(A174,PREISE!$A:$B,2,FALSE)) ->  | D174: Stk. | E174: =IF(A174="","",VLOOKUP(A174,PREISE!$A:$C,3,FALSE)) -> 
B175: =IF(A175="","",VLOOKUP(A175,PREISE!$A:$B,2,FALSE)) ->  | D175: Stk. | E175: =IF(A175="","",VLOOKUP(A175,PREISE!$A:$C,3,FALSE)) -> 
B176: =IF(A176="","",VLOOKUP(A176,PREISE!$A:$B,2,FALSE)) ->  | D176: Stk. | E176: =IF(A176="","",VLOOKUP(A176,PREISE!$A:$C,3,FALSE)) -> 
B177: =IF(A177="","",VLOOKUP(A177,PREISE!$A:$B,2,FALSE)) ->  | D177: Stk. | E177: =IF(A177="","",VLOOKUP(A177,PREISE!$A:$C,3,FALSE)) -> 
A180: Versandkosten | I180: Sie haben Fragen? - Wir beraten Sie sehr gerne!
A181: =IF(B17="Österreich",81008050,IF(B17="Deutschland",81008060,IF(B17="Schweiz",81008070,""))) -> 81008050 | B181: =IF(B17="","Bitte wählen Sie oben ihr Land aus!",VLOOKUP(A181,PREISE!$A:$B,2,FALSE)) -> AT - Versandkosten POOLRIPP - 2022 FRACHTFREI Aktion | C181: =IF(AND(B17<>"",C22<>"",D22<>""),1,"") -> 1 | D181: x | E181: =IF(B17<>"",VLOOKUP(A181,PREISE!$A:$C,3,FALSE),"") -> 0 | F181: =IF(C181="","",C181*E181) -> 0 | G181: 1*81002000
I182: Bitte schreiben Sie uns ihre Fragen & Wünsche schriftlich:
A183: Summe: | I183: >> KONTAKTFORMULAR | L183: office@pooldoktor.at
B184: =IF(OR($C$22="",$D$22=""),"Bitte geben Sie oben die Länge x Breite ihres Pools ein!","") ->  | C184: Nettosumme exkl. | F184: =SUM(F38:F181) -> 1395.72 | I184: (ein auf ihr Anliegen geschulter Mitarbeiter wird sich bei ihnen melden!)
A185: Land: | B185: =IF($B$17="","Bitte wählen Sie oben ihr Land aus!",$B$17) -> Österreich | C185: =IF($B$17="Österreich",0.2,IF($B$17="Deutschland",0.19,IF($B$17="Schweiz",0.081,0))) -> 0.2 | D185: Mehrwertsteuer | F185: =ROUNDUP(F184*C185,2) -> 279.15
I186: Sie möchten angerufen werden? Beratung per Telefon?
B187: Angebostsumme inklusive Mehrwertsteuer: | E187: =IF(F184<250,"Daten fehlen!",SUM(F184:F185)) -> 1674.87 | I187: >> RÜCKRUFSERVICE | L187: +43 732 38 22 22
A189: Die Lieferzeit für ihren POOLRIPP Solarabsorber beträgt voraussichtlich: | C189: Zahlungsart: auf Rechnung | I189: Sie möchten einen KOSTENLOSEN Beratungstermin in Linz?
A190: 41305599 | B190: =VLOOKUP(A190,PREISE!$A:$B,2,FALSE) -> 1 - 2 Wochen | F190: Banküberweisung nach Warenerhalt | I190: >> BERATUNGSTERMIN VEREINBAREN | M190: >> ANFAHRT
A192: Bitte lesen sie unsere Allgemeinen Geschäftsbedingungen: | C192: Angebot gültig bis: | F192: =B7+30 -> 2024-04-20 | I192: Unseren Schauraum in Linz besuchen? | L192: >> VIRTUELLER RUNDGANG in 3D | O192: Unser Team freut sich Sie kennenzulernen!
A193: http://www.pooldoktor.net/shop/geschaeftsbedingungen | C193: Preisänderungen wegen Irrtümer vorbehalten!
A195: >>>>>>>> | B195: Wir Beraten Sie gerne - Fragen Sie uns! office@pooldoktor.at | F195: Jetzt Termin vereinbaren!
A196: POOLDOKTOR Handels GmbH, Kotzinastrasse 15 - 4030 Linz, Österreich - FN 256113 m - AT74 1860 0000 1120 8626
I202: Die Fa. Pooldoktor existiert seit über 17 Jahren! | M202: Mittlerweile wurden über 10.000 Styroporpools von unseren Kunden erstellt!

Sheet POOLÜBERDACHUNG
A1: POOL Kalkulator PRO | F1: © WUNDERWORKS | I1: Bitte wählen Sie das gewünschte Modell in Zeile 32: | O1: >> Details auf der Homepage von pooldoktor.at
C2: POOLDOKTOR Handels GmbH
C3: Kotzinastrasse 15 - 4030 Linz - AT | J3: KLASSIK
C4: Telefon: + 43 732 38 22 22 | N4: TEXAS | R4: CUBIS *
C5: Email: office@pooldoktor.at
A7: Datum: | B7: =TODAY() -> 2024-03-21 | C7: Angebot gültig bis: | F7: =B7+21 -> 2024-04-11
F8: (Angebot freibleibend - Datum und Preise nur gültig mit aktuelle Inhalten bei PDF oder Ausdruck)
A9: Ihre Anschrift - Kundendaten
B10: bitte vollständig ausfüllen: | R10: *) CUBIS ist einseitig ohne Schiene, hat eine andere Laufschiene
A11: Rechnungsadresse | C11: Lieferadresse? | E11: falls abweichend | J11: HORIZONT | R11: & stärkere Profile - >> siehe eigenen Kalkulator CUBIS
A12: Titel | O12: LAUFSCHIENE (f. KLASSIK, TEXAS, HORIZONT)
A13: Name
A14: Straße
A15: PLZ | T15: Abmessungen zu Ihrer Auswahl:
A16: Ort | T16: Außenlänge: | U16: =C25+2*6 -> 862 | V16: (2x6 cm)
A17: Land | B17: Österreich | T17: Außenbreite: | U17: =D25+2*(IF(I24=2,O20, IF(I24=3,P20, IF(I24=4,Q20, IF(I24=5,R20, "" ) ) ) )) -> 432.2 | V17: plus 2x Schiene
A18: Telefon | I18: Außenmaß: (nur bei KLASSIK, TEXAS & HORIZONT) | T18: Außenhöhe: | U18: =IF(C41<>"",I25+6+6,I25) -> 157 | V18: anders falls Seiteneinstieg
A19: Email | I19: Ihr Innenmaß der Breite + Schiene x 2 je nach Anzahl der Module >>> | N19: Anzahl Module | O19: 2 | P19: 3 | Q19: 4 | R19: 5 | T19: Module: | U19: =VLOOKUP(A34,INDIRECT(C32 &"!B2:G131"),6) -> 4 | V19: Stück
C20: =IF($C$22="","",$C$22/100) -> 8 | D20: =IF($D$22="","",$D$22/100) -> 3.5 | I20: =CONCATENATE("Bei Ihrer Auswahl ist bis zu ",K25,"cm Innenmaß im Preis inbegriffen!") -> Bei Ihrer Auswahl ist bis zu 375cm Innenmaß im Preis inbegriffen! | N20: Breite Schiene | O20: 14.7 | P20: 21.6 | Q20: 28.6 | R20: 35.6 | T20: Modullänge: | U20: =ROUND(U16/U19+2,0) -> 218 | V20: Platzbedarf
A21: Fragen bzw. Angaben zu Ihrem Pool | C21: Länge? | D21: Breite? | N21: *) bei Elektroantrieb ist die Schiene 26,7mm breiter und in Summe 22,5mm hoch! | T21: Gleisanlage: | U21: =U16+(C40*100) -> 1132 | V21: inkl. Schienenverlängerung
A22: Bitte geben Sie das INNENMASS an (in cm): | C22: =IFERROR(IF(POOL!C22<>"",POOL!C22+POOL!C36+IF(POOL!C34="Fertigtreppe 200cm",75, IF(POOL!C34="Fertigtreppe 250cm",100, IF(POOL!C34="Fertigtreppe 300cm",125, 0 ) ) )+IF(POOL!C35="R100 - 200cm breit",100, IF(POOL!C35="R125 - 250cm breit",125, IF(POOL!C35="R150 - 300cm breit",150, 0 ) ) ),600),600) -> 800 | D22: =IFERROR(IF(POOL!D22<>"",POOL!D22,300),300) -> 350 | H22: << - Bitte geben sie in Zeile 22, die gewünschten INNENMASSE Ihrer Poolüberdachung ein! | T22: Breite Schiene: | U22: =IF(I24=2,O20, IF(I24=3,P20, IF(I24=4,Q20, IF(I24=5,R20, "" ) ) ) ) -> 28.6 | V22: ohne Elektro-Antrieb
A23: 2 | B23: cm Sicherheits-Toleranz pro Seite (links+rechts) wird automatisch einberechnet! | H23: (Der Kalkulator berechnet dann automatisch in Zeile 36 den korrekten Preis) -- ODER -- >> | O23: Manuell: | R23: (siehe Tabellenblätter unten) | T23: Innenlänge: | U23: =C25 -> 850 | V23: lt. Auswahl Zelle C25
A24: 30 | B24: cm Sicherheits-Toleranz in der Länge (vorne+hinten) wird kalkuliert! | I24: =VLOOKUP(A34,INDIRECT(C32 &"!B2:G131"),6) -> 4 | J24: Module | K24: =VLOOKUP(A34,INDIRECT(C32 &"!B2:G131"),4) -> 850 | L24: cm max. Länge möglich! | O24: (zB. wenn man mehr Module will und kürzen möchte!) | T24: Innenbreite: | U24: =D25 -> 375 | V24: Lt Auswahl Zelle D25
B25: Im Preis inbegriffenes max. Fertigungsmaß Innen? (Länge x Breite) >>>>>>> | C25: =K24 -> 850 | D25: =K25 -> 375 | F25: =IF(C32<>"CUBIS",CONCATENATE("Außenbreite: ",D25+2*(IF(I24=2,O20, IF(I24=3,P20, IF(I24=4,Q20, IF(I24=5,R20, "" ) ) ) ))," cm"),"") -> Außenbreite: 432,2 cm | I25: =VLOOKUP(A34,INDIRECT(C32 &"!B2:G131"),5) -> 145 | J25: cm Höhe | K25: =VLOOKUP(A34,INDIRECT(C32 &"!B2:G131"),3) -> 375 | L25: cm max. Breite möglich!
A27: ANGEBOT - POOLÜBERDACHUNG - Individuelle Sonderanfertigung (inkl. Montage) | L27: Profilfarbe ohne Aufpreis wählbar!
O28: * Aluminiumprofile mit pulverbeschichtung
A29: Artikelnr. | B29: Artikelname | C29: Menge | E29: Preis | F29: Summe | O29: * Polykarbonat Verglasung wählbar (bei Horizont & Cubis bereits inklusive)
O30: * Höhenunterschied zwischen den Segmenten 7 cm
O31: * abnehmbare Front und Rückwand
B32: Modell wählen >>>>> | C32: =IFERROR(IF(POOL!C622<>"",POOL!C622,"KLASSIK"),"KLASSIK") -> KLASSIK | E32: <<<<<< | O32: * Gummidichtung zwischen den Segmenten u. 10cm Gummilasche bei Front / Rückwand
O33: * 8 Stück !!! Laufrollen mit Edelstahl Kugellager pro Modul
A34: =IF(P23<>"",P23, IF( AND(D22+A23*2<=300), VLOOKUP(ROUNDUP((C22+A24)*2,-2)/2,INDIRECT(C32 &"!A2:I14"),2), IF( AND((D22+A23*2)<=325,(D22+A23*2)>300), VLOOKUP(ROUNDUP((C22+A24)*2,-2)/2,INDIRECT(C32 &"!A15:I27"),2), IF( AND((D22+A23*2)<=350,(D22+A23*2)>325), VLOOKUP(ROUNDUP((C22+A24)*2,-2)/2,INDIRECT(C32 &"!A28:G40"),2), IF( AND((D22+A23*2)<=375,(D22+A23*2)>350), VLOOKUP(ROUNDUP((C22+A24)*2,-2)/2,INDIRECT(C32 &"!A41:G53"),2), IF( AND((D22+A23*2)<=400,(D22+A23*2)>375), VLOOKUP(ROUNDUP((C22+A24)*2,-2)/2,INDIRECT(C32 &"!A54:G66"),2), IF( AND((D22+A23*2)<=425,(D22+A23*2)>400), VLOOKUP(ROUNDUP((C22+A24)*2,-2)/2,INDIRECT(C32 &"!A67:G79"),2), IF( AND((D22+A23*2)<=450,(D22+A23*2)>425), VLOOKUP(ROUNDUP((C22+A24)*2,-2)/2,INDIRECT(C32 &"!A80:G92"),2), IF( AND((D22+A23*2)<=475,(D22+A23*2)>450), VLOOKUP(ROUNDUP((C22+A24)*2,-2)/2,INDIRECT(C32 &"!A93:G105"),2), IF( AND((D22+A23*2)<=500,(D22+A23*2)>475), VLOOKUP(ROUNDUP((C22+A24)*2,-2)/2,INDIRECT(C32 &"!A106:G118"),2), IF( AND((D22+A23*2)<=525,(D22+A23*2)>500), VLOOKUP(ROUNDUP((C22+A24)*2,-2)/2,INDIRECT(C32 &"!A119:G131"),2), "xx" ) ) ) ) ) ) ) ) ) ) ) -> 33260055 | B34: =LEFT(VLOOKUP(A34,PREISE!$A:$B,2,FALSE), 65) -> Poolüberdachung - KLASSIK - 850 x 375 x 145 cm (LxBxH) - 4 Module | C34: 1 | D34: Stk. | E34: =VLOOKUP(A34,PREISE!$A:$C,3,FALSE) -> 6770 | F34: =IF(C34="","",C34*E34) -> 6770 | G34: =IF(OR(F34="",F34=0),"",CONCATENATE(C34,"*",A34)) -> 1*33260055 | O34: * durchgehende Laufschiene aus eloxiertem Aluminium, begehbar mit 15mm Höhe !!
I35: =IF(POOL!C34="Fertigtreppe 200cm",75, IF(POOL!C34="Fertigtreppe 250cm",100, IF(POOL!C34="Fertigtreppe 300cm",125, 0 ) ) ) -> 100 | K35: KLASSIK
A36: =IF(OR(C32="HORIZONT",C32="CUBIS"),"HORIZONT & CUBIS sind bereits komplett in Klarglas PK4 !!!","Aufpreis komplett in Klarglas PK4 (Polykarbonat)?") -> Aufpreis komplett in Klarglas PK4 (Polykarbonat)? | Q36: TEXAS
A37: =IF(OR(C32="HORIZONT",C32="CUBIS"),"",33261180) -> 33261180 | B37: =IF(OR(C32="HORIZONT",C32="CUBIS"),"",VLOOKUP(A37,PREISE!$A:$B,2,FALSE)) -> Aufpreis von Hohlkammer auf komplett Klarglas 4mm | C37: =IFERROR(IF(POOL!C623="JA",1,""),"") ->  | D37: x | E37: =ROUND(VLOOKUP(A34,INDIRECT(C32 &"!B2:H131"),7)/100*E34,-1) -> 1270 | F37: =IF(C37="","",C37*E37) ->  | G37: =IF(OR(F37="",F37=0),"",CONCATENATE(C37,"*",A37)) -> 
A39: Ausstattung / Zubehör
A40: 33259910 | B40: =VLOOKUP(A40,PREISE!$A:$B,2,FALSE) -> Schienenverlängerung pro Meter | C40: 2.7 | D40: m | E40: =VLOOKUP(A40,PREISE!$A:$C,3,FALSE) -> 59 | F40: =IF(C40="","",C40*E40) -> 159.3 | G40: =IF(OR(F40="",F40=0),"",CONCATENATE(C40,"*",A40)) -> 2,7*33259910
A41: 33259970 | B41: =VLOOKUP(A41,PREISE!$A:$B,2,FALSE) -> Seiten - Schiebetür im größten Modul | C41: 1 | D41: x | E41: =VLOOKUP(A41,PREISE!$A:$C,3,FALSE) -> 399 | F41: =IF(C41="","",C41*E41) -> 399
A42: 33261150 | B42: =VLOOKUP(A42,PREISE!$A:$B,2,FALSE) -> Drehtür / Angeltür | D42: x | E42: =VLOOKUP(A42,PREISE!$A:$C,3,FALSE) -> 379
A43: 33261160 | B43: =VLOOKUP(A43,PREISE!$A:$B,2,FALSE) -> Aufklappbare Lüftungsklappe | D43: x | E43: =VLOOKUP(A43,PREISE!$A:$C,3,FALSE) -> 279
A44: 33261170 | B44: =VLOOKUP(A44,PREISE!$A:$B,2,FALSE) -> Aufklappbare Dichtung | D44: x | E44: =VLOOKUP(A44,PREISE!$A:$C,3,FALSE) -> 279
A45: 33259980 | B45: =VLOOKUP(A45,PREISE!$A:$B,2,FALSE) -> Sicherheits - Schloss bei Einstieg | D45: x | E45: =VLOOKUP(A45,PREISE!$A:$C,3,FALSE) -> 59 | Q45: CUBIS (Details siehe eigene Kalkulator)
A46: 33259920 | B46: =VLOOKUP(A46,PREISE!$A:$B,2,FALSE) -> Elektroantrieb mit Fernbedienung | D46: x | E46: =VLOOKUP(A46,PREISE!$A:$C,3,FALSE) -> 1490 | F46: =IF(C46="","",C46*E46) ->  | G46: =IF(OR(F46="",F46=0),"",CONCATENATE(C46,"*",A46)) ->  | K46: HORIZONT
B47: =IF(C46<>"","*) bei Elektroantrieb ist die Schiene 26,7mm breiter und in Summe 22,5mm hoch!","") -> 
B49: Profilfarbe: | C49: Silber | D49: <<<< | E49: bitte wählen
B50: Bei Seiteneinstieg - Welche Seite?: | C50: Rechts | D50: <<<< | E50: bitte wählen
A52: Transportkosten und Montage der Poolüberdachung AB WERK
A54: 33259930 | B54: =LEFT(VLOOKUP(A54,PREISE!$A:$B,2,FALSE),63) -> Transportkosten Poolüberdachung AB WERK - pro km | C54: 590 | D54: km | E54: =VLOOKUP(A54,PREISE!$A:$C,3,FALSE) -> 0.9 | F54: =IF(C54="","",C54*E54) -> 531 | G54: =IF(OR(F54="",F54=0),"",CONCATENATE(C54,"*",A54)) -> 590*33259930
A55: 33259940 | B55: =LEFT(VLOOKUP(A55,PREISE!$A:$B,2,FALSE),63) -> Montage der Poolüberdachung | C55: 1 | D55: x | E55: =VLOOKUP(A55,PREISE!$A:$C,3,FALSE) -> 480 | F55: =IF(C55="","",C55*E55) -> 480 | G55: 1*33259940
B56: Km-Berechnung hin und retour AB WERK 75701 Valasske Mezirici, CZ: | C56: >> Zum Routenplaner
B57: Zum Zeitpunkt der Anlieferung bitte mindestens 3-4 Personen zum manuellen Abladen bereitstellen!
B59: %%%% 5% BONUS %%%% | G59: =IF(F59="","",CONCATENATE(C59,"*",B59)) -> 
B60: Auf die Poolüberdachung (ohne Transport und Montage) :
A61: Wenn Sie jetzt eine Poolüberdachung bestellen erhalten sie in Aktion 5% Rabatt !! | G61: =IF(F61="","",CONCATENATE(C61,"*",A61)) -> 
A62: 33259950 | B62: =IFERROR(VLOOKUP(A62,PREISE!$A:$B,2,FALSE),"") -> 5% Bonus bei Kauf der Poolüberdachung | C62: =IF(SUM(F34:F38)>0,1,"") -> 1 | D62: x | E62: =SUM(F34:F46)*0.05*-1 -> -366.415 | F62: =IF(C62="","",C62*E62) -> -366.415 | G62: 1*33259950
A65: Summe:
B66: =IF(OR($C$22="",$D$22=""),"Bitte geben Sie oben die Länge x Breite ihres Pools ein!","") ->  | C66: Nettosumme exkl. | F66: =SUM(F34:F62) -> 7972.885
A67: Land: | B67: =IF($B$17="","Bitte wählen Sie oben ihr Land aus!",$B$17) -> Österreich | C67: =IF($B$17="Österreich",0.2,IF($B$17="Deutschland",0.19,IF($B$17="Schweiz",0.081,0))) -> 0.2 | D67: Mehrwertsteuer | F67: =ROUNDUP(F66*C67,2) -> 1594.58
B69: Angebostsumme inklusive Mehrwertsteuer: | E69: =IF(F66<250,"Daten fehlen!",SUM(F66:F67)) -> 9567.465
F70: Kennen Sie schon das Pooldoktor Preisversprechen??
F71: Bitte Kontaktieren Sie uns, wenn Sie die gleiche Poolüberdachung woanders günstiger gesehen haben! | P71: * schnellere und einfachere Wartung - die zentrale Auffangvorrichtung ermöglicht ein
P72: einfacheres Verschieben der Module
A73: Die Lieferzeit für Ihre Poolüberdachung beträgt voraussichtlich: | C73: Zahlungsart: auf Rechnung | P73: * ein extrem stabiles und langlebiges System
A74: 33239960 | B74: =VLOOKUP(A74,PREISE!$A:$B,2,FALSE) -> 6 bis 8 Wochen | F74: Banküberweisung nach Warenerhalt | P74: * maximale Flexibilität und Komfort - nach dem Läsen der Kollektoren können
P75: sich die Segmente unabhängig voneinander in beide Richtungen bewegen
A76: Bitte lesen sie unsere Allgemeinen Geschäftsbedingungen: | C76: Angebot gültig bis: | F76: =B7+21 -> 2024-04-11
A77: http://www.pooldoktor.net/shop/geschaeftsbedingungen | C77: Preisänderungen wegen Irrtümer vorbehalten! | J77: Preiswerte Scheinenverlängerung verfügbar! | P77: Standard ausführung mit Verschlüssen und Kollektoren aus Edelstahl !!!
P78: Ein abschließbare Version des gesamten Systems ist erhältich !!!
A79: >>>>>>>> | B79: Wir Beraten Sie gerne - Fragen Sie uns! office@pooldoktor.at | F79: Jetzt Termin vereinbaren!
A80: POOLDOKTOR Handels GmbH, Kotzinastrasse 15 - 4030 Linz, Österreich - FN 256113 m - AT68 3800 0000 0089 2687 | I80: Sie haben Fragen? - Wir beraten Sie sehr gerne!
A82: Sie möchten dieses Angebot bestellen? >>>> Wir freuen uns sehr und danken Ihnen vielmals für ihr Vertrauen! | I82: Bitte schreiben Sie uns ihre Fragen & Wünsche schriftlich:
A83: 1. Bitte Senden Sie dieses Angebot als Excel- oder PDF-Datei mit ihren Adressdaten an office@pooldoktor.at | I83: >> KONTAKTFORMULAR | L83: office@pooldoktor.at
A84: 2. Ihr persönlicher Ansprechpartner, der ihnen beim ihrem Projekt mit Rat & Tat zur Seite steht, wird sich umgehend melden! | I84: (ein auf ihr Anliegen geschulter Mitarbeiter wird sich bei ihnen melden!)
A86: Ihr Ansprechpartner bei Pooldoktor: | I86: Sie möchten angerufen werden? Beratung per Telefon?
I87: >> RÜCKRUFSERVICE | L87: +43 732 38 22 22
L88: +49 851 20 42 824
I89: Sie möchten einen KOSTENLOSEN Beratungstermin in Linz?
I90: >> BERATUNGSTERMIN VEREINBAREN | M90: >> ANFAHRT
I92: Unseren Schauraum in Linz besuchen? | L92: >> VIRTUELLER RUNDGANG in 3D | O92: Unser Team freut sich Sie kennenzulernen!
C103: Details / Abmessungen zu ihrer Sonderanfertigung *:
B104: Außenlänge: | C104: =C25+2*6 -> 862 | D104: cm | E104: plus 2x6cm | I104: Die Fa. Pooldoktor existiert seit über 18 Jahren! | M104: Mittlerweile wurden über 12.000 Pools von unseren Kunden erstellt!
B105: Außenbreite: | C105: =D25+2*(IF(I24=2,O20, IF(I24=3,P20, IF(I24=4,Q20, IF(I24=5,R20, "" ) ) ) )) -> 432.2 | D105: cm | E105: plus 2xSchiene
B106: Außenhöhe: | C106: =IF(C41<>"",I25+6+6,I25) -> 157 | D106: cm | E106: anders bei Seiteneinstieg | I106: Abmessungen bzw. Bestellformulare *:
B107: Module: | C107: =I24 -> 4 | D107: Stk. | E107: Segmente | I107: KLASSIK - 3 Module | K107: TEXAS - 3 Module | M107: HORIZONT - 3 Module | P107: CUBIS - 3 Module
B108: Modullänge: | C108: =ROUND(C104/C107+5,0) -> 221 | D108: cm | E108: Platzbedarf circa | I108: KLASSIK - 4 Module | K108: TEXAS - 4 Module | M108: HORIZONT - 4 Module | P108: CUBIS - 4 Module
B109: Gleisanlage: | C109: =C104+C40*100 -> 1132 | D109: cm | E109: Gesamtlänge | I109: KLASSIK - 5 Module | K109: TEXAS - 5 Module | M109: HORIZONT - 5 Module | P109: CUBIS - 5 Module
B110: Breite Schiene: | C110: =IF(I24=2,O20, IF(I24=3,P20, IF(I24=4,Q20, IF(I24=5,R20, "" ) ) ) ) -> 28.6 | D110: cm | E110: =CONCATENATE("bei ",I26," Segmenten") -> bei Segmenten | R110: * Die Bestellformulare werden vom Verkäufer ausgefüllt und vom Kunden bei einer Bestellung mit Unterschrift bestätigt.
B111: Innenlänge: | C111: =C25 -> 850 | D111: cm | E111: lt. Auswahl Zelle C25 | I111: Schneelast & Winlast: *
B112: Innenbreite: | C112: =D25 -> 375 | D112: cm | E112: lt. Auswahl Zelle D25 | I112: KLASSIK: | K112: TEXAS: | M112: HORIZONT: | P112: CUBIS:
F113: * Abmessungen gütlig nur bei KLASSIK, TEXAS & HORIZONT | I113: SK4 ≤ 100 kg/m² | K113: SK3 ≤ 75 kg/m² | M113: SK1 ≤ 25 kg/m² | P113: SK4 ≤ 100 kg/m²
F114: (CUBIS siehe eigener Kalkulator) | I114: WK4 ≤ 88 km/h | K114: WK4 ≤ 88 km/h | M114: WK4 ≤ 88 km/h | P114: WK4 ≤ 100 km/h
R115: * Im Winter ist die Poolüberdachung von Neuschnee zu befreien, da beim Auftauen der nasse Schnee die angeführten Lastgrenzen leicht übersteigt.

Sheet SETS
A1: Set-Nr | B1: Länge | C1: Breite | D1: Tiefe | E1: Folie | F1: Leiter o Fertigtreppe? | G1: Römisch Gewebefolie? | H1: Form | I1: Artikelnr | J1: Poolüberdachung | K1: Preis | L1: SET - NAME | M1: Datei - Name
A2: 1 | B2: 400 | C2: 250 | D2: 150 | E2: FOLIENSACK | F2: Leiter | H2: ECKIG | I2: 11204001 | K2: =VLOOKUP(I2,PREISE!$A:$C,3,FALSE) -> 2819.81 | L2: POOL-SET-1-ECKIG-400x250x150-FOLIENSACK-Leiter | M2: POOL-SET-1-ECKIG-400x250x150-FOLIENSACK-Leiter.xlsm
A3: 2 | B3: 400 | C3: 250 | D3: 150 | E3: FOLIENSACK | F3: Fertigtreppe 200cm | H3: ECKIG | I3: 11204002 | K3: =VLOOKUP(I3,PREISE!$A:$C,3,FALSE) -> 3821.2 | L3: POOL-SET-2-ECKIG-400x250x150-FOLIENSACK-Fertigtreppe 200cm | M3: POOL-SET-2-ECKIG-400x250x150-FOLIENSACK-Fertigtreppe200cm.xlsm
A4: 3 | B4: 400 | C4: 250 | D4: 150 | E4: FOLIENSACK | F4: Eck - Einstelltreppe | H4: ECKIG | I4: 11204003 | K4: =VLOOKUP(I4,PREISE!$A:$C,3,FALSE) -> 4149.81 | L4: POOL-SET-3-ECKIG-400x250x150-FOLIENSACK-Eck - Einstelltreppe | M4: POOL-SET-3-ECKIG-400x250x150-FOLIENSACK-Eck-Einstelltreppe.xlsm
A5: 4 | B5: 400 | C5: 250 | D5: 150 | E5: GEWEBEFOLIE | H5: ECKIG | I5: 11204004 | K5: =VLOOKUP(I5,PREISE!$A:$C,3,FALSE) -> 5232.09 | L5: POOL-SET-4-ECKIG-400x250x150-GEWEBEFOLIE | M5: POOL-SET-4-ECKIG-400x250x150-GEWEBEFOLIE-.xlsm
A6: 5 | B6: 400 | C6: 250 | D6: 150 | E6: GEWEBEFOLIE | G6: R100 - 200cm breit | H6: ECKIG | I6: 11204005 | K6: =VLOOKUP(I6,PREISE!$A:$C,3,FALSE) -> 5565.33 | L6: POOL-SET-5-ECKIG-400x250x150-GEWEBEFOLIE-R100 - 200cm breit | M6: POOL-SET-5-ECKIG-400x250x150-GEWEBEFOLIE-R100-200cmbreit.xlsm
A7: 6 | B7: 500 | C7: 300 | D7: 150 | E7: FOLIENSACK | F7: Leiter | H7: ECKIG | I7: 11204006 | K7: =VLOOKUP(I7,PREISE!$A:$C,3,FALSE) -> 3130.51 | L7: POOL-SET-6-ECKIG-500x300x150-FOLIENSACK-Leiter | M7: POOL-SET-6-ECKIG-500x300x150-FOLIENSACK-Leiter.xlsm
A8: 7 | B8: 500 | C8: 300 | D8: 150 | E8: FOLIENSACK | F8: Fertigtreppe 200cm | H8: ECKIG | I8: 11204007 | K8: =VLOOKUP(I8,PREISE!$A:$C,3,FALSE) -> 4007.94 | L8: POOL-SET-7-ECKIG-500x300x150-FOLIENSACK-Fertigtreppe 200cm | M8: POOL-SET-7-ECKIG-500x300x150-FOLIENSACK-Fertigtreppe200cm.xlsm
A9: 8 | B9: 500 | C9: 300 | D9: 150 | E9: FOLIENSACK | F9: Eck - Einstelltreppe | H9: ECKIG | I9: 11204008 | K9: =VLOOKUP(I9,PREISE!$A:$C,3,FALSE) -> 4451.18 | L9: POOL-SET-8-ECKIG-500x300x150-FOLIENSACK-Eck - Einstelltreppe | M9: POOL-SET-8-ECKIG-500x300x150-FOLIENSACK-Eck-Einstelltreppe.xlsm
A10: 9 | B10: 500 | C10: 300 | D10: 150 | E10: GEWEBEFOLIE | H10: ECKIG | I10: 11204009 | K10: =VLOOKUP(I10,PREISE!$A:$C,3,FALSE) -> 5726 | L10: POOL-SET-9-ECKIG-500x300x150-GEWEBEFOLIE | M10: POOL-SET-9-ECKIG-500x300x150-GEWEBEFOLIE-.xlsm
A11: 10 | B11: 500 | C11: 300 | D11: 150 | E11: GEWEBEFOLIE | G11: R100 - 200cm breit | H11: ECKIG | I11: 11204010 | K11: =VLOOKUP(I11,PREISE!$A:$C,3,FALSE) -> 6059.24 | L11: POOL-SET-10-ECKIG-500x300x150-GEWEBEFOLIE--R100 - 200cm breit | M11: POOL-SET-10-ECKIG-500x300x150-GEWEBEFOLIE-R100-200cmbreit.xlsm
A12: 11 | B12: 600 | C12: 300 | D12: 150 | E12: FOLIENSACK | F12: Leiter | H12: ECKIG | I12: 11204011 | K12: =VLOOKUP(I12,PREISE!$A:$C,3,FALSE) -> 3249.55 | L12: POOL-SET-11-ECKIG-600x300x150-FOLIENSACK-Leiter | M12: POOL-SET-11-ECKIG-600x300x150-FOLIENSACK-Leiter.xlsm
A13: 12 | B13: 600 | C13: 300 | D13: 150 | E13: FOLIENSACK | F13: Fertigtreppe 200cm | H13: ECKIG | I13: 11204012 | K13: =VLOOKUP(I13,PREISE!$A:$C,3,FALSE) -> 4123.41 | L13: POOL-SET-12-ECKIG-600x300x150-FOLIENSACK-Fertigtreppe 200cm | M13: POOL-SET-12-ECKIG-600x300x150-FOLIENSACK-Fertigtreppe200cm.xlsm
A14: 13 | B14: 600 | C14: 300 | D14: 150 | E14: FOLIENSACK | F14: Eck - Einstelltreppe | H14: ECKIG | I14: 11204013 | K14: =VLOOKUP(I14,PREISE!$A:$C,3,FALSE) -> 4566.65 | L14: POOL-SET-13-ECKIG-600x300x150-FOLIENSACK-Eck - Einstelltreppe | M14: POOL-SET-13-ECKIG-600x300x150-FOLIENSACK-Eck-Einstelltreppe.xlsm
A15: 14 | B15: 600 | C15: 300 | D15: 150 | E15: GEWEBEFOLIE | H15: ECKIG | I15: 11204014 | K15: =VLOOKUP(I15,PREISE!$A:$C,3,FALSE) -> 5852 | L15: POOL-SET-14-ECKIG-600x300x150-GEWEBEFOLIE | M15: POOL-SET-14-ECKIG-600x300x150-GEWEBEFOLIE-.xlsm
A16: 15 | B16: 600 | C16: 300 | D16: 150 | E16: GEWEBEFOLIE | G16: R100 - 200cm breit | H16: ECKIG | I16: 11204015 | K16: =VLOOKUP(I16,PREISE!$A:$C,3,FALSE) -> 6185.24 | L16: POOL-SET-15-ECKIG-600x300x150-GEWEBEFOLIE--R100 - 200cm breit | M16: POOL-SET-15-ECKIG-600x300x150-GEWEBEFOLIE-R100-200cmbreit.xlsm
A17: 16 | B17: 600 | C17: 350 | D17: 150 | E17: FOLIENSACK | F17: Leiter | H17: ECKIG | I17: 11204016 | K17: =VLOOKUP(I17,PREISE!$A:$C,3,FALSE) -> 3676.3 | L17: POOL-SET-16-ECKIG-600x350x150-FOLIENSACK-Leiter | M17: POOL-SET-16-ECKIG-600x350x150-FOLIENSACK-Leiter.xlsm
A18: 17 | B18: 600 | C18: 350 | D18: 150 | E18: FOLIENSACK | F18: Fertigtreppe 250cm | H18: ECKIG | I18: 11204017 | K18: =VLOOKUP(I18,PREISE!$A:$C,3,FALSE) -> 4587.63 | L18: POOL-SET-17-ECKIG-600x350x150-FOLIENSACK-Fertigtreppe 250cm | M18: POOL-SET-17-ECKIG-600x350x150-FOLIENSACK-Fertigtreppe250cm.xlsm
A19: 18 | B19: 600 | C19: 350 | D19: 150 | E19: FOLIENSACK | F19: Eck - Einstelltreppe | H19: ECKIG | I19: 11204018 | K19: =VLOOKUP(I19,PREISE!$A:$C,3,FALSE) -> 4980.6 | L19: POOL-SET-18-ECKIG-600x350x150-FOLIENSACK-Eck - Einstelltreppe | M19: POOL-SET-18-ECKIG-600x350x150-FOLIENSACK-Eck-Einstelltreppe.xlsm
A20: 19 | B20: 600 | C20: 350 | D20: 150 | E20: GEWEBEFOLIE | H20: ECKIG | I20: 11204019 | K20: =VLOOKUP(I20,PREISE!$A:$C,3,FALSE) -> 6464.58 | L20: POOL-SET-19-ECKIG-600x350x150-GEWEBEFOLIE | M20: POOL-SET-19-ECKIG-600x350x150-GEWEBEFOLIE-.xlsm
A21: 20 | B21: 600 | C21: 350 | D21: 150 | E21: GEWEBEFOLIE | G21: R125 - 250cm breit | H21: ECKIG | I21: 11204020 | K21: =VLOOKUP(I21,PREISE!$A:$C,3,FALSE) -> 6842.64 | L21: POOL-SET-20-ECKIG-600x350x150-GEWEBEFOLIE--R125 - 250cm breit | M21: POOL-SET-20-ECKIG-600x350x150-GEWEBEFOLIE-R125-250cmbreit.xlsm
A22: 21 | B22: 700 | C22: 350 | D22: 150 | E22: FOLIENSACK | F22: Leiter | H22: ECKIG | I22: 11204021 | K22: =VLOOKUP(I22,PREISE!$A:$C,3,FALSE) -> 3910.21 | L22: POOL-SET-21-ECKIG-700x350x150-FOLIENSACK-Leiter | M22: POOL-SET-21-ECKIG-700x350x150-FOLIENSACK-Leiter.xlsm
A23: 22 | B23: 700 | C23: 350 | D23: 150 | E23: FOLIENSACK | F23: Fertigtreppe 250cm | H23: ECKIG | I23: 11204022 | K23: =VLOOKUP(I23,PREISE!$A:$C,3,FALSE) -> 4814.53 | L23: POOL-SET-22-ECKIG-700x350x150-FOLIENSACK-Fertigtreppe 250cm | M23: POOL-SET-22-ECKIG-700x350x150-FOLIENSACK-Fertigtreppe250cm.xlsm
A24: 23 | B24: 700 | C24: 350 | D24: 150 | E24: FOLIENSACK | F24: Eck - Einstelltreppe | H24: ECKIG | I24: 11204023 | K24: =VLOOKUP(I24,PREISE!$A:$C,3,FALSE) -> 5207.49 | L24: POOL-SET-23-ECKIG-700x350x150-FOLIENSACK-Eck - Einstelltreppe | M24: POOL-SET-23-ECKIG-700x350x150-FOLIENSACK-Eck-Einstelltreppe.xlsm
A25: 24 | B25: 700 | C25: 350 | D25: 150 | E25: GEWEBEFOLIE | H25: ECKIG | I25: 11204024 | K25: =VLOOKUP(I25,PREISE!$A:$C,3,FALSE) -> 6920.58 | L25: POOL-SET-24-ECKIG-700x350x150-GEWEBEFOLIE | M25: POOL-SET-24-ECKIG-700x350x150-GEWEBEFOLIE-.xlsm
A26: 25 | B26: 700 | C26: 350 | D26: 150 | E26: GEWEBEFOLIE | G26: R125 - 250cm breit | H26: ECKIG | I26: 11204025 | K26: =VLOOKUP(I26,PREISE!$A:$C,3,FALSE) -> 7298.64 | L26: POOL-SET-25-ECKIG-700x350x150-GEWEBEFOLIE--R125 - 250cm breit | M26: POOL-SET-25-ECKIG-700x350x150-GEWEBEFOLIE-R125-250cmbreit.xlsm
A27: 26 | B27: 700 | C27: 400 | D27: 150 | E27: FOLIENSACK | F27: Leiter | H27: ECKIG | I27: 11204026 | K27: =VLOOKUP(I27,PREISE!$A:$C,3,FALSE) -> 4006.1 | L27: POOL-SET-26-ECKIG-700x400x150-FOLIENSACK-Leiter | M27: POOL-SET-26-ECKIG-700x400x150-FOLIENSACK-Leiter.xlsm
A28: 27 | B28: 700 | C28: 400 | D28: 150 | E28: FOLIENSACK | F28: Fertigtreppe 300cm | H28: ECKIG | I28: 11204027 | K28: =VLOOKUP(I28,PREISE!$A:$C,3,FALSE) -> 5078 | L28: POOL-SET-27-ECKIG-700x400x150-FOLIENSACK-Fertigtreppe 300cm | M28: POOL-SET-27-ECKIG-700x400x150-FOLIENSACK-Fertigtreppe300cm.xlsm
A29: 28 | B29: 700 | C29: 400 | D29: 150 | E29: FOLIENSACK | F29: Eck - Einstelltreppe | H29: ECKIG | I29: 11204028 | K29: =VLOOKUP(I29,PREISE!$A:$C,3,FALSE) -> 5420.69 | L29: POOL-SET-28-ECKIG-700x400x150-FOLIENSACK-Eck - Einstelltreppe | M29: POOL-SET-28-ECKIG-700x400x150-FOLIENSACK-Eck-Einstelltreppe.xlsm
A30: 29 | B30: 700 | C30: 400 | D30: 150 | E30: GEWEBEFOLIE | H30: ECKIG | I30: 11204029 | K30: =VLOOKUP(I30,PREISE!$A:$C,3,FALSE) -> 7355.16 | L30: POOL-SET-29-ECKIG-700x400x150-GEWEBEFOLIE | M30: POOL-SET-29-ECKIG-700x400x150-GEWEBEFOLIE-.xlsm
A31: 30 | B31: 700 | C31: 400 | D31: 150 | E31: GEWEBEFOLIE | G31: R150 - 300cm breit | H31: ECKIG | I31: 11204030 | K31: =VLOOKUP(I31,PREISE!$A:$C,3,FALSE) -> 7958.04 | L31: POOL-SET-30-ECKIG-700x400x150-GEWEBEFOLIE--R150 - 300cm breit | M31: POOL-SET-30-ECKIG-700x400x150-GEWEBEFOLIE-R150-300cmbreit.xlsm
A32: 31 | B32: 800 | C32: 400 | D32: 150 | E32: FOLIENSACK | F32: Leiter | H32: ECKIG | I32: 11204031 | K32: =VLOOKUP(I32,PREISE!$A:$C,3,FALSE) -> 4107.11 | L32: POOL-SET-31-ECKIG-800x400x150-FOLIENSACK-Leiter | M32: POOL-SET-31-ECKIG-800x400x150-FOLIENSACK-Leiter.xlsm
A33: 32 | B33: 800 | C33: 400 | D33: 150 | E33: FOLIENSACK | F33: Fertigtreppe 300cm | H33: ECKIG | I33: 11204032 | K33: =VLOOKUP(I33,PREISE!$A:$C,3,FALSE) -> 5179 | L33: POOL-SET-32-ECKIG-800x400x150-FOLIENSACK-Fertigtreppe 300cm | M33: POOL-SET-32-ECKIG-800x400x150-FOLIENSACK-Fertigtreppe300cm.xlsm
A34: 33 | B34: 800 | C34: 400 | D34: 150 | E34: FOLIENSACK | F34: Eck - Einstelltreppe | H34: ECKIG | I34: 11204033 | K34: =VLOOKUP(I34,PREISE!$A:$C,3,FALSE) -> 5521.7 | L34: POOL-SET-33-ECKIG-800x400x150-FOLIENSACK-Eck - Einstelltreppe | M34: POOL-SET-33-ECKIG-800x400x150-FOLIENSACK-Eck-Einstelltreppe.xlsm
A35: 34 | B35: 800 | C35: 400 | D35: 150 | E35: GEWEBEFOLIE | H35: ECKIG | I35: 11204034 | K35: =VLOOKUP(I35,PREISE!$A:$C,3,FALSE) -> 7866.16 | L35: POOL-SET-34-ECKIG-800x400x150-GEWEBEFOLIE | M35: POOL-SET-34-ECKIG-800x400x150-GEWEBEFOLIE-.xlsm
A36: 35 | B36: 800 | C36: 400 | D36: 150 | E36: GEWEBEFOLIE | G36: R150 - 300cm breit | H36: ECKIG | I36: 11204035 | K36: =VLOOKUP(I36,PREISE!$A:$C,3,FALSE) -> 8469.04 | L36: POOL-SET-35-ECKIG-800x400x150-GEWEBEFOLIE--R150 - 300cm breit | M36: POOL-SET-35-ECKIG-800x400x150-GEWEBEFOLIE-R150-300cmbreit.xlsm
A37: 36 | B37: 900 | C37: 400 | D37: 150 | E37: FOLIENSACK | F37: Leiter | H37: ECKIG | I37: 11204036 | K37: =VLOOKUP(I37,PREISE!$A:$C,3,FALSE) -> 4480.64 | L37: POOL-SET-36-ECKIG-900x400x150-FOLIENSACK-Leiter | M37: POOL-SET-36-ECKIG-900x400x150-FOLIENSACK-Leiter.xlsm
A38: 37 | B38: 900 | C38: 400 | D38: 150 | E38: FOLIENSACK | F38: Fertigtreppe 300cm | H38: ECKIG | I38: 11204037 | K38: =VLOOKUP(I38,PREISE!$A:$C,3,FALSE) -> 5552.54 | L38: POOL-SET-37-ECKIG-900x400x150-FOLIENSACK-Fertigtreppe 300cm | M38: POOL-SET-37-ECKIG-900x400x150-FOLIENSACK-Fertigtreppe300cm.xlsm
A39: 38 | B39: 900 | C39: 400 | D39: 150 | E39: FOLIENSACK | F39: Eck - Einstelltreppe | H39: ECKIG | I39: 11204038 | K39: =VLOOKUP(I39,PREISE!$A:$C,3,FALSE) -> 5895.23 | L39: POOL-SET-38-ECKIG-900x400x150-FOLIENSACK-Eck - Einstelltreppe | M39: POOL-SET-38-ECKIG-900x400x150-FOLIENSACK-Eck-Einstelltreppe.xlsm
A40: 39 | B40: 900 | C40: 400 | D40: 150 | E40: GEWEBEFOLIE | H40: ECKIG | I40: 11204039 | K40: =VLOOKUP(I40,PREISE!$A:$C,3,FALSE) -> 8377.16 | L40: POOL-SET-39-ECKIG-900x400x150-GEWEBEFOLIE | M40: POOL-SET-39-ECKIG-900x400x150-GEWEBEFOLIE-.xlsm
A41: 40 | B41: 900 | C41: 400 | D41: 150 | E41: GEWEBEFOLIE | G41: R150 - 300cm breit | H41: ECKIG | I41: 11204040 | K41: =VLOOKUP(I41,PREISE!$A:$C,3,FALSE) -> 8980.04 | L41: POOL-SET-40-ECKIG-900x400x150-GEWEBEFOLIE--R150 - 300cm breit | M41: POOL-SET-40-ECKIG-900x400x150-GEWEBEFOLIE-R150-300cmbreit.xlsm
A42: 41 | B42: 1000 | C42: 500 | D42: 150 | E42: FOLIENSACK | F42: Leiter | H42: ECKIG | I42: 11204041 | K42: =VLOOKUP(I42,PREISE!$A:$C,3,FALSE) -> 5123.75 | L42: POOL-SET-41-ECKIG-1000x500x150-FOLIENSACK-Leiter | M42: POOL-SET-41-ECKIG-1000x500x150-FOLIENSACK-Leiter.xlsm
A43: 42 | B43: 1000 | C43: 500 | D43: 150 | E43: FOLIENSACK | F43: Fertigtreppe 300cm | H43: ECKIG | I43: 11204042 | K43: =VLOOKUP(I43,PREISE!$A:$C,3,FALSE) -> 6195.65 | L43: POOL-SET-42-ECKIG-1000x500x150-FOLIENSACK-Fertigtreppe 300cm | M43: POOL-SET-42-ECKIG-1000x500x150-FOLIENSACK-Fertigtreppe300cm.xlsm
A44: 43 | B44: 1000 | C44: 500 | D44: 150 | E44: FOLIENSACK | F44: Eck - Einstelltreppe | H44: ECKIG | I44: 11204043 | K44: =VLOOKUP(I44,PREISE!$A:$C,3,FALSE) -> 6538.34 | L44: POOL-SET-43-ECKIG-1000x500x150-FOLIENSACK-Eck - Einstelltreppe | M44: POOL-SET-43-ECKIG-1000x500x150-FOLIENSACK-Eck-Einstelltreppe.xlsm
A45: 44 | B45: 1000 | C45: 500 | D45: 150 | E45: GEWEBEFOLIE | H45: ECKIG | I45: 11204044 | K45: =VLOOKUP(I45,PREISE!$A:$C,3,FALSE) -> 10194 | L45: POOL-SET-44-ECKIG-1000x500x150-GEWEBEFOLIE | M45: POOL-SET-44-ECKIG-1000x500x150-GEWEBEFOLIE-.xlsm
A46: 45 | B46: 1000 | C46: 500 | D46: 150 | E46: GEWEBEFOLIE | G46: R150 - 300cm breit | H46: ECKIG | I46: 11204045 | K46: =VLOOKUP(I46,PREISE!$A:$C,3,FALSE) -> 10787.19 | L46: POOL-SET-45-ECKIG-1000x500x150-GEWEBEFOLIE--R150 - 300cm breit | M46: POOL-SET-45-ECKIG-1000x500x150-GEWEBEFOLIE-R150-300cmbreit.xlsm
A47: 46 | B47: 600 | C47: 300 | D47: 150 | E47: FOLIENSACK | F47: Leiter | H47: OVAL | I47: 11204046 | K47: =VLOOKUP(I47,PREISE!$A:$C,3,FALSE) -> 3491.63 | L47: POOL-SET-46-OVAL-600x300x150-FOLIENSACK-Leiter | M47: POOL-SET-46-OVAL-600x300x150-FOLIENSACK-Leiter.xlsm
A48: 47 | B48: 600 | C48: 300 | D48: 150 | E48: FOLIENSACK | F48: Fertigtreppe 200cm | H48: OVAL | I48: 11204047 | K48: =VLOOKUP(I48,PREISE!$A:$C,3,FALSE) -> 4342.9 | L48: POOL-SET-47-OVAL-600x300x150-FOLIENSACK-Fertigtreppe 200cm | M48: POOL-SET-47-OVAL-600x300x150-FOLIENSACK-Fertigtreppe200cm.xlsm
A49: 48 | B49: 600 | C49: 300 | D49: 150 | E49: GEWEBEFOLIE | H49: OVAL | I49: 11204048 | K49: =VLOOKUP(I49,PREISE!$A:$C,3,FALSE) -> 6113.54 | L49: POOL-SET-48-OVAL-600x300x150-GEWEBEFOLIE | M49: POOL-SET-48-OVAL-600x300x150-GEWEBEFOLIE-.xlsm
A50: 49 | B50: 600 | C50: 300 | D50: 150 | E50: GEWEBEFOLIE | G50: R100 - 200cm breit | H50: OVAL | I50: 11204049 | K50: =VLOOKUP(I50,PREISE!$A:$C,3,FALSE) -> 6430.98 | L50: POOL-SET-49-OVAL-600x300x150-GEWEBEFOLIE--R100 - 200cm breit | M50: POOL-SET-49-OVAL-600x300x150-GEWEBEFOLIE-R100-200cmbreit.xlsm
A51: 50 | B51: 700 | C51: 350 | D51: 150 | E51: FOLIENSACK | F51: Leiter | H51: OVAL | I51: 11204050 | K51: =VLOOKUP(I51,PREISE!$A:$C,3,FALSE) -> 3940.47 | L51: POOL-SET-50-OVAL-700x350x150-FOLIENSACK-Leiter | M51: POOL-SET-50-OVAL-700x350x150-FOLIENSACK-Leiter.xlsm
A52: 51 | B52: 700 | C52: 350 | D52: 150 | E52: FOLIENSACK | F52: Fertigtreppe 250cm | H52: OVAL | I52: 11204051 | K52: =VLOOKUP(I52,PREISE!$A:$C,3,FALSE) -> 4828.55 | L52: POOL-SET-51-OVAL-700x350x150-FOLIENSACK-Fertigtreppe 250cm | M52: POOL-SET-51-OVAL-700x350x150-FOLIENSACK-Fertigtreppe250cm.xlsm
A53: 52 | B53: 700 | C53: 350 | D53: 150 | E53: GEWEBEFOLIE | H53: OVAL | I53: 11204052 | K53: =VLOOKUP(I53,PREISE!$A:$C,3,FALSE) -> 6750.02 | L53: POOL-SET-52-OVAL-700x350x150-GEWEBEFOLIE | M53: POOL-SET-52-OVAL-700x350x150-GEWEBEFOLIE-.xlsm
A54: 53 | B54: 700 | C54: 350 | D54: 150 | E54: GEWEBEFOLIE | G54: R125 - 250cm breit | H54: OVAL | I54: 11204053 | K54: =VLOOKUP(I54,PREISE!$A:$C,3,FALSE) -> 7112.28 | L54: POOL-SET-53-OVAL-700x350x150-GEWEBEFOLIE--R125 - 250cm breit | M54: POOL-SET-53-OVAL-700x350x150-GEWEBEFOLIE-R125-250cmbreit.xlsm
A55: 54 | B55: 800 | C55: 400 | D55: 150 | E55: FOLIENSACK | F55: Leiter | H55: OVAL | I55: 11204054 | K55: =VLOOKUP(I55,PREISE!$A:$C,3,FALSE) -> 4183.19 | L55: POOL-SET-54-OVAL-800x400x150-FOLIENSACK-Leiter | M55: POOL-SET-54-OVAL-800x400x150-FOLIENSACK-Leiter.xlsm
A56: 55 | B56: 800 | C56: 400 | D56: 150 | E56: FOLIENSACK | F56: Fertigtreppe 300cm | H56: OVAL | I56: 11204055 | K56: =VLOOKUP(I56,PREISE!$A:$C,3,FALSE) -> 5239.77 | L56: POOL-SET-55-OVAL-800x400x150-FOLIENSACK-Fertigtreppe 300cm | M56: POOL-SET-55-OVAL-800x400x150-FOLIENSACK-Fertigtreppe300cm.xlsm
A57: 56 | B57: 800 | C57: 400 | D57: 150 | E57: GEWEBEFOLIE | H57: OVAL | I57: 11204056 | K57: =VLOOKUP(I57,PREISE!$A:$C,3,FALSE) -> 7667.24 | L57: POOL-SET-56-OVAL-800x400x150-GEWEBEFOLIE | M57: POOL-SET-56-OVAL-800x400x150-GEWEBEFOLIE-.xlsm
A58: 57 | B58: 800 | C58: 400 | D58: 150 | E58: GEWEBEFOLIE | G58: R150 - 300cm breit | H58: OVAL | I58: 11204057 | K58: =VLOOKUP(I58,PREISE!$A:$C,3,FALSE) -> 8254.32 | L58: POOL-SET-57-OVAL-800x400x150-GEWEBEFOLIE--R150 - 300cm breit | M58: POOL-SET-57-OVAL-800x400x150-GEWEBEFOLIE-R150-300cmbreit.xlsm
A59: 58 | B59: 1000 | C59: 500 | D59: 150 | E59: FOLIENSACK | F59: Leiter | H59: OVAL | I59: 11204058 | K59: =VLOOKUP(I59,PREISE!$A:$C,3,FALSE) -> 5135.29 | L59: POOL-SET-58-OVAL-1000x500x150-FOLIENSACK-Leiter | M59: POOL-SET-58-OVAL-1000x500x150-FOLIENSACK-Leiter.xlsm
A60: 59 | B60: 1000 | C60: 500 | D60: 150 | E60: FOLIENSACK | F60: Fertigtreppe 300cm | H60: OVAL | I60: 11204059 | K60: =VLOOKUP(I60,PREISE!$A:$C,3,FALSE) -> 6191.86 | L60: POOL-SET-59-OVAL-1000x500x150-FOLIENSACK-Fertigtreppe 300cm | M60: POOL-SET-59-OVAL-1000x500x150-FOLIENSACK-Fertigtreppe300cm.xlsm
A61: 60 | B61: 1000 | C61: 500 | D61: 150 | E61: GEWEBEFOLIE | H61: OVAL | I61: 11204060 | K61: =VLOOKUP(I61,PREISE!$A:$C,3,FALSE) -> 9774.97 | L61: POOL-SET-60-OVAL-1000x500x150-GEWEBEFOLIE | M61: POOL-SET-60-OVAL-1000x500x150-GEWEBEFOLIE-.xlsm
A62: 61 | B62: 1000 | C62: 500 | D62: 150 | E62: GEWEBEFOLIE | G62: R150 - 300cm breit | H62: OVAL | I62: 11204061 | K62: =VLOOKUP(I62,PREISE!$A:$C,3,FALSE) -> 10352.84 | L62: POOL-SET-61-OVAL-1000x500x150-GEWEBEFOLIE--R150 - 300cm breit | M62: POOL-SET-61-OVAL-1000x500x150-GEWEBEFOLIE-R150-300cmbreit.xlsm
A63: 62 | B63: 350 | C63: 350 | D63: 150 | E63: FOLIENSACK | F63: Leiter | H63: RUND | I63: 11204062 | K63: =VLOOKUP(I63,PREISE!$A:$C,3,FALSE) -> 3014.73 | L63: POOL-SET-62-RUND-350x350x150-FOLIENSACK-Leiter | M63: POOL-SET-62-RUND-350x350x150-FOLIENSACK-Leiter.xlsm
A64: 63 | B64: 350 | C64: 350 | D64: 150 | E64: GEWEBEFOLIE | H64: RUND | I64: 11204063 | K64: =VLOOKUP(I64,PREISE!$A:$C,3,FALSE) -> 5489.03 | L64: POOL-SET-63-RUND-350x350x150-GEWEBEFOLIE | M64: POOL-SET-63-RUND-350x350x150-GEWEBEFOLIE-.xlsm
A65: 64 | B65: 400 | C65: 400 | D65: 150 | E65: FOLIENSACK | F65: Leiter | H65: RUND | I65: 11204064 | K65: =VLOOKUP(I65,PREISE!$A:$C,3,FALSE) -> 3251.81 | L65: POOL-SET-64-RUND-400x400x150-FOLIENSACK-Leiter | M65: POOL-SET-64-RUND-400x400x150-FOLIENSACK-Leiter.xlsm
A66: 65 | B66: 400 | C66: 400 | D66: 150 | E66: GEWEBEFOLIE | H66: RUND | I66: 11204065 | K66: =VLOOKUP(I66,PREISE!$A:$C,3,FALSE) -> 5946.58 | L66: POOL-SET-65-RUND-400x400x150-GEWEBEFOLIE | M66: POOL-SET-65-RUND-400x400x150-GEWEBEFOLIE-.xlsm
A67: 66 | B67: 450 | C67: 450 | D67: 150 | E67: FOLIENSACK | F67: Leiter | H67: RUND | I67: 11204066 | K67: =VLOOKUP(I67,PREISE!$A:$C,3,FALSE) -> 3501.31 | L67: POOL-SET-66-RUND-450x450x150-FOLIENSACK-Leiter | M67: POOL-SET-66-RUND-450x450x150-FOLIENSACK-Leiter.xlsm
A68: 67 | B68: 450 | C68: 450 | D68: 150 | E68: GEWEBEFOLIE | H68: RUND | I68: 11204067 | K68: =VLOOKUP(I68,PREISE!$A:$C,3,FALSE) -> 6154.14 | L68: POOL-SET-67-RUND-450x450x150-GEWEBEFOLIE | M68: POOL-SET-67-RUND-450x450x150-GEWEBEFOLIE-.xlsm
A69: 68 | B69: 500 | C69: 500 | D69: 150 | E69: FOLIENSACK | F69: Leiter | H69: RUND | I69: 11204068 | K69: =VLOOKUP(I69,PREISE!$A:$C,3,FALSE) -> 3740.89 | L69: POOL-SET-68-RUND-500x500x150-FOLIENSACK-Leiter | M69: POOL-SET-68-RUND-500x500x150-FOLIENSACK-Leiter.xlsm
A70: 69 | B70: 500 | C70: 500 | D70: 150 | E70: GEWEBEFOLIE | H70: RUND | I70: 11204069 | K70: =VLOOKUP(I70,PREISE!$A:$C,3,FALSE) -> 6526.78 | L70: POOL-SET-69-RUND-500x500x150-GEWEBEFOLIE | M70: POOL-SET-69-RUND-500x500x150-GEWEBEFOLIE-.xlsm
A71: 70 | B71: 550 | C71: 550 | D71: 150 | E71: FOLIENSACK | F71: Leiter | H71: RUND | I71: 11204070 | K71: =VLOOKUP(I71,PREISE!$A:$C,3,FALSE) -> 3882.73 | L71: POOL-SET-70-RUND-550x550x150-FOLIENSACK-Leiter | M71: POOL-SET-70-RUND-550x550x150-FOLIENSACK-Leiter.xlsm
A72: 71 | B72: 550 | C72: 550 | D72: 150 | E72: GEWEBEFOLIE | H72: RUND | I72: 11204071 | K72: =VLOOKUP(I72,PREISE!$A:$C,3,FALSE) -> 7216 | L72: POOL-SET-71-RUND-550x550x150-GEWEBEFOLIE | M72: POOL-SET-71-RUND-550x550x150-GEWEBEFOLIE-.xlsm
A73: 72 | B73: 600 | C73: 600 | D73: 150 | E73: FOLIENSACK | F73: Leiter | H73: RUND | I73: 11204072 | K73: =VLOOKUP(I73,PREISE!$A:$C,3,FALSE) -> 4136.79 | L73: POOL-SET-72-RUND-600x600x150-FOLIENSACK-Leiter | M73: POOL-SET-72-RUND-600x600x150-FOLIENSACK-Leiter.xlsm
A74: 73 | B74: 600 | C74: 600 | D74: 150 | E74: GEWEBEFOLIE | H74: RUND | I74: 11204073 | K74: =VLOOKUP(I74,PREISE!$A:$C,3,FALSE) -> 7808.64 | L74: POOL-SET-73-RUND-600x600x150-GEWEBEFOLIE | M74: POOL-SET-73-RUND-600x600x150-GEWEBEFOLIE-.xlsm
A75: 74 | B75: 600 | C75: 300 | D75: 150 | E75: FOLIENSACK | F75: Eck - Einstelltreppe | H75: ECKIG | I75: 11204074 | J75: KLASIK-A | K75: =VLOOKUP(I75,PREISE!$A:$C,3,FALSE) -> 7943.13 | L75: POOL-SET-74-ECKIG-600x300x150-FOLIENSACK-Eck - Einstelltreppe--KLASIK-A | M75: POOL-SET-74-ECKIG-600x300x150-FOLIENSACK-Eck-Einstelltreppe-KLASIK-A.xlsm
A76: 75 | B76: 700 | C76: 350 | D76: 150 | E76: FOLIENSACK | F76: Eck - Einstelltreppe | H76: ECKIG | I76: 11204075 | J76: KLASIK-B | K76: =VLOOKUP(I76,PREISE!$A:$C,3,FALSE) -> 10278.26 | L76: POOL-SET-75-ECKIG-700x350x150-FOLIENSACK-Eck - Einstelltreppe--KLASIK-B | M76: POOL-SET-75-ECKIG-700x350x150-FOLIENSACK-Eck-Einstelltreppe-KLASIK-B.xlsm
A77: 76 | B77: 800 | C77: 400 | D77: 150 | E77: FOLIENSACK | F77: Eck - Einstelltreppe | H77: ECKIG | I77: 11204076 | J77: KLASIK-B | K77: =VLOOKUP(I77,PREISE!$A:$C,3,FALSE) -> 10590.85 | L77: POOL-SET-76-ECKIG-800x400x150-FOLIENSACK-Eck - Einstelltreppe--KLASIK-B | M77: POOL-SET-76-ECKIG-800x400x150-FOLIENSACK-Eck-Einstelltreppe-KLASIK-B.xlsm
A78: 77 | B78: 1000 | C78: 500 | D78: 150 | E78: FOLIENSACK | F78: Eck - Einstelltreppe | H78: ECKIG | I78: 11204077 | J78: KLASIK-C | K78: =VLOOKUP(I78,PREISE!$A:$C,3,FALSE) -> 13722.13 | L78: POOL-SET-77-ECKIG-1000x500x150-FOLIENSACK-Eck - Einstelltreppe--KLASIK-C | M78: POOL-SET-77-ECKIG-1000x500x150-FOLIENSACK-Eck-Einstelltreppe-KLASIK-C.xlsm
A79: 78 | B79: 500 | C79: 300 | D79: 150 | E79: FOLIENSACK | F79: Eck - Folientreppe | H79: ECKIG | I79: 11204078 | K79: =VLOOKUP(I79,PREISE!$A:$C,3,FALSE) -> 3713.85 | L79: POOL-SET-78-ECKIG-500x300x150-FOLIENSACK-Eck-Folientreppe | M79: POOL-SET-78-ECKIG-500x300x150-FOLIENSACK-Eck-Folientreppe.xlsm
A80: 79 | B80: 600 | C80: 300 | D80: 150 | E80: FOLIENSACK | F80: Eck - Folientreppe | H80: ECKIG | I80: 11204079 | K80: =VLOOKUP(I80,PREISE!$A:$C,3,FALSE) -> 3924.29 | L80: POOL-SET-79-ECKIG-600x300x150-FOLIENSACK-Eck-Folientreppe | M80: POOL-SET-79-ECKIG-600x300x150-FOLIENSACK-Eck-Folientreppe.xlsm
A81: 80 | B81: 700 | C81: 350 | D81: 150 | E81: FOLIENSACK | F81: Eck - Folientreppe | H81: ECKIG | I81: 11204080 | K81: =VLOOKUP(I81,PREISE!$A:$C,3,FALSE) -> 4450.59 | L81: POOL-SET-80-ECKIG-700x350x150-FOLIENSACK-Eck-Folientreppe | M81: POOL-SET-80-ECKIG-700x350x150-FOLIENSACK-Eck-Folientreppe.xlsm
A82: 81 | B82: 800 | C82: 400 | D82: 150 | E82: FOLIENSACK | F82: Eck - Folientreppe | H82: ECKIG | I82: 11204081 | K82: =VLOOKUP(I82,PREISE!$A:$C,3,FALSE) -> 4788.11 | L82: POOL-SET-81-ECKIG-800x400x150-FOLIENSACK-Eck-Folientreppe | M82: POOL-SET-81-ECKIG-800x400x150-FOLIENSACK-Eck-Folientreppe.xlsm
A83: 82 | B83: 1000 | C83: 500 | D83: 150 | E83: FOLIENSACK | F83: Eck - Folientreppe | H83: ECKIG | I83: 11204082 | K83: =VLOOKUP(I83,PREISE!$A:$C,3,FALSE) -> 5904.52 | L83: POOL-SET-82-ECKIG-1000x500x150-FOLIENSACK-Eck-Folientreppe | M83: POOL-SET-82-ECKIG-1000x500x150-FOLIENSACK-Eck-Folientreppe.xlsm
A84: 83 | B84: 500 | C84: 300 | D84: 150 | E84: FOLIENSACK | F84: Gerade - Folientreppe | H84: ECKIG | I84: 11204083 | K84: =VLOOKUP(I84,PREISE!$A:$C,3,FALSE) -> 3838.85 | L84: POOL-SET-83-ECKIG-500x300x150-FOLIENSACK-Gerade-Folientreppe | M84: POOL-SET-83-ECKIG-500x300x150-FOLIENSACK-Gerade-Folientreppe.xlsm
A85: 84 | B85: 600 | C85: 300 | D85: 150 | E85: FOLIENSACK | F85: Gerade - Folientreppe | H85: ECKIG | I85: 11204084 | K85: =VLOOKUP(I85,PREISE!$A:$C,3,FALSE) -> 3927.81 | L85: POOL-SET-84-ECKIG-600x300x150-FOLIENSACK-Gerade-Folientreppe | M85: POOL-SET-84-ECKIG-600x300x150-FOLIENSACK-Gerade-Folientreppe.xlsm
A86: 85 | B86: 700 | C86: 350 | D86: 150 | E86: FOLIENSACK | F86: Gerade - Folientreppe | H86: ECKIG | I86: 11204085 | K86: =VLOOKUP(I86,PREISE!$A:$C,3,FALSE) -> 4571.84 | L86: POOL-SET-85-ECKIG-700x350x150-FOLIENSACK-Gerade-Folientreppe | M86: POOL-SET-85-ECKIG-700x350x150-FOLIENSACK-Gerade-Folientreppe.xlsm
A87: 86 | B87: 800 | C87: 400 | D87: 150 | E87: FOLIENSACK | F87: Gerade - Folientreppe | H87: ECKIG | I87: 11204086 | K87: =VLOOKUP(I87,PREISE!$A:$C,3,FALSE) -> 4909.36 | L87: POOL-SET-86-ECKIG-800x400x150-FOLIENSACK-Gerade-Folientreppe | M87: POOL-SET-86-ECKIG-800x400x150-FOLIENSACK-Gerade-Folientreppe.xlsm
A88: 87 | B88: 1000 | C88: 500 | D88: 150 | E88: FOLIENSACK | F88: Gerade - Folientreppe | H88: ECKIG | I88: 11204087 | K88: =VLOOKUP(I88,PREISE!$A:$C,3,FALSE) -> 6025.77 | L88: POOL-SET-87-ECKIG-1000x500x150-FOLIENSACK-Gerade-Folientreppe | M88: POOL-SET-87-ECKIG-1000x500x150-FOLIENSACK-Gerade-Folientreppe.xlsm

Sheet KLASSIK (hidden)
A1: Länge | B1: ARTNUM | C1: KURZNAME | D1: Breite | E1: Länge | F1: Höhe | G1: Module | H1: AUFPREIS_PK4
A2: 550 | B2: 33260010 | C2: Poolüberdachung - KLASSIK - 550 x 300 x 115 cm (LxBxH) - 3 Module | D2: 300 | E2: 550 | F2: 115 | G2: 3 | H2: 23.6
A3: 600 | B3: 33260011 | C3: Poolüberdachung - KLASSIK - 600 x 300 x 115 cm (LxBxH) - 3 Module | D3: 300 | E3: 600 | F3: 115 | G3: 3 | H3: 23.6
A4: 650 | B4: 33260012 | C4: Poolüberdachung - KLASSIK - 650 x 300 x 115 cm (LxBxH) - 3 Module | D4: 300 | E4: 650 | F4: 115 | G4: 3 | H4: 23.6
A5: 700 | B5: 33260013 | C5: Poolüberdachung - KLASSIK - 700 x 300 x 115 cm (LxBxH) - 3 Module | D5: 300 | E5: 700 | F5: 115 | G5: 3 | H5: 23.6
A6: 750 | B6: 33260014 | C6: Poolüberdachung - KLASSIK - 750 x 300 x 115 cm (LxBxH) - 3 Module | D6: 300 | E6: 750 | F6: 115 | G6: 3 | H6: 23.6
A7: 800 | B7: 33260015 | C7: Poolüberdachung - KLASSIK - 800 x 300 x 125 cm (LxBxH) - 4 Module | D7: 300 | E7: 800 | F7: 125 | G7: 4 | H7: 17.6
A8: 850 | B8: 33260016 | C8: Poolüberdachung - KLASSIK - 850 x 300 x 125 cm (LxBxH) - 4 Module | D8: 300 | E8: 850 | F8: 125 | G8: 4 | H8: 17.6
A9: 900 | B9: 33260017 | C9: Poolüberdachung - KLASSIK - 900 x 300 x 125 cm (LxBxH) - 4 Module | D9: 300 | E9: 900 | F9: 125 | G9: 4 | H9: 23.9
A10: 950 | B10: 33260018 | C10: Poolüberdachung - KLASSIK - 950 x 300 x 125 cm (LxBxH) - 4 Module | D10: 300 | E10: 950 | F10: 125 | G10: 4 | H10: 23.9
A11: 1000 | B11: 33260019 | C11: Poolüberdachung - KLASSIK - 1000 x 300 x 125 cm (LxBxH) - 4 Module | D11: 300 | E11: 1000 | F11: 125 | G11: 4 | H11: 23.9
A12: 1050 | B12: 33260020 | C12: Poolüberdachung - KLASSIK - 1050 x 300 x 130 cm (LxBxH) - 5 Module | D12: 300 | E12: 1050 | F12: 130 | G12: 5 | H12: 23.9
A13: 1100 | B13: 33260021 | C13: Poolüberdachung - KLASSIK - 1100 x 300 x 130 cm (LxBxH) - 5 Module | D13: 300 | E13: 1100 | F13: 130 | G13: 5 | H13: 23.9
A14: 1150 | B14: 33260022 | C14: Poolüberdachung - KLASSIK - 1150 x 300 x 130 cm (LxBxH) - 5 Module | D14: 300 | E14: 1150 | F14: 130 | G14: 5 | H14: 23.9
A15: 550 | B15: 33260023 | C15: Poolüberdachung - KLASSIK - 550 x 325 x 125 cm (LxBxH) - 3 Module | D15: 325 | E15: 550 | F15: 125 | G15: 3 | H15: 24.1
A16: 600 | B16: 33260024 | C16: Poolüberdachung - KLASSIK - 600 x 325 x 125 cm (LxBxH) - 3 Module | D16: 325 | E16: 600 | F16: 125 | G16: 3 | H16: 24.1
A17: 650 | B17: 33260025 | C17: Poolüberdachung - KLASSIK - 650 x 325 x 125 cm (LxBxH) - 3 Module | D17: 325 | E17: 650 | F17: 125 | G17: 3 | H17: 24.1
A18: 700 | B18: 33260026 | C18: Poolüberdachung - KLASSIK - 700 x 325 x 125 cm (LxBxH) - 3 Module | D18: 325 | E18: 700 | F18: 125 | G18: 3 | H18: 24.1
A19: 750 | B19: 33260027 | C19: Poolüberdachung - KLASSIK - 750 x 325 x 125 cm (LxBxH) - 3 Module | D19: 325 | E19: 750 | F19: 125 | G19: 3 | H19: 24.1
A20: 800 | B20: 33260028 | C20: Poolüberdachung - KLASSIK - 800 x 325 x 135 cm (LxBxH) - 4 Module | D20: 325 | E20: 800 | F20: 135 | G20: 4 | H20: 18
A21: 850 | B21: 33260029 | C21: Poolüberdachung - KLASSIK - 850 x 325 x 135 cm (LxBxH) - 4 Module | D21: 325 | E21: 850 | F21: 135 | G21: 4 | H21: 18
A22: 900 | B22: 33260030 | C22: Poolüberdachung - KLASSIK - 900 x 325 x 135 cm (LxBxH) - 4 Module | D22: 325 | E22: 900 | F22: 135 | G22: 4 | H22: 24.6
A23: 950 | B23: 33260031 | C23: Poolüberdachung - KLASSIK - 950 x 325 x 135 cm (LxBxH) - 4 Module | D23: 325 | E23: 950 | F23: 135 | G23: 4 | H23: 24.6
A24: 1000 | B24: 33260032 | C24: Poolüberdachung - KLASSIK - 1000 x 325 x 135 cm (LxBxH) - 4 Module | D24: 325 | E24: 1000 | F24: 135 | G24: 4 | H24: 24.6
A25: 1050 | B25: 33260033 | C25: Poolüberdachung - KLASSIK - 1050 x 325 x 140 cm (LxBxH) - 5 Module | D25: 325 | E25: 1050 | F25: 140 | G25: 5 | H25: 24.7
A26: 1100 | B26: 33260034 | C26: Poolüberdachung - KLASSIK - 1100 x 325 x 140 cm (LxBxH) - 5 Module | D26: 325 | E26: 1100 | F26: 140 | G26: 5 | H26: 24.7
A27: 1150 | B27: 33260035 | C27: Poolüberdachung - KLASSIK - 1150 x 325 x 140 cm (LxBxH) - 5 Module | D27: 325 | E27: 1150 | F27: 140 | G27: 5 | H27: 24.7
A28: 550 | B28: 33260036 | C28: Poolüberdachung - KLASSIK - 550 x 350 x 130 cm (LxBxH) - 3 Module | D28: 350 | E28: 550 | F28: 130 | G28: 3 | H28: 24.6
A29: 600 | B29: 33260037 | C29: Poolüberdachung - KLASSIK - 600 x 350 x 130 cm (LxBxH) - 3 Module | D29: 350 | E29: 600 | F29: 130 | G29: 3 | H29: 24.6
A30: 650 | B30: 33260038 | C30: Poolüberdachung - KLASSIK - 650 x 350 x 130 cm (LxBxH) - 3 Module | D30: 350 | E30: 650 | F30: 130 | G30: 3 | H30: 24.6
A31: 700 | B31: 33260039 | C31: Poolüberdachung - KLASSIK - 700 x 350 x 130 cm (LxBxH) - 3 Module | D31: 350 | E31: 700 | F31: 130 | G31: 3 | H31: 24.6
A32: 750 | B32: 33260040 | C32: Poolüberdachung - KLASSIK - 750 x 350 x 130 cm (LxBxH) - 3 Module | D32: 350 | E32: 750 | F32: 130 | G32: 3 | H32: 24.6
A33: 800 | B33: 33260041 | C33: Poolüberdachung - KLASSIK - 800 x 350 x 140 cm (LxBxH) - 4 Module | D33: 350 | E33: 800 | F33: 140 | G33: 4 | H33: 18.4
A34: 850 | B34: 33260042 | C34: Poolüberdachung - KLASSIK - 850 x 350 x 140 cm (LxBxH) - 4 Module | D34: 350 | E34: 850 | F34: 140 | G34: 4 | H34: 18.4
A35: 900 | B35: 33260043 | C35: Poolüberdachung - KLASSIK - 900 x 350 x 140 cm (LxBxH) - 4 Module | D35: 350 | E35: 900 | F35: 140 | G35: 4 | H35: 25
A36: 950 | B36: 33260044 | C36: Poolüberdachung - KLASSIK - 950 x 350 x 140 cm (LxBxH) - 4 Module | D36: 350 | E36: 950 | F36: 140 | G36: 4 | H36: 25
A37: 1000 | B37: 33260045 | C37: Poolüberdachung - KLASSIK - 1000 x 350 x 140 cm (LxBxH) - 4 Module | D37: 350 | E37: 1000 | F37: 140 | G37: 4 | H37: 25
A38: 1050 | B38: 33260046 | C38: Poolüberdachung - KLASSIK - 1050 x 350 x 145 cm (LxBxH) - 5 Module | D38: 350 | E38: 1050 | F38: 145 | G38: 5 | H38: 25.5
A39: 1100 | B39: 33260047 | C39: Poolüberdachung - KLASSIK - 1100 x 350 x 145 cm (LxBxH) - 5 Module | D39: 350 | E39: 1100 | F39: 145 | G39: 5 | H39: 25.5
A40: 1150 | B40: 33260048 | C40: Poolüberdachung - KLASSIK - 1150 x 350 x 145 cm (LxBxH) - 5 Module | D40: 350 | E40: 1150 | F40: 145 | G40: 5 | H40: 25.5
A41: 550 | B41: 33260049 | C41: Poolüberdachung - KLASSIK - 550 x 375 x 145 cm (LxBxH) - 3 Module | D41: 375 | E41: 550 | F41: 145 | G41: 3 | H41: 25.3
A42: 600 | B42: 33260050 | C42: Poolüberdachung - KLASSIK - 600 x 375 x 135 cm (LxBxH) - 3 Module | D42: 375 | E42: 600 | F42: 135 | G42: 3 | H42: 25.3
A43: 650 | B43: 33260051 | C43: Poolüberdachung - KLASSIK - 650 x 375 x 135 cm (LxBxH) - 3 Module | D43: 375 | E43: 650 | F43: 135 | G43: 3 | H43: 25.3
A44: 700 | B44: 33260052 | C44: Poolüberdachung - KLASSIK - 700 x 375 x 135 cm (LxBxH) - 3 Module | D44: 375 | E44: 700 | F44: 135 | G44: 3 | H44: 25.3
A45: 750 | B45: 33260053 | C45: Poolüberdachung - KLASSIK - 750 x 375 x 135 cm (LxBxH) - 3 Module | D45: 375 | E45: 750 | F45: 135 | G45: 3 | H45: 25.3
A46: 800 | B46: 33260054 | C46: Poolüberdachung - KLASSIK - 800 x 375 x 145 cm (LxBxH) - 4 Module | D46: 375 | E46: 800 | F46: 145 | G46: 4 | H46: 18.8
A47: 850 | B47: 33260055 | C47: Poolüberdachung - KLASSIK - 850 x 375 x 145 cm (LxBxH) - 4 Module | D47: 375 | E47: 850 | F47: 145 | G47: 4 | H47: 18.8
A48: 900 | B48: 33260056 | C48: Poolüberdachung - KLASSIK - 900 x 375 x 145 cm (LxBxH) - 4 Module | D48: 375 | E48: 900 | F48: 145 | G48: 4 | H48: 25.7
A49: 950 | B49: 33260057 | C49: Poolüberdachung - KLASSIK - 950 x 375 x 145 cm (LxBxH) - 4 Module | D49: 375 | E49: 950 | F49: 145 | G49: 4 | H49: 25.7
A50: 1000 | B50: 33260058 | C50: Poolüberdachung - KLASSIK - 1000 x 375 x 145 cm (LxBxH) - 4 Module | D50: 375 | E50: 1000 | F50: 145 | G50: 4 | H50: 25.7
A51: 1050 | B51: 33260059 | C51: Poolüberdachung - KLASSIK - 1050 x 375 x 150 cm (LxBxH) - 5 Module | D51: 375 | E51: 1050 | F51: 150 | G51: 5 | H51: 26.2
A52: 1100 | B52: 33260060 | C52: Poolüberdachung - KLASSIK - 1100 x 375 x 150 cm (LxBxH) - 5 Module | D52: 375 | E52: 1100 | F52: 150 | G52: 5 | H52: 26.2
A53: 1150 | B53: 33260061 | C53: Poolüberdachung - KLASSIK - 1150 x 375 x 150 cm (LxBxH) - 5 Module | D53: 375 | E53: 1150 | F53: 150 | G53: 5 | H53: 26.2
A54: 550 | B54: 33260062 | C54: Poolüberdachung - KLASSIK - 550 x 400 x 140 cm (LxBxH) - 3 Module | D54: 400 | E54: 550 | F54: 140 | G54: 3 | H54: 26.1
A55: 600 | B55: 33260063 | C55: Poolüberdachung - KLASSIK - 600 x 400 x 140 cm (LxBxH) - 3 Module | D55: 400 | E55: 600 | F55: 140 | G55: 3 | H55: 26.1
A56: 650 | B56: 33260064 | C56: Poolüberdachung - KLASSIK - 650 x 400 x 140 cm (LxBxH) - 3 Module | D56: 400 | E56: 650 | F56: 140 | G56: 3 | H56: 26.1
A57: 700 | B57: 33260065 | C57: Poolüberdachung - KLASSIK - 700 x 400 x 140 cm (LxBxH) - 3 Module | D57: 400 | E57: 700 | F57: 140 | G57: 3 | H57: 26.1
A58: 750 | B58: 33260066 | C58: Poolüberdachung - KLASSIK - 750 x 400 x 140 cm (LxBxH) - 3 Module | D58: 400 | E58: 750 | F58: 140 | G58: 3 | H58: 26.1
A59: 800 | B59: 33260067 | C59: Poolüberdachung - KLASSIK - 800 x 400 x 150 cm (LxBxH) - 4 Module | D59: 400 | E59: 800 | F59: 150 | G59: 4 | H59: 19.4
A60: 850 | B60: 33260068 | C60: Poolüberdachung - KLASSIK - 850 x 400 x 150 cm (LxBxH) - 4 Module | D60: 400 | E60: 850 | F60: 150 | G60: 4 | H60: 19.4
A61: 900 | B61: 33260069 | C61: Poolüberdachung - KLASSIK - 900 x 400 x 150 cm (LxBxH) - 4 Module | D61: 400 | E61: 900 | F61: 150 | G61: 4 | H61: 26.4
A62: 950 | B62: 33260070 | C62: Poolüberdachung - KLASSIK - 950 x 400 x 150 cm (LxBxH) - 4 Module | D62: 400 | E62: 950 | F62: 150 | G62: 4 | H62: 26.4
A63: 1000 | B63: 33260071 | C63: Poolüberdachung - KLASSIK - 1000 x 400 x 150 cm (LxBxH) - 4 Module | D63: 400 | E63: 1000 | F63: 150 | G63: 4 | H63: 26.4
A64: 1050 | B64: 33260072 | C64: Poolüberdachung - KLASSIK - 1050 x 400 x 155 cm (LxBxH) - 5 Module | D64: 400 | E64: 1050 | F64: 155 | G64: 5 | H64: 26.8
A65: 1100 | B65: 33260073 | C65: Poolüberdachung - KLASSIK - 1100 x 400 x 155 cm (LxBxH) - 5 Module | D65: 400 | E65: 1100 | F65: 155 | G65: 5 | H65: 26.8
A66: 1150 | B66: 33260074 | C66: Poolüberdachung - KLASSIK - 1150 x 400 x 155 cm (LxBxH) - 5 Module | D66: 400 | E66: 1150 | F66: 155 | G66: 5 | H66: 26.8
A67: 550 | B67: 33260075 | C67: Poolüberdachung - KLASSIK - 550 x 425 x 150 cm (LxBxH) - 3 Module | D67: 425 | E67: 550 | F67: 150 | G67: 3 | H67: 26.2
A68: 600 | B68: 33260076 | C68: Poolüberdachung - KLASSIK - 600 x 425 x 150 cm (LxBxH) - 3 Module | D68: 425 | E68: 600 | F68: 150 | G68: 3 | H68: 26.2
A69: 650 | B69: 33260077 | C69: Poolüberdachung - KLASSIK - 650 x 425 x 150 cm (LxBxH) - 3 Module | D69: 425 | E69: 650 | F69: 150 | G69: 3 | H69: 26.2
A70: 700 | B70: 33260078 | C70: Poolüberdachung - KLASSIK - 700 x 425 x 150 cm (LxBxH) - 3 Module | D70: 425 | E70: 700 | F70: 150 | G70: 3 | H70: 26.2
A71: 750 | B71: 33260079 | C71: Poolüberdachung - KLASSIK - 750 x 425 x 150 cm (LxBxH) - 3 Module | D71: 425 | E71: 750 | F71: 150 | G71: 3 | H71: 26.2
A72: 800 | B72: 33260080 | C72: Poolüberdachung - KLASSIK - 800 x 425 x 160 cm (LxBxH) - 4 Module | D72: 425 | E72: 800 | F72: 160 | G72: 4 | H72: 19.6
A73: 850 | B73: 33260081 | C73: Poolüberdachung - KLASSIK - 850 x 425 x 160 cm (LxBxH) - 4 Module | D73: 425 | E73: 850 | F73: 160 | G73: 4 | H73: 19.6
A74: 900 | B74: 33260082 | C74: Poolüberdachung - KLASSIK - 900 x 425 x 160 cm (LxBxH) - 4 Module | D74: 425 | E74: 900 | F74: 160 | G74: 4 | H74: 26.3
A75: 950 | B75: 33260083 | C75: Poolüberdachung - KLASSIK - 950 x 425 x 160 cm (LxBxH) - 4 Module | D75: 425 | E75: 950 | F75: 160 | G75: 4 | H75: 26.3
A76: 1000 | B76: 33260084 | C76: Poolüberdachung - KLASSIK - 1000 x 425 x 160 cm (LxBxH) - 4 Module | D76: 425 | E76: 1000 | F76: 160 | G76: 4 | H76: 26.3
A77: 1050 | B77: 33260085 | C77: Poolüberdachung - KLASSIK - 1050 x 425 x 165 cm (LxBxH) - 5 Module | D77: 425 | E77: 1050 | F77: 165 | G77: 5 | H77: 27.5
A78: 1100 | B78: 33260086 | C78: Poolüberdachung - KLASSIK - 1100 x 425 x 165 cm (LxBxH) - 5 Module | D78: 425 | E78: 1100 | F78: 165 | G78: 5 | H78: 27.5
A79: 1150 | B79: 33260087 | C79: Poolüberdachung - KLASSIK - 1150 x 425 x 165 cm (LxBxH) - 5 Module | D79: 425 | E79: 1150 | F79: 165 | G79: 5 | H79: 27.5
A80: 550 | B80: 33260088 | C80: Poolüberdachung - KLASSIK - 550 x 450 x 155 cm (LxBxH) - 3 Module | D80: 450 | E80: 550 | F80: 155 | G80: 3 | H80: 27
A81: 600 | B81: 33260089 | C81: Poolüberdachung - KLASSIK - 600 x 450 x 155 cm (LxBxH) - 3 Module | D81: 450 | E81: 600 | F81: 155 | G81: 3 | H81: 27
A82: 650 | B82: 33260090 | C82: Poolüberdachung - KLASSIK - 650 x 450 x 155 cm (LxBxH) - 3 Module | D82: 450 | E82: 650 | F82: 155 | G82: 3 | H82: 27
A83: 700 | B83: 33260091 | C83: Poolüberdachung - KLASSIK - 700 x 450 x 155 cm (LxBxH) - 3 Module | D83: 450 | E83: 700 | F83: 155 | G83: 3 | H83: 27
A84: 750 | B84: 33260092 | C84: Poolüberdachung - KLASSIK - 750 x 450 x 155 cm (LxBxH) - 3 Module | D84: 450 | E84: 750 | F84: 155 | G84: 3 | H84: 27
A85: 800 | B85: 33260093 | C85: Poolüberdachung - KLASSIK - 800 x 450 x 165 cm (LxBxH) - 4 Module | D85: 450 | E85: 800 | F85: 165 | G85: 4 | H85: 20.1
A86: 850 | B86: 33260094 | C86: Poolüberdachung - KLASSIK - 850 x 450 x 165 cm (LxBxH) - 4 Module | D86: 450 | E86: 850 | F86: 165 | G86: 4 | H86: 20.1
A87: 900 | B87: 33260095 | C87: Poolüberdachung - KLASSIK - 900 x 450 x 165 cm (LxBxH) - 4 Module | D87: 450 | E87: 900 | F87: 165 | G87: 4 | H87: 27.5
A88: 950 | B88: 33260096 | C88: Poolüberdachung - KLASSIK - 950 x 450 x 165 cm (LxBxH) - 4 Module | D88: 450 | E88: 950 | F88: 165 | G88: 4 | H88: 27.5
A89: 1000 | B89: 33260097 | C89: Poolüberdachung - KLASSIK - 1000 x 450 x 165 cm (LxBxH) - 4 Module | D89: 450 | E89: 1000 | F89: 165 | G89: 4 | H89: 27.5
A90: 1050 | B90: 33260098 | C90: Poolüberdachung - KLASSIK - 1050 x 450 x 170 cm (LxBxH) - 5 Module | D90: 450 | E90: 1050 | F90: 170 | G90: 5 | H90: 28
A91: 1100 | B91: 33260099 | C91: Poolüberdachung - KLASSIK - 1100 x 450 x 170 cm (LxBxH) - 5 Module | D91: 450 | E91: 1100 | F91: 170 | G91: 5 | H91: 28
A92: 1150 | B92: 33260100 | C92: Poolüberdachung - KLASSIK - 1150 x 450 x 170 cm (LxBxH) - 5 Module | D92: 450 | E92: 1150 | F92: 170 | G92: 5 | H92: 28
A93: 550 | B93: 33260101 | C93: Poolüberdachung - KLASSIK - 550 x 475 x 160 cm (LxBxH) - 3 Module | D93: 475 | E93: 550 | F93: 160 | G93: 3 | H93: 27.2
A94: 600 | B94: 33260102 | C94: Poolüberdachung - KLASSIK - 600 x 475 x 160 cm (LxBxH) - 3 Module | D94: 475 | E94: 600 | F94: 160 | G94: 3 | H94: 27.2
A95: 650 | B95: 33260103 | C95: Poolüberdachung - KLASSIK - 650 x 475 x 160 cm (LxBxH) - 3 Module | D95: 475 | E95: 650 | F95: 160 | G95: 3 | H95: 27.2
A96: 700 | B96: 33260104 | C96: Poolüberdachung - KLASSIK - 700 x 475 x 160 cm (LxBxH) - 3 Module | D96: 475 | E96: 700 | F96: 160 | G96: 3 | H96: 27.2
A97: 750 | B97: 33260105 | C97: Poolüberdachung - KLASSIK - 750 x 475 x 160 cm (LxBxH) - 3 Module | D97: 475 | E97: 750 | F97: 160 | G97: 3 | H97: 27.2
A98: 800 | B98: 33260106 | C98: Poolüberdachung - KLASSIK - 800 x 475 x 170 cm (LxBxH) - 4 Module | D98: 475 | E98: 800 | F98: 170 | G98: 4 | H98: 20.1
A99: 850 | B99: 33260107 | C99: Poolüberdachung - KLASSIK - 850 x 475 x 170 cm (LxBxH) - 4 Module | D99: 475 | E99: 850 | F99: 170 | G99: 4 | H99: 20.1
A100: 900 | B100: 33260108 | C100: Poolüberdachung - KLASSIK - 900 x 475 x 170 cm (LxBxH) - 4 Module | D100: 475 | E100: 900 | F100: 170 | G100: 4 | H100: 27.4
A101: 950 | B101: 33260109 | C101: Poolüberdachung - KLASSIK - 950 x 475 x 170 cm (LxBxH) - 4 Module | D101: 475 | E101: 950 | F101: 170 | G101: 4 | H101: 27.4
A102: 1000 | B102: 33260110 | C102: Poolüberdachung - KLASSIK - 1000 x 475 x 170 cm (LxBxH) - 4 Module | D102: 475 | E102: 1000 | F102: 170 | G102: 4 | H102: 27.4
A103: 1050 | B103: 33260111 | C103: Poolüberdachung - KLASSIK - 1050 x 475 x 175 cm (LxBxH) - 5 Module | D103: 475 | E103: 1050 | F103: 175 | G103: 5 | H103: 27.8
A104: 1100 | B104: 33260112 | C104: Poolüberdachung - KLASSIK - 1100 x 475 x 175 cm (LxBxH) - 5 Module | D104: 475 | E104: 1100 | F104: 175 | G104: 5 | H104: 27.8
A105: 1150 | B105: 33260113 | C105: Poolüberdachung - KLASSIK - 1150 x 475 x 175 cm (LxBxH) - 5 Module | D105: 475 | E105: 1150 | F105: 175 | G105: 5 | H105: 27.8
A106: 550 | B106: 33260114 | C106: Poolüberdachung - KLASSIK - 550 x 500 x 165 cm (LxBxH) - 3 Module | D106: 500 | E106: 550 | F106: 165 | G106: 3 | H106: 27.6
A107: 600 | B107: 33260115 | C107: Poolüberdachung - KLASSIK - 600 x 500 x 165 cm (LxBxH) - 3 Module | D107: 500 | E107: 600 | F107: 165 | G107: 3 | H107: 27.6
A108: 650 | B108: 33260116 | C108: Poolüberdachung - KLASSIK - 650 x 500 x 165 cm (LxBxH) - 3 Module | D108: 500 | E108: 650 | F108: 165 | G108: 3 | H108: 27.6
A109: 700 | B109: 33260117 | C109: Poolüberdachung - KLASSIK - 700 x 500 x 165 cm (LxBxH) - 3 Module | D109: 500 | E109: 700 | F109: 165 | G109: 3 | H109: 27.6
A110: 750 | B110: 33260118 | C110: Poolüberdachung - KLASSIK - 750 x 500 x 165 cm (LxBxH) - 3 Module | D110: 500 | E110: 750 | F110: 165 | G110: 3 | H110: 27.6
A111: 800 | B111: 33260119 | C111: Poolüberdachung - KLASSIK - 800 x 500 x 175 cm (LxBxH) - 4 Module | D111: 500 | E111: 800 | F111: 175 | G111: 4 | H111: 20.3
A112: 850 | B112: 33260120 | C112: Poolüberdachung - KLASSIK - 850 x 500 x 175 cm (LxBxH) - 4 Module | D112: 500 | E112: 850 | F112: 175 | G112: 4 | H112: 20.3
A113: 900 | B113: 33260121 | C113: Poolüberdachung - KLASSIK - 900 x 500 x 175 cm (LxBxH) - 4 Module | D113: 500 | E113: 900 | F113: 175 | G113: 4 | H113: 27.9
A114: 950 | B114: 33260122 | C114: Poolüberdachung - KLASSIK - 950 x 500 x 175 cm (LxBxH) - 4 Module | D114: 500 | E114: 950 | F114: 175 | G114: 4 | H114: 27.9
A115: 1000 | B115: 33260123 | C115: Poolüberdachung - KLASSIK - 1000 x 500 x 175 cm (LxBxH) - 4 Module | D115: 500 | E115: 1000 | F115: 175 | G115: 4 | H115: 27.9
A116: 1050 | B116: 33260124 | C116: Poolüberdachung - KLASSIK - 1050 x 500 x 180 cm (LxBxH) - 5 Module | D116: 500 | E116: 1050 | F116: 180 | G116: 5 | H116: 28.4
A117: 1100 | B117: 33260125 | C117: Poolüberdachung - KLASSIK - 1100 x 500 x 180 cm (LxBxH) - 5 Module | D117: 500 | E117: 1100 | F117: 180 | G117: 5 | H117: 28.4
A118: 1150 | B118: 33260126 | C118: Poolüberdachung - KLASSIK - 1150 x 500 x 180 cm (LxBxH) - 5 Module | D118: 500 | E118: 1150 | F118: 180 | G118: 5 | H118: 28.4

Sheet TEXAS (hidden)
A1: Länge | B1: ARTNUM | C1: KURZNAME | D1: Breite | E1: Länge | F1: Höhe | G1: Module | H1: AUFPREIS_PK4
A2: 550 | B2: 33270010 | C2: Poolüberdachung - TEXAS - 550 x 300 x 75 cm (LxBxH) - 3 Module | D2: 300 | E2: 550 | F2: 75 | G2: 3 | H2: 22.2
A3: 600 | B3: 33270011 | C3: Poolüberdachung - TEXAS - 600 x 300 x 75 cm (LxBxH) - 3 Module | D3: 300 | E3: 600 | F3: 75 | G3: 3 | H3: 22.2
A4: 650 | B4: 33270012 | C4: Poolüberdachung - TEXAS - 650 x 300 x 75 cm (LxBxH) - 3 Module | D4: 300 | E4: 650 | F4: 75 | G4: 3 | H4: 22.2
A5: 700 | B5: 33270013 | C5: Poolüberdachung - TEXAS - 700 x 300 x 75 cm (LxBxH) - 3 Module | D5: 300 | E5: 700 | F5: 75 | G5: 3 | H5: 22.2
A6: 750 | B6: 33270014 | C6: Poolüberdachung - TEXAS - 750 x 300 x 75 cm (LxBxH) - 3 Module | D6: 300 | E6: 750 | F6: 75 | G6: 3 | H6: 22.2
A7: 800 | B7: 33270015 | C7: Poolüberdachung - TEXAS - 800 x 300 x 85 cm (LxBxH) - 4 Module | D7: 300 | E7: 800 | F7: 85 | G7: 4 | H7: 16.4
A8: 850 | B8: 33270016 | C8: Poolüberdachung - TEXAS - 850 x 300 x 85 cm (LxBxH) - 4 Module | D8: 300 | E8: 850 | F8: 85 | G8: 4 | H8: 16.4
A9: 900 | B9: 33270017 | C9: Poolüberdachung - TEXAS - 900 x 300 x 85 cm (LxBxH) - 4 Module | D9: 300 | E9: 900 | F9: 85 | G9: 4 | H9: 22.5
A10: 950 | B10: 33270018 | C10: Poolüberdachung - TEXAS - 950 x 300 x 85 cm (LxBxH) - 4 Module | D10: 300 | E10: 950 | F10: 85 | G10: 4 | H10: 22.5
A11: 1000 | B11: 33270019 | C11: Poolüberdachung - TEXAS - 1000 x 300 x 85 cm (LxBxH) - 4 Module | D11: 300 | E11: 1000 | F11: 85 | G11: 4 | H11: 22.5
A12: 1050 | B12: 33270020 | C12: Poolüberdachung - TEXAS - 1050 x 300 x 90 cm (LxBxH) - 5 Module | D12: 300 | E12: 1050 | F12: 90 | G12: 5 | H12: 22.8
A13: 1100 | B13: 33270021 | C13: Poolüberdachung - TEXAS - 1100 x 300 x 90 cm (LxBxH) - 5 Module | D13: 300 | E13: 1100 | F13: 90 | G13: 5 | H13: 22.8
A14: 1150 | B14: 33270022 | C14: Poolüberdachung - TEXAS - 1150 x 300 x 90 cm (LxBxH) - 5 Module | D14: 300 | E14: 1150 | F14: 90 | G14: 5 | H14: 22.8
A15: 550 | B15: 33270023 | C15: Poolüberdachung - TEXAS - 550 x 325 x 75 cm (LxBxH) - 3 Module | D15: 325 | E15: 550 | F15: 75 | G15: 3 | H15: 22.8
A16: 600 | B16: 33270024 | C16: Poolüberdachung - TEXAS - 600 x 325 x 75 cm (LxBxH) - 3 Module | D16: 325 | E16: 600 | F16: 75 | G16: 3 | H16: 22.8
A17: 650 | B17: 33270025 | C17: Poolüberdachung - TEXAS - 650 x 325 x 75 cm (LxBxH) - 3 Module | D17: 325 | E17: 650 | F17: 75 | G17: 3 | H17: 22.8
A18: 700 | B18: 33270026 | C18: Poolüberdachung - TEXAS - 700 x 325 x 75 cm (LxBxH) - 3 Module | D18: 325 | E18: 700 | F18: 75 | G18: 3 | H18: 22.8
A19: 750 | B19: 33270027 | C19: Poolüberdachung - TEXAS - 750 x 325 x 75 cm (LxBxH) - 3 Module | D19: 325 | E19: 750 | F19: 75 | G19: 3 | H19: 22.8
A20: 800 | B20: 33270028 | C20: Poolüberdachung - TEXAS - 800 x 325 x 85 cm (LxBxH) - 4 Module | D20: 325 | E20: 800 | F20: 85 | G20: 4 | H20: 16.8
A21: 850 | B21: 33270029 | C21: Poolüberdachung - TEXAS - 850 x 325 x 85 cm (LxBxH) - 4 Module | D21: 325 | E21: 850 | F21: 85 | G21: 4 | H21: 16.8
A22: 900 | B22: 33270030 | C22: Poolüberdachung - TEXAS - 900 x 325 x 85 cm (LxBxH) - 4 Module | D22: 325 | E22: 900 | F22: 85 | G22: 4 | H22: 23.2
A23: 950 | B23: 33270031 | C23: Poolüberdachung - TEXAS - 950 x 325 x 85 cm (LxBxH) - 4 Module | D23: 325 | E23: 950 | F23: 85 | G23: 4 | H23: 23.2
A24: 1000 | B24: 33270032 | C24: Poolüberdachung - TEXAS - 1000 x 325 x 85 cm (LxBxH) - 4 Module | D24: 325 | E24: 1000 | F24: 85 | G24: 4 | H24: 23.2
A25: 1050 | B25: 33270033 | C25: Poolüberdachung - TEXAS - 1050 x 325 x 90 cm (LxBxH) - 5 Module | D25: 325 | E25: 1050 | F25: 90 | G25: 5 | H25: 20.5
A26: 1100 | B26: 33270034 | C26: Poolüberdachung - TEXAS - 1100 x 325 x 90 cm (LxBxH) - 5 Module | D26: 325 | E26: 1100 | F26: 90 | G26: 5 | H26: 20.5
A27: 1150 | B27: 33270035 | C27: Poolüberdachung - TEXAS - 1150 x 325 x 90 cm (LxBxH) - 5 Module | D27: 325 | E27: 1150 | F27: 90 | G27: 5 | H27: 20.5
A28: 550 | B28: 33270036 | C28: Poolüberdachung - TEXAS - 550 x 350 x 80 cm (LxBxH) - 3 Module | D28: 350 | E28: 550 | F28: 80 | G28: 3 | H28: 23.5
A29: 600 | B29: 33270037 | C29: Poolüberdachung - TEXAS - 600 x 350 x 80 cm (LxBxH) - 3 Module | D29: 350 | E29: 600 | F29: 80 | G29: 3 | H29: 23.5
A30: 650 | B30: 33270038 | C30: Poolüberdachung - TEXAS - 650 x 350 x 80 cm (LxBxH) - 3 Module | D30: 350 | E30: 650 | F30: 80 | G30: 3 | H30: 23.5
A31: 700 | B31: 33270039 | C31: Poolüberdachung - TEXAS - 700 x 350 x 80 cm (LxBxH) - 3 Module | D31: 350 | E31: 700 | F31: 80 | G31: 3 | H31: 23.5
A32: 750 | B32: 33270040 | C32: Poolüberdachung - TEXAS - 750 x 350 x 80 cm (LxBxH) - 3 Module | D32: 350 | E32: 750 | F32: 80 | G32: 3 | H32: 23.5
A33: 800 | B33: 33270041 | C33: Poolüberdachung - TEXAS - 800 x 350 x 90 cm (LxBxH) - 4 Module | D33: 350 | E33: 800 | F33: 90 | G33: 4 | H33: 17.3
A34: 850 | B34: 33270042 | C34: Poolüberdachung - TEXAS - 850 x 350 x 90 cm (LxBxH) - 4 Module | D34: 350 | E34: 850 | F34: 90 | G34: 4 | H34: 17.3
A35: 900 | B35: 33270043 | C35: Poolüberdachung - TEXAS - 900 x 350 x 90 cm (LxBxH) - 4 Module | D35: 350 | E35: 900 | F35: 90 | G35: 4 | H35: 23.8
A36: 950 | B36: 33270044 | C36: Poolüberdachung - TEXAS - 950 x 350 x 90 cm (LxBxH) - 4 Module | D36: 350 | E36: 950 | F36: 90 | G36: 4 | H36: 23.8
A37: 1000 | B37: 33270045 | C37: Poolüberdachung - TEXAS - 1000 x 350 x 90 cm (LxBxH) - 4 Module | D37: 350 | E37: 1000 | F37: 90 | G37: 4 | H37: 23.8
A38: 1050 | B38: 33270046 | C38: Poolüberdachung - TEXAS - 1050 x 350 x 95 cm (LxBxH) - 5 Module | D38: 350 | E38: 1050 | F38: 95 | G38: 5 | H38: 24
A39: 1100 | B39: 33270047 | C39: Poolüberdachung - TEXAS - 1100 x 350 x 95 cm (LxBxH) - 5 Module | D39: 350 | E39: 1100 | F39: 95 | G39: 5 | H39: 24
A40: 1150 | B40: 33270048 | C40: Poolüberdachung - TEXAS - 1150 x 350 x 95 cm (LxBxH) - 5 Module | D40: 350 | E40: 1150 | F40: 95 | G40: 5 | H40: 24
A41: 550 | B41: 33270049 | C41: Poolüberdachung - TEXAS - 550 x 375 x 95 cm (LxBxH) - 3 Module | D41: 375 | E41: 550 | F41: 95 | G41: 3 | H41: 24.1
A42: 600 | B42: 33270050 | C42: Poolüberdachung - TEXAS - 600 x 375 x 80 cm (LxBxH) - 3 Module | D42: 375 | E42: 600 | F42: 80 | G42: 3 | H42: 24.1
A43: 650 | B43: 33270051 | C43: Poolüberdachung - TEXAS - 650 x 375 x 80 cm (LxBxH) - 3 Module | D43: 375 | E43: 650 | F43: 80 | G43: 3 | H43: 24.1
A44: 700 | B44: 33270052 | C44: Poolüberdachung - TEXAS - 700 x 375 x 80 cm (LxBxH) - 3 Module | D44: 375 | E44: 700 | F44: 80 | G44: 3 | H44: 24.1
A45: 750 | B45: 33270053 | C45: Poolüberdachung - TEXAS - 750 x 375 x 80 cm (LxBxH) - 3 Module | D45: 375 | E45: 750 | F45: 80 | G45: 3 | H45: 24.1
A46: 800 | B46: 33270054 | C46: Poolüberdachung - TEXAS - 800 x 375 x 90 cm (LxBxH) - 4 Module | D46: 375 | E46: 800 | F46: 90 | G46: 4 | H46: 17.7
A47: 850 | B47: 33270055 | C47: Poolüberdachung - TEXAS - 850 x 375 x 90 cm (LxBxH) - 4 Module | D47: 375 | E47: 850 | F47: 90 | G47: 4 | H47: 17.7
A48: 900 | B48: 33270056 | C48: Poolüberdachung - TEXAS - 900 x 375 x 90 cm (LxBxH) - 4 Module | D48: 375 | E48: 900 | F48: 90 | G48: 4 | H48: 24.4
A49: 950 | B49: 33270057 | C49: Poolüberdachung - TEXAS - 950 x 375 x 90 cm (LxBxH) - 4 Module | D49: 375 | E49: 950 | F49: 90 | G49: 4 | H49: 24.4
A50: 1000 | B50: 33270058 | C50: Poolüberdachung - TEXAS - 1000 x 375 x 90 cm (LxBxH) - 4 Module | D50: 375 | E50: 1000 | F50: 90 | G50: 4 | H50: 24.4
A51: 1050 | B51: 33270059 | C51: Poolüberdachung - TEXAS - 1050 x 375 x 95 cm (LxBxH) - 5 Module | D51: 375 | E51: 1050 | F51: 95 | G51: 5 | H51: 24.7
A52: 1100 | B52: 33270060 | C52: Poolüberdachung - TEXAS - 1100 x 375 x 95 cm (LxBxH) - 5 Module | D52: 375 | E52: 1100 | F52: 95 | G52: 5 | H52: 24.7
A53: 1150 | B53: 33270061 | C53: Poolüberdachung - TEXAS - 1150 x 375 x 95 cm (LxBxH) - 5 Module | D53: 375 | E53: 1150 | F53: 95 | G53: 5 | H53: 24.7
A54: 550 | B54: 33270062 | C54: Poolüberdachung - TEXAS - 550 x 400 x 85 cm (LxBxH) - 3 Module | D54: 400 | E54: 550 | F54: 85 | G54: 3 | H54: 24.4
A55: 600 | B55: 33270063 | C55: Poolüberdachung - TEXAS - 600 x 400 x 85 cm (LxBxH) - 3 Module | D55: 400 | E55: 600 | F55: 85 | G55: 3 | H55: 24.4
A56: 650 | B56: 33270064 | C56: Poolüberdachung - TEXAS - 650 x 400 x 85 cm (LxBxH) - 3 Module | D56: 400 | E56: 650 | F56: 85 | G56: 3 | H56: 24.4
A57: 700 | B57: 33270065 | C57: Poolüberdachung - TEXAS - 700 x 400 x 85 cm (LxBxH) - 3 Module | D57: 400 | E57: 700 | F57: 85 | G57: 3 | H57: 24.4
A58: 750 | B58: 33270066 | C58: Poolüberdachung - TEXAS - 750 x 400 x 85 cm (LxBxH) - 3 Module | D58: 400 | E58: 750 | F58: 85 | G58: 3 | H58: 24.4
A59: 800 | B59: 33270067 | C59: Poolüberdachung - TEXAS - 800 x 400 x 95 cm (LxBxH) - 4 Module | D59: 400 | E59: 800 | F59: 95 | G59: 4 | H59: 18.2
A60: 850 | B60: 33270068 | C60: Poolüberdachung - TEXAS - 850 x 400 x 95 cm (LxBxH) - 4 Module | D60: 400 | E60: 850 | F60: 95 | G60: 4 | H60: 18.2
A61: 900 | B61: 33270069 | C61: Poolüberdachung - TEXAS - 900 x 400 x 95 cm (LxBxH) - 4 Module | D61: 400 | E61: 900 | F61: 95 | G61: 4 | H61: 25
A62: 950 | B62: 33270070 | C62: Poolüberdachung - TEXAS - 950 x 400 x 95 cm (LxBxH) - 4 Module | D62: 400 | E62: 950 | F62: 95 | G62: 4 | H62: 25
A63: 1000 | B63: 33270071 | C63: Poolüberdachung - TEXAS - 1000 x 400 x 95 cm (LxBxH) - 4 Module | D63: 400 | E63: 1000 | F63: 95 | G63: 4 | H63: 25
A64: 1050 | B64: 33270072 | C64: Poolüberdachung - TEXAS - 1050 x 400 x 100 cm (LxBxH) - 5 Module | D64: 400 | E64: 1050 | F64: 100 | G64: 5 | H64: 25.3
A65: 1100 | B65: 33270073 | C65: Poolüberdachung - TEXAS - 1100 x 400 x 100 cm (LxBxH) - 5 Module | D65: 400 | E65: 1100 | F65: 100 | G65: 5 | H65: 25.3
A66: 1150 | B66: 33270074 | C66: Poolüberdachung - TEXAS - 1150 x 400 x 100 cm (LxBxH) - 5 Module | D66: 400 | E66: 1150 | F66: 100 | G66: 5 | H66: 25.3
A67: 550 | B67: 33270075 | C67: Poolüberdachung - TEXAS - 550 x 425 x 85 cm (LxBxH) - 3 Module | D67: 425 | E67: 550 | F67: 85 | G67: 3 | H67: 25.2
A68: 600 | B68: 33270076 | C68: Poolüberdachung - TEXAS - 600 x 425 x 85 cm (LxBxH) - 3 Module | D68: 425 | E68: 600 | F68: 85 | G68: 3 | H68: 25.2
A69: 650 | B69: 33270077 | C69: Poolüberdachung - TEXAS - 650 x 425 x 85 cm (LxBxH) - 3 Module | D69: 425 | E69: 650 | F69: 85 | G69: 3 | H69: 25.2
A70: 700 | B70: 33270078 | C70: Poolüberdachung - TEXAS - 700 x 425 x 85 cm (LxBxH) - 3 Module | D70: 425 | E70: 700 | F70: 85 | G70: 3 | H70: 25.2
A71: 750 | B71: 33270079 | C71: Poolüberdachung - TEXAS - 750 x 425 x 85 cm (LxBxH) - 3 Module | D71: 425 | E71: 750 | F71: 85 | G71: 3 | H71: 25.2
A72: 800 | B72: 33270080 | C72: Poolüberdachung - TEXAS - 800 x 425 x 95 cm (LxBxH) - 4 Module | D72: 425 | E72: 800 | F72: 95 | G72: 4 | H72: 18.5
A73: 850 | B73: 33270081 | C73: Poolüberdachung - TEXAS - 850 x 425 x 95 cm (LxBxH) - 4 Module | D73: 425 | E73: 850 | F73: 95 | G73: 4 | H73: 18.5
A74: 900 | B74: 33270082 | C74: Poolüberdachung - TEXAS - 900 x 425 x 95 cm (LxBxH) - 4 Module | D74: 425 | E74: 900 | F74: 95 | G74: 4 | H74: 25.5
A75: 950 | B75: 33270083 | C75: Poolüberdachung - TEXAS - 950 x 425 x 95 cm (LxBxH) - 4 Module | D75: 425 | E75: 950 | F75: 95 | G75: 4 | H75: 25.5
A76: 1000 | B76: 33270084 | C76: Poolüberdachung - TEXAS - 1000 x 425 x 95 cm (LxBxH) - 4 Module | D76: 425 | E76: 1000 | F76: 95 | G76: 4 | H76: 25.5
A77: 1050 | B77: 33270085 | C77: Poolüberdachung - TEXAS - 1050 x 425 x 100 cm (LxBxH) - 5 Module | D77: 425 | E77: 1050 | F77: 100 | G77: 5 | H77: 25.9
A78: 1100 | B78: 33270086 | C78: Poolüberdachung - TEXAS - 1100 x 425 x 100 cm (LxBxH) - 5 Module | D78: 425 | E78: 1100 | F78: 100 | G78: 5 | H78: 25.9
A79: 1150 | B79: 33270087 | C79: Poolüberdachung - TEXAS - 1150 x 425 x 100 cm (LxBxH) - 5 Module | D79: 425 | E79: 1150 | F79: 100 | G79: 5 | H79: 25.9
A80: 550 | B80: 33270088 | C80: Poolüberdachung - TEXAS - 550 x 450 x 90 cm (LxBxH) - 3 Module | D80: 450 | E80: 550 | F80: 90 | G80: 3 | H80: 25.8
A81: 600 | B81: 33270089 | C81: Poolüberdachung - TEXAS - 600 x 450 x 90 cm (LxBxH) - 3 Module | D81: 450 | E81: 600 | F81: 90 | G81: 3 | H81: 25.8
A82: 650 | B82: 33270090 | C82: Poolüberdachung - TEXAS - 650 x 450 x 90 cm (LxBxH) - 3 Module | D82: 450 | E82: 650 | F82: 90 | G82: 3 | H82: 25.8
A83: 700 | B83: 33270091 | C83: Poolüberdachung - TEXAS - 700 x 450 x 90 cm (LxBxH) - 3 Module | D83: 450 | E83: 700 | F83: 90 | G83: 3 | H83: 25.8
A84: 750 | B84: 33270092 | C84: Poolüberdachung - TEXAS - 750 x 450 x 90 cm (LxBxH) - 3 Module | D84: 450 | E84: 750 | F84: 90 | G84: 3 | H84: 25.8
A85: 800 | B85: 33270093 | C85: Poolüberdachung - TEXAS - 800 x 450 x 100 cm (LxBxH) - 4 Module | D85: 450 | E85: 800 | F85: 100 | G85: 4 | H85: 19.1
A86: 850 | B86: 33270094 | C86: Poolüberdachung - TEXAS - 850 x 450 x 100 cm (LxBxH) - 4 Module | D86: 450 | E86: 850 | F86: 100 | G86: 4 | H86: 19.1
A87: 900 | B87: 33270095 | C87: Poolüberdachung - TEXAS - 900 x 450 x 100 cm (LxBxH) - 4 Module | D87: 450 | E87: 900 | F87: 100 | G87: 4 | H87: 26.2
A88: 950 | B88: 33270096 | C88: Poolüberdachung - TEXAS - 950 x 450 x 100 cm (LxBxH) - 4 Module | D88: 450 | E88: 950 | F88: 100 | G88: 4 | H88: 26.2
A89: 1000 | B89: 33270097 | C89: Poolüberdachung - TEXAS - 1000 x 450 x 100 cm (LxBxH) - 4 Module | D89: 450 | E89: 1000 | F89: 100 | G89: 4 | H89: 26.2
A90: 1050 | B90: 33270098 | C90: Poolüberdachung - TEXAS - 1050 x 450 x 105 cm (LxBxH) - 5 Module | D90: 450 | E90: 1050 | F90: 105 | G90: 5 | H90: 26.4
A91: 1100 | B91: 33270099 | C91: Poolüberdachung - TEXAS - 1100 x 450 x 105 cm (LxBxH) - 5 Module | D91: 450 | E91: 1100 | F91: 105 | G91: 5 | H91: 26.4
A92: 1150 | B92: 33270100 | C92: Poolüberdachung - TEXAS - 1150 x 450 x 105 cm (LxBxH) - 5 Module | D92: 450 | E92: 1150 | F92: 105 | G92: 5 | H92: 26.4
A93: 550 | B93: 33270101 | C93: Poolüberdachung - TEXAS - 550 x 475 x 90 cm (LxBxH) - 3 Module | D93: 475 | E93: 550 | F93: 90 | G93: 3 | H93: 25.9
A94: 600 | B94: 33270102 | C94: Poolüberdachung - TEXAS - 600 x 475 x 90 cm (LxBxH) - 3 Module | D94: 475 | E94: 600 | F94: 90 | G94: 3 | H94: 25.9
A95: 650 | B95: 33270103 | C95: Poolüberdachung - TEXAS - 650 x 475 x 90 cm (LxBxH) - 3 Module | D95: 475 | E95: 650 | F95: 90 | G95: 3 | H95: 25.9
A96: 700 | B96: 33270104 | C96: Poolüberdachung - TEXAS - 700 x 475 x 90 cm (LxBxH) - 3 Module | D96: 475 | E96: 700 | F96: 90 | G96: 3 | H96: 25.9
A97: 750 | B97: 33270105 | C97: Poolüberdachung - TEXAS - 750 x 475 x 90 cm (LxBxH) - 3 Module | D97: 475 | E97: 750 | F97: 90 | G97: 3 | H97: 25.9
A98: 800 | B98: 33270106 | C98: Poolüberdachung - TEXAS - 800 x 475 x 100 cm (LxBxH) - 4 Module | D98: 475 | E98: 800 | F98: 100 | G98: 4 | H98: 19.1
A99: 850 | B99: 33270107 | C99: Poolüberdachung - TEXAS - 850 x 475 x 100 cm (LxBxH) - 4 Module | D99: 475 | E99: 850 | F99: 100 | G99: 4 | H99: 19.1
A100: 900 | B100: 33270108 | C100: Poolüberdachung - TEXAS - 900 x 475 x 100 cm (LxBxH) - 4 Module | D100: 475 | E100: 900 | F100: 100 | G100: 4 | H100: 26.3
A101: 950 | B101: 33270109 | C101: Poolüberdachung - TEXAS - 950 x 475 x 100 cm (LxBxH) - 4 Module | D101: 475 | E101: 950 | F101: 100 | G101: 4 | H101: 26.3
A102: 1000 | B102: 33270110 | C102: Poolüberdachung - TEXAS - 1000 x 475 x 100 cm (LxBxH) - 4 Module | D102: 475 | E102: 1000 | F102: 100 | G102: 4 | H102: 26.3
A103: 1050 | B103: 33270111 | C103: Poolüberdachung - TEXAS - 1050 x 475 x 105 cm (LxBxH) - 5 Module | D103: 475 | E103: 1050 | F103: 105 | G103: 5 | H103: 26.3
A104: 1100 | B104: 33270112 | C104: Poolüberdachung - TEXAS - 1100 x 475 x 105 cm (LxBxH) - 5 Module | D104: 475 | E104: 1100 | F104: 105 | G104: 5 | H104: 26.3
A105: 1150 | B105: 33270113 | C105: Poolüberdachung - TEXAS - 1150 x 475 x 105 cm (LxBxH) - 5 Module | D105: 475 | E105: 1150 | F105: 105 | G105: 5 | H105: 26.3
A106: 550 | B106: 33270114 | C106: Poolüberdachung - TEXAS - 550 x 500 x 95 cm (LxBxH) - 3 Module | D106: 500 | E106: 550 | F106: 95 | G106: 3 | H106: 26.5
A107: 600 | B107: 33270115 | C107: Poolüberdachung - TEXAS - 600 x 500 x 95 cm (LxBxH) - 3 Module | D107: 500 | E107: 600 | F107: 95 | G107: 3 | H107: 26.5
A108: 650 | B108: 33270116 | C108: Poolüberdachung - TEXAS - 650 x 500 x 95 cm (LxBxH) - 3 Module | D108: 500 | E108: 650 | F108: 95 | G108: 3 | H108: 26.5
A109: 700 | B109: 33270117 | C109: Poolüberdachung - TEXAS - 700 x 500 x 95 cm (LxBxH) - 3 Module | D109: 500 | E109: 700 | F109: 95 | G109: 3 | H109: 26.5
A110: 750 | B110: 33270118 | C110: Poolüberdachung - TEXAS - 750 x 500 x 95 cm (LxBxH) - 3 Module | D110: 500 | E110: 750 | F110: 95 | G110: 3 | H110: 26.5
A111: 800 | B111: 33270119 | C111: Poolüberdachung - TEXAS - 800 x 500 x 100 cm (LxBxH) - 4 Module | D111: 500 | E111: 800 | F111: 100 | G111: 4 | H111: 19.3
A112: 850 | B112: 33270120 | C112: Poolüberdachung - TEXAS - 850 x 500 x 100 cm (LxBxH) - 4 Module | D112: 500 | E112: 850 | F112: 100 | G112: 4 | H112: 19.3
A113: 900 | B113: 33270121 | C113: Poolüberdachung - TEXAS - 900 x 500 x 100 cm (LxBxH) - 4 Module | D113: 500 | E113: 900 | F113: 100 | G113: 4 | H113: 26.7
A114: 950 | B114: 33270122 | C114: Poolüberdachung - TEXAS - 950 x 500 x 100 cm (LxBxH) - 4 Module | D114: 500 | E114: 950 | F114: 100 | G114: 4 | H114: 26.7
A115: 1000 | B115: 33270123 | C115: Poolüberdachung - TEXAS - 1000 x 500 x 100 cm (LxBxH) - 4 Module | D115: 500 | E115: 1000 | F115: 100 | G115: 4 | H115: 26.7
A116: 1050 | B116: 33270124 | C116: Poolüberdachung - TEXAS - 1050 x 500 x 105 cm (LxBxH) - 5 Module | D116: 500 | E116: 1050 | F116: 105 | G116: 5 | H116: 27.2
A117: 1100 | B117: 33270125 | C117: Poolüberdachung - TEXAS - 1100 x 500 x 105 cm (LxBxH) - 5 Module | D117: 500 | E117: 1100 | F117: 105 | G117: 5 | H117: 27.2
A118: 1150 | B118: 33270126 | C118: Poolüberdachung - TEXAS - 1150 x 500 x 105 cm (LxBxH) - 5 Module | D118: 500 | E118: 1150 | F118: 105 | G118: 5 | H118: 27.2
A119: 550 | B119: 33270127 | C119: Poolüberdachung - TEXAS - 550 x 525 x 95 cm (LxBxH) - 3 Module | D119: 525 | E119: 550 | F119: 95 | G119: 3 | H119: 26.9
A120: 600 | B120: 33270128 | C120: Poolüberdachung - TEXAS - 600 x 525 x 95 cm (LxBxH) - 3 Module | D120: 525 | E120: 600 | F120: 95 | G120: 3 | H120: 26.9
A121: 650 | B121: 33270129 | C121: Poolüberdachung - TEXAS - 650 x 525 x 95 cm (LxBxH) - 3 Module | D121: 525 | E121: 650 | F121: 95 | G121: 3 | H121: 26.9
A122: 700 | B122: 33270130 | C122: Poolüberdachung - TEXAS - 700 x 525 x 95 cm (LxBxH) - 3 Module | D122: 525 | E122: 700 | F122: 95 | G122: 3 | H122: 26.9
A123: 750 | B123: 33270131 | C123: Poolüberdachung - TEXAS - 750 x 525 x 95 cm (LxBxH) - 3 Module | D123: 525 | E123: 750 | F123: 95 | G123: 3 | H123: 26.9
A124: 800 | B124: 33270132 | C124: Poolüberdachung - TEXAS - 800 x 525 x 105 cm (LxBxH) - 4 Module | D124: 525 | E124: 800 | F124: 105 | G124: 4 | H124: 19.8
A125: 850 | B125: 33270133 | C125: Poolüberdachung - TEXAS - 850 x 525 x 105 cm (LxBxH) - 4 Module | D125: 525 | E125: 850 | F125: 105 | G125: 4 | H125: 19.8
A126: 900 | B126: 33270134 | C126: Poolüberdachung - TEXAS - 900 x 525 x 105 cm (LxBxH) - 4 Module | D126: 525 | E126: 900 | F126: 105 | G126: 4 | H126: 27.3
A127: 950 | B127: 33270135 | C127: Poolüberdachung - TEXAS - 950 x 525 x 105 cm (LxBxH) - 4 Module | D127: 525 | E127: 950 | F127: 105 | G127: 4 | H127: 27.3
A128: 1000 | B128: 33270136 | C128: Poolüberdachung - TEXAS - 1000 x 525 x 105 cm (LxBxH) - 4 Module | D128: 525 | E128: 1000 | F128: 105 | G128: 4 | H128: 27.3
A129: 1050 | B129: 33270137 | C129: Poolüberdachung - TEXAS - 1050 x 525 x 110 cm (LxBxH) - 5 Module | D129: 525 | E129: 1050 | F129: 110 | G129: 5 | H129: 27.8
A130: 1100 | B130: 33270138 | C130: Poolüberdachung - TEXAS - 1100 x 525 x 110 cm (LxBxH) - 5 Module | D130: 525 | E130: 1100 | F130: 110 | G130: 5 | H130: 27.8
A131: 1150 | B131: 33270139 | C131: Poolüberdachung - TEXAS - 1150 x 525 x 110 cm (LxBxH) - 5 Module | D131: 525 | E131: 1150 | F131: 110 | G131: 5 | H131: 27.8

Sheet HORIZONT (hidden)
A1: Länge | B1: ARTNUM | C1: KURZNAME | D1: Breite | E1: Länge | F1: Höhe | G1: Module
A2: 550 | B2: 33280010 | C2: Poolüberdachung - HORIZONT - 550 x 300 x 55 cm (LxBxH) - 3 Module | D2: 300 | E2: 550 | F2: 55 | G2: 3
A3: 600 | B3: 33280011 | C3: Poolüberdachung - HORIZONT - 600 x 300 x 55 cm (LxBxH) - 3 Module | D3: 300 | E3: 600 | F3: 55 | G3: 3
A4: 650 | B4: 33280012 | C4: Poolüberdachung - HORIZONT - 650 x 300 x 55 cm (LxBxH) - 3 Module | D4: 300 | E4: 650 | F4: 55 | G4: 3
A5: 700 | B5: 33280013 | C5: Poolüberdachung - HORIZONT - 700 x 300 x 55 cm (LxBxH) - 3 Module | D5: 300 | E5: 700 | F5: 55 | G5: 3
A6: 750 | B6: 33280014 | C6: Poolüberdachung - HORIZONT - 750 x 300 x 55 cm (LxBxH) - 3 Module | D6: 300 | E6: 750 | F6: 55 | G6: 3
A7: 800 | B7: 33280015 | C7: Poolüberdachung - HORIZONT - 800 x 300 x 60 cm (LxBxH) - 4 Module | D7: 300 | E7: 800 | F7: 60 | G7: 4
A8: 850 | B8: 33280016 | C8: Poolüberdachung - HORIZONT - 850 x 300 x 60 cm (LxBxH) - 4 Module | D8: 300 | E8: 850 | F8: 60 | G8: 4
A9: 900 | B9: 33280017 | C9: Poolüberdachung - HORIZONT - 900 x 300 x 60 cm (LxBxH) - 4 Module | D9: 300 | E9: 900 | F9: 60 | G9: 4
A10: 950 | B10: 33280018 | C10: Poolüberdachung - HORIZONT - 950 x 300 x 60 cm (LxBxH) - 4 Module | D10: 300 | E10: 950 | F10: 60 | G10: 4
A11: 1000 | B11: 33280019 | C11: Poolüberdachung - HORIZONT - 1000 x 300 x 60 cm (LxBxH) - 4 Module | D11: 300 | E11: 1000 | F11: 60 | G11: 4
A12: 1050 | B12: 33280020 | C12: Poolüberdachung - HORIZONT - 1050 x 300 x 65 cm (LxBxH) - 5 Module | D12: 300 | E12: 1050 | F12: 65 | G12: 5
A13: 1100 | B13: 33280021 | C13: Poolüberdachung - HORIZONT - 1100 x 300 x 65 cm (LxBxH) - 5 Module | D13: 300 | E13: 1100 | F13: 65 | G13: 5
A14: 1150 | B14: 33280022 | C14: Poolüberdachung - HORIZONT - 1150 x 300 x 65 cm (LxBxH) - 5 Module | D14: 300 | E14: 1150 | F14: 65 | G14: 5
A15: 550 | B15: 33280023 | C15: Poolüberdachung - HORIZONT - 550 x 325 x 60 cm (LxBxH) - 3 Module | D15: 325 | E15: 550 | F15: 60 | G15: 3
A16: 600 | B16: 33280024 | C16: Poolüberdachung - HORIZONT - 600 x 325 x 60 cm (LxBxH) - 3 Module | D16: 325 | E16: 600 | F16: 60 | G16: 3
A17: 650 | B17: 33280025 | C17: Poolüberdachung - HORIZONT - 650 x 325 x 60 cm (LxBxH) - 3 Module | D17: 325 | E17: 650 | F17: 60 | G17: 3
A18: 700 | B18: 33280026 | C18: Poolüberdachung - HORIZONT - 700 x 325 x 60 cm (LxBxH) - 3 Module | D18: 325 | E18: 700 | F18: 60 | G18: 3
A19: 750 | B19: 33280027 | C19: Poolüberdachung - HORIZONT - 750 x 325 x 60 cm (LxBxH) - 3 Module | D19: 325 | E19: 750 | F19: 60 | G19: 3
A20: 800 | B20: 33280028 | C20: Poolüberdachung - HORIZONT - 800 x 325 x 65 cm (LxBxH) - 4 Module | D20: 325 | E20: 800 | F20: 65 | G20: 4
A21: 850 | B21: 33280029 | C21: Poolüberdachung - HORIZONT - 850 x 325 x 65 cm (LxBxH) - 4 Module | D21: 325 | E21: 850 | F21: 65 | G21: 4
A22: 900 | B22: 33280030 | C22: Poolüberdachung - HORIZONT - 900 x 325 x 65 cm (LxBxH) - 4 Module | D22: 325 | E22: 900 | F22: 65 | G22: 4
A23: 950 | B23: 33280031 | C23: Poolüberdachung - HORIZONT - 950 x 325 x 65 cm (LxBxH) - 4 Module | D23: 325 | E23: 950 | F23: 65 | G23: 4
A24: 1000 | B24: 33280032 | C24: Poolüberdachung - HORIZONT - 1000 x 325 x 65 cm (LxBxH) - 4 Module | D24: 325 | E24: 1000 | F24: 65 | G24: 4
A25: 1050 | B25: 33280033 | C25: Poolüberdachung - HORIZONT - 1050 x 325 x 70 cm (LxBxH) - 5 Module | D25: 325 | E25: 1050 | F25: 70 | G25: 5
A26: 1100 | B26: 33280034 | C26: Poolüberdachung - HORIZONT - 1100 x 325 x 70 cm (LxBxH) - 5 Module | D26: 325 | E26: 1100 | F26: 70 | G26: 5
A27: 1150 | B27: 33280035 | C27: Poolüberdachung - HORIZONT - 1150 x 325 x 70 cm (LxBxH) - 5 Module | D27: 325 | E27: 1150 | F27: 70 | G27: 5
A28: 550 | B28: 33280036 | C28: Poolüberdachung - HORIZONT - 550 x 350 x 60 cm (LxBxH) - 3 Module | D28: 350 | E28: 550 | F28: 60 | G28: 3
A29: 600 | B29: 33280037 | C29: Poolüberdachung - HORIZONT - 600 x 350 x 60 cm (LxBxH) - 3 Module | D29: 350 | E29: 600 | F29: 60 | G29: 3
A30: 650 | B30: 33280038 | C30: Poolüberdachung - HORIZONT - 650 x 350 x 60 cm (LxBxH) - 3 Module | D30: 350 | E30: 650 | F30: 60 | G30: 3
A31: 700 | B31: 33280039 | C31: Poolüberdachung - HORIZONT - 700 x 350 x 60 cm (LxBxH) - 3 Module | D31: 350 | E31: 700 | F31: 60 | G31: 3
A32: 750 | B32: 33280040 | C32: Poolüberdachung - HORIZONT - 750 x 350 x 60 cm (LxBxH) - 3 Module | D32: 350 | E32: 750 | F32: 60 | G32: 3
A33: 800 | B33: 33280041 | C33: Poolüberdachung - HORIZONT - 800 x 350 x 65 cm (LxBxH) - 4 Module | D33: 350 | E33: 800 | F33: 65 | G33: 4
A34: 850 | B34: 33280042 | C34: Poolüberdachung - HORIZONT - 850 x 350 x 65 cm (LxBxH) - 4 Module | D34: 350 | E34: 850 | F34: 65 | G34: 4
A35: 900 | B35: 33280043 | C35: Poolüberdachung - HORIZONT - 900 x 350 x 65 cm (LxBxH) - 4 Module | D35: 350 | E35: 900 | F35: 65 | G35: 4
A36: 950 | B36: 33280044 | C36: Poolüberdachung - HORIZONT - 950 x 350 x 65 cm (LxBxH) - 4 Module | D36: 350 | E36: 950 | F36: 65 | G36: 4
A37: 1000 | B37: 33280045 | C37: Poolüberdachung - HORIZONT - 1000 x 350 x 65 cm (LxBxH) - 4 Module | D37: 350 | E37: 1000 | F37: 65 | G37: 4
A38: 1050 | B38: 33280046 | C38: Poolüberdachung - HORIZONT - 1050 x 350 x 70 cm (LxBxH) - 5 Module | D38: 350 | E38: 1050 | F38: 70 | G38: 5
A39: 1100 | B39: 33280047 | C39: Poolüberdachung - HORIZONT - 1100 x 350 x 70 cm (LxBxH) - 5 Module | D39: 350 | E39: 1100 | F39: 70 | G39: 5
A40: 1150 | B40: 33280048 | C40: Poolüberdachung - HORIZONT - 1150 x 350 x 70 cm (LxBxH) - 5 Module | D40: 350 | E40: 1150 | F40: 70 | G40: 5
A41: 550 | B41: 33280049 | C41: Poolüberdachung - HORIZONT - 550 x 375 x 65 cm (LxBxH) - 3 Module | D41: 375 | E41: 550 | F41: 65 | G41: 3
A42: 600 | B42: 33280050 | C42: Poolüberdachung - HORIZONT - 600 x 375 x 65 cm (LxBxH) - 3 Module | D42: 375 | E42: 600 | F42: 65 | G42: 3
A43: 650 | B43: 33280051 | C43: Poolüberdachung - HORIZONT - 650 x 375 x 65 cm (LxBxH) - 3 Module | D43: 375 | E43: 650 | F43: 65 | G43: 3
A44: 700 | B44: 33280052 | C44: Poolüberdachung - HORIZONT - 700 x 375 x 65 cm (LxBxH) - 3 Module | D44: 375 | E44: 700 | F44: 65 | G44: 3
A45: 750 | B45: 33280053 | C45: Poolüberdachung - HORIZONT - 750 x 375 x 65 cm (LxBxH) - 3 Module | D45: 375 | E45: 750 | F45: 65 | G45: 3
A46: 800 | B46: 33280054 | C46: Poolüberdachung - HORIZONT - 800 x 375 x 70 cm (LxBxH) - 4 Module | D46: 375 | E46: 800 | F46: 70 | G46: 4
A47: 850 | B47: 33280055 | C47: Poolüberdachung - HORIZONT - 850 x 375 x 70 cm (LxBxH) - 4 Module | D47: 375 | E47: 850 | F47: 70 | G47: 4
A48: 900 | B48: 33280056 | C48: Poolüberdachung - HORIZONT - 900 x 375 x 70 cm (LxBxH) - 4 Module | D48: 375 | E48: 900 | F48: 70 | G48: 4
A49: 950 | B49: 33280057 | C49: Poolüberdachung - HORIZONT - 950 x 375 x 70 cm (LxBxH) - 4 Module | D49: 375 | E49: 950 | F49: 70 | G49: 4
A50: 1000 | B50: 33280058 | C50: Poolüberdachung - HORIZONT - 1000 x 375 x 70 cm (LxBxH) - 4 Module | D50: 375 | E50: 1000 | F50: 70 | G50: 4
A51: 1050 | B51: 33280059 | C51: Poolüberdachung - HORIZONT - 1050 x 375 x 75 cm (LxBxH) - 5 Module | D51: 375 | E51: 1050 | F51: 75 | G51: 5
A52: 1100 | B52: 33280060 | C52: Poolüberdachung - HORIZONT - 1100 x 375 x 75 cm (LxBxH) - 5 Module | D52: 375 | E52: 1100 | F52: 75 | G52: 5
A53: 1150 | B53: 33280061 | C53: Poolüberdachung - HORIZONT - 1150 x 375 x 75 cm (LxBxH) - 5 Module | D53: 375 | E53: 1150 | F53: 75 | G53: 5
A54: 550 | B54: 33280062 | C54: Poolüberdachung - HORIZONT - 550 x 400 x 65 cm (LxBxH) - 3 Module | D54: 400 | E54: 550 | F54: 65 | G54: 3
A55: 600 | B55: 33280063 | C55: Poolüberdachung - HORIZONT - 600 x 400 x 65 cm (LxBxH) - 3 Module | D55: 400 | E55: 600 | F55: 65 | G55: 3
A56: 650 | B56: 33280064 | C56: Poolüberdachung - HORIZONT - 650 x 400 x 65 cm (LxBxH) - 3 Module | D56: 400 | E56: 650 | F56: 65 | G56: 3
A57: 700 | B57: 33280065 | C57: Poolüberdachung - HORIZONT - 700 x 400 x 65 cm (LxBxH) - 3 Module | D57: 400 | E57: 700 | F57: 65 | G57: 3
A58: 750 | B58: 33280066 | C58: Poolüberdachung - HORIZONT - 750 x 400 x 65 cm (LxBxH) - 3 Module | D58: 400 | E58: 750 | F58: 65 | G58: 3
A59: 800 | B59: 33280067 | C59: Poolüberdachung - HORIZONT - 800 x 400 x 70 cm (LxBxH) - 4 Module | D59: 400 | E59: 800 | F59: 70 | G59: 4
A60: 850 | B60: 33280068 | C60: Poolüberdachung - HORIZONT - 850 x 400 x 70 cm (LxBxH) - 4 Module | D60: 400 | E60: 850 | F60: 70 | G60: 4
A61: 900 | B61: 33280069 | C61: Poolüberdachung - HORIZONT - 900 x 400 x 70 cm (LxBxH) - 4 Module | D61: 400 | E61: 900 | F61: 70 | G61: 4
A62: 950 | B62: 33280070 | C62: Poolüberdachung - HORIZONT - 950 x 400 x 70 cm (LxBxH) - 4 Module | D62: 400 | E62: 950 | F62: 70 | G62: 4
A63: 1000 | B63: 33280071 | C63: Poolüberdachung - HORIZONT - 1000 x 400 x 70 cm (LxBxH) - 4 Module | D63: 400 | E63: 1000 | F63: 70 | G63: 4
A64: 1050 | B64: 33280072 | C64: Poolüberdachung - HORIZONT - 1050 x 400 x 75 cm (LxBxH) - 5 Module | D64: 400 | E64: 1050 | F64: 75 | G64: 5
A65: 1100 | B65: 33280073 | C65: Poolüberdachung - HORIZONT - 1100 x 400 x 75 cm (LxBxH) - 5 Module | D65: 400 | E65: 1100 | F65: 75 | G65: 5
A66: 1150 | B66: 33280074 | C66: Poolüberdachung - HORIZONT - 1150 x 400 x 75 cm (LxBxH) - 5 Module | D66: 400 | E66: 1150 | F66: 75 | G66: 5
A67: 550 | B67: 33280075 | C67: Poolüberdachung - HORIZONT - 550 x 425 x 65 cm (LxBxH) - 3 Module | D67: 425 | E67: 550 | F67: 65 | G67: 3
A68: 600 | B68: 33280076 | C68: Poolüberdachung - HORIZONT - 600 x 425 x 65 cm (LxBxH) - 3 Module | D68: 425 | E68: 600 | F68: 65 | G68: 3
A69: 650 | B69: 33280077 | C69: Poolüberdachung - HORIZONT - 650 x 425 x 65 cm (LxBxH) - 3 Module | D69: 425 | E69: 650 | F69: 65 | G69: 3
A70: 700 | B70: 33280078 | C70: Poolüberdachung - HORIZONT - 700 x 425 x 65 cm (LxBxH) - 3 Module | D70: 425 | E70: 700 | F70: 65 | G70: 3
A71: 750 | B71: 33280079 | C71: Poolüberdachung - HORIZONT - 750 x 425 x 65 cm (LxBxH) - 3 Module | D71: 425 | E71: 750 | F71: 65 | G71: 3
A72: 800 | B72: 33280080 | C72: Poolüberdachung - HORIZONT - 800 x 425 x 70 cm (LxBxH) - 4 Module | D72: 425 | E72: 800 | F72: 70 | G72: 4
A73: 850 | B73: 33280081 | C73: Poolüberdachung - HORIZONT - 850 x 425 x 70 cm (LxBxH) - 4 Module | D73: 425 | E73: 850 | F73: 70 | G73: 4
A74: 900 | B74: 33280082 | C74: Poolüberdachung - HORIZONT - 900 x 425 x 70 cm (LxBxH) - 4 Module | D74: 425 | E74: 900 | F74: 70 | G74: 4
A75: 950 | B75: 33280083 | C75: Poolüberdachung - HORIZONT - 950 x 425 x 70 cm (LxBxH) - 4 Module | D75: 425 | E75: 950 | F75: 70 | G75: 4
A76: 1000 | B76: 33280084 | C76: Poolüberdachung - HORIZONT - 1000 x 425 x 70 cm (LxBxH) - 4 Module | D76: 425 | E76: 1000 | F76: 70 | G76: 4
A77: 1050 | B77: 33280085 | C77: Poolüberdachung - HORIZONT - 1050 x 425 x 75 cm (LxBxH) - 5 Module | D77: 425 | E77: 1050 | F77: 75 | G77: 5
A78: 1100 | B78: 33280086 | C78: Poolüberdachung - HORIZONT - 1100 x 425 x 75 cm (LxBxH) - 5 Module | D78: 425 | E78: 1100 | F78: 75 | G78: 5
A79: 1150 | B79: 33280087 | C79: Poolüberdachung - HORIZONT - 1150 x 425 x 75 cm (LxBxH) - 5 Module | D79: 425 | E79: 1150 | F79: 75 | G79: 5
A80: 550 | B80: 33280088 | C80: Poolüberdachung - HORIZONT - 550 x 450 x 70 cm (LxBxH) - 3 Module | D80: 450 | E80: 550 | F80: 70 | G80: 3
A81: 600 | B81: 33280089 | C81: Poolüberdachung - HORIZONT - 600 x 450 x 70 cm (LxBxH) - 3 Module | D81: 450 | E81: 600 | F81: 70 | G81: 3
A82: 650 | B82: 33280090 | C82: Poolüberdachung - HORIZONT - 650 x 450 x 70 cm (LxBxH) - 3 Module | D82: 450 | E82: 650 | F82: 70 | G82: 3
